Workbook

Sheet BaseBDME
A1: Datos de la entidad | E1: Boletín 34 | J1: Boletín 33
E2: Personas Naturales | G2: Personas Jurídicas | J2: Personas Naturales | L2: Personas Jurídicas
A3: Código CGN | B3: Razón Social | C3: Ámbito | D3: Departamento | E3: Cantidad Personas N34 | F3: Total valor deudas N34 | G3: Cantidad Personas J34 | H3: Total valor deudas J34 | I3: Valor total 34 | J3: Cantidad Personas N33 | K3: Total valor deudas N33 | L3: Cantidad Personas J33 | M3: Total valor deudas J33 | N3: Valor total 33
A4: 20615000 | B4: Colegio de Boyacá | C4: ENTIDADES DE GOBIERNO | D4: BOYACÁ | E4: 0 | F4: 0 | G4: 0 | H4: 0 | I4: =H4+F4 -> 0 | J4: 2 | K4: 91733063 | L4: 4 | M4: 53965449 | N4: =K4+M4 -> 145698512
A5: 37217000 | B5: E.S.P. Central Hidroeléctrica de Caldas S.A. | C5: EMPRESAS COTIZANTES | D5: CALDAS | E5: 58 | F5: 895021866 | G5: 21 | H5: 1036328187 | I5: 1931350053 | J5: 64 | K5: 1150411993 | L5: 24 | M5: 1369058781 | N5: 2519470774
A6: 37400000 | B6: E.S.P. Centrales Eléctricas de Norte de Santander S.A. | C6: EMPRESAS COTIZANTES | D6: ANTIOQUIA | E6: 85 | F6: 1246487856 | G6: 30 | H6: 4471278199 | I6: 5717766055 | J6: 0 | K6: 0 | L6: 34 | M6: 4718897237 | N6: 4718897237
A7: 38900000 | B7: E.S.P. Electrificadora Santander S.A. | C7: EMPRESAS COTIZANTES | D7: ANTIOQUIA | E7: 0 | F7: 0 | G7: 0 | H7: 0 | I7: 0 | J7: 0 | K7: 0 | L7: 65 | M7: 6668169389 | N7: 6668169389
A8: 39363000 | B8: E.S.P. Empresa de Energía del Quindío S.A. | C8: EMPRESAS COTIZANTES | D8: QUINDÍO | E8: 27 | F8: 508588164 | G8: 17 | H8: 349370733 | I8: 857958897 | J8: 12 | K8: 152398059 | L8: 4 | M8: 78655572 | N8: 231053631
A9: 64500000 | B9: Instituto Tecnológico de Soledad Atlántico | C9: ENTIDADES DE GOBIERNO | D9: ATLÁNTICO | E9: 2 | F9: 10504163 | G9: 6 | H9: 16406626954 | I9: 16417131117 | J9: 0 | K9: 0 | L9: 6 | M9: 8927833227 | N9: 8927833227
A10: 83500000 | B10: E.S.E. Hospital María Angelines - Puerto Leguízamo | C10: EMPRESAS NO COTIZANTES | D10: PUTUMAYO | E10: 0 | F10: 0 | G10: 20 | H10: 3489744128 | I10: 3489744128 | J10: 0 | K10: 0 | L10: 0 | M10: 0 | N10: 0
A11: 84200000 | B11: E.S.E. Camu del Municipio de La Apartada | C11: EMPRESAS NO COTIZANTES | D11: CÓRDOBA | E11: 0 | F11: 0 | G11: 0 | H11: 0 | I11: 0 | J11: 0 | K11: 0 | L11: 4 | M11: 869027072 | N11: 869027072
A12: 85800000 | B12: E.S.E. Salud Yopal | C12: EMPRESAS NO COTIZANTES | D12: CASANARE | E12: 0 | F12: 0 | G12: 5 | H12: 637934859 | I12: 637934859 | J12: 0 | K12: 0 | L12: 2 | M12: 53039956 | N12: 53039956
A13: 86200000 | B13: E.S.E. Hospital Nuestra Señora del Pilar de Medina | C13: EMPRESAS NO COTIZANTES | D13: CUNDINAMARCA | E13: 0 | F13: 0 | G13: 19 | H13: 1135416517 | I13: 1135416517 | J13: 0 | K13: 0 | L13: 24 | M13: 1631866849 | N13: 1631866849
A14: 86300000 | B14: E.S.E. Barrancabermeja | C14: EMPRESAS NO COTIZANTES | D14: SANTANDER | E14: 0 | F14: 0 | G14: 12 | H14: 4127694627 | I14: 4127694627 | J14: 0 | K14: 0 | L14: 4 | M14: 3951490237 | N14: 3951490237
A15: 86500000 | B15: E.S.P. Empresa de Servicios Públicos Domiciliarios de la Dorada | C15: EMPRESAS NO COTIZANTES | D15: CALDAS | E15: 22 | F15: 184695717 | G15: 0 | H15: 0 | I15: 184695717 | J15: 20 | K15: 153395532 | L15: 0 | M15: 0 | N15: 153395532
A16: 86600000 | B16: E.S.E. Centro de Salud San Antonio - Socotá | C16: EMPRESAS NO COTIZANTES | D16: BOYACÁ | E16: 0 | F16: 0 | G16: 0 | H16: 0 | I16: 0 | J16: 0 | K16: 0 | L16: 2 | M16: 222992877 | N16: 222992877
A17: 86800000 | B17: E.S.P. Empresa de Servicios Públicos Domiciliarios de Aguazul | C17: EMPRESAS NO COTIZANTES | D17: CASANARE | E17: 5 | F17: 50383700 | G17: 5 | H17: 76337800 | I17: 126721500 | J17: 3 | K17: 32048300 | L17: 5 | M17: 64903800 | N17: 96952100
A18: 86900000 | B18: Centro de Salud Alcides Jiménez Puerto Caicedo | C18: EMPRESAS NO COTIZANTES | D18: PUTUMAYO | E18: 0 | F18: 0 | G18: 14 | H18: 466145768 | I18: 466145768 | J18: 0 | K18: 0 | L18: 0 | M18: 0 | N18: 0
A19: 87200000 | B19: Empresa de Vivienda e Infraestructura de Antioquia | C19: ENTIDADES DE GOBIERNO | D19: ANTIOQUIA | E19: 161 | F19: 2037213082 | G19: 0 | H19: 0 | I19: 2037213082 | J19: 172 | K19: 2030910879 | L19: 0 | M19: 0 | N19: 2030910879
A20: 87700000 | B20: E.S.E. Hospital San José de Marsella | C20: EMPRESAS NO COTIZANTES | D20: RISARALDA | E20: 0 | F20: 0 | G20: 7 | H20: 208869394 | I20: 208869394 | J20: 0 | K20: 0 | L20: 9 | M20: 257131814 | N20: 257131814
A21: 88500000 | B21: Empresa Municipal de Vías - Belén de Umbría | C21: EMPRESAS NO COTIZANTES | D21: RISARALDA | E21: 0 | F21: 0 | G21: 3 | H21: 99506828 | I21: 99506828 | J21: 0 | K21: 0 | L21: 3 | M21: 99506828 | N21: 99506828
A22: 88800000 | B22: Instituto de Tránsito y Transporte de Los Patios | C22: ENTIDADES DE GOBIERNO | D22: NORTE DE SANTANDER | E22: 6 | F22: 109311900 | G22: 0 | H22: 0 | I22: 109311900 | J22: 8 | K22: 106855976 | L22: 0 | M22: 0 | N22: 106855976
A23: 89000000 | B23: Asociación de Municipios del Alto Ariari | C23: ENTIDADES DE GOBIERNO | D23: META | E23: 0 | F23: 0 | G23: 4 | H23: 412979580 | I23: 412979580 | J23: 0 | K23: 0 | L23: 5 | M23: 398238955 | N23: 398238955
A24: 89100000 | B24: E.S.P. Aguas del Puerto S.A. - Puerto Berrío | C24: EMPRESAS NO COTIZANTES | D24: ANTIOQUIA | E24: 6 | F24: 42624166 | G24: 2 | H24: 84174199 | I24: 126798365 | J24: 3 | K24: 20105899 | L24: 1 | M24: 10021309 | N24: 30127208
A25: 89600000 | B25: E.S.P. Empresa de Energía Eléctrica del Departamento del Vichada S.A. | C25: EMPRESAS NO COTIZANTES | D25: VICHADA | E25: 0 | F25: 0 | G25: 0 | H25: 0 | I25: 0 | J25: 4 | K25: 27497209 | L25: 0 | M25: 0 | N25: 27497209
A26: 89800000 | B26: E.S.E. Centro de Salud - Ventaquemada | C26: EMPRESAS NO COTIZANTES | D26: BOYACÁ | E26: 0 | F26: 0 | G26: 0 | H26: 0 | I26: 0 | J26: 0 | K26: 0 | L26: 11 | M26: 774980215 | N26: 774980215
A27: 89970221 | B27: Coveñas | C27: ENTIDADES DE GOBIERNO | D27: SUCRE | E27: 0 | F27: 0 | G27: 0 | H27: 0 | I27: 0 | J27: 946 | K27: 23829305291 | L27: 41 | M27: 1018965001 | N27: 24848270292
A28: 90500000 | B28: E.S.E. Hospital Fronterizo - La Dorada | C28: EMPRESAS NO COTIZANTES | D28: PUTUMAYO | E28: 0 | F28: 0 | G28: 12 | H28: 332148646 | I28: 332148646 | J28: 0 | K28: 0 | L28: 0 | M28: 0 | N28: 0
A29: 90600000 | B29: E.S.E. Hospital San Francisco Javier del Municipio de Acevedo | C29: EMPRESAS NO COTIZANTES | D29: HUILA | E29: 0 | F29: 0 | G29: 1 | H29: 8098377 | I29: 8098377 | J29: 0 | K29: 0 | L29: 0 | M29: 0 | N29: 0
A30: 90900000 | B30: E.S.E. Centro de Salud Rafael Salgado | C30: EMPRESAS NO COTIZANTES | D30: BOYACÁ | E30: 0 | F30: 0 | G30: 0 | H30: 0 | I30: 0 | J30: 0 | K30: 0 | L30: 12 | M30: 831993343 | N30: 831993343
A31: 91900000 | B31: E.S.E. Santiago de Tunja | C31: EMPRESAS NO COTIZANTES | D31: BOYACÁ | E31: 0 | F31: 0 | G31: 15 | H31: 2074111015 | I31: 2074111015 | J31: 0 | K31: 0 | L31: 16 | M31: 2003749510 | N31: 2003749510
A32: 92100000 | B32: E.S.E. Hospital Sagrado Corazón de Jesús de la Hormiga | C32: EMPRESAS NO COTIZANTES | D32: PUTUMAYO | E32: 0 | F32: 0 | G32: 18 | H32: 706844072 | I32: 706844072 | J32: 0 | K32: 0 | L32: 19 | M32: 1196024566 | N32: 1196024566
A33: 92600000 | B33: E.S.E. Centro de Salud de Sáchica | C33: EMPRESAS NO COTIZANTES | D33: BOYACÁ | E33: 0 | F33: 0 | G33: 1 | H33: 233738652 | I33: 233738652 | J33: 0 | K33: 0 | L33: 1 | M33: 207332859 | N33: 207332859
A34: 92800000 | B34: Gestora Urbana de Ibagué | C34: ENTIDADES DE GOBIERNO | D34: TOLIMA | E34: 376 | F34: 8861021775 | G34: 0 | H34: 0 | I34: 8861021775 | J34: 343 | K34: 9010358909 | L34: 1 | M34: 30977638 | N34: 9041336547
A35: 92900000 | B35: Centro de Salud Santo Domingo Savio | C35: EMPRESAS NO COTIZANTES | D35: SANTANDER | E35: 0 | F35: 0 | G35: 14 | H35: 268510419 | I35: 268510419 | J35: 0 | K35: 0 | L35: 14 | M35: 624001583 | N35: 624001583
A36: 93200000 | B36: E.S.E. Salud del Tundama | C36: EMPRESAS NO COTIZANTES | D36: BOYACÁ | E36: 0 | F36: 0 | G36: 4 | H36: 616389001 | I36: 616389001 | J36: 0 | K36: 0 | L36: 4 | M36: 881580628 | N36: 881580628
A37: 93500000 | B37: Empresa Social del Estado Centro de Salud Santa Rita de Casia | C37: EMPRESAS NO COTIZANTES | D37: BOYACÁ | E37: 0 | F37: 0 | G37: 1 | H37: 45916078 | I37: 45916078 | J37: 0 | K37: 0 | L37: 0 | M37: 0 | N37: 0
A38: 93600000 | B38: E.S.E. Prestadora de Servicios de Salud Gustavo Romero Hernández | C38: EMPRESAS NO COTIZANTES | D38: BOYACÁ | E38: 0 | F38: 0 | G38: 1 | H38: 122127527 | I38: 122127527 | J38: 0 | K38: 0 | L38: 1 | M38: 122127527 | N38: 122127527
A39: 93700000 | B39: E.S.E. Centro de Salud de Motavita | C39: EMPRESAS NO COTIZANTES | D39: BOYACÁ | E39: 0 | F39: 0 | G39: 1 | H39: 243346988 | I39: 243346988 | J39: 0 | K39: 0 | L39: 1 | M39: 243346988 | N39: 243346988
A40: 93900000 | B40: E.S.E. Hospital San José de Guaduas | C40: EMPRESAS NO COTIZANTES | D40: CUNDINAMARCA | E40: 0 | F40: 0 | G40: 50 | H40: 5778117993 | I40: 5778117993 | J40: 0 | K40: 0 | L40: 53 | M40: 4893884542 | N40: 4893884542
A41: 94200000 | B41: U.A.E. Unidad de Licores del Meta | C41: EMPRESAS NO COTIZANTES | D41: META | E41: 2 | F41: 30888261 | G41: 0 | H41: 0 | I41: 30888261 | J41: 2 | K41: 20129019 | L41: 1 | M41: 40200000 | N41: 60329019
A42: 94900000 | B42: Instituto de Vivienda Municipal de Aguazul | C42: ENTIDADES DE GOBIERNO | D42: CASANARE | E42: 0 | F42: 0 | G42: 0 | H42: 0 | I42: 0 | J42: 467 | K42: 13964170161 | L42: 0 | M42: 0 | N42: 13964170161
A43: 95300000 | B43: E.S.E Centro de Salud - Betéitiva | C43: EMPRESAS NO COTIZANTES | D43: BOYACÁ | E43: 0 | F43: 0 | G43: 1 | H43: 43251825 | I43: 43251825 | J43: 0 | K43: 0 | L43: 1 | M43: 101356533 | N43: 101356533
A44: 95600000 | B44: E.S.E. Hospital San Antonio de Chía | C44: EMPRESAS NO COTIZANTES | D44: CUNDINAMARCA | E44: 0 | F44: 0 | G44: 0 | H44: 0 | I44: 0 | J44: 0 | K44: 0 | L44: 34 | M44: 3242659767 | N44: 3242659767
A45: 95700000 | B45: E.S.E. Centro de Salud Nuestra Señora de La Paz | C45: EMPRESAS NO COTIZANTES | D45: BOYACÁ | E45: 0 | F45: 0 | G45: 16 | H45: 321580751 | I45: 321580751 | J45: 0 | K45: 0 | L45: 0 | M45: 0 | N45: 0
A46: 96600000 | B46: E.S.E. Centro de Salud del Municipio de Sutamarchán | C46: EMPRESAS NO COTIZANTES | D46: BOYACÁ | E46: 0 | F46: 0 | G46: 12 | H46: 546933428 | I46: 546933428 | J46: 0 | K46: 0 | L46: 11 | M46: 534664960 | N46: 534664960
A47: 96900000 | B47: E.S.E. Centro de Salud las Mercedes de Caldas - Boyacá | C47: EMPRESAS NO COTIZANTES | D47: BOYACÁ | E47: 0 | F47: 0 | G47: 2 | H47: 150078387 | I47: 150078387 | J47: 0 | K47: 0 | L47: 2 | M47: 150078387 | N47: 150078387
A48: 97000000 | B48: E.S.E. Centro de Salud San Vicente Ferrer - Saboyá - Boyacá | C48: EMPRESAS NO COTIZANTES | D48: BOYACÁ | E48: 0 | F48: 0 | G48: 5 | H48: 881190771 | I48: 881190771 | J48: 0 | K48: 0 | L48: 7 | M48: 941812636 | N48: 941812636
A49: 110505000 | B49: Departamento de Antioquia | C49: ENTIDADES DE GOBIERNO | D49: ANTIOQUIA | E49: 20882 | F49: 247340366599 | G49: 1083 | H49: 56244021674 | I49: 303584388273 | J49: 21598 | K49: 230497050082 | L49: 1102 | M49: 49665251001 | N49: 280162301083
A50: 110808000 | B50: Departamento del Atlántico | C50: ENTIDADES DE GOBIERNO | D50: ATLÁNTICO | E50: 3745 | F50: 32800451065 | G50: 382 | H50: 99073633494 | I50: 131874084559 | J50: 2717 | K50: 27593025263 | L50: 36 | M50: 8624969688 | N50: 36217994951
A51: 111313000 | B51: Departamento de Bolívar | C51: ENTIDADES DE GOBIERNO | D51: BOLÍVAR | E51: 1420 | F51: 52653314470 | G51: 177 | H51: 2008945135 | I51: 54662259605 | J51: 750 | K51: 47951796949 | L51: 126 | M51: 1308253834 | N51: 49260050783
A52: 111515000 | B52: Departamento de Boyacá | C52: ENTIDADES DE GOBIERNO | D52: BOYACÁ | E52: 10765 | F52: 122425155449 | G52: 413 | H52: 33128864052 | I52: 155554019501 | J52: 12196 | K52: 149215406036 | L52: 442 | M52: 33510096408 | N52: 182725502444
A53: 111717000 | B53: Departamento de Caldas | C53: ENTIDADES DE GOBIERNO | D53: CALDAS | E53: 236 | F53: 2310594804 | G53: 7 | H53: 79558000 | I53: 2390152804 | J53: 48 | K53: 385601000 | L53: 4 | M53: 33990000 | N53: 419591000
A54: 111818000 | B54: Departamento del Caquetá | C54: ENTIDADES DE GOBIERNO | D54: CAQUETÁ | E54: 415 | F54: 2971267000 | G54: 15 | H54: 192483000 | I54: 3163750000 | J54: 1 | K54: 5611000 | L54: 1 | M54: 6767000 | N54: 12378000
A55: 111919000 | B55: Departamento del Cauca | C55: ENTIDADES DE GOBIERNO | D55: CAUCA | E55: 978 | F55: 7238674910 | G55: 193 | H55: 4570636544 | I55: 11809311454 | J55: 526 | K55: 3919164853 | L55: 130 | M55: 3555196135 | N55: 7474360988
A56: 112020000 | B56: Departamento del Cesar | C56: ENTIDADES DE GOBIERNO | D56: CESAR | E56: 0 | F56: 0 | G56: 0 | H56: 0 | I56: 0 | J56: 811 | K56: 8826964323 | L56: 93 | M56: 14836894727 | N56: 23663859050
A57: 112525000 | B57: Departamento de Cundinamarca | C57: ENTIDADES DE GOBIERNO | D57: CUNDINAMARCA | E57: 4567 | F57: 85533988005 | G57: 105 | H57: 285291345031 | I57: 370825333036 | J57: 0 | K57: 0 | L57: 0 | M57: 0 | N57: 0
A58: 114141000 | B58: Departamento del Huila | C58: ENTIDADES DE GOBIERNO | D58: HUILA | E58: 0 | F58: 0 | G58: 0 | H58: 0 | I58: 0 | J58: 2 | K58: 477467996 | L58: 0 | M58: 0 | N58: 477467996
A59: 114747000 | B59: Departamento del Magdalena | C59: ENTIDADES DE GOBIERNO | D59: MAGDALENA | E59: 0 | F59: 0 | G59: 0 | H59: 0 | I59: 0 | J59: 498 | K59: 3417119504 | L59: 0 | M59: 0 | N59: 3417119504
A60: 115050000 | B60: Departamento del Meta | C60: ENTIDADES DE GOBIERNO | D60: META | E60: 2552 | F60: 41418323077 | G60: 80 | H60: 25721130664 | I60: 67139453741 | J60: 2481 | K60: 36032765290 | L60: 106 | M60: 19703892498 | N60: 55736657788
A61: 115252000 | B61: Departamento de Nariño | C61: ENTIDADES DE GOBIERNO | D61: NARIÑO | E61: 98 | F61: 1058982000 | G61: 35 | H61: 751340000 | I61: 1810322000 | J61: 239 | K61: 3921776998 | L61: 46 | M61: 1971382187 | N61: 5893159185
A62: 115454000 | B62: Departamento del Norte de Santander | C62: ENTIDADES DE GOBIERNO | D62: NORTE DE SANTANDER | E62: 4186 | F62: 36572995820 | G62: 143 | H62: 2416990733 | I62: 38989986553 | J62: 2639 | K62: 23114815878 | L62: 130 | M62: 1610263241 | N62: 24725079119
A63: 116363000 | B63: Departamento del Quindío | C63: ENTIDADES DE GOBIERNO | D63: QUINDÍO | E63: 166 | F63: 1609425000 | G63: 10 | H63: 152604000 | I63: 1762029000 | J63: 174 | K63: 1900183434 | L63: 30 | M63: 894695565 | N63: 2794878999
A64: 116666000 | B64: Departamento de Risaralda | C64: ENTIDADES DE GOBIERNO | D64: RISARALDA | E64: 4411 | F64: 48067719094 | G64: 117 | H64: 2909928428 | I64: 50977647522 | J64: 4929 | K64: 53369510252 | L64: 136 | M64: 4043589415 | N64: 57413099667
A65: 116868000 | B65: Departamento de Santander | C65: ENTIDADES DE GOBIERNO | D65: SANTANDER | E65: 9805 | F65: 96881518010 | G65: 401 | H65: 7252723220 | I65: 104134241230 | J65: 8594 | K65: 88026404780 | L65: 350 | M65: 6791020970 | N65: 94817425750
A66: 117070000 | B66: Departamento de Sucre | C66: ENTIDADES DE GOBIERNO | D66: SUCRE | E66: 1109 | F66: 11841233083 | G66: 0 | H66: 0 | I66: 11841233083 | J66: 1272 | K66: 14790323245 | L66: 0 | M66: 0 | N66: 14790323245
A67: 117373000 | B67: Departamento del Tolima | C67: ENTIDADES DE GOBIERNO | D67: TOLIMA | E67: 1367 | F67: 18244523165 | G67: 0 | H67: 0 | I67: 18244523165 | J67: 870 | K67: 14457571224 | L67: 0 | M67: 0 | N67: 14457571224
A68: 117676000 | B68: Departamento del Valle del Cauca | C68: ENTIDADES DE GOBIERNO | D68: VALLE DEL CAUCA | E68: 4424 | F68: 44090934772 | G68: 476 | H68: 99294915380 | I68: =H68+F68 -> 143385850152 | J68: 346 | K68: 2685338023 | L68: 0 | M68: 0 | N68: =K68+M68 -> 2685338023
A69: 118181000 | B69: Departamento de Arauca | C69: ENTIDADES DE GOBIERNO | D69: ARAUCA | E69: 7 | F69: 115636746 | G69: 7 | H69: 1574768544 | I69: 1690405290 | J69: 7 | K69: 115636746 | L69: 6 | M69: 972910167 | N69: 1088546913
A70: 118585000 | B70: Departamento de Casanare | C70: ENTIDADES DE GOBIERNO | D70: CASANARE | E70: 689 | F70: 12905472625 | G70: 48 | H70: 11692460077 | I70: 24597932702 | J70: 285 | K70: 5055685800 | L70: 44 | M70: 4332036214 | N70: 9387722014
A71: 118686000 | B71: Departamento del Putumayo | C71: ENTIDADES DE GOBIERNO | D71: PUTUMAYO | E71: 0 | F71: 0 | G71: 0 | H71: 0 | I71: 0 | J71: 1 | K71: 9480315 | L71: 5 | M71: 259489281 | N71: 268969596
A72: 119191000 | B72: Departamento del Amazonas | C72: ENTIDADES DE GOBIERNO | D72: AMAZONAS | E72: 38 | F72: 2813822281 | G72: 52 | H72: 20731327281 | I72: 23545149562 | J72: 34 | K72: 1416414973 | L72: 38 | M72: 14070629397 | N72: 15487044370
A73: 119494000 | B73: Departamento del Guainía | C73: ENTIDADES DE GOBIERNO | D73: GUAINÍA | E73: 6 | F73: 752668119 | G73: 8 | H73: 884453438 | I73: 1637121557 | J73: 6 | K73: 752668119 | L73: 8 | M73: 884453438 | N73: 1637121557
A74: 119595000 | B74: Departamento del Guaviare | C74: ENTIDADES DE GOBIERNO | D74: GUAVIARE | E74: 6 | F74: 790947739 | G74: 13 | H74: 1933970244 | I74: 2724917983 | J74: 7 | K74: 799042461 | L74: 1 | M74: 305000000 | N74: 1104042461
A75: 120125040 | B75: E.S.E. Empresa Social del Estado Hospital San Antonio - Anolaima | C75: EMPRESAS NO COTIZANTES | D75: CUNDINAMARCA | E75: 0 | F75: 0 | G75: 8 | H75: 91401353 | I75: 91401353 | J75: 0 | K75: 0 | L75: 5 | M75: 76530335 | N75: 76530335
A76: 120150000 | B76: E.S.E. Empresa Social del Estado del Meta - Solución Salud | C76: EMPRESAS NO COTIZANTES | D76: META | E76: 0 | F76: 0 | G76: 100 | H76: 27889505493 | I76: 27889505493 | J76: 1 | K76: 4390000 | L76: 55 | M76: 15588407973 | N76: 15592797973
A77: 120176000 | B77: Beneficencia del Valle del Cauca | C77: EMPRESAS NO COTIZANTES | D77: VALLE DEL CAUCA | E77: 91 | F77: 2511818307 | G77: 28 | H77: 743015957 | I77: 3254834264 | J77: 84 | K77: 2290047273 | L77: 26 | M77: 714153687 | N77: 3004200960
A78: 120185000 | B78: E.S.E. Red Salud Casanare | C78: EMPRESAS NO COTIZANTES | D78: CASANARE | E78: 0 | F78: 0 | G78: 53 | H78: 12860325536 | I78: 12860325536 | J78: 0 | K78: 0 | L78: 54 | M78: 12025043002 | N78: 12025043002
A79: 120197000 | B79: E.S.E. Hospital San Antonio | C79: EMPRESAS NO COTIZANTES | D79: VAUPÉS | E79: 0 | F79: 0 | G79: 39 | H79: 7053804398 | I79: 7053804398 | J79: 0 | K79: 0 | L79: 39 | M79: 9359566980 | N79: 9359566980
A80: 120205000 | B80: Universidad de Antioquia | C80: ENTIDADES DE GOBIERNO | D80: ANTIOQUIA | E80: 75 | F80: 4981223777 | G80: 38 | H80: 1954778610 | I80: 6936002387 | J80: 38 | K80: 2652088074 | L80: 38 | M80: 7826638905 | N80: 10478726979
A81: 120305000 | B81: Politécnico Colombiano Jaime Isaza Cadavid | C81: ENTIDADES DE GOBIERNO | D81: ANTIOQUIA | E81: 9 | F81: 66052726 | G81: 7 | H81: 73452534 | I81: 139505260 | J81: 5 | K81: 34286756 | L81: 0 | M81: 0 | N81: 34286756
A82: 120373000 | B82: E.S.E. Hospital Departamental Especializado Granja Integral - Lérida | C82: EMPRESAS NO COTIZANTES | D82: TOLIMA | E82: 0 | F82: 0 | G82: 4 | H82: 2378306250 | I82: 2378306250 | J82: 0 | K82: 0 | L82: 0 | M82: 0 | N82: 0
A83: 120473000 | B83: E.S.E. Hospital Departamental Reina Sofía de España - Lérida | C83: EMPRESAS NO COTIZANTES | D83: TOLIMA | E83: 0 | F83: 0 | G83: 15 | H83: 502280169 | I83: 502280169 | J83: 0 | K83: 0 | L83: 4 | M83: 199305177 | N83: 199305177
A84: 120554000 | B84: E.S.E. Hospital Regional Norte | C84: EMPRESAS NO COTIZANTES | D84: NORTE DE SANTANDER | E84: 0 | F84: 0 | G84: 0 | H84: 0 | I84: 0 | J84: 0 | K84: 0 | L84: 46 | M84: 12587221764 | N84: 12587221764
A85: 120573000 | B85: E.S.P. Empresa Generadora del Tolima S.A. | C85: EMPRESAS NO COTIZANTES | D85: TOLIMA | E85: 1 | F85: 10614000 | G85: 1 | H85: 10000000 | I85: 20614000 | J85: 1 | K85: 10614000 | L85: 3 | M85: 293270800 | N85: 303884800
A86: 120608606 | B86: E.S.E. Hospital Local de Repelón | C86: EMPRESAS NO COTIZANTES | D86: ATLÁNTICO | E86: 0 | F86: 0 | G86: 1 | H86: 84525164 | I86: 84525164 | J86: 0 | K86: 0 | L86: 0 | M86: 0 | N86: 0
A87: 120676000 | B87: Universidad del Valle | C87: ENTIDADES DE GOBIERNO | D87: VALLE DEL CAUCA | E87: 0 | F87: 0 | G87: 27 | H87: 8183113308 | I87: 8183113308 | J87: 0 | K87: 0 | L87: 32 | M87: 9009371471 | N87: 9009371471
A88: 120705000 | B88: Lotería de Medellín | C88: EMPRESAS NO COTIZANTES | D88: ANTIOQUIA | E88: 13 | F88: 1067223409 | G88: 30 | H88: 2242965056 | I88: 3310188465 | J88: 0 | K88: 0 | L88: 0 | M88: 0 | N88: 0
A89: 120968000 | B89: E.S.E. Hospital Universitario de Santander | C89: EMPRESAS NO COTIZANTES | D89: SANTANDER | E89: 0 | F89: 0 | G89: 68 | H89: 43530219263 | I89: 43530219263 | J89: 0 | K89: 0 | L89: 69 | M89: 33799384110 | N89: 33799384110
A90: 121105000 | B90: E.S.E. Hospital Mental de Antioquia - Homo | C90: EMPRESAS NO COTIZANTES | D90: ANTIOQUIA | E90: 0 | F90: 0 | G90: 8 | H90: 655200636 | I90: 655200636 | J90: 0 | K90: 0 | L90: 14 | M90: 885373137 | N90: 885373137
A91: 121168000 | B91: E.S.E. Hospital Psiquiátrico San Camilo de Bucaramanga | C91: EMPRESAS NO COTIZANTES | D91: SANTANDER | E91: 0 | F91: 0 | G91: 0 | H91: 0 | I91: 0 | J91: 0 | K91: 0 | L91: 29 | M91: 1527470550 | N91: 1527470550
A92: 121170000 | B92: E.S.E. Hospital Regional - Sincelejo | C92: EMPRESAS NO COTIZANTES | D92: SUCRE | E92: 0 | F92: 0 | G92: 0 | H92: 0 | I92: 0 | J92: 0 | K92: 0 | L92: 36 | M92: 17165499307 | N92: 17165499307
A93: 121270000 | B93: E.S.E. Hospital Regional San Marcos - Sucre | C93: EMPRESAS NO COTIZANTES | D93: SUCRE | E93: 0 | F93: 0 | G93: 62 | H93: 7838320963 | I93: 7838320963 | J93: 0 | K93: 0 | L93: 0 | M93: 0 | N93: 0
A94: 121370000 | B94: E.S.E. Hospital Regional Nuestra Señora de las Mercedes - Corozal | C94: EMPRESAS NO COTIZANTES | D94: SUCRE | E94: 0 | F94: 0 | G94: 22 | H94: 1406723095 | I94: 1406723095 | J94: 0 | K94: 0 | L94: 27 | M94: 3434644153 | N94: 3434644153
A95: 121468000 | B95: E.S.E. Hospital Integrado San Bernardo de Barbosa | C95: EMPRESAS NO COTIZANTES | D95: SANTANDER | E95: 0 | F95: 0 | G95: 35 | H95: 2756147618 | I95: 2756147618 | J95: 0 | K95: 0 | L95: 26 | M95: 1266728315 | N95: 1266728315
A96: 121568000 | B96: E.S.E. Hospital San Juan de Dios - Barichara | C96: EMPRESAS NO COTIZANTES | D96: SANTANDER | E96: 0 | F96: 0 | G96: 6 | H96: 298819652 | I96: 298819652 | J96: 0 | K96: 0 | L96: 11 | M96: 396829997 | N96: 396829997
A97: 121570000 | B97: E.S.E. Hospital Local Nivel I Nuestra Señora del Socorro - Sincé | C97: EMPRESAS NO COTIZANTES | D97: SUCRE | E97: 0 | F97: 0 | G97: 7 | H97: 52115163 | I97: 52115163 | J97: 0 | K97: 0 | L97: 9 | M97: 779806226 | N97: 779806226
A98: 121647000 | B98: Universidad del Magdalena | C98: ENTIDADES DE GOBIERNO | D98: MAGDALENA | E98: 2 | F98: 16863000 | G98: 0 | H98: 0 | I98: 16863000 | J98: 2 | K98: 16863000 | L98: 0 | M98: 0 | N98: 16863000
A99: 122168000 | B99: Hospital San Roque - Chima | C99: EMPRESAS NO COTIZANTES | D99: SANTANDER | E99: 0 | F99: 0 | G99: 3 | H99: 351133364 | I99: 351133364 | J99: 0 | K99: 0 | L99: 3 | M99: 317457880 | N99: 317457880
A100: 122176000 | B100: E.S.E. Hospital Universitario del Valle Evaristo García | C100: EMPRESAS NO COTIZANTES | D100: VALLE DEL CAUCA | E100: 0 | F100: 0 | G100: 75 | H100: 90700630973 | I100: 90700630973 | J100: 68 | K100: 843253865 | L100: 48 | M100: 22600924799 | N100: 23444178664
A101: 122350000 | B101: Instituto de Turismo del Meta | C101: ENTIDADES DE GOBIERNO | D101: META | E101: 3 | F101: 9927305378 | G101: 0 | H101: 0 | I101: 9927305378 | J101: 3 | K101: 7820304332 | L101: 0 | M101: 0 | N101: 7820304332
A102: 122376000 | B102: E.S.E. Hospital Departamental Mario Correa Rengifo - Cali | C102: EMPRESAS NO COTIZANTES | D102: VALLE DEL CAUCA | E102: 0 | F102: 0 | G102: 49 | H102: 15747924504 | I102: 15747924504 | J102: 0 | K102: 0 | L102: 49 | M102: 24029731500 | N102: 24029731500
A103: 122381000 | B103: E.S.E. Departamental de Primer Nivel | C103: EMPRESAS NO COTIZANTES | D103: ARAUCA | E103: 0 | F103: 0 | G103: 3 | H103: 5158635430 | I103: 5158635430 | J103: 0 | K103: 0 | L103: 3 | M103: 4217059166 | N103: 4217059166
A104: 122425000 | B104: E.S.E. Hospital San Rafael - Cáqueza | C104: EMPRESAS NO COTIZANTES | D104: CUNDINAMARCA | E104: 0 | F104: 0 | G104: 30 | H104: 1950405957 | I104: 1950405957 | J104: 0 | K104: 0 | L104: 30 | M104: 1624526963 | N104: 1624526963
A105: 122476000 | B105: E.S.E. Hospital Psiquiátrico Universitario San Isidro - Cali | C105: EMPRESAS NO COTIZANTES | D105: VALLE DEL CAUCA | E105: 0 | F105: 0 | G105: 5 | H105: 301574804 | I105: 301574804 | J105: 0 | K105: 0 | L105: 0 | M105: 0 | N105: 0
A106: 122547000 | B106: E.S.E. Hospital Local de Tenerife | C106: EMPRESAS NO COTIZANTES | D106: MAGDALENA | E106: 0 | F106: 0 | G106: 6 | H106: 338124907 | I106: 338124907 | J106: 0 | K106: 0 | L106: 6 | M106: 243956737 | N106: 243956737
A107: 122568000 | B107: E.S.E. Hospital San Juan de Dios de Floridablanca | C107: EMPRESAS NO COTIZANTES | D107: SANTANDER | E107: 0 | F107: 0 | G107: 37 | H107: 20094521185 | I107: 20094521185 | J107: 0 | K107: 0 | L107: 41 | M107: 15203366530 | N107: 15203366530
A108: 122613000 | B108: Universidad de Cartagena | C108: ENTIDADES DE GOBIERNO | D108: BOLÍVAR | E108: 50 | F108: 355617790 | G108: 0 | H108: 0 | I108: 355617790 | J108: 22 | K108: 165810556 | L108: 0 | M108: 0 | N108: 165810556
A109: 122725000 | B109: E.S.E. Hospital San Martín de Porres - Chocontá | C109: EMPRESAS NO COTIZANTES | D109: CUNDINAMARCA | E109: 0 | F109: 0 | G109: 0 | H109: 0 | I109: 0 | J109: 0 | K109: 0 | L109: 5 | M109: 579624649 | N109: 579624649
A110: 122768000 | B110: E.S.E. Clinica Girón | C110: EMPRESAS NO COTIZANTES | D110: SANTANDER | E110: 0 | F110: 0 | G110: 2 | H110: 329128950 | I110: 329128950 | J110: 0 | K110: 0 | L110: 7 | M110: 1368302852 | N110: 1368302852
A111: 122776000 | B111: E.S.E. Hospital San Antonio - Roldanillo (Valle) | C111: EMPRESAS NO COTIZANTES | D111: VALLE DEL CAUCA | E111: 0 | F111: 0 | G111: 14 | H111: 618273831 | I111: 618273831 | J111: 0 | K111: 0 | L111: 15 | M111: 760356593 | N111: 760356593
A112: 122781000 | B112: E.S.E. Hospital San Vicente - Arauca | C112: EMPRESAS NO COTIZANTES | D112: ARAUCA | E112: 0 | F112: 0 | G112: 58 | H112: 17881877900 | I112: 17881877900 | J112: 0 | K112: 0 | L112: 0 | M112: 0 | N112: 0
A113: 122868000 | B113: E.S.E. Hospital Santa Ana | C113: EMPRESAS NO COTIZANTES | D113: SANTANDER | E113: 0 | F113: 0 | G113: 1 | H113: 28753771 | I113: 28753771 | J113: 0 | K113: 0 | L113: 2 | M113: 76145369 | N113: 76145369
A114: 122925000 | B114: E.S.E. Hospital San Rafael - Facatativá | C114: EMPRESAS NO COTIZANTES | D114: CUNDINAMARCA | E114: 0 | F114: 0 | G114: 93 | H114: 39605260754 | I114: 39605260754 | J114: 0 | K114: 0 | L114: 89 | M114: 45356211653 | N114: 45356211653
A115: 122947000 | B115: E.S.E. Hospital San Rafael - Fundación | C115: EMPRESAS NO COTIZANTES | D115: MAGDALENA | E115: 0 | F115: 0 | G115: 6 | H115: 354623569 | I115: 354623569 | J115: 0 | K115: 0 | L115: 10 | M115: 434377471 | N115: 434377471
A116: 122976000 | B116: E.S.E. Hospital Tomás Uribe Uribe - Tuluá | C116: EMPRESAS NO COTIZANTES | D116: VALLE DEL CAUCA | E116: 0 | F116: 0 | G116: 16 | H116: 19530247919 | I116: 19530247919 | J116: 0 | K116: 0 | L116: 49 | M116: 19188279370 | N116: 19188279370
A117: 123076000 | B117: E.S.E. Hospital Departamental San Rafael - Zarzal | C117: EMPRESAS NO COTIZANTES | D117: VALLE DEL CAUCA | E117: 0 | F117: 0 | G117: 8 | H117: 463898517 | I117: 463898517 | J117: 0 | K117: 0 | L117: 7 | M117: 628782180 | N117: 628782180
A118: 123081000 | B118: E.S.E. Hospital de Sarare - Saravena | C118: EMPRESAS NO COTIZANTES | D118: ARAUCA | E118: 0 | F118: 0 | G118: 26 | H118: 10830559665 | I118: 10830559665 | J118: 0 | K118: 0 | L118: 32 | M118: 16084311867 | N118: 16084311867
A119: 123125000 | B119: E.S.E. Hospital San Rafael - Fusagasugá | C119: EMPRESAS NO COTIZANTES | D119: CUNDINAMARCA | E119: 0 | F119: 0 | G119: 16 | H119: 15918496755 | I119: 15918496755 | J119: 0 | K119: 0 | L119: 17 | M119: 15920040345 | N119: 15920040345
A120: 123147000 | B120: E.S.E. Hospital Santander Herrera - Pivijay | C120: EMPRESAS NO COTIZANTES | D120: MAGDALENA | E120: 0 | F120: 0 | G120: 1 | H120: 18349211 | I120: 18349211 | J120: 0 | K120: 0 | L120: 4 | M120: 127602894 | N120: 127602894
A121: 123168000 | B121: E.S.E. Hospital San Juan de Dios - Lebrija | C121: EMPRESAS NO COTIZANTES | D121: SANTANDER | E121: 0 | F121: 0 | G121: 19 | H121: 1651646822 | I121: 1651646822 | J121: 0 | K121: 0 | L121: 37 | M121: 3015211720 | N121: 3015211720
A122: 123173000 | B122: E.S.E. Hospital Dptal. Federico Lleras Acosta - Ibagué | C122: EMPRESAS NO COTIZANTES | D122: TOLIMA | E122: 0 | F122: 0 | G122: 47 | H122: 21203664354 | I122: 21203664354 | J122: 0 | K122: 0 | L122: 56 | M122: 31233145382 | N122: 31233145382
A123: 123215000 | B123: E.S.E. Hospital Regional de Chiquinquirá | C123: EMPRESAS NO COTIZANTES | D123: BOYACÁ | E123: 0 | F123: 0 | G123: 62 | H123: 32734391994 | I123: 32734391994 | J123: 0 | K123: 0 | L123: 60 | M123: 29962646808 | N123: 29962646808
A124: 123225000 | B124: E.S.E. Hospital San Francisco - Gachetá | C124: EMPRESAS NO COTIZANTES | D124: CUNDINAMARCA | E124: 0 | F124: 0 | G124: 11 | H124: 961832256 | I124: 961832256 | J124: 0 | K124: 0 | L124: 12 | M124: 1157750947 | N124: 1157750947
A125: 123305000 | B125: E.S.E. Centro de Rehabilitación Integral en Salud Mental de Antioquia | C125: EMPRESAS NO COTIZANTES | D125: ANTIOQUIA | E125: 1 | F125: 6032754 | G125: 11 | H125: 1294325032 | I125: 1300357786 | J125: 0 | K125: 0 | L125: 12 | M125: 1522500179 | N125: 1522500179
A126: 123350000 | B126: E.S.E. Hospital Departamental de Villavicencio | C126: EMPRESAS NO COTIZANTES | D126: META | E126: 0 | F126: 0 | G126: 86 | H126: 93088527348 | I126: 93088527348 | J126: 0 | K126: 0 | L126: 92 | M126: 91774696452 | N126: 91774696452
A127: 123408000 | B127: Instituto de Tránsito del Atlántico | C127: ENTIDADES DE GOBIERNO | D127: ATLÁNTICO | E127: 5422 | F127: 48572910866 | G127: 241 | H127: 3131813999 | I127: 51704724865 | J127: 620 | K127: 4004201526 | L127: 211 | M127: 2574794357 | N127: 6578995883
A128: 123415000 | B128: E.S.E. Hospital Regional de Moniquirá | C128: EMPRESAS NO COTIZANTES | D128: BOYACÁ | E128: 0 | F128: 0 | G128: 37 | H128: 11444154625 | I128: 11444154625 | J128: 0 | K128: 0 | L128: 37 | M128: 10277023973 | N128: 10277023973
A129: 123468000 | B129: E.S.E. Hospital San Rafael - Oiba | C129: EMPRESAS NO COTIZANTES | D129: SANTANDER | E129: 0 | F129: 0 | G129: 19 | H129: 748516039 | I129: 748516039 | J129: 0 | K129: 0 | L129: 0 | M129: 0 | N129: 0
A130: 123566001 | B130: E.S.E. Hospital Universitario San Jorge - Pereira | C130: EMPRESAS NO COTIZANTES | D130: RISARALDA | E130: 0 | F130: 0 | G130: 0 | H130: 0 | I130: 0 | J130: 0 | K130: 0 | L130: 88 | M130: 58179603331 | N130: 58179603331
A131: 123605000 | B131: E.S.E. Hospital la María - Medellín | C131: EMPRESAS NO COTIZANTES | D131: ANTIOQUIA | E131: 0 | F131: 0 | G131: 55 | H131: 28799373796 | I131: 28799373796 | J131: 0 | K131: 0 | L131: 55 | M131: 27157313673 | N131: 27157313673
A132: 123615000 | B132: Lotería de Boyacá | C132: EMPRESAS NO COTIZANTES | D132: BOYACÁ | E132: 0 | F132: 0 | G132: 0 | H132: 0 | I132: =H132+F132 -> 0 | J132: 28 | K132: 1005829010 | L132: 21 | M132: 1975067493 | N132: =K132+M132 -> 2980896503
A133: 123747000 | B133: Instituto Departamental para la Recreación y el Deporte | C133: ENTIDADES DE GOBIERNO | D133: MAGDALENA | E133: 0 | F133: 0 | G133: 0 | H133: 0 | I133: 0 | J133: 1 | K133: 5000000 | L133: 0 | M133: 0 | N133: 5000000
A134: 123805000 | B134: E.S.E. Hospital San Juan de Dios - Abejorral | C134: EMPRESAS NO COTIZANTES | D134: ANTIOQUIA | E134: 0 | F134: 0 | G134: 14 | H134: 1359081240 | I134: 1359081240 | J134: 0 | K134: 0 | L134: 13 | M134: 1117617029 | N134: 1117617029
A135: 123850000 | B135: Instituto Departamental de Tránsito y Transporte | C135: ENTIDADES DE GOBIERNO | D135: META | E135: 6 | F135: 2099162604 | G135: 0 | H135: 0 | I135: 2099162604 | J135: 352 | K135: 6043602565 | L135: 0 | M135: 0 | N135: 6043602565
A136: 123918000 | B136: E.S.E. Hospital Departamental María Inmaculada - Florencia Caquetá | C136: EMPRESAS NO COTIZANTES | D136: CAQUETÁ | E136: 0 | F136: 0 | G136: 85 | H136: 35681492929 | I136: 35681492929 | J136: 0 | K136: 0 | L136: 77 | M136: 26504377598 | N136: 26504377598
A137: 123925000 | B137: E.S.E. Hospital Pedro León - La Mesa | C137: EMPRESAS NO COTIZANTES | D137: CUNDINAMARCA | E137: 0 | F137: 0 | G137: 4 | H137: 2669325055 | I137: 2669325055 | J137: 0 | K137: 0 | L137: 6 | M137: 651700841 | N137: 651700841
A138: 123968000 | B138: Hospital San Antonio - Rionegro | C138: EMPRESAS NO COTIZANTES | D138: SANTANDER | E138: 0 | F138: 0 | G138: 10 | H138: 831312258 | I138: 831312258 | J138: 0 | K138: 0 | L138: 21 | M138: 1046245690 | N138: 1046245690
A139: 123973000 | B139: E.S.E. Hospital Santa Lucía - Cajamarca | C139: EMPRESAS NO COTIZANTES | D139: TOLIMA | E139: 0 | F139: 0 | G139: 0 | H139: 0 | I139: 0 | J139: 0 | K139: 0 | L139: 27 | M139: 2428023077 | N139: 2428023077
A140: 124005000 | B140: E.S.E. Hospital Felipe Arbeláez - Alejandría | C140: EMPRESAS NO COTIZANTES | D140: ANTIOQUIA | E140: 0 | F140: 0 | G140: 2 | H140: 17258600 | I140: 17258600 | J140: 0 | K140: 0 | L140: 0 | M140: 0 | N140: 0
A141: 124050000 | B141: E.S.E. Hospital Local - Puerto López | C141: EMPRESAS NO COTIZANTES | D141: META | E141: 0 | F141: 0 | G141: 22 | H141: 2086667215 | I141: 2086667215 | J141: 0 | K141: 0 | L141: 20 | M141: 2789747842 | N141: 2789747842
A142: 124073000 | B142: E.S.E. Hospital Dptal. San Juan Bautista - Chaparral | C142: EMPRESAS NO COTIZANTES | D142: TOLIMA | E142: 0 | F142: 0 | G142: 29 | H142: 2577625013 | I142: 2577625013 | J142: 0 | K142: 0 | L142: 32 | M142: 3583825009 | N142: 3583825009
A143: 124168000 | B143: Hospital San José - San Andrés | C143: EMPRESAS NO COTIZANTES | D143: SANTANDER | E143: 0 | F143: 0 | G143: 8 | H143: 242320723 | I143: 242320723 | J143: 0 | K143: 0 | L143: 8 | M143: 195937424 | N143: 195937424
A144: 124173000 | B144: E.S.E. Hospital Nuestra Señora del Carmen - Carmen de Apicalá | C144: EMPRESAS NO COTIZANTES | D144: TOLIMA | E144: 0 | F144: 0 | G144: 25 | H144: 666026633 | I144: 666026633 | J144: 0 | K144: 0 | L144: 23 | M144: 978598837 | N144: 978598837
A145: 124205000 | B145: E.S.E. Hospital San Fernando - Amagá | C145: EMPRESAS NO COTIZANTES | D145: ANTIOQUIA | E145: 0 | F145: 0 | G145: 5 | H145: 341522682 | I145: 341522682 | J145: 0 | K145: 0 | L145: 6 | M145: 173665530 | N145: 173665530
A146: 124250000 | B146: E.S.E. Hospital Municipal - Acacías | C146: EMPRESAS NO COTIZANTES | D146: META | E146: 0 | F146: 0 | G146: 26 | H146: 2174763158 | I146: 2174763158 | J146: 0 | K146: 0 | L146: 21 | M146: 1998461625 | N146: 1998461625
A147: 124266000 | B147: E.S.E. Hospital Mental de Risaralda - Pereira | C147: EMPRESAS NO COTIZANTES | D147: RISARALDA | E147: 0 | F147: 0 | G147: 19 | H147: 5733087878 | I147: 5733087878 | J147: 0 | K147: 0 | L147: 20 | M147: 4914854979 | N147: 4914854979
A148: 124273000 | B148: E.S.E. Hospital Santo Domingo - Casabianca | C148: EMPRESAS NO COTIZANTES | D148: TOLIMA | E148: 0 | F148: 0 | G148: 15 | H148: 1308119511 | I148: 1308119511 | J148: 0 | K148: 0 | L148: 15 | M148: 1016968405 | N148: 1016968405
A149: 124308000 | B149: E.S.E. Hospital de Puerto Colombia | C149: EMPRESAS NO COTIZANTES | D149: ATLÁNTICO | E149: 0 | F149: 0 | G149: 13 | H149: 932892216 | I149: 932892216 | J149: 0 | K149: 0 | L149: 21 | M149: 1675901669 | N149: 1675901669
A150: 124313000 | B150: E.S.E. Clínica de Maternidad Rafael Calvo C. | C150: EMPRESAS NO COTIZANTES | D150: BOLÍVAR | E150: 0 | F150: 0 | G150: 83 | H150: 56633725217 | I150: 56633725217 | J150: 0 | K150: 0 | L150: 78 | M150: 54128445633 | N150: 54128445633
A151: 124325000 | B151: E.S.E. Hospital San Rafael - Pacho | C151: EMPRESAS NO COTIZANTES | D151: CUNDINAMARCA | E151: 0 | F151: 0 | G151: 29 | H151: 16332409467 | I151: 16332409467 | J151: 0 | K151: 0 | L151: 26 | M151: 1505824642 | N151: 1505824642
A152: 124341000 | B152: E.S.E. Hospital Departamental Hernando Moncaleano Perdomo - Neiva | C152: EMPRESAS NO COTIZANTES | D152: HUILA | E152: 0 | F152: 0 | G152: 0 | H152: 0 | I152: 0 | J152: 0 | K152: 0 | L152: 58 | M152: 21700135292 | N152: 21700135292
A153: 124350000 | B153: E.S.E. Hospital Local - Guamal | C153: EMPRESAS NO COTIZANTES | D153: META | E153: 0 | F153: 0 | G153: 26 | H153: 1046266066 | I153: 1046266066 | J153: 0 | K153: 0 | L153: 14 | M153: 404156527 | N153: 404156527
A154: 124373000 | B154: E.S.E. Hospital San Roque - Coyaima | C154: EMPRESAS NO COTIZANTES | D154: TOLIMA | E154: 0 | F154: 0 | G154: 27 | H154: 1162688213 | I154: 1162688213 | J154: 0 | K154: 0 | L154: 27 | M154: 1580043034 | N154: 1580043034
A155: 124405000 | B155: E.S.E. Hospital San Rafael - Andes | C155: EMPRESAS NO COTIZANTES | D155: ANTIOQUIA | E155: 0 | F155: 0 | G155: 38 | H155: 4401040278 | I155: 4401040278 | J155: 0 | K155: 0 | L155: 40 | M155: 5466667026 | N155: 5466667026
A156: 124441000 | B156: E.S.E. Hospital San Antonio | C156: EMPRESAS NO COTIZANTES | D156: HUILA | E156: 0 | F156: 0 | G156: 4 | H156: 21798341 | I156: 21798341 | J156: 0 | K156: 0 | L156: 3 | M156: 14846983 | N156: 14846983
A157: 124450000 | B157: E.S.E. Hospital - San Martín | C157: EMPRESAS NO COTIZANTES | D157: META | E157: 2 | F157: 39233384 | G157: 28 | H157: 2108503156 | I157: 2147736540 | J157: 0 | K157: 0 | L157: 13 | M157: 269931435 | N157: 269931435
A158: 124473000 | B158: E.S.E. Hospital Federico Arbeláez - Cunday | C158: EMPRESAS NO COTIZANTES | D158: TOLIMA | E158: 0 | F158: 0 | G158: 1 | H158: 65063950 | I158: 65063950 | J158: 0 | K158: 0 | L158: 1 | M158: 53600197 | N158: 53600197
A159: 124541000 | B159: E.S.E. Hospital San Carlos - Aipe | C159: EMPRESAS NO COTIZANTES | D159: HUILA | E159: 0 | F159: 0 | G159: 0 | H159: 0 | I159: 0 | J159: 0 | K159: 0 | L159: 3 | M159: 326854872 | N159: 326854872
A160: 124550000 | B160: E.S.E. Hospital Regional - Granada | C160: EMPRESAS NO COTIZANTES | D160: META | E160: 3 | F160: 299761263 | G160: 33 | H160: 5528941523 | I160: 5828702786 | J160: 2 | K160: 196260634 | L160: 35 | M160: 679890256 | N160: 876150890
A161: 124552000 | B161: Universidad de Nariño | C161: ENTIDADES DE GOBIERNO | D161: NARIÑO | E161: 0 | F161: 0 | G161: 0 | H161: 0 | I161: 0 | J161: 3 | K161: 14416129 | L161: 0 | M161: 0 | N161: 14416129
A162: 124566000 | B162: E.S.E. Hospital San José - La Celia | C162: EMPRESAS NO COTIZANTES | D162: RISARALDA | E162: 0 | F162: 0 | G162: 7 | H162: 149528606 | I162: 149528606 | J162: 0 | K162: 0 | L162: 4 | M162: 56812359 | N162: 56812359
A163: 124573000 | B163: E.S.E. Hospital San Rafael - Dolores | C163: EMPRESAS NO COTIZANTES | D163: TOLIMA | E163: 0 | F163: 0 | G163: 1 | H163: 5993304 | I163: 5993304 | J163: 0 | K163: 0 | L163: 0 | M163: 0 | N163: 0
A164: 124652000 | B164: Centro de Habilitación del Niño | C164: EMPRESAS NO COTIZANTES | D164: NARIÑO | E164: 0 | F164: 0 | G164: 10 | H164: 8000041725 | I164: 8000041725 | J164: 0 | K164: 0 | L164: 11 | M164: 22089478067 | N164: 22089478067
A165: 124654000 | B165: Lotería de Cúcuta | C165: EMPRESAS NO COTIZANTES | D165: NORTE DE SANTANDER | E165: 0 | F165: 0 | G165: 0 | H165: 0 | I165: 0 | J165: 9 | K165: 418585804 | L165: 0 | M165: 0 | N165: 418585804
A166: 124666000 | B166: E.S.E. Hospital Santa Mónica - Dosquebradas | C166: EMPRESAS NO COTIZANTES | D166: RISARALDA | E166: 0 | F166: 0 | G166: 66 | H166: 17899014004 | I166: 17899014004 | J166: 0 | K166: 0 | L166: 63 | M166: 16329347264 | N166: 16329347264
A167: 124668000 | B167: E.S.E. Hospital San Roque - Simacota | C167: EMPRESAS NO COTIZANTES | D167: SANTANDER | E167: 0 | F167: 0 | G167: 5 | H167: 40836324 | I167: 40836324 | J167: 0 | K167: 0 | L167: 6 | M167: 52651355 | N167: 52651355
A168: 124673000 | B168: E.S.E. Hospital Dptal. San Rafael - Espinal | C168: EMPRESAS NO COTIZANTES | D168: TOLIMA | E168: 1 | F168: 28172495 | G168: 32 | H168: 30039979213 | I168: 30068151708 | J168: 3 | K168: 51450190 | L168: 81 | M168: 78187102262 | N168: 78238552452
A169: 124705000 | B169: E.S.E. Hospital San Juan de Dios - Anorí | C169: EMPRESAS NO COTIZANTES | D169: ANTIOQUIA | E169: 0 | F169: 0 | G169: 0 | H169: 0 | I169: 0 | J169: 0 | K169: 0 | L169: 4 | M169: 182860193 | N169: 182860193
A170: 124715000 | B170: Instituto de Tránsito de Boyacá | C170: ENTIDADES DE GOBIERNO | D170: BOYACÁ | E170: 0 | F170: 0 | G170: 0 | H170: 0 | I170: 0 | J170: 446 | K170: 5646648657 | L170: 0 | M170: 0 | N170: 5646648657
A171: 124717000 | B171: Dirección Seccional de Salud de Caldas | C171: ENTIDADES DE GOBIERNO | D171: CALDAS | E171: 6 | F171: 173548698 | G171: 16 | H171: 3099515268 | I171: 3273063966 | J171: 7 | K171: 181311055 | L171: 19 | M171: 3188932615 | N171: 3370243670
A172: 124773000 | B172: E.S.E. Hospital Santa Ana - Falán | C172: EMPRESAS NO COTIZANTES | D172: TOLIMA | E172: 0 | F172: 0 | G172: 2 | H172: 68741678 | I172: 68741678 | J172: 0 | K172: 0 | L172: 8 | M172: 253279139 | N172: 253279139
A173: 124805000 | B173: E.S.E. Hospital Regional San Juan de Dios - Santafé de Antioquia | C173: EMPRESAS NO COTIZANTES | D173: ANTIOQUIA | E173: 0 | F173: 0 | G173: 47 | H173: 12400309560 | I173: 12400309560 | J173: 0 | K173: 0 | L173: 44 | M173: 7291954267 | N173: 7291954267
A174: 124825000 | B174: E.S.E. Hospital Mario Gaitán Yanguas - Soacha | C174: EMPRESAS NO COTIZANTES | D174: CUNDINAMARCA | E174: 0 | F174: 0 | G174: 3 | H174: 2223646090 | I174: 2223646090 | J174: 0 | K174: 0 | L174: 6 | M174: 1753691585 | N174: 1753691585
A175: 124841000 | B175: E.S.E. Hospital Nuestra Señora del Rosario - Campoalegre | C175: EMPRESAS NO COTIZANTES | D175: HUILA | E175: 0 | F175: 0 | G175: 19 | H175: 1283315877 | I175: 1283315877 | J175: 0 | K175: 0 | L175: 22 | M175: 1672104642 | N175: 1672104642
A176: 124868000 | B176: E.S.E. Hospital Caicedo Flórez - Suaita | C176: EMPRESAS NO COTIZANTES | D176: SANTANDER | E176: 0 | F176: 0 | G176: 6 | H176: 261729254 | I176: 261729254 | J176: 0 | K176: 0 | L176: 6 | M176: 244036720 | N176: 244036720
A177: 124873000 | B177: E.S.E. Hospital San Vicente de Paul - Fresno | C177: EMPRESAS NO COTIZANTES | D177: TOLIMA | E177: 0 | F177: 0 | G177: 40 | H177: 2803038976 | I177: 2803038976 | J177: 0 | K177: 0 | L177: 38 | M177: 2163063740 | N177: 2163063740
A178: 124876000 | B178: Unidad Central del Valle del Cauca | C178: ENTIDADES DE GOBIERNO | D178: VALLE DEL CAUCA | E178: 18 | F178: 163755892 | G178: 0 | H178: 0 | I178: 163755892 | J178: 14 | K178: 144569434 | L178: 0 | M178: 0 | N178: 144569434
A179: 124905000 | B179: E.S.E. Hospital San Francisco de Asís - Anzá | C179: EMPRESAS NO COTIZANTES | D179: ANTIOQUIA | E179: 0 | F179: 0 | G179: 2 | H179: 92942760 | I179: 92942760 | J179: 0 | K179: 0 | L179: 2 | M179: 25637000 | N179: 25637000
A180: 124917001 | B180: E.S.E. Hospital de Caldas | C180: EMPRESAS NO COTIZANTES | D180: CALDAS | E180: 0 | F180: 0 | G180: 1 | H180: 720057267 | I180: 720057267 | J180: 0 | K180: 0 | L180: 1 | M180: 733067897 | N180: 733067897
A181: 124941000 | B181: E.S.E. Hospital Departamental San Vicente de Paul - Garzón | C181: EMPRESAS NO COTIZANTES | D181: HUILA | E181: 0 | F181: 0 | G181: 0 | H181: 0 | I181: 0 | J181: 0 | K181: 0 | L181: 4 | M181: 462143539 | N181: 462143539
A182: 124968000 | B182: E.S.E. Hospital San José | C182: EMPRESAS NO COTIZANTES | D182: SANTANDER | E182: 0 | F182: 0 | G182: 2 | H182: 23841781 | I182: 23841781 | J182: 0 | K182: 0 | L182: 5 | M182: 142259771 | N182: 142259771
A183: 125008000 | B183: E.S.E. Hospital Universitario Cari | C183: EMPRESAS NO COTIZANTES | D183: ATLÁNTICO | E183: 0 | F183: 0 | G183: 80 | H183: 53955762597 | I183: 53955762597 | J183: 0 | K183: 0 | L183: 88 | M183: 53892107817 | N183: 53892107817
A184: 125041000 | B184: E.S.E. Hospital Gigante | C184: EMPRESAS NO COTIZANTES | D184: HUILA | E184: 0 | F184: 0 | G184: 11 | H184: 1048098005 | I184: 1048098005 | J184: 0 | K184: 0 | L184: 7 | M184: 84074404 | N184: 84074404
A185: 125073000 | B185: E.S.E. Hospital San Antonio - Herveo | C185: EMPRESAS NO COTIZANTES | D185: TOLIMA | E185: 0 | F185: 0 | G185: 11 | H185: 172359204 | I185: 172359204 | J185: 0 | K185: 0 | L185: 16 | M185: 492715872 | N185: 492715872
A186: 125105000 | B186: E.S.E. Hospital Pedro Nel Cardona - Arboletes | C186: EMPRESAS NO COTIZANTES | D186: ANTIOQUIA | E186: 0 | F186: 0 | G186: 0 | H186: 0 | I186: 0 | J186: 0 | K186: 0 | L186: 15 | M186: 889814765 | N186: 889814765
A187: 125115000 | B187: E.S.E. Hospital Universitario San Rafael de Tunja | C187: EMPRESAS NO COTIZANTES | D187: BOYACÁ | E187: 27 | F187: 276083566 | G187: 29 | H187: 43321400866 | I187: 43597484432 | J187: 20 | K187: 189820615 | L187: 30 | M187: 8027544320 | N187: 8217364935
A188: 125120000 | B188: E.S.E. Hospital José David Padilla Villafañe - Aguachica | C188: EMPRESAS NO COTIZANTES | D188: CESAR | E188: 0 | F188: 0 | G188: 79 | H188: 33962849468 | I188: 33962849468 | J188: 0 | K188: 0 | L188: 74 | M188: 30616459689 | N188: 30616459689
A189: 125141000 | B189: E.S.E. Hospital María Auxiliadora - Íquira | C189: EMPRESAS NO COTIZANTES | D189: HUILA | E189: 0 | F189: 0 | G189: 0 | H189: 0 | I189: 0 | J189: 0 | K189: 0 | L189: 4 | M189: 204865023 | N189: 204865023
A190: 125152000 | B190: E.S.E. Hospital Departamental de Nariño | C190: EMPRESAS NO COTIZANTES | D190: NARIÑO | E190: 10 | F190: 229630800 | G190: 56 | H190: 34820261365 | I190: 35049892165 | J190: 8 | K190: 103238600 | L190: 60 | M190: 31511871395 | N190: 31615109995
A191: 125173000 | B191: E.S.E. Hospital San Juan de Dios - Honda | C191: EMPRESAS NO COTIZANTES | D191: TOLIMA | E191: 0 | F191: 0 | G191: 46 | H191: 5549976641 | I191: 5549976641 | J191: 3 | K191: 90231383 | L191: 53 | M191: 7589816734 | N191: 7680048117
A192: 125241000 | B192: E.S.E. Hospital Departamental San Antonio de Padua - La Plata | C192: EMPRESAS NO COTIZANTES | D192: HUILA | E192: 0 | F192: 0 | G192: 45 | H192: 14995881767 | I192: 14995881767 | J192: 0 | K192: 0 | L192: 46 | M192: 22833921449 | N192: 22833921449
A193: 125268000 | B193: E.S.E. Hospital San Vicente de Paul - Onzaga | C193: EMPRESAS NO COTIZANTES | D193: SANTANDER | E193: 0 | F193: 0 | G193: 4 | H193: 313153299 | I193: 313153299 | J193: 0 | K193: 0 | L193: 5 | M193: 88511482 | N193: 88511482
A194: 125273000 | B194: Hospital Sumapaz - Icononzo | C194: EMPRESAS NO COTIZANTES | D194: TOLIMA | E194: 0 | F194: 0 | G194: 18 | H194: 683023007 | I194: 683023007 | J194: 0 | K194: 0 | L194: 0 | M194: 0 | N194: 0
A195: 125286000 | B195: E.S.E. Hospital José María Hernández - Mocoa | C195: EMPRESAS NO COTIZANTES | D195: PUTUMAYO | E195: 1 | F195: 24121250 | G195: 9 | H195: 219474821 | I195: 243596071 | J195: 1 | K195: 24121250 | L195: 10 | M195: 317617635 | N195: 341738885
A196: 125305000 | B196: E.S.E. Hospital San Martín - Armenia | C196: EMPRESAS NO COTIZANTES | D196: ANTIOQUIA | E196: 0 | F196: 0 | G196: 8 | H196: 1234208960 | I196: =H196+F196 -> 1234208960 | J196: 0 | K196: 0 | L196: 0 | M196: 0 | N196: =K196+M196 -> 0
A197: 125308000 | B197: E.S.E. Hospital Niño Jesús - Barranquilla | C197: EMPRESAS NO COTIZANTES | D197: ATLÁNTICO | E197: 0 | F197: 0 | G197: 24 | H197: 1417991779 | I197: 1417991779 | J197: 0 | K197: 0 | L197: 17 | M197: 761025362 | N197: 761025362
A198: 125325000 | B198: E.S.E. Hospital el Salvador de Ubaté | C198: EMPRESAS NO COTIZANTES | D198: CUNDINAMARCA | E198: 0 | F198: 0 | G198: 15 | H198: 12690626677 | I198: 12690626677 | J198: 0 | K198: 0 | L198: 15 | M198: 12097015588 | N198: 12097015588
A199: 125341000 | B199: E.S.E. Hospital San Francisco de Asís - Palermo | C199: EMPRESAS NO COTIZANTES | D199: HUILA | E199: 0 | F199: 0 | G199: 0 | H199: 0 | I199: 0 | J199: 0 | K199: 0 | L199: 3 | M199: 102773375 | N199: 102773375
A200: 125354000 | B200: Universidad Francisco de Paula Santander | C200: ENTIDADES DE GOBIERNO | D200: NORTE DE SANTANDER | E200: 1 | F200: 11853772 | G200: 0 | H200: 0 | I200: 11853772 | J200: 0 | K200: 0 | L200: 0 | M200: 0 | N200: 0
... 1578 more rows

Sheet DatosTablas
B3: Departamento | D3: Región | F3: Categoria
B4: AMAZONAS | C4: AMAZONÍA | D4: TODOS | F4: Todas las categorias
B5: CAQUETÁ | C5: AMAZONÍA | D5: AMAZONÍA | F5: ESP
B6: GUAINÍA | C6: AMAZONÍA | D6: CARIBE | F6: 1
B7: GUAVIARE | C7: AMAZONÍA | D7: CENTRAL | F7: 2
B8: PUTUMAYO | C8: AMAZONÍA | D8: EJE_CAFETERO_Y_ANTIOQUIA | F8: 3
B9: VAUPÉS | C9: AMAZONÍA | D9: LLANOS_Y_ORINOQUÍA | F9: 4
B10: ATLÁNTICO | C10: CARIBE | D10: PACÍFICO | F10: 5
B11: BOLÍVAR | C11: CARIBE | D11: SANTANDERES | F11: 6
B12: CESAR | C12: CARIBE | D12: SEA_FLOWER
B13: CÓRDOBA | C13: CARIBE
B14: GUAJIRA | C14: CARIBE
B15: MAGDALENA | C15: CARIBE
B16: SUCRE | C16: CARIBE
B17: BOGOTÁ D.C. | C17: CENTRAL
B18: BOYACÁ | C18: CENTRAL
B19: CUNDINAMARCA | C19: CENTRAL
B20: HUILA | C20: CENTRAL
B21: TOLIMA | C21: CENTRAL
B22: ANTIOQUIA | C22: EJE_CAFETERO_Y_ANTIOQUIA | G22: =32/5 -> 6.4
B23: CALDAS | C23: EJE_CAFETERO_Y_ANTIOQUIA
B24: QUINDÍO | C24: EJE_CAFETERO_Y_ANTIOQUIA
B25: RISARALDA | C25: EJE_CAFETERO_Y_ANTIOQUIA
B26: ARAUCA | C26: LLANOS_Y_ORINOQUÍA
B27: CASANARE | C27: LLANOS_Y_ORINOQUÍA
B28: META | C28: LLANOS_Y_ORINOQUÍA
B29: VICHADA | C29: LLANOS_Y_ORINOQUÍA
B30: CAUCA | C30: PACÍFICO
B31: CHOCÓ | C31: PACÍFICO
B32: NARIÑO | C32: PACÍFICO
B33: VALLE DEL CAUCA | C33: PACÍFICO
B34: NORTE DE SANTANDER | C34: SANTANDERES
B35: SANTANDER | C35: SANTANDERES
B36: SAN ANDRÉS Y PROVIDENCIA | C36: SEA_FLOWER

Sheet BaseCI
A1: id_entidad | B1: Entidad | C1: Región | D1: Departamento | E1: Marco normativo | F1: 2020 | G1: 2019 | H1: Criterio | I1: Var
A2: 89970221 | B2: Coveñas | C2: Caribe | D2: Sucre | E2: Entidades de gobierno | F2: 4.93 | G2: 4.88 | H2: EFICIENTE | I2: =F2-G2 -> 0.05
A3: 210005400 | B3: La Unión - Antioquia | C3: Eje Cafetero y Antioquia | D3: Antioquia | E3: Entidades de gobierno | F3: 4.67 | G3: 4.67 | H3: EFICIENTE | I3: 0
A4: 210013300 | B4: Hatillo de Loba | C4: Caribe | D4: Bolívar | E4: Entidades de gobierno | F4: 3.15 | G4: 3.05 | H4: ADECUADO | I4: 0.1
A5: 210013600 | B5: Rioviejo | C5: Caribe | D5: Bolívar | E5: Entidades de gobierno | F5: 3.46 | G5: 3.9 | H5: ADECUADO | I5: -0.44
A6: 210015500 | B6: Oicatá | C6: Central | D6: Boyacá | E6: Entidades de gobierno | F6: 4.7 | G6: 4.68 | H6: EFICIENTE | I6: 0.02
A7: 210015600 | B7: Ráquira | C7: Central | D7: Boyacá | E7: Entidades de gobierno | F7: 4.87 | G7: 4.87 | H7: EFICIENTE | I7: 0
A8: 210019100 | B8: Bolívar - Cauca | C8: Pacífico | D8: Cauca | E8: Entidades de gobierno | F8: 4.09 | G8: 4.29 | H8: EFICIENTE | I8: -0.2
A9: 210020400 | B9: La Jagua de Ibirico | C9: Caribe | D9: Cesar | E9: Entidades de gobierno | F9: 4.53 | G9: 4.37 | H9: EFICIENTE | I9: 0.16
A10: 210023300 | B10: Cotorra | C10: Caribe | D10: Córdoba | E10: Entidades de gobierno | F10: 4.28 | G10: 4.25 | H10: EFICIENTE | I10: 0.03
A11: 210023500 | B11: Moñitos | C11: Caribe | D11: Córdoba | E11: Entidades de gobierno | F11: 4.44 | G11: 4.6 | H11: EFICIENTE | I11: -0.16
A12: 210025200 | B12: Cogua | C12: Central | D12: Cundinamarca | E12: Entidades de gobierno | F12: 4.98 | G12: 4.88 | H12: EFICIENTE | I12: 0.1
A13: 210027600 | B13: Río Quito | C13: Pacífico | D13: Chocó | E13: Entidades de gobierno | F13: 4.89 | G13: 4.88 | H13: EFICIENTE | I13: 0.01
A14: 210027800 | B14: Unguía | C14: Pacífico | D14: Chocó | E14: Entidades de gobierno | F14: 5 | G14: 4.85 | H14: EFICIENTE | I14: 0.15
A15: 210050400 | B15: Lejanías | C15: Llanos - Orinoquía | D15: Meta | E15: Entidades de gobierno | F15: 4.33 | G15: 4.63 | H15: EFICIENTE | I15: -0.3
A16: 210054800 | B16: Teorama | C16: Santanderes | D16: Norte de Santander | E16: Entidades de gobierno | F16: 3.95 | G16: 3.88 | H16: ADECUADO | I16: 0.07
A17: 210066400 | B17: La Virginia | C17: Eje Cafetero y Antioquia | D17: Risaralda | E17: Entidades de gobierno | F17: 2.91 | G17: 1.87 | H17: DEFICIENTE | I17: 1.04
A18: 210068500 | B18: Oiba | C18: Santanderes | D18: Santander | E18: Entidades de gobierno | F18: 4.57 | G18: 5 | H18: EFICIENTE | I18: -0.43
A19: 210070400 | B19: La Unión de Sucre | C19: Caribe | D19: Sucre | E19: Entidades de gobierno | F19: 3.01 | G19: 2.98 | H19: ADECUADO | I19: 0.03
A20: 210073200 | B20: Coello | C20: Central | D20: Tolima | E20: Entidades de gobierno | F20: 4.49 | G20: 4.54 | H20: EFICIENTE | I20: -0.05
A21: 210076100 | B21: Bolívar - Valle del Cauca | C21: Pacífico | D21: Valle del Cauca | E21: Entidades de gobierno | F21: 5 | G21: 5 | H21: EFICIENTE | I21: 0
A22: 210076400 | B22: La Unión - Valle del Cauca | C22: Pacífico | D22: Valle del Cauca | E22: Entidades de gobierno | F22: 4.5 | G22: 4.55 | H22: EFICIENTE | I22: -0.05
A23: 210081300 | B23: Fortul | C23: Llanos - Orinoquía | D23: Arauca | E23: Entidades de gobierno | F23: 4.39 | G23: 4.42 | H23: EFICIENTE | I23: -0.03
A24: 210085300 | B24: Sabanalarga - Casanare | C24: Llanos - Orinoquía | D24: Casanare | E24: Entidades de gobierno | F24: 4.85 | G24: 4.87 | H24: EFICIENTE | I24: -0.02
A25: 210085400 | B25: Támara | C25: Llanos - Orinoquía | D25: Casanare | E25: Entidades de gobierno | F25: 4.95 | G25: 4.8 | H25: EFICIENTE | I25: 0.15
A26: 210095200 | B26: Miraflores - Guaviare | C26: Amazonía | D26: Guaviare | E26: Entidades de gobierno | F26: 3.62 | G26: 0 | H26: ADECUADO | I26: 3.62
A27: 210105001 | B27: Medellín | C27: Eje Cafetero y Antioquia | D27: Antioquia | E27: Entidades de gobierno | F27: 4.95 | G27: 4.83 | H27: EFICIENTE | I27: 0.12
A28: 210105101 | B28: Ciudad Bolívar | C28: Eje Cafetero y Antioquia | D28: Antioquia | E28: Entidades de gobierno | F28: 4.25 | G28: 4.62 | H28: EFICIENTE | I28: -0.37
A29: 210105501 | B29: Olaya | C29: Eje Cafetero y Antioquia | D29: Antioquia | E29: Entidades de gobierno | F29: 4.94 | G29: 4.77 | H29: EFICIENTE | I29: 0.17
A30: 210108001 | B30: Barranquilla, Distrito Especial, Industrial y Portuario | C30: Caribe | D30: Atlántico | E30: Entidades de gobierno | F30: 4.69 | G30: 4.67 | H30: EFICIENTE | I30: 0.02
A31: 210111001 | B31: Bogotá D.C. | C31: Central | D31: Bogotá D.C. | E31: Entidades de gobierno | F31: 4.95 | G31: 4.93 | H31: EFICIENTE | I31: 0.02
A32: 210113001 | B32: Cartagena de Indias, Distrito Turístico y Cultural | C32: Caribe | D32: Bolívar | E32: Entidades de gobierno | F32: 4.72 | G32: 4.06 | H32: EFICIENTE | I32: 0.66
A33: 210115001 | B33: Tunja | C33: Central | D33: Boyacá | E33: Entidades de gobierno | F33: 4.6 | G33: 4.73 | H33: EFICIENTE | I33: -0.13
A34: 210115401 | B34: La Victoria - Boyacá | C34: Central | D34: Boyacá | E34: Entidades de gobierno | F34: 4.37 | G34: 4.92 | H34: EFICIENTE | I34: -0.55
A35: 210117001 | B35: Manizales | C35: Eje Cafetero y Antioquia | D35: Caldas | E35: Entidades de gobierno | F35: 4.39 | G35: 4.86 | H35: EFICIENTE | I35: -0.47
A36: 210118001 | B36: Florencia - Caquetá | C36: Amazonía | D36: Caquetá | E36: Entidades de gobierno | F36: 4.9 | G36: 4.72 | H36: EFICIENTE | I36: 0.18
A37: 210119701 | B37: Santa Rosa - Cauca | C37: Pacífico | D37: Cauca | E37: Entidades de gobierno | F37: 4.85 | G37: 4.92 | H37: EFICIENTE | I37: -0.07
A38: 210120001 | B38: Valledupar | C38: Caribe | D38: Cesar | E38: Entidades de gobierno | F38: 3.53 | G38: 2.4 | H38: ADECUADO | I38: 1.13
A39: 210123001 | B39: Montería | C39: Caribe | D39: Córdoba | E39: Entidades de gobierno | F39: 4.88 | G39: 4.75 | H39: EFICIENTE | I39: 0.13
A40: 210125001 | B40: Agua de Dios | C40: Central | D40: Cundinamarca | E40: Entidades de gobierno | F40: 4.84 | G40: 4.8 | H40: EFICIENTE | I40: 0.04
A41: 210127001 | B41: Quibdó | C41: Pacífico | D41: Chocó | E41: Entidades de gobierno | F41: 4.72 | G41: 4.76 | H41: EFICIENTE | I41: -0.04
A42: 210141001 | B42: Neiva | C42: Central | D42: Huila | E42: Entidades de gobierno | F42: 4.8 | G42: 4.83 | H42: EFICIENTE | I42: -0.03
A43: 210141801 | B43: Teruel | C43: Central | D43: Huila | E43: Entidades de gobierno | F43: 4.48 | G43: 4.65 | H43: EFICIENTE | I43: -0.17
A44: 210144001 | B44: Riohacha | C44: Caribe | D44: Guajira | E44: Entidades de gobierno | F44: 2.85 | G44: 2.48 | H44: DEFICIENTE | I44: 0.37
A45: 210147001 | B45: Santa Marta, Distrito Turístico, Cultural e Histórico | C45: Caribe | D45: Magdalena | E45: Entidades de gobierno | F45: 4.81 | G45: 4.81 | H45: EFICIENTE | I45: 0
A46: 210150001 | B46: Villavicencio | C46: Llanos - Orinoquía | D46: Meta | E46: Entidades de gobierno | F46: 5 | G46: 4.96 | H46: EFICIENTE | I46: 0.04
A47: 210152001 | B47: San Juan de Pasto | C47: Pacífico | D47: Nariño | E47: Entidades de gobierno | F47: 5 | G47: 5 | H47: EFICIENTE | I47: 0
A48: 210154001 | B48: San José de Cúcuta | C48: Santanderes | D48: Norte de Santander | E48: Entidades de gobierno | F48: 4.95 | G48: 4.95 | H48: EFICIENTE | I48: 0
A49: 210163001 | B49: Armenia | C49: Eje Cafetero y Antioquia | D49: Quindío | E49: Entidades de gobierno | F49: 5 | G49: 4.42 | H49: EFICIENTE | I49: 0.58
A50: 210163401 | B50: La Tebaida | C50: Eje Cafetero y Antioquia | D50: Quindío | E50: Entidades de gobierno | F50: 4.57 | G50: 4.68 | H50: EFICIENTE | I50: -0.11
A51: 210166001 | B51: Pereira | C51: Eje Cafetero y Antioquia | D51: Risaralda | E51: Entidades de gobierno | F51: 4.57 | G51: 4.75 | H51: EFICIENTE | I51: -0.18
A52: 210168001 | B52: Bucaramanga | C52: Santanderes | D52: Santander | E52: Entidades de gobierno | F52: 4.21 | G52: 4.83 | H52: EFICIENTE | I52: -0.62
A53: 210168101 | B53: Bolívar - Santander | C53: Santanderes | D53: Santander | E53: Entidades de gobierno | F53: 4.9 | G53: 4.59 | H53: EFICIENTE | I53: 0.31
A54: 210170001 | B54: Sincelejo | C54: Caribe | D54: Sucre | E54: Entidades de gobierno | F54: 4.78 | G54: 4.86 | H54: EFICIENTE | I54: -0.08
A55: 210173001 | B55: Ibagué | C55: Central | D55: Tolima | E55: Entidades de gobierno | F55: 4.57 | G55: 4.51 | H55: EFICIENTE | I55: 0.06
A56: 210176001 | B56: Santiago de Cali | C56: Pacífico | D56: Valle del Cauca | E56: Entidades de gobierno | F56: 4.71 | G56: 5 | H56: EFICIENTE | I56: -0.29
A57: 210181001 | B57: Arauca | C57: Llanos - Orinoquía | D57: Arauca | E57: Entidades de gobierno | F57: 4.3 | G57: 4.22 | H57: EFICIENTE | I57: 0.08
A58: 210185001 | B58: Yopal | C58: Llanos - Orinoquía | D58: Casanare | E58: Entidades de gobierno | F58: 3.36 | G58: 4.09 | H58: ADECUADO | I58: -0.73
A59: 210186001 | B59: San Miguel de Mocoa | C59: Amazonía | D59: Putumayo | E59: Entidades de gobierno | F59: 4.51 | G59: 4.51 | H59: EFICIENTE | I59: 0
A60: 210191001 | B60: Leticia | C60: Amazonía | D60: Amazonas | E60: Entidades de gobierno | F60: 4.7 | G60: 3.31 | H60: EFICIENTE | I60: 1.39
A61: 210194001 | B61: Puerto Inírida | C61: Amazonía | D61: Guainía | E61: Entidades de gobierno | F61: 4.45 | G61: 4.73 | H61: EFICIENTE | I61: -0.28
A62: 210195001 | B62: San José del Guaviare | C62: Amazonía | D62: Guaviare | E62: Entidades de gobierno | F62: 4.87 | G62: 4.93 | H62: EFICIENTE | I62: -0.06
A63: 210197001 | B63: Mitú | C63: Amazonía | D63: Vaupés | E63: Entidades de gobierno | F63: 4.29 | G63: 4.07 | H63: EFICIENTE | I63: 0.22
A64: 210199001 | B64: Puerto Carreño | C64: Llanos - Orinoquía | D64: Vichada | E64: Entidades de gobierno | F64: 4.15 | G64: 3.93 | H64: EFICIENTE | I64: 0.22
A65: 210205002 | B65: Abejorral | C65: Eje Cafetero y Antioquia | D65: Antioquia | E65: Entidades de gobierno | F65: 4.27 | G65: 3.86 | H65: EFICIENTE | I65: 0.41
A66: 210225402 | B66: La Vega - Cundinamarca | C66: Central | D66: Cundinamarca | E66: Entidades de gobierno | F66: 4.83 | G66: 4.45 | H66: EFICIENTE | I66: =F66-G66 -> 0.38
A67: 210263302 | B67: Génova | C67: Eje Cafetero y Antioquia | D67: Quindío | E67: Entidades de gobierno | F67: 4.59 | G67: 4.56 | H67: EFICIENTE | I67: 0.03
A68: 210268502 | B68: Onzaga | C68: Santanderes | D68: Santander | E68: Entidades de gobierno | F68: 4.78 | G68: 4.82 | H68: EFICIENTE | I68: -0.04
A69: 210270702 | B69: San Juan de Betulia | C69: Caribe | D69: Sucre | E69: Entidades de gobierno | F69: 3.03 | G69: 3.87 | H69: ADECUADO | I69: -0.84
A70: 210315403 | B70: La Uvita | C70: Central | D70: Boyacá | E70: Entidades de gobierno | F70: 4.9 | G70: 4.55 | H70: EFICIENTE | I70: 0.35
A71: 210341503 | B71: Oporapa | C71: Central | D71: Huila | E71: Entidades de gobierno | F71: 4.8 | G71: 4.75 | H71: EFICIENTE | I71: 0.05
A72: 210347703 | B72: San Zenón | C72: Caribe | D72: Magdalena | E72: Entidades de gobierno | F72: 4.95 | G72: 4.93 | H72: EFICIENTE | I72: 0.02
A73: 210352203 | B73: Colón (Génova) - Nariño | C73: Pacífico | D73: Nariño | E73: Entidades de gobierno | F73: 4.57 | G73: 4.48 | H73: EFICIENTE | I73: 0.09
A74: 210354003 | B74: Ábrego | C74: Santanderes | D74: Norte de Santander | E74: Entidades de gobierno | F74: 4.91 | G74: 4.87 | H74: EFICIENTE | I74: 0.04
A75: 210376403 | B75: La Victoria - Valle del Cauca | C75: Pacífico | D75: Valle del Cauca | E75: Entidades de gobierno | F75: 4.23 | G75: 4.25 | H75: EFICIENTE | I75: -0.02
A76: 210405004 | B76: Abriaquí | C76: Eje Cafetero y Antioquia | D76: Antioquia | E76: Entidades de gobierno | F76: 4.41 | G76: 3.86 | H76: EFICIENTE | I76: 0.55
A77: 210405604 | B77: Remedios | C77: Eje Cafetero y Antioquia | D77: Antioquia | E77: Entidades de gobierno | F77: 4.47 | G77: 4.42 | H77: EFICIENTE | I77: 0.05
A78: 210415104 | B78: Boyacá | C78: Central | D78: Boyacá | E78: Entidades de gobierno | F78: 5 | G78: 5 | H78: EFICIENTE | I78: 0
A79: 210415204 | B79: Cómbita | C79: Central | D79: Boyacá | E79: Entidades de gobierno | F79: 4.87 | G79: 4.87 | H79: EFICIENTE | I79: 0
A80: 210415804 | B80: Tibaná | C80: Central | D80: Boyacá | E80: Entidades de gobierno | F80: 4.51 | G80: 4.51 | H80: EFICIENTE | I80: 0
A81: 210470204 | B81: Colosó (Ricaurte) | C81: Caribe | D81: Sucre | E81: Entidades de gobierno | F81: 4.89 | G81: 4.53 | H81: EFICIENTE | I81: 0.36
A82: 210473504 | B82: Ortega | C82: Central | D82: Tolima | E82: Entidades de gobierno | F82: 4.75 | G82: 4.7 | H82: EFICIENTE | I82: 0.05
A83: 210518205 | B83: Curillo | C83: Amazonía | D83: Caquetá | E83: Entidades de gobierno | F83: 4.5 | G83: 4.2 | H83: EFICIENTE | I83: 0.3
A84: 210525805 | B84: Tibacuy | C84: Central | D84: Cundinamarca | E84: Entidades de gobierno | F84: 4.51 | G84: 4.27 | H84: EFICIENTE | I84: 0.24
A85: 210527205 | B85: Condoto | C85: Pacífico | D85: Chocó | E85: Entidades de gobierno | F85: 4.66 | G85: 4.66 | H85: EFICIENTE | I85: 0
A86: 210547205 | B86: Concordia - Magdalena | C86: Caribe | D86: Magdalena | E86: Entidades de gobierno | F86: 4.98 | G86: 4.87 | H86: EFICIENTE | I86: 0.11
A87: 210547605 | B87: Remolino | C87: Caribe | D87: Magdalena | E87: Entidades de gobierno | F87: 4.11 | G87: 4.15 | H87: EFICIENTE | I87: -0.04
A88: 210552405 | B88: Leiva | C88: Pacífico | D88: Nariño | E88: Entidades de gobierno | F88: 3.91 | G88: 4.34 | H88: ADECUADO | I88: -0.43
A89: 210554405 | B89: Los Patios | C89: Santanderes | D89: Norte de Santander | E89: Entidades de gobierno | F89: 4.92 | G89: 4.85 | H89: EFICIENTE | I89: 0.07
A90: 210568705 | B90: Santa Bárbara - Santander | C90: Santanderes | D90: Santander | E90: Entidades de gobierno | F90: 4.44 | G90: 4.91 | H90: EFICIENTE | I90: -0.47
A91: 210605206 | B91: Concepción - Antioquia | C91: Eje Cafetero y Antioquia | D91: Antioquia | E91: Entidades de gobierno | F91: 4.37 | G91: 4.63 | H91: EFICIENTE | I91: -0.26
A92: 210605306 | B92: Giraldo | C92: Eje Cafetero y Antioquia | D92: Antioquia | E92: Entidades de gobierno | F92: 4.74 | G92: 4.83 | H92: EFICIENTE | I92: -0.09
A93: 210608606 | B93: Repelón | C93: Caribe | D93: Atlántico | E93: Entidades de gobierno | F93: 5 | G93: 5 | H93: EFICIENTE | I93: 0
A94: 210613006 | B94: Achí | C94: Caribe | D94: Bolívar | E94: Entidades de gobierno | F94: 4.96 | G94: 4.92 | H94: EFICIENTE | I94: 0.04
A95: 210615106 | B95: Briceño - Boyacá | C95: Central | D95: Boyacá | E95: Entidades de gobierno | F95: 4.52 | G95: 4.73 | H95: EFICIENTE | I95: -0.21
A96: 210615806 | B96: Tibasosa | C96: Central | D96: Boyacá | E96: Entidades de gobierno | F96: 4.92 | G96: 4.92 | H96: EFICIENTE | I96: 0
A97: 210625506 | B97: Venecia - Cundinamarca | C97: Central | D97: Cundinamarca | E97: Entidades de gobierno | F97: 4.81 | G97: 4.68 | H97: EFICIENTE | I97: 0.13
A98: 210627006 | B98: Acandí | C98: Pacífico | D98: Chocó | E98: Entidades de gobierno | F98: 4.32 | G98: 4.16 | H98: EFICIENTE | I98: 0.16
A99: 210641006 | B99: Acevedo | C99: Central | D99: Huila | E99: Entidades de gobierno | F99: 4.7 | G99: 4.42 | H99: EFICIENTE | I99: 0.28
A100: 210641206 | B100: Colombia | C100: Central | D100: Huila | E100: Entidades de gobierno | F100: 4.9 | G100: 4.88 | H100: EFICIENTE | I100: 0.02
A101: 210641306 | B101: Gigante | C101: Central | D101: Huila | E101: Entidades de gobierno | F101: 4.75 | G101: 4.74 | H101: EFICIENTE | I101: 0.01
A102: 210650006 | B102: Acacías | C102: Llanos - Orinoquía | D102: Meta | E102: Entidades de gobierno | F102: 4.71 | G102: 4.63 | H102: EFICIENTE | I102: 0.08
A103: 210650606 | B103: Restrepo - Meta | C103: Llanos - Orinoquía | D103: Meta | E103: Entidades de gobierno | F103: 4.83 | G103: 4.83 | H103: EFICIENTE | I103: 0
A104: 210652506 | B104: Ospina | C104: Pacífico | D104: Nariño | E104: Entidades de gobierno | F104: 4.73 | G104: 4.73 | H104: EFICIENTE | I104: 0
A105: 210654206 | B105: Convención | C105: Santanderes | D105: Norte de Santander | E105: Entidades de gobierno | F105: 3.81 | G105: 3.81 | H105: ADECUADO | I105: 0
A106: 210668406 | B106: Lebrija | C106: Santanderes | D106: Santander | E106: Entidades de gobierno | F106: 4.93 | G106: 4.86 | H106: EFICIENTE | I106: 0.07
A107: 210676306 | B107: Ginebra | C107: Pacífico | D107: Valle del Cauca | E107: Entidades de gobierno | F107: 4.44 | G107: 4.42 | H107: EFICIENTE | I107: 0.02
A108: 210676606 | B108: Restrepo - Valle del Cauca | C108: Pacífico | D108: Valle del Cauca | E108: Entidades de gobierno | F108: 4.81 | G108: 4.81 | H108: EFICIENTE | I108: 0
A109: 210705107 | B109: Briceño - Antioquia | C109: Eje Cafetero y Antioquia | D109: Antioquia | E109: Entidades de gobierno | F109: 4.17 | G109: 4.13 | H109: EFICIENTE | I109: 0.04
A110: 210705607 | B110: El Retiro | C110: Eje Cafetero y Antioquia | D110: Antioquia | E110: Entidades de gobierno | F110: 4.6 | G110: 4.6 | H110: EFICIENTE | I110: 0
A111: 210715407 | B111: Villa de Leyva | C111: Central | D111: Boyacá | E111: Entidades de gobierno | F111: 4.23 | G111: 3.85 | H111: EFICIENTE | I111: 0.38
A112: 210715507 | B112: Otanche | C112: Central | D112: Boyacá | E112: Entidades de gobierno | F112: 4.64 | G112: 4.82 | H112: EFICIENTE | I112: -0.18
A113: 210719807 | B113: Timbío | C113: Pacífico | D113: Cauca | E113: Entidades de gobierno | F113: 4.06 | G113: 4.18 | H113: EFICIENTE | I113: -0.12
A114: 210723807 | B114: Tierralta | C114: Caribe | D114: Córdoba | E114: Entidades de gobierno | F114: 3.82 | G114: 3.88 | H114: ADECUADO | I114: -0.06
A115: 210725307 | B115: Girardot | C115: Central | D115: Cundinamarca | E115: Entidades de gobierno | F115: 4.06 | G115: 3.93 | H115: EFICIENTE | I115: 0.13
A116: 210725407 | B116: Lenguazaque | C116: Central | D116: Cundinamarca | E116: Entidades de gobierno | F116: 4.75 | G116: 4.73 | H116: EFICIENTE | I116: 0.02
A117: 210725807 | B117: Tibirita | C117: Central | D117: Cundinamarca | E117: Entidades de gobierno | F117: 3.96 | G117: 3.96 | H117: ADECUADO | I117: 0
A118: 210741807 | B118: Timaná | C118: Central | D118: Huila | E118: Entidades de gobierno | F118: 4.95 | G118: 4.93 | H118: EFICIENTE | I118: 0.02
A119: 210747707 | B119: Santa Ana | C119: Caribe | D119: Magdalena | E119: Entidades de gobierno | F119: 4.86 | G119: 4.71 | H119: EFICIENTE | I119: 0.15
A120: 210752207 | B120: Consacá | C120: Pacífico | D120: Nariño | E120: Entidades de gobierno | F120: 4.5 | G120: 4.49 | H120: EFICIENTE | I120: 0.01
A121: 210768207 | B121: Concepción - Santander | C121: Santanderes | D121: Santander | E121: Entidades de gobierno | F121: 4.81 | G121: 4.35 | H121: EFICIENTE | I121: 0.46
A122: 210768307 | B122: Girón | C122: Santanderes | D122: Santander | E122: Entidades de gobierno | F122: 5 | G122: 5 | H122: EFICIENTE | I122: 0
A123: 210805308 | B123: Girardota | C123: Eje Cafetero y Antioquia | D123: Antioquia | E123: Entidades de gobierno | F123: 4.69 | G123: 4.69 | H123: EFICIENTE | I123: 0
A124: 210815808 | B124: Tinjacá | C124: Central | D124: Boyacá | E124: Entidades de gobierno | F124: 4.67 | G124: 3.88 | H124: EFICIENTE | I124: 0.79
A125: 210870508 | B125: Ovejas | C125: Caribe | D125: Sucre | E125: Entidades de gobierno | F125: 4.47 | G125: 4.5 | H125: EFICIENTE | I125: -0.03
A126: 210870708 | B126: San Marcos | C126: Caribe | D126: Sucre | E126: Entidades de gobierno | F126: 4.61 | G126: 4.91 | H126: EFICIENTE | I126: -0.3
A127: 210873408 | B127: Lérida | C127: Central | D127: Tolima | E127: Entidades de gobierno | F127: 4.75 | G127: 4.83 | H127: EFICIENTE | I127: -0.08
A128: 210905209 | B128: Concordia - Antioquia | C128: Eje Cafetero y Antioquia | D128: Antioquia | E128: Entidades de gobierno | F128: 4.8 | G128: 4.8 | H128: EFICIENTE | I128: 0
A129: 210905809 | B129: Titiribí | C129: Eje Cafetero y Antioquia | D129: Antioquia | E129: Entidades de gobierno | F129: 4.39 | G129: 4.16 | H129: EFICIENTE | I129: 0.23
A130: 210915109 | B130: Buenavista - Boyacá | C130: Central | D130: Boyacá | E130: Entidades de gobierno | F130: 4.07 | G130: 3.77 | H130: EFICIENTE | I130: =F130-G130 -> 0.3
A131: 210919809 | B131: Timbiquí | C131: Pacífico | D131: Cauca | E131: Entidades de gobierno | F131: 4.32 | G131: 0 | H131: EFICIENTE | I131: 4.32
A132: 210954109 | B132: Bucarasica | C132: Santanderes | D132: Norte de Santander | E132: Entidades de gobierno | F132: 4.33 | G132: 4.36 | H132: EFICIENTE | I132: -0.03
A133: 210968209 | B133: Confines | C133: Santanderes | D133: Santander | E133: Entidades de gobierno | F133: 4.34 | G133: 4.71 | H133: EFICIENTE | I133: -0.37
A134: 210976109 | B134: Buenaventura | C134: Pacífico | D134: Valle del Cauca | E134: Entidades de gobierno | F134: 4.26 | G134: 4.22 | H134: EFICIENTE | I134: 0.04
A135: 211005310 | B135: Gómez Plata | C135: Eje Cafetero y Antioquia | D135: Antioquia | E135: Entidades de gobierno | F135: 4.36 | G135: 4.69 | H135: EFICIENTE | I135: -0.33
A136: 211013810 | B136: Tiquisio | C136: Caribe | D136: Bolívar | E136: Entidades de gobierno | F136: 2.96 | G136: 2.96 | H136: DEFICIENTE | I136: 0
A137: 211015810 | B137: Tipacoque | C137: Central | D137: Boyacá | E137: Entidades de gobierno | F137: 3.18 | G137: 3.05 | H137: ADECUADO | I137: 0.13
A138: 211018410 | B138: La Montañita | C138: Amazonía | D138: Caquetá | E138: Entidades de gobierno | F138: 3.6 | G138: 3.51 | H138: ADECUADO | I138: 0.09
A139: 211018610 | B139: San José de la Fragua | C139: Amazonía | D139: Caquetá | E139: Entidades de gobierno | F139: 4.36 | G139: 4.85 | H139: EFICIENTE | I139: -0.49
A140: 211019110 | B140: Buenos Aires | C140: Pacífico | D140: Cauca | E140: Entidades de gobierno | F140: 4.49 | G140: 2.11 | H140: EFICIENTE | I140: 2.38
A141: 211020310 | B141: González | C141: Caribe | D141: Cesar | E141: Entidades de gobierno | F141: 3.99 | G141: 3.98 | H141: ADECUADO | I141: 0.01
A142: 211020710 | B142: San Alberto | C142: Caribe | D142: Cesar | E142: Entidades de gobierno | F142: 5 | G142: 5 | H142: EFICIENTE | I142: 0
A143: 211027810 | B143: Unión Panamericana | C143: Pacífico | D143: Chocó | E143: Entidades de gobierno | F143: 4.37 | G143: 3.59 | H143: EFICIENTE | I143: 0.78
A144: 211044110 | B144: El Molino | C144: Caribe | D144: Guajira | E144: Entidades de gobierno | F144: 4.54 | G144: 4.51 | H144: EFICIENTE | I144: 0.03
A145: 211050110 | B145: Barranca de Upía | C145: Llanos - Orinoquía | D145: Meta | E145: Entidades de gobierno | F145: 4.98 | G145: 4.93 | H145: EFICIENTE | I145: 0.05
A146: 211052110 | B146: Buesaco | C146: Pacífico | D146: Nariño | E146: Entidades de gobierno | F146: 4.7 | G146: 4.5 | H146: EFICIENTE | I146: 0.2
A147: 211052210 | B147: Contadero | C147: Pacífico | D147: Nariño | E147: Entidades de gobierno | F147: 4.63 | G147: 4.68 | H147: EFICIENTE | I147: -0.05
A148: 211054810 | B148: Tibú | C148: Santanderes | D148: Norte de Santander | E148: Entidades de gobierno | F148: 4.81 | G148: 4.81 | H148: EFICIENTE | I148: 0
A149: 211070110 | B149: Buenavista - Sucre | C149: Caribe | D149: Sucre | E149: Entidades de gobierno | F149: 4.08 | G149: 3.57 | H149: EFICIENTE | I149: 0.51
A150: 211085010 | B150: Aguazul | C150: Llanos - Orinoquía | D150: Casanare | E150: Entidades de gobierno | F150: 4.52 | G150: 4.63 | H150: EFICIENTE | I150: -0.11
A151: 211085410 | B151: Tauramena | C151: Llanos - Orinoquía | D151: Casanare | E151: Entidades de gobierno | F151: 4.97 | G151: 4.94 | H151: EFICIENTE | I151: 0.03
A152: 211105411 | B152: Liborina | C152: Eje Cafetero y Antioquia | D152: Antioquia | E152: Entidades de gobierno | F152: 4.65 | G152: 4.35 | H152: EFICIENTE | I152: 0.3
A153: 211115511 | B153: Pachavita | C153: Central | D153: Boyacá | E153: Entidades de gobierno | F153: 4.4 | G153: 4.4 | H153: EFICIENTE | I153: 0
A154: 211120011 | B154: Aguachica | C154: Caribe | D154: Cesar | E154: Entidades de gobierno | F154: 3.22 | G154: 3.1 | H154: ADECUADO | I154: 0.12
A155: 211150711 | B155: Vista Hermosa | C155: Llanos - Orinoquía | D155: Meta | E155: Entidades de gobierno | F155: 4.8 | G155: 4.78 | H155: EFICIENTE | I155: 0.02
A156: 211152411 | B156: Linares | C156: Pacífico | D156: Nariño | E156: Entidades de gobierno | F156: 4.11 | G156: 3.7 | H156: EFICIENTE | I156: 0.41
A157: 211163111 | B157: Buenavista - Quindío | C157: Eje Cafetero y Antioquia | D157: Quindío | E157: Entidades de gobierno | F157: 4.63 | G157: 4.51 | H157: EFICIENTE | I157: 0.12
A158: 211168211 | B158: Contratación | C158: Santanderes | D158: Santander | E158: Entidades de gobierno | F158: 4.29 | G158: 3.89 | H158: EFICIENTE | I158: 0.4
A159: 211173411 | B159: Líbano | C159: Central | D159: Tolima | E159: Entidades de gobierno | F159: 4.01 | G159: 3.93 | H159: EFICIENTE | I159: 0.08
A160: 211176111 | B160: Guadalajara de Buga | C160: Pacífico | D160: Valle del Cauca | E160: Entidades de gobierno | F160: 4.51 | G160: 4.67 | H160: EFICIENTE | I160: -0.16
A161: 211205212 | B161: Copacabana | C161: Eje Cafetero y Antioquia | D161: Antioquia | E161: Entidades de gobierno | F161: 4.93 | G161: 4.5 | H161: EFICIENTE | I161: 0.43
A162: 211213212 | B162: Córdoba - Bolívar | C162: Caribe | D162: Bolívar | E162: Entidades de gobierno | F162: 3.27 | G162: 2.95 | H162: ADECUADO | I162: 0.32
A163: 211215212 | B163: Coper | C163: Central | D163: Boyacá | E163: Entidades de gobierno | F163: 4.67 | G163: 4.67 | H163: EFICIENTE | I163: 0
A164: 211219212 | B164: Corinto | C164: Pacífico | D164: Cauca | E164: Entidades de gobierno | F164: 4.54 | G164: 4.17 | H164: EFICIENTE | I164: 0.37
A165: 211225312 | B165: Granada - Cundinamarca | C165: Central | D165: Cundinamarca | E165: Entidades de gobierno | F165: 4.83 | G165: 4.01 | H165: EFICIENTE | I165: 0.82
A166: 211225612 | B166: Ricaurte - Cundinamarca | C166: Central | D166: Cundinamarca | E166: Entidades de gobierno | F166: 4.91 | G166: 4.91 | H166: EFICIENTE | I166: 0
A167: 211252612 | B167: Ricaurte - Nariño | C167: Pacífico | D167: Nariño | E167: Entidades de gobierno | F167: 4.58 | G167: 3.82 | H167: EFICIENTE | I167: 0.76
A168: 211263212 | B168: Córdoba - Quindío | C168: Eje Cafetero y Antioquia | D168: Quindío | E168: Entidades de gobierno | F168: 3.67 | G168: 3.1 | H168: ADECUADO | I168: 0.57
A169: 211305113 | B169: Buriticá | C169: Eje Cafetero y Antioquia | D169: Antioquia | E169: Entidades de gobierno | F169: 4.56 | G169: 4.74 | H169: EFICIENTE | I169: -0.18
A170: 211305313 | B170: Granada - Antioquia | C170: Eje Cafetero y Antioquia | D170: Antioquia | E170: Entidades de gobierno | F170: 3.33 | G170: 4.07 | H170: ADECUADO | I170: -0.74
A171: 211317013 | B171: Aguadas - Caldas | C171: Eje Cafetero y Antioquia | D171: Caldas | E171: Entidades de gobierno | F171: 4.2 | G171: 4.16 | H171: EFICIENTE | I171: 0.04
A172: 211317513 | B172: Pácora | C172: Eje Cafetero y Antioquia | D172: Caldas | E172: Entidades de gobierno | F172: 4.38 | G172: 4.44 | H172: EFICIENTE | I172: -0.06
A173: 211319513 | B173: Padilla | C173: Pacífico | D173: Cauca | E173: Entidades de gobierno | F173: 4.23 | G173: 4.29 | H173: EFICIENTE | I173: -0.06
A174: 211320013 | B174: Agustín Codazzi | C174: Caribe | D174: Cesar | E174: Entidades de gobierno | F174: 4.5 | G174: 4.24 | H174: EFICIENTE | I174: 0.26
A175: 211325513 | B175: Pacho | C175: Central | D175: Cundinamarca | E175: Entidades de gobierno | F175: 4.78 | G175: 4.78 | H175: EFICIENTE | I175: 0
A176: 211327413 | B176: Lloró | C176: Pacífico | D176: Chocó | E176: Entidades de gobierno | F176: 4.74 | G176: 0 | H176: EFICIENTE | I176: 4.74
A177: 211341013 | B177: El Agrado | C177: Central | D177: Huila | E177: Entidades de gobierno | F177: 5 | G177: 5 | H177: EFICIENTE | I177: 0
A178: 211350313 | B178: Granada - Meta | C178: Llanos - Orinoquía | D178: Meta | E178: Entidades de gobierno | F178: 4.95 | G178: 4.93 | H178: EFICIENTE | I178: 0.02
A179: 211354313 | B179: Gramalote | C179: Santanderes | D179: Norte de Santander | E179: Entidades de gobierno | F179: 4.45 | G179: 4.47 | H179: EFICIENTE | I179: -0.02
A180: 211368013 | B180: Aguada - Santander | C180: Santanderes | D180: Santander | E180: Entidades de gobierno | F180: 5 | G180: 4.56 | H180: EFICIENTE | I180: 0.44
A181: 211370713 | B181: San Onofre | C181: Caribe | D181: Sucre | E181: Entidades de gobierno | F181: 4.24 | G181: 3.2 | H181: EFICIENTE | I181: 1.04
A182: 211376113 | B182: Bugalagrande | C182: Pacífico | D182: Valle del Cauca | E182: Entidades de gobierno | F182: 4.51 | G182: 4.39 | H182: EFICIENTE | I182: 0.12
A183: 211415114 | B183: Busbanzá | C183: Central | D183: Boyacá | E183: Entidades de gobierno | F183: 4.6 | G183: 4.6 | H183: EFICIENTE | I183: 0
A184: 211415514 | B184: Páez - Boyacá | C184: Central | D184: Boyacá | E184: Entidades de gobierno | F184: 4.17 | G184: 4.32 | H184: EFICIENTE | I184: -0.15
A185: 211415814 | B185: Toca | C185: Central | D185: Boyacá | E185: Entidades de gobierno | F185: 4.77 | G185: 4.77 | H185: EFICIENTE | I185: 0
A186: 211417614 | B186: Riosucio - Caldas | C186: Eje Cafetero y Antioquia | D186: Caldas | E186: Entidades de gobierno | F186: 4.9 | G186: 4.78 | H186: EFICIENTE | I186: 0.12
A187: 211420614 | B187: Río de Oro | C187: Caribe | D187: Cesar | E187: Entidades de gobierno | F187: 4.59 | G187: 4.6 | H187: EFICIENTE | I187: -0.01
A188: 211425214 | B188: Cota | C188: Central | D188: Cundinamarca | E188: Entidades de gobierno | F188: 3.94 | G188: 4.23 | H188: ADECUADO | I188: -0.29
A189: 211505315 | B189: Guadalupe - Antioquia | C189: Eje Cafetero y Antioquia | D189: Antioquia | E189: Entidades de gobierno | F189: 4.39 | G189: 4.53 | H189: EFICIENTE | I189: -0.14
A190: 211505615 | B190: Rionegro - Antioquia | C190: Eje Cafetero y Antioquia | D190: Antioquia | E190: Entidades de gobierno | F190: 4.7 | G190: 4.3 | H190: EFICIENTE | I190: 0.4
A191: 211515215 | B191: Corrales | C191: Central | D191: Boyacá | E191: Entidades de gobierno | F191: 4.62 | G191: 4.4 | H191: EFICIENTE | I191: 0.22
A192: 211525815 | B192: Tocaima | C192: Central | D192: Cundinamarca | E192: Entidades de gobierno | F192: 4.76 | G192: 4.75 | H192: EFICIENTE | I192: 0.01
A193: 211527615 | B193: Riosucio - Chocó | C193: Pacífico | D193: Chocó | E193: Entidades de gobierno | F193: 4.81 | G193: 4.74 | H193: EFICIENTE | I193: 0.07
A194: 211541615 | B194: Rivera | C194: Central | D194: Huila | E194: Entidades de gobierno | F194: 4.98 | G194: 4.98 | H194: EFICIENTE | I194: =F194-G194 -> 0
A195: 211552215 | B195: Córdoba - Nariño | C195: Pacífico | D195: Nariño | E195: Entidades de gobierno | F195: 4.98 | G195: 4.69 | H195: EFICIENTE | I195: 0.29
A196: 211568615 | B196: Rionegro - Santander | C196: Santanderes | D196: Santander | E196: Entidades de gobierno | F196: 3.56 | G196: 4.05 | H196: ADECUADO | I196: -0.49
A197: 211570215 | B197: Corozal | C197: Caribe | D197: Sucre | E197: Entidades de gobierno | F197: 4.62 | G197: 4.32 | H197: EFICIENTE | I197: 0.3
A198: 211585015 | B198: Chámeza | C198: Llanos - Orinoquía | D198: Casanare | E198: Entidades de gobierno | F198: 4.76 | G198: 4.75 | H198: EFICIENTE | I198: 0.01
A199: 211585315 | B199: Sácama | C199: Llanos - Orinoquía | D199: Casanare | E199: Entidades de gobierno | F199: 4.54 | G199: 4.44 | H199: EFICIENTE | I199: 0.1
A200: 211595015 | B200: Calamar - Guaviare | C200: Amazonía | D200: Guaviare | E200: Entidades de gobierno | F200: 4.96 | G200: 4.78 | H200: EFICIENTE | I200: 0.18
... 3088 more rows

Sheet HT
A1: CONTADURIA GENERAL DE LA NACIÓN
S2: Capitales
A3: C17B - SALDOS REPORTADOS POR CÓDIGO DE ENTIDAD Y CUENTA - CONSOLIDADOS
A4: CENTRO DE CONSOLIDACIÓN: id: 80 | TERRITORIAL | Q4: Estado de Resultados
A6: Versión del plan de cuentas: | AS6: Periodo: 01/10/2019 | Versión: 01/10/2019
A8: Cifras en pesos
D10: Activos 2020 | E10: Activos 2019 | F10: ABS Activos | G10: % Activos | H10: CUENTAS POR COBRAR 2020 | I10: CUENTAS POR COBRAR 2019 | J10: ABS CXC | K10: % CXC | L10: IMPUESTOS RETENCIÓN EN LA FUENTE Y ANTICIPOS DE IMPUESTOS 2020 | M10: IMPUESTOS RETENCIÓN EN LA FUENTE Y ANTICIPOS DE IMPUESTOS 2019 | N10: CONTRIBUCIONES TASAS E INGRESOS NO TRIBUTARIOS 2020 | O10: CONTRIBUCIONES TASAS E INGRESOS NO TRIBUTARIOS 2019 | P10: APORTES SOBRE LA NÓMINA 2020 | Q10: APORTES SOBRE LA NÓMINA 2019 | R10: RENTAS PARAFISCALES 2020 | S10: RENTAS PARAFISCALES 2019 | T10: REGALÍAS 2020 | U10: REGALÍAS 2019 | V10: VENTA DE BIENES 2020 | W10: VENTA DE BIENES 2019 | X10: PRESTACIÓN DE SERVICIOS 2020 | Y10: PRESTACIÓN DE SERVICIOS 2019 | Z10: PRESTACIÓN DE SERVICIOS PÚBLICOS 2020 | AA10: PRESTACIÓN DE SERVICIOS PÚBLICOS 2019 | AB10: PRESTACIÓN DE SERVICIOS DE SALUD 2020 | AC10: PRESTACIÓN DE SERVICIOS DE SALUD 2019 | AD10: RECURSOS DESTINADOS A LA FINANCIACIÓN DEL SISTEMA GENERAL DE SEGURIDAD SOCIAL EN SALUD 2020 | AE10: RECURSOS DESTINADOS A LA FINANCIACIÓN DEL SISTEMA GENERAL DE SEGURIDAD SOCIAL EN SALUD 2019 | AF10: ADMINISTRACIÓN DE LA SEGURIDAD SOCIAL EN SALUD 2020 | AG10: ADMINISTRACIÓN DE LA SEGURIDAD SOCIAL EN SALUD 2019 | AH10: SUBVENCIONES POR COBRAR 2020 | AI10: SUBVENCIONES POR COBRAR 2019 | AJ10: RECURSOS DE LOS FONDOS DE PENSIONES ADMINISTRADOS POR COLPENSIONES 2020 | AK10: RECURSOS DE LOS FONDOS DE PENSIONES ADMINISTRADOS POR COLPENSIONES 2019 | AL10: FONDO DE AHORRO Y ESTABILIZACIÓN PETROLERA 2020 | AM10: FONDO DE AHORRO Y ESTABILIZACIÓN PETROLERA 2019 | AN10: DERECHOS DE RECOMPRA DE CUENTAS POR COBRAR 2020 | AO10: DERECHOS DE RECOMPRA DE CUENTAS POR COBRAR 2019 | AP10: SALDOS DISPONIBLES EN PATRIMONIOS AUTÓNOMOS Y OTROS RECURSOS ENTREGADOS EN ADMINISTRACIÓN 2020 | AQ10: SALDOS DISPONIBLES EN PATRIMONIOS AUTÓNOMOS Y OTROS RECURSOS ENTREGADOS EN ADMINISTRACIÓN 2019 | AR10: TRANSFERENCIAS POR COBRAR 2020 | AS10: TRANSFERENCIAS POR COBRAR 2019 | AT10: OTRAS CUENTAS POR COBRAR 2020 | AU10: OTRAS CUENTAS POR COBRAR 2019 | AV10: CUENTAS POR COBRAR DE DIFÍCIL RECAUDO 2020 | AW10: CUENTAS POR COBRAR DE DIFÍCIL RECAUDO 2019 | AX10: DETERIORO ACUMULADO DE CUENTAS POR COBRAR (CR) 2020 | AY10: DETERIORO ACUMULADO DE CUENTAS POR COBRAR (CR) 2019 | AZ10: VENTA DE BIENES 2020 | BA10: VENTA DE BIENES 2019 | BB10: PRESTACIÓN DE SERVICIOS 2020 | BC10: PRESTACIÓN DE SERVICIOS 2019 | BD10: SERVICIO DE ENERGÍA 2020 | BE10: SERVICIO DE ENERGÍA 2019 | BF10: SERVICIO DE ACUEDUCTO 2020 | BG10: SERVICIO DE ACUEDUCTO 2019 | BH10: SERVICIO DE ALCANTARILLADO 2020 | BI10: SERVICIO DE ALCANTARILLADO 2019 | BJ10: SERVICIO DE ASEO 2020 | BK10: SERVICIO DE ASEO 2019 | BL10: SERVICIO DE GAS COMBUSTIBLE 2020 | BM10: SERVICIO DE GAS COMBUSTIBLE 2019 | BN10: SERVICIO DE TELECOMUNICACIONES 2020 | BO10: SERVICIO DE TELECOMUNICACIONES 2019 | BP10: PRESTACIÓN DE SERVICIOS DE SALUD 2020 | BQ10: PRESTACIÓN DE SERVICIOS DE SALUD 2019 | BR10: ADMINISTRACIÓN DE LA SEGURIDAD SOCIAL EN SALUD 2020 | BS10: ADMINISTRACIÓN DE LA SEGURIDAD SOCIAL EN SALUD 2019 | BT10: RECURSOS DE LOS FONDOS DE PENSIONES ADMINISTRADOS POR COLPENSIONES 2020 | BU10: RECURSOS DE LOS FONDOS DE PENSIONES ADMINISTRADOS POR COLPENSIONES 2019 | BV10: IMPUESTOS 2020 | BW10: IMPUESTOS 2019 | BX10: CONTRIBUCIONES TASAS E INGRESOS NO TRIBUTARIOS 2020 | BY10: CONTRIBUCIONES TASAS E INGRESOS NO TRIBUTARIOS 2019 | BZ10: APORTES SOBRE LA NÓMINA 2020 | CA10: APORTES SOBRE LA NÓMINA 2019 | CB10: RECURSOS DESTINADOS A LA FINANCIACIÓN DEL SISTEMA GENERAL DE SEGURIDAD SOCIAL EN SALUD 2020 | CC10: RECURSOS DESTINADOS A LA FINANCIACIÓN DEL SISTEMA GENERAL DE SEGURIDAD SOCIAL EN SALUD 2019 | CD10: TRAS CUENTAS POR COBRAR 2020 | CE10: TRAS CUENTAS POR COBRAR 2019 | CF10: CUENTAS POR COBRAR A COSTO AMORTIZADO 2020 | CG10: CUENTAS POR COBRAR A COSTO AMORTIZADO 2019 | CH10: DETERIORO ACUMULADO DE CUENTAS POR COBRAR A COSTO AMORTIZADO (CR) 2020 | CI10: DETERIORO ACUMULADO DE CUENTAS POR COBRAR A COSTO AMORTIZADO (CR) 2019 | CJ10: PLAN DE ACTIVOS PARA BENEFICIOS POSEMPLEO 2020 | CK10: PLAN DE ACTIVOS PARA BENEFICIOS POSEMPLEO 2019 | CL10: ABS PlanActivos | CM10: % PlanActivos | CN10: PASIVOS 2020 | CO10: PASIVOS 2019 | CP10: ABS Pasivos | CQ10: % Pasivos | CR10: EMISIÓN Y COLOCACIÓN DE TÍTULOS DE DEUDA 2020 | CS10: EMISIÓN Y COLOCACIÓN DE TÍTULOS DE DEUDA 2019 | CT10: ABS Emision | CU10: % Emision | CV10: PRÉSTAMOS POR PAGAR 2020 | CW10: PRÉSTAMOS POR PAGAR 2019 | CX10: ABS Prestamos | CY10: % Prestamos | CZ10: CÁLCULO ACTUARIAL DE PENSIONES ACTUALES 2020 | DA10: CÁLCULO ACTUARIAL DE PENSIONES ACTUALES 2019 | DB10: CÁLCULO ACTUARIAL PASIVO PENSIONAL CONMUTADO 2020 | DC10: CÁLCULO ACTUARIAL PASIVO PENSIONAL CONMUTADO 2019 | DD10: PATRIMONIO 2020 | DE10: PATRIMONIO 2019 | DF10: ABS Patrimonio | DG10: % Patrimonio | DH10: INGRESOS 2020 | DI10: INGRESOS 2019 | DJ10: ABS Ingresos | DK10: % Ingresos | DL10: IMPUESTOS 2020 | DM10: IMPUESTOS 2019 | DN10: ABS Impuestos | DO10: % Impuestos | DP10: TRANSFERENCIAS Y SUBVENCIONES 2020 | DQ10: TRANSFERENCIAS Y SUBVENCIONES 2019 | DR10: ABS Transferencias | DS10: % Transferencias | DT10: GASTOS 2020 | DU10: GASTOS 2019 | DV10: GASTO PÚBLICO SOCIAL 2020 | DW10: GASTO PÚBLICO SOCIAL 2019 | DX10: ABS GastoPublico | DY10: % GastoPublico | DZ10: CIERRE DE INGRESOS, GASTOS Y COSTOS 2020 | EA10: CIERRE DE INGRESOS, GASTOS Y COSTOS 2019 | EB10: ABS Resultado | EC10: % Resultado | ED10: COSTOS DE VENTAS 2020 | EE10: COSTOS DE VENTAS 2019
D11: ACTIVOS | E11: ACTIVOS | H11: CUENTAS POR COBRAR | I11: CUENTAS POR COBRAR | L11: IMPUESTOS RETENCIÓN EN LA FUENTE Y ANTICIPOS DE IMPUESTOS | M11: IMPUESTOS RETENCIÓN EN LA FUENTE Y ANTICIPOS DE IMPUESTOS | N11: CONTRIBUCIONES TASAS E INGRESOS NO TRIBUTARIOS | O11: CONTRIBUCIONES TASAS E INGRESOS NO TRIBUTARIOS | P11: APORTES SOBRE LA NÓMINA | Q11: APORTES SOBRE LA NÓMINA | R11: RENTAS PARAFISCALES | S11: RENTAS PARAFISCALES | T11: REGALÍAS | U11: REGALÍAS | V11: VENTA DE BIENES | W11: VENTA DE BIENES | X11: PRESTACIÓN DE SERVICIOS | Y11: PRESTACIÓN DE SERVICIOS | Z11: PRESTACIÓN DE SERVICIOS PÚBLICOS | AA11: PRESTACIÓN DE SERVICIOS PÚBLICOS | AB11: PRESTACIÓN DE SERVICIOS DE SALUD | AC11: PRESTACIÓN DE SERVICIOS DE SALUD | AD11: RECURSOS DESTINADOS A LA FINANCIACIÓN DEL SISTEMA GENERAL DE SEGURIDAD SOCIAL EN SALUD | AE11: RECURSOS DESTINADOS A LA FINANCIACIÓN DEL SISTEMA GENERAL DE SEGURIDAD SOCIAL EN SALUD | AF11: ADMINISTRACIÓN DEL SISTEMA DE SEGURIDAD SOCIAL EN SALUD | AG11: ADMINISTRACIÓN DEL SISTEMA DE SEGURIDAD SOCIAL EN SALUD | AH11: SUBVENCIONES POR COBRAR | AI11: SUBVENCIONES POR COBRAR | AJ11: RECURSOS DE LOS FONDOS DE PENSIONES ADMINISTRADOS POR COLPENSIONES | AK11: RECURSOS DE LOS FONDOS DE PENSIONES ADMINISTRADOS POR COLPENSIONES | AL11: FONDO DE AHORRO Y ESTABILIZACIÓN PETROLERA | AM11: FONDO DE AHORRO Y ESTABILIZACIÓN PETROLERA | AN11: DERECHOS DE RECOMPRA DE CUENTAS POR COBRAR | AO11: DERECHOS DE RECOMPRA DE CUENTAS POR COBRAR | AP11: SALDOS DISPONIBLES EN PATRIMONIOS AUTÓNOMOS Y OTROS RECURSOS ENTREGADOS EN ADMINISTRACIÓN | AQ11: SALDOS DISPONIBLES EN PATRIMONIOS AUTÓNOMOS Y OTROS RECURSOS ENTREGADOS EN ADMINISTRACIÓN | AR11: TRANSFERENCIAS POR COBRAR | AS11: TRANSFERENCIAS POR COBRAR | AT11: OTRAS CUENTAS POR COBRAR | AU11: OTRAS CUENTAS POR COBRAR | AV11: CUENTAS POR COBRAR DE DIFÍCIL RECAUDO | AW11: CUENTAS POR COBRAR DE DIFÍCIL RECAUDO | AX11: DETERIORO ACUMULADO DE CUENTAS POR COBRAR (CR) | AY11: DETERIORO ACUMULADO DE CUENTAS POR COBRAR (CR) | AZ11: CUENTAS POR COBRAR A COSTO AMORTIZADO | BA11: CUENTAS POR COBRAR A COSTO AMORTIZADO | BB11: DETERIORO ACUMULADO DE CUENTAS POR COBRAR A COSTO AMORTIZADO (CR) | BC11: DETERIORO ACUMULADO DE CUENTAS POR COBRAR A COSTO AMORTIZADO (CR) | BD11: PLAN DE ACTIVOS PARA BENEFICIOS POSEMPLEO | BE11: PLAN DE ACTIVOS PARA BENEFICIOS POSEMPLEO | CN11: PASIVOS | CO11: PASIVOS | CR11: EMISIÓN Y COLOCACIÓN DE TÍTULOS DE DEUDA | CS11: EMISIÓN Y COLOCACIÓN DE TÍTULOS DE DEUDA | CV11: PRÉSTAMOS POR PAGAR | CW11: PRÉSTAMOS POR PAGAR | CZ11: CÁLCULO ACTUARIAL DE PENSIONES ACTUALES | DA11: CÁLCULO ACTUARIAL DE PENSIONES ACTUALES | DB11: CÁLCULO ACTUARIAL PASIVO PENSIONAL CONMUTADO | DC11: CÁLCULO ACTUARIAL PASIVO PENSIONAL CONMUTADO | DD11: PATRIMONIO | DE11: PATRIMONIO | DH11: INGRESOS | DI11: INGRESOS | DL11: IMPUESTOS | DM11: IMPUESTOS | DP11: TRANSFERENCIAS Y SUBVENCIONES | DQ11: TRANSFERENCIAS Y SUBVENCIONES | DT11: GASTOS | DU11: GASTOS | DV11: GASTO PÚBLICO SOCIAL | DW11: GASTO PÚBLICO SOCIAL | DZ11: CIERRE DE INGRESOS, GASTOS Y COSTOS | EA11: CIERRE DE INGRESOS, GASTOS Y COSTOS | ED11: COSTOS DE VENTAS | EE11: COSTOS DE VENTAS
D12: 2019 | E12: 2018 | H12: 2019 | I12: 2018 | L12: 2019 | M12: 2018 | N12: 2019 | O12: 2018 | P12: 2019 | Q12: 2018 | R12: 2019 | S12: 2018 | T12: 2019 | U12: 2018 | V12: 2019 | W12: 2018 | X12: 2019 | Y12: 2018 | Z12: 2019 | AA12: 2018 | AB12: 2019 | AC12: 2018 | AD12: 2019 | AE12: 2018 | AF12: 2019 | AG12: 2018 | AH12: 2019 | AI12: 2018 | AJ12: 2019 | AK12: 2018 | AL12: 2019 | AM12: 2018 | AN12: 2019 | AO12: 2018 | AP12: 2019 | AQ12: 2018 | AR12: 2019 | AS12: 2018 | AT12: 2019 | AU12: 2018 | AV12: 2019 | AW12: 2018 | AX12: 2019 | AY12: 2018 | AZ12: 2019 | BA12: 2018 | BB12: 2019 | BC12: 2018 | BD12: 2019 | BE12: 2018 | CN12: 2019 | CO12: 2018 | CR12: 2019 | CS12: 2018 | CV12: 2019 | CW12: 2018 | CZ12: 2019 | DA12: 2018 | DB12: 2019 | DC12: 2018 | DD12: 2019 | DE12: 2018 | DH12: 2019 | DI12: 2018 | DL12: 2019 | DM12: 2018 | DP12: 2019 | DQ12: 2018 | DT12: 2019 | DU12: 2018 | DV12: 2019 | DW12: 2018 | DZ12: 2019 | EA12: 2018 | ED12: 2019 | EE12: 2018
D13: ACTIVOS 2019 | E13: ACTIVOS 2018 | H13: CUENTAS POR COBRAR 2019 | I13: CUENTAS POR COBRAR 2018 | L13: IMPUESTOS RETENCIÓN EN LA FUENTE Y ANTICIPOS DE IMPUESTOS 2019 | M13: IMPUESTOS RETENCIÓN EN LA FUENTE Y ANTICIPOS DE IMPUESTOS 2018 | N13: CONTRIBUCIONES TASAS E INGRESOS NO TRIBUTARIOS 2019 | O13: CONTRIBUCIONES TASAS E INGRESOS NO TRIBUTARIOS 2018 | P13: APORTES SOBRE LA NÓMINA 2019 | Q13: APORTES SOBRE LA NÓMINA 2018 | R13: RENTAS PARAFISCALES 2019 | S13: RENTAS PARAFISCALES 2018 | T13: REGALÍAS 2019 | U13: REGALÍAS 2018 | V13: VENTA DE BIENES 2019 | W13: VENTA DE BIENES 2018 | X13: PRESTACIÓN DE SERVICIOS 2019 | Y13: PRESTACIÓN DE SERVICIOS 2018 | Z13: PRESTACIÓN DE SERVICIOS PÚBLICOS 2019 | AA13: PRESTACIÓN DE SERVICIOS PÚBLICOS 2018 | AB13: PRESTACIÓN DE SERVICIOS DE SALUD 2019 | AC13: PRESTACIÓN DE SERVICIOS DE SALUD 2018 | AD13: RECURSOS DESTINADOS A LA FINANCIACIÓN DEL SISTEMA GENERAL DE SEGURIDAD SOCIAL EN SALUD 2019 | AE13: RECURSOS DESTINADOS A LA FINANCIACIÓN DEL SISTEMA GENERAL DE SEGURIDAD SOCIAL EN SALUD 2018 | AF13: ADMINISTRACIÓN DEL SISTEMA DE SEGURIDAD SOCIAL EN SALUD 2019 | AG13: ADMINISTRACIÓN DEL SISTEMA DE SEGURIDAD SOCIAL EN SALUD 2018 | AH13: SUBVENCIONES POR COBRAR 2019 | AI13: SUBVENCIONES POR COBRAR 2018 | AJ13: RECURSOS DE LOS FONDOS DE PENSIONES ADMINISTRADOS POR COLPENSIONES 2019 | AK13: RECURSOS DE LOS FONDOS DE PENSIONES ADMINISTRADOS POR COLPENSIONES 2018 | AL13: FONDO DE AHORRO Y ESTABILIZACIÓN PETROLERA 2019 | AM13: FONDO DE AHORRO Y ESTABILIZACIÓN PETROLERA 2018 | AN13: DERECHOS DE RECOMPRA DE CUENTAS POR COBRAR 2019 | AO13: DERECHOS DE RECOMPRA DE CUENTAS POR COBRAR 2018 | AP13: SALDOS DISPONIBLES EN PATRIMONIOS AUTÓNOMOS Y OTROS RECURSOS ENTREGADOS EN ADMINISTRACIÓN 2019 | AQ13: SALDOS DISPONIBLES EN PATRIMONIOS AUTÓNOMOS Y OTROS RECURSOS ENTREGADOS EN ADMINISTRACIÓN 2018 | AR13: TRANSFERENCIAS POR COBRAR 2019 | AS13: TRANSFERENCIAS POR COBRAR 2018 | AT13: OTRAS CUENTAS POR COBRAR 2019 | AU13: OTRAS CUENTAS POR COBRAR 2018 | AV13: CUENTAS POR COBRAR DE DIFÍCIL RECAUDO 2019 | AW13: CUENTAS POR COBRAR DE DIFÍCIL RECAUDO 2018 | AX13: DETERIORO ACUMULADO DE CUENTAS POR COBRAR (CR) 2019 | AY13: DETERIORO ACUMULADO DE CUENTAS POR COBRAR (CR) 2018 | AZ13: CUENTAS POR COBRAR A COSTO AMORTIZADO 2019 | BA13: CUENTAS POR COBRAR A COSTO AMORTIZADO 2018 | BB13: DETERIORO ACUMULADO DE CUENTAS POR COBRAR A COSTO AMORTIZADO (CR) 2019 | BC13: DETERIORO ACUMULADO DE CUENTAS POR COBRAR A COSTO AMORTIZADO (CR) 2018 | BD13: PLAN DE ACTIVOS PARA BENEFICIOS POSEMPLEO 2019 | BE13: PLAN DE ACTIVOS PARA BENEFICIOS POSEMPLEO 2018 | CN13: PASIVOS 2019 | CO13: PASIVOS 2018 | CR13: EMISIÓN Y COLOCACIÓN DE TÍTULOS DE DEUDA 2019 | CS13: EMISIÓN Y COLOCACIÓN DE TÍTULOS DE DEUDA 2018 | CV13: PRÉSTAMOS POR PAGAR 2019 | CW13: PRÉSTAMOS POR PAGAR 2018 | CZ13: CÁLCULO ACTUARIAL DE PENSIONES ACTUALES 2019 | DA13: CÁLCULO ACTUARIAL DE PENSIONES ACTUALES 2018 | DB13: CÁLCULO ACTUARIAL PASIVO PENSIONAL CONMUTADO 2019 | DC13: CÁLCULO ACTUARIAL PASIVO PENSIONAL CONMUTADO 2018 | DD13: PATRIMONIO 2019 | DE13: PATRIMONIO 2018 | DH13: INGRESOS 2019 | DI13: INGRESOS 2018 | DL13: IMPUESTOS 2019 | DM13: IMPUESTOS 2018 | DP13: TRANSFERENCIAS Y SUBVENCIONES 2019 | DQ13: TRANSFERENCIAS Y SUBVENCIONES 2018 | DT13: GASTOS 2019 | DU13: GASTOS 2018 | DV13: GASTO PÚBLICO SOCIAL 2019 | DW13: GASTO PÚBLICO SOCIAL 2018 | DZ13: CIERRE DE INGRESOS, GASTOS Y COSTOS 2019 | EA13: CIERRE DE INGRESOS, GASTOS Y COSTOS 2018 | ED13: COSTOS DE VENTAS 2019 | EE13: COSTOS DE VENTAS 2018
D14: 1 - ACTIVOS | H14: 1.3 - CUENTAS POR COBRAR | L14: 1.3.05 - IMPUESTOS RETENCIÓN EN LA FUENTE Y ANTICIPOS DE IMPUESTOS | N14: 1.3.11 - CONTRIBUCIONES TASAS E INGRESOS NO TRIBUTARIOS | P14: 1.3.12 - APORTES SOBRE LA NÓMINA | R14: 1.3.13 - RENTAS PARAFISCALES | T14: 1.3.14 - REGALÍAS | V14: 1.3.16 - VENTA DE BIENES | X14: 1.3.17 - PRESTACIÓN DE SERVICIOS | Z14: 1.3.18 - PRESTACIÓN DE SERVICIOS PÚBLICOS | AB14: 1.3.19 - PRESTACIÓN DE SERVICIOS DE SALUD | AD14: 1.3.21 - RECURSOS DESTINADOS A LA FINANCIACIÓN DEL SISTEMA GENERAL DE SEGURIDAD SOCIAL EN SALUD | AF14: 1.3.22 - ADMINISTRACIÓN DEL SISTEMA DE SEGURIDAD SOCIAL EN SALUD | AH14: 1.3.24 - SUBVENCIONES POR COBRAR | AJ14: 1.3.25 - RECURSOS DE LOS FONDOS DE PENSIONES ADMINISTRADOS POR COLPENSIONES | AK14: 1.3.25 - RECURSOS DE LOS FONDOS DE RESERVAS DE PENSIONES | AL14: 1.3.32 - FONDO DE AHORRO Y ESTABILIZACIÓN PETROLERA | AN14: 1.3.33 - DERECHOS DE RECOMPRA DE CUENTAS POR COBRAR | AP14: 1.3.36 - SALDOS DISPONIBLES EN PATRIMONIOS AUTÓNOMOS Y OTROS RECURSOS ENTREGADOS EN ADMINISTRACIÓN | AR14: 1.3.37 - TRANSFERENCIAS POR COBRAR | AT14: 1.3.84 - OTRAS CUENTAS POR COBRAR | AV14: 1.3.85 - CUENTAS POR COBRAR DE DIFÍCIL RECAUDO | AX14: 1.3.86 - DETERIORO ACUMULADO DE CUENTAS POR COBRAR (CR) | AZ14: 1.3.87 - CUENTAS POR COBRAR A COSTO AMORTIZADO | BB14: 1.3.88 - DETERIORO ACUMULADO DE CUENTAS POR COBRAR A COSTO AMORTIZADO (CR) | BD14: 1.9.04 - PLAN DE ACTIVOS PARA BENEFICIOS POSEMPLEO | CN14: 2 - PASIVOS | CR14: 2.2 - EMISIÓN Y COLOCACIÓN DE TÍTULOS DE DEUDA | CV14: 2.3 - PRÉSTAMOS POR PAGAR | CZ14: 2.5.14.10 - CÁLCULO ACTUARIAL DE PENSIONES ACTUALES | DB14: 2.5.14.15 - CÁLCULO ACTUARIAL PASIVO PENSIONAL CONMUTADO | DD14: 3 - PATRIMONIO | DH14: 4 - INGRESOS | DL14: 4.1.05 - IMPUESTOS | DP14: 4.4 - TRANSFERENCIAS Y SUBVENCIONES | DT14: 5 - GASTOS | DV14: 5.5 - GASTO PÚBLICO SOCIAL | DZ14: 5.9 - CIERRE DE INGRESOS, GASTOS Y COSTOS | ED14: 6 - COSTOS DE VENTAS
A15: CÓDIGO | B15: ENTIDAD | C15: CGNDepartamento | D15: ACTIVO 2020 | E15: ACTIVO 2019 | F15: ABS Activos | G15: % Activos | H15: CUENTAS POR COBRAR 2020 | I15: CUENTAS POR COBRAR 2019 | J15: ABS CXC | K15: % CXC | L15: IMPUESTOS RETENCIÓN EN LA FUENTE Y ANTICIPOS DE IMPUESTOS 2020 | M15: IMPUESTOS RETENCIÓN EN LA FUENTE Y ANTICIPOS DE IMPUESTOS 2019 | N15: CONTRIBUCIONES TASAS E INGRESOS NO TRIBUTARIOS 2020 | O15: CONTRIBUCIONES TASAS E INGRESOS NO TRIBUTARIOS 2019 | P15: APORTES SOBRE LA NÓMINA 2020 | Q15: APORTES SOBRE LA NÓMINA 2019 | R15: RENTAS PARAFISCALES 2020 | S15: RENTAS PARAFISCALES 2019 | T15: REGALÍAS 2020 | U15: REGALÍAS 2019 | V15: VENTA DE BIENES 2020 | W15: VENTA DE BIENES 2019 | X15: PRESTACIÓN DE SERVICIOS 2020 | Y15: PRESTACIÓN DE SERVICIOS 2019 | Z15: PRESTACIÓN DE SERVICIOS PÚBLICOS 2020 | AA15: PRESTACIÓN DE SERVICIOS PÚBLICOS 2019 | AB15: PRESTACIÓN DE SERVICIOS DE SALUD 2020 | AC15: PRESTACIÓN DE SERVICIOS DE SALUD 2019 | AD15: RECURSOS DESTINADOS A LA FINANCIACIÓN DEL SISTEMA GENERAL DE SEGURIDAD SOCIAL EN SALUD 2020 | AE15: RECURSOS DESTINADOS A LA FINANCIACIÓN DEL SISTEMA GENERAL DE SEGURIDAD SOCIAL EN SALUD 2019 | AF15: ADMINISTRACIÓN DE LA SEGURIDAD SOCIAL EN SALUD 2020 | AG15: ADMINISTRACIÓN DE LA SEGURIDAD SOCIAL EN SALUD 2019 | AH15: SUBVENCIONES POR COBRAR 2020 | AI15: SUBVENCIONES POR COBRAR 2019 | AJ15: RECURSOS DE LOS FONDOS DE PENSIONES ADMINISTRADOS POR COLPENSIONES 2020 | AK15: RECURSOS DE LOS FONDOS DE PENSIONES ADMINISTRADOS POR COLPENSIONES 2019 | AL15: FONDO DE AHORRO Y ESTABILIZACIÓN PETROLERA 2020 | AM15: FONDO DE AHORRO Y ESTABILIZACIÓN PETROLERA 2019 | AN15: DERECHOS DE RECOMPRA DE CUENTAS POR COBRAR 2020 | AO15: DERECHOS DE RECOMPRA DE CUENTAS POR COBRAR 2019 | AP15: SALDOS DISPONIBLES EN PATRIMONIOS AUTÓNOMOS Y OTROS RECURSOS ENTREGADOS EN ADMINISTRACIÓN 2020 | AQ15: SALDOS DISPONIBLES EN PATRIMONIOS AUTÓNOMOS Y OTROS RECURSOS ENTREGADOS EN ADMINISTRACIÓN 2019 | AR15: TRANSFERENCIAS POR COBRAR 2020 | AS15: TRANSFERENCIAS POR COBRAR 2019 | AT15: OTRAS CUENTAS POR COBRAR 2020 | AU15: OTRAS CUENTAS POR COBRAR 2019 | AV15: CUENTAS POR COBRAR DE DIFÍCIL RECAUDO 2020 | AW15: CUENTAS POR COBRAR DE DIFÍCIL RECAUDO 2019 | AX15: DETERIORO ACUMULADO DE CUENTAS POR COBRAR (CR) 2020 | AY15: DETERIORO ACUMULADO DE CUENTAS POR COBRAR (CR) 2019 | AZ15: 1.3.86.01 - VENTA DE BIENES | BB15: 1.3.86.02 - PRESTACIÓN DE SERVICIOS | BD15: 1.3.86.03 - SERVICIO DE ENERGÍA | BF15: 1.3.86.04 - SERVICIO DE ACUEDUCTO | BH15: 1.3.86.05 - SERVICIO DE ALCANTARILLADO | BJ15: 1.3.86.06 - SERVICIO DE ASEO | BL15: 1.3.86.07 - SERVICIO DE GAS COMBUSTIBLE | BN15: 1.3.86.08 - SERVICIO DE TELECOMUNICACIONES | BP15: 1.3.86.09 - PRESTACIÓN DE SERVICIOS DE SALUD | BR15: 1.3.86.10 - ADMINISTRACIÓN DE LA SEGURIDAD SOCIAL EN SALUD | BT15: 1.3.86.11 - RECURSOS DE LOS FONDOS DE PENSIONES ADMINISTRADOS POR COLPENSIONES | BV15: 1.3.86.13 - IMPUESTOS | BX15: 1.3.86.14 - CONTRIBUCIONES TASAS E INGRESOS NO TRIBUTARIOS | BZ15: 1.3.86.15 - APORTES SOBRE LA NÓMINA | CB15: 1.3.86.17 - RECURSOS DESTINADOS A LA FINANCIACIÓN DEL SISTEMA GENERAL DE SEGURIDAD SOCIAL EN SALUD | CD15: 1.3.86.90 - OTRAS CUENTAS POR COBRAR | CF15: CUENTAS POR COBRAR A COSTO AMORTIZADO 2020 | CG15: CUENTAS POR COBRAR A COSTO AMORTIZADO 2019 | CH15: DETERIORO ACUMULADO DE CUENTAS POR COBRAR A COSTO AMORTIZADO (CR) 2020 | CI15: DETERIORO ACUMULADO DE CUENTAS POR COBRAR A COSTO AMORTIZADO (CR) 2019 | CJ15: PLAN DE ACTIVOS 2020 | CK15: PLAN DE ACTIVOS 2019 | CL15: ABS PlanActivos | CM15: % PlanActivos | CN15: PASIVO 2020 | CO15: PASIVO 2019 | CP15: ABS Pasivos | CQ15: % Pasivos | CR15: EMISIÓN Y COLOCACIÓN DE TÍTULOS DE DEUDA 2020 | CS15: EMISIÓN Y COLOCACIÓN DE TÍTULOS DE DEUDA 2019 | CT15: ABS Emision | CU15: % Emision | CV15: PRÉSTAMOS POR PAGAR 2020 | CW15: PRÉSTAMOS POR PAGAR 2019 | CX15: ABS Prestamos | CY15: % Prestamos | CZ15: CÁLCULO ACTUARIAL DE PENSIONES ACTUALES 2020 | DA15: CÁLCULO ACTUARIAL DE PENSIONES ACTUALES 2019 | DB15: 2.5.14.15 - CÁLCULO ACTUARIAL PASIVO PENSIONAL CONMUTADO | DD15: PATRIMONIO 2020 | DE15: PATRIMONIO 2019 | DF15: ABS Patrimonio | DG15: % Patrimonio | DH15: INGRESOS 2020 | DI15: INGRESOS 2019 | DJ15: ABS Ingresos | DK15: % Ingresos | DL15: IMPUESTOS 2020 | DM15: IMPUESTOS 2019 | DN15: ABS Impuestos | DO15: % Impuestos | DP15: TRANSFERENCIAS Y SUBVENCIONES 2020 | DQ15: TRANSFERENCIAS Y SUBVENCIONES 2019 | DR15: ABS Transferencias | DS15: % Transferencias | DT15: GASTOS 2020 | DU15: GASTOS 2019 | DV15: GASTO PÚBLICO SOCIAL 2020 | DW15: GASTO PÚBLICO SOCIAL 2019 | DX15: ABS GastoPublico | DY15: % GastoPublico | DZ15: CIERRE DE INGRESOS, GASTOS Y COSTOS 2020 | EA15: CIERRE DE INGRESOS, GASTOS Y COSTOS 2019 | EB15: ABS Resultado | EC15: % Resultado | ED15: COSTOS DE VENTAS 2020 | EE15: COSTOS DE VENTAS 2019 | EF15: GASTOS Y COSTOS 2020 | EG15: GASTOS Y COSTOS 2019 | EH15: ABS GastosyCostos | EI15: % Gastosycostos | EJ15: ENDEUDAMIENTO 2020 | EK15: ENDEUDAMIENTO 2019 | EL15: ABS Endeudamiento | EM15: % Endeudamiento | EN15: CALCULO ACTUARIAL 2020 | EO15: CALCULO ACTUARIAL 2019 | EP15: ABS CalculoActuarial | EQ15: % CalculoActuarial | ER15: DÉFICIT O SUPERAVIT PENSIONAL 2020 | ES15: DÉFICIT O SUPERAVIT PENSIONAL 2019 | ET15: ABS Deficit | EU15: % Deficit | EV15: CUENTAS POR COBRAR SIN CONTRAPRESTACIÓN 2020 | EW15: CUENTAS POR COBRAR SIN CONTRAPRESTACIÓN 2019 | EX15: ABS CXC Sin | EY15: % CXC Sin | EZ15: CUENTAS POR COBRAR CON CONTRAPRESTACIÓN 2020 | FA15: CUENTAS POR COBRAR CON CONTRAPRESTACIÓN 2019 | FB15: ABS CXC Con | FC15: % CXC Con | FD15: DETERIORO SIN CONTRAPRESTACIÓN 2020 | FE15: DETERIORO SIN CONTRAPRESTACIÓN 2019 | FF15: DETERIORO CON CONTRAPRESTACIÓN 2020 | FG15: DETERIORO CON CONTRAPRESTACIÓN 2019 | FH15: Confirmación CxC 2020 | FI15: Confirmación CxC 2019
A16: 20615000 | B16: Colegio de Boyacá | C16: Boyacá Entidades de gobierno | D16: 36208237557 | E16: 35877486120 | F16: =IFERROR(D16-E16,"-") -> 330751437 | G16: =IFERROR(IF(OR((F16/E16)*100>=200,(F16/E16)*100<=-200),"…",(F16/E16)*100),"-") -> 0.9218913385 | H16: 1884195613 | I16: 1396954933 | J16: =IFERROR(H16-I16,"-") -> 487240680 | K16: =IFERROR(IF(OR((J16/I16)*100>=200,(J16/I16)*100<=-200),"…",(J16/I16)*100),"-") -> 34.87876871 | L16: 0 | M16: 0 | N16: 0 | O16: 0 | P16: 0 | Q16: 0 | R16: 0 | S16: 0 | T16: 0 | U16: 0 | V16: 0 | W16: 0 | X16: 1034472161 | Y16: 1208298439 | Z16: 0 | AA16: 0 | AB16: 0 | AC16: 0 | AD16: 0 | AE16: 0 | AF16: 0 | AG16: 0 | AH16: 0 | AI16: 0 | AJ16: 0 | AK16: 0 | AL16: 0 | AM16: 0 | AN16: 0 | AO16: 0 | AP16: 0 | AQ16: 0 | AR16: 0 | AS16: 0 | AT16: 974880515 | AU16: 313813557 | AV16: 0 | AW16: 0 | AX16: 125157063 | AY16: 125157063 | AZ16: 0 | BA16: 0 | BB16: 125157063 | BC16: 125157063 | BD16: 0 | BE16: 0 | BF16: 0 | BG16: 0 | BH16: 0 | BI16: 0 | BJ16: 0 | BK16: 0 | BL16: 0 | BM16: 0 | BN16: 0 | BO16: 0 | BP16: 0 | BQ16: 0 | BR16: 0 | BS16: 0 | BT16: 0 | BU16: 0 | BV16: 0 | BW16: 0 | BX16: 0 | BY16: 0 | BZ16: 0 | CA16: 0 | CB16: 0 | CC16: 0 | CD16: 0 | CE16: 0 | CF16: 0 | CG16: 0 | CH16: 0 | CI16: 0 | CJ16: 0 | CK16: 0 | CL16: =IFERROR(CJ16-CK16,"-") -> 0 | CM16: =IFERROR(IF(OR((CL16/CK16)*100>=200,(CL16/CK16)*100<=-200),"…",(CL16/CK16)*100),"-") -> - | CN16: 2328975499 | CO16: 1829983839 | CP16: =IFERROR(CN16-CO16,"-") -> 498991660 | CQ16: =IFERROR(IF(OR((CP16/CO16)*100>=200,(CP16/CO16)*100<=-200),"…",(CP16/CO16)*100),"-") -> 27.26754463 | CR16: 0 | CS16: 0 | CT16: =IFERROR(CR16-CS16,"-") -> 0 | CU16: =IFERROR(IF(OR((CT16/CS16)*100>=200,(CT16/CS16)*100<=-200),"…",(CT16/CS16)*100),"-") -> - | CV16: 0 | CW16: 0 | CX16: =IFERROR(CV16-CW16,"-") -> 0 | CY16: =IFERROR(IF(OR((CX16/CW16)*100>=200,(CX16/CW16)*100<=-200),"…",(CX16/CW16)*100),"-") -> - | CZ16: 0 | DA16: 0 | DB16: 0 | DC16: 0 | DD16: 33879262058 | DE16: 34047502281 | DF16: =IFERROR(DD16-DE16,"-") -> -168240223 | DG16: =IFERROR(IF(OR((DF16/DE16)*100>=200,(DF16/DE16)*100<=-200),"…",(DF16/DE16)*100),"-") -> -0.4941338181 | DH16: 12294313546 | DI16: 11978072561 | DJ16: =IFERROR(DH16-DI16,"-") -> 316240985 | DK16: =IFERROR(IF(OR((DJ16/DI16)*100>=200,(DJ16/DI16)*100<=-200),"…",(DJ16/DI16)*100),"-") -> 2.640165881 | DL16: 0 | DM16: 0 | DN16: =IFERROR(DL16-DM16,"-") -> 0 | DO16: =IFERROR(IF(OR((DN16/DM16)*100>=200,(DN16/DM16)*100<=-200),"…",(DN16/DM16)*100),"-") -> - | DP16: 6952524000 | DQ16: 6704343120 | DR16: =IFERROR(DP16-DQ16,"-") -> 248180880 | DS16: =IFERROR(IF(OR((DR16/DQ16)*100>=200,(DR16/DQ16)*100<=-200),"…",(DR16/DQ16)*100),"-") -> 3.701792637 | DT16: 2473980078 | DU16: 1885607098 | DV16: 0 | DW16: 0 | DX16: =IFERROR(DV16-DW16,"-") -> 0 | DY16: =IFERROR(IF(OR((DX16/DW16)*100>=200,(DX16/DW16)*100<=-200),"…",(DX16/DW16)*100),"-") -> - | DZ16: -21547714 | EA16: -704788064 | EB16: =IFERROR(DZ16-EA16,"-") -> 683240350 | EC16: =IFERROR(IF(OR((EB16/EA16)*100>=200,(EB16/EA16)*100<=-200),"…",(EB16/EA16)*100),"-") -> -96.94266758 | ED16: 9820333468 | EE16: 10092465463 | EF16: =(DT16-DZ16)+ED16 -> 12315861260 | EG16: =(DU16-EA16)+EE16 -> 12682860625 | EH16: =IFERROR(EF16-EG16,"-") -> -366999365 | EI16: =IFERROR(IF(OR((EH16/EG16)*100>=200,(EH16/EG16)*100<=-200),"…",(EH16/EG16)*100),"-") -> -2.893663944 | EJ16: =CR16+CV16 -> 0 | EK16: =CS16+CW16 -> 0 | EL16: =IFERROR(EJ16-EK16,"-") -> 0 | EM16: =IFERROR(IF(OR((EL16/EK16)*100>=200,(EL16/EK16)*100<=-200),"…",(EL16/EK16)*100),"-") -> - | EN16: =CZ16+DB16 -> 0 | EO16: =DA16+DC16 -> 0 | EP16: =IFERROR(EN16-EO16,"-") -> 0 | EQ16: =IFERROR(IF(OR((EP16/EO16)*100>=200,(EP16/EO16)*100<=-200),"…",(EP16/EO16)*100),"-") -> - | ER16: =CJ16-EN16 -> 0 | ES16: =CK16-EO16 -> 0 | ET16: =IFERROR(ER16-ES16,"-") -> 0 | EU16: =IFERROR(IF(OR((ET16/ES16)*100>=200,(ET16/ES16)*100<=-200),"…",(ET16/ES16)*100),"-") -> - | EV16: =L16+N16+P16+AD16+AF16+AH16+AJ16+AR16+T16+AL16+R16-FD16 -> 0 | EW16: =M16+O16+Q16+AE16+AG16+AI16+AK16+AS16+U16+AM16+S16-FE16 -> 0 | EX16: =IFERROR(EV16-EW16,"-") -> 0 | EY16: =IFERROR(IF(OR((EX16/EW16)*100>=200,(EX16/EW16)*100<=-200),"…",(EX16/EW16)*100),"-") -> - | EZ16: =V16+X16+Z16+AB16+AP16+AT16+AV16+AN16+CF16-FF16 -> 1884195613 | FA16: =W16+Y16+AA16+AC16+AQ16+AU16+AW16+AO16+CG16-FG16 -> 1396954933 | FB16: =IFERROR(EZ16-FA16,"-") -> 487240680 | FC16: =IFERROR(IF(OR((FB16/FA16)*100>=200,(FB16/FA16)*100<=-200),"…",(FB16/FA16)*100),"-") -> 34.87876871 | FD16: =BR16+BT16+BV16+BX16+BZ16+CB16 -> 0 | FE16: =BS16+BU16+BW16+BY16+CA16+CC16 -> 0 | FF16: =AZ16+BB16+BD16+BF16+BH16+BJ16+BL16+BN16+BP16+CD16+CH16 -> 125157063 | FG16: =BA16+BC16+BE16+BG16+BI16+BK16+BM16+BO16+BQ16+CE16+CI16 -> 125157063 | FH16: =SUM(EV16,EZ16)=H16 -> TRUE | FI16: =SUM(EW16,FA16)=I16 -> TRUE | FJ16: =EV16+EZ16-FD16-FF16 -> 1759038550
A17: 37217000 | B17: E.S.P. Central Hidroeléctrica de Caldas S.A. | C17: Caldas Empresas que Cotizan | D17: 1.396873672e+12 | E17: 1.418151782e+12 | F17: =IFERROR(D17-E17,"-") -> -2.127810963e+10 | G17: =IFERROR(IF(OR((F17/E17)*100>=200,(F17/E17)*100<=-200),"…",(F17/E17)*100),"-") -> -1.500411303 | H17: 1.639050957e+11 | I17: 1.881974556e+11 | J17: =IFERROR(H17-I17,"-") -> -2.429235984e+10 | K17: =IFERROR(IF(OR((J17/I17)*100>=200,(J17/I17)*100<=-200),"…",(J17/I17)*100),"-") -> -12.90791088 | L17: 0 | M17: 0 | N17: 0 | O17: 0 | P17: 0 | Q17: 0 | R17: 0 | S17: 0 | T17: 0 | U17: 0 | V17: 0 | W17: 0 | X17: 790201064.1 | Y17: 1165627029 | Z17: 6661654268 | AA17: 2.627517866e+10 | AB17: 0 | AC17: 0 | AD17: 0 | AE17: 0 | AF17: 0 | AG17: 0 | AH17: 0 | AI17: 0 | AJ17: 0 | AK17: 0 | AL17: 0 | AM17: 0 | AN17: 0 | AO17: 0 | AP17: 0 | AQ17: 0 | AR17: 0 | AS17: 0 | AT17: 6799685698 | AU17: 2.999874007e+10 | AV17: 670429058 | AW17: 956941006 | AX17: 1362162288 | AY17: 6545284699 | AZ17: 0 | BA17: 0 | BB17: 0 | BC17: 0 | BD17: 0 | BE17: 0 | BF17: 0 | BG17: 0 | BH17: 0 | BI17: 0 | BJ17: 0 | BK17: 0 | BL17: 0 | BM17: 0 | BN17: 0 | BO17: 0 | BP17: 0 | BQ17: 0 | BR17: 0 | BS17: 0 | BT17: 0 | BU17: 0 | BV17: 0 | BW17: 0 | BX17: 0 | BY17: 0 | BZ17: 0 | CA17: 0 | CB17: 0 | CC17: 0 | CD17: 1362162288 | CE17: 6545284699 | CF17: 1.607728054e+11 | CG17: 1.417382023e+11 | CH17: 10427517485 | CI17: 5391948806 | CJ17: 1.17 | CK17: 0 | CL17: =IFERROR(CJ17-CK17,"-") -> 1.17 | CM17: =IFERROR(IF(OR((CL17/CK17)*100>=200,(CL17/CK17)*100<=-200),"…",(CL17/CK17)*100),"-") -> - | CN17: 9.176112764e+11 | CO17: 8.741911092e+11 | CP17: =IFERROR(CN17-CO17,"-") -> 4.342016728e+10 | CQ17: =IFERROR(IF(OR((CP17/CO17)*100>=200,(CP17/CO17)*100<=-200),"…",(CP17/CO17)*100),"-") -> 4.966896463 | CR17: 0 | CS17: 0 | CT17: =IFERROR(CR17-CS17,"-") -> 0 | CU17: =IFERROR(IF(OR((CT17/CS17)*100>=200,(CT17/CS17)*100<=-200),"…",(CT17/CS17)*100),"-") -> - | CV17: 382090797763 | CW17: 3.029744022e+11 | CX17: =IFERROR(CV17-CW17,"-") -> 7.911639553e+10 | CY17: =IFERROR(IF(OR((CX17/CW17)*100>=200,(CX17/CW17)*100<=-200),"…",(CX17/CW17)*100),"-") -> 26.1132277 | CZ17: 0 | DA17: 0 | DB17: 0 | DC17: 0 | DD17: 4.79262396e+11 | DE17: 5.439606729e+11 | DF17: =IFERROR(DD17-DE17,"-") -> -6.469827691e+10 | DG17: =IFERROR(IF(OR((DF17/DE17)*100>=200,(DF17/DE17)*100<=-200),"…",(DF17/DE17)*100),"-") -> -11.89392545 | DH17: 1.017848555e+12 | DI17: 7.899169903e+11 | DJ17: =IFERROR(DH17-DI17,"-") -> 227931564524 | DK17: =IFERROR(IF(OR((DJ17/DI17)*100>=200,(DJ17/DI17)*100<=-200),"…",(DJ17/DI17)*100),"-") -> 28.85512874 | DL17: 0 | DM17: 0 | DN17: =IFERROR(DL17-DM17,"-") -> 0 | DO17: =IFERROR(IF(OR((DN17/DM17)*100>=200,(DN17/DM17)*100<=-200),"…",(DN17/DM17)*100),"-") -> - | DP17: 47840940 | DQ17: 0 | DR17: =IFERROR(DP17-DQ17,"-") -> 47840940 | DS17: =IFERROR(IF(OR((DR17/DQ17)*100>=200,(DR17/DQ17)*100<=-200),"…",(DR17/DQ17)*100),"-") -> - | DT17: 4.397227923e+11 | DU17: 2.94969268e+11 | DV17: 0 | DW17: 0 | DX17: =IFERROR(DV17-DW17,"-") -> 0 | DY17: =IFERROR(IF(OR((DX17/DW17)*100>=200,(DX17/DW17)*100<=-200),"…",(DX17/DW17)*100),"-") -> - | DZ17: 7.561476998e+10 | EA17: 1.224253649e+11 | EB17: =IFERROR(DZ17-EA17,"-") -> -4.681059491e+10 | EC17: =IFERROR(IF(OR((EB17/EA17)*100>=200,(EB17/EA17)*100<=-200),"…",(EB17/EA17)*100),"-") -> -38.23602646 | ED17: 5.781257626e+11 | EE17: 4.949477223e+11 | EF17: 9.422337849e+11 | EG17: 6.674916254e+11 | EH17: =IFERROR(EF17-EG17,"-") -> 2.747421594e+11 | EI17: =IFERROR(IF(OR((EH17/EG17)*100>=200,(EH17/EG17)*100<=-200),"…",(EH17/EG17)*100),"-") -> 41.16039048 | EJ17: 382090797763 | EK17: 3.029744022e+11 | EL17: =IFERROR(EJ17-EK17,"-") -> 7.911639553e+10 | EM17: =IFERROR(IF(OR((EL17/EK17)*100>=200,(EL17/EK17)*100<=-200),"…",(EL17/EK17)*100),"-") -> 26.1132277 | EN17: 0 | EO17: 0 | EP17: =IFERROR(EN17-EO17,"-") -> 0 | EQ17: =IFERROR(IF(OR((EP17/EO17)*100>=200,(EP17/EO17)*100<=-200),"…",(EP17/EO17)*100),"-") -> - | ER17: 1.17 | ES17: 0 | ET17: =IFERROR(ER17-ES17,"-") -> 1.17 | EU17: =IFERROR(IF(OR((ET17/ES17)*100>=200,(ET17/ES17)*100<=-200),"…",(ET17/ES17)*100),"-") -> - | EV17: =L17+N17+P17+AD17+AF17+AH17+AJ17+AR17+T17+AL17+R17-FD17 -> 0 | EW17: =M17+O17+Q17+AE17+AG17+AI17+AK17+AS17+U17+AM17+S17-FE17 -> 0 | EX17: =IFERROR(EV17-EW17,"-") -> 0 | EY17: =IFERROR(IF(OR((EX17/EW17)*100>=200,(EX17/EW17)*100<=-200),"…",(EX17/EW17)*100),"-") -> - | EZ17: =V17+X17+Z17+AB17+AP17+AT17+AV17+AN17+CF17-FF17 -> 1.639050957e+11 | FA17: =W17+Y17+AA17+AC17+AQ17+AU17+AW17+AO17+CG17-FG17 -> 1.881974556e+11 | FB17: =IFERROR(EZ17-FA17,"-") -> -2.429235984e+10 | FC17: =IFERROR(IF(OR((FB17/FA17)*100>=200,(FB17/FA17)*100<=-200),"…",(FB17/FA17)*100),"-") -> -12.90791088 | FD17: 0 | FE17: 0 | FF17: 1.178967977e+10 | FG17: 1.193723351e+10 | FH17: =SUM(EV17,EZ17)=H17 -> TRUE | FI17: =SUM(EW17,FA17)=I17 -> TRUE | FJ17: =EV17+EZ17-FD17-FF17 -> 1.521154159e+11
A18: 37400000 | B18: E.S.P. Centrales Eléctricas de Norte de Santander S.A. | C18: Antioquia Empresas que Cotizan | D18: 1.443092959e+12 | E18: 1.33156041e+12 | F18: 1.115325497e+11 | G18: 8.376078841 | H18: 1.591532474e+11 | I18: 1.538204909e+11 | J18: 5332756508 | K18: 3.466870036 | L18: 0 | M18: 0 | N18: 0 | O18: 0 | P18: 0 | Q18: 0 | R18: 0 | S18: 0 | T18: 0 | U18: 0 | V18: 6308085970 | W18: 7892934532 | X18: 45946621.65 | Y18: 36252328.16 | Z18: 4361596966 | AA18: 5.342111132e+10 | AB18: 0 | AC18: 0 | AD18: 0 | AE18: 0 | AF18: 0 | AG18: 0 | AH18: 0 | AI18: 0 | AJ18: 0 | AK18: 0 | AL18: 0 | AM18: 0 | AN18: 0 | AO18: 0 | AP18: 0 | AQ18: 0 | AR18: 0 | AS18: 0 | AT18: 9717580040 | AU18: 1.02823851e+10 | AV18: 3308815698 | AW18: 3848792023 | AX18: 3263081547 | AY18: 4176777189 | AZ18: 0 | BA18: 0 | BB18: 0 | BC18: 0 | BD18: 0 | BE18: 0 | BF18: 0 | BG18: 0 | BH18: 0 | BI18: 0 | BJ18: 0 | BK18: 0 | BL18: 0 | BM18: 0 | BN18: 0 | BO18: 0 | BP18: 0 | BQ18: 0 | BR18: 0 | BS18: 0 | BT18: 0 | BU18: 0 | BV18: 0 | BW18: 0 | BX18: 0 | BY18: 0 | BZ18: 0 | CA18: 0 | CB18: 0 | CC18: 0 | CD18: 3263081547 | CE18: 4176777189 | CF18: 1.757273845e+11 | CG18: 1.109742831e+11 | CH18: 3.705308082e+10 | CI18: 2.845849033e+10 | CJ18: 0 | CK18: 0 | CL18: 0 | CM18: - | CN18: 1.096185251e+12 | CO18: 1.041397953e+12 | CP18: 5.478729833e+10 | CQ18: 5.260937779 | CR18: 0 | CS18: 0 | CT18: 0 | CU18: - | CV18: 4.962237728e+11 | CW18: 4.650112355e+11 | CX18: 3.121253725e+10 | CY18: 6.712211419 | CZ18: 0 | DA18: 0 | DB18: 0 | DC18: 0 | DD18: 3.469077084e+11 | DE18: 2.90162457e+11 | DF18: 5.67452514e+10 | DG18: 19.55637266 | DH18: 9.57660529e+11 | DI18: 8.721020131e+11 | DJ18: 8.55585159e+10 | DK18: 9.810608693 | DL18: 0 | DM18: 0 | DN18: 0 | DO18: - | DP18: 0 | DQ18: 0 | DR18: 0 | DS18: - | DT18: 3.021253719e+11 | DU18: 2.787234594e+11 | DV18: 0 | DW18: 0 | DX18: 0 | DY18: - | DZ18: 5.67452514e+10 | EA18: 6.070276808e+10 | EB18: -3957516682 | EC18: -6.519499533 | ED18: 6.555351571e+11 | EE18: 5.933785536e+11 | EF18: 9.009152776e+11 | EG18: 8.11399245e+11 | EH18: 8.951603259e+10 | EI18: 11.03230415 | EJ18: 4.962237728e+11 | EK18: 4.650112355e+11 | EL18: 3.121253725e+10 | EM18: 6.712211419 | EN18: 0 | EO18: 0 | EP18: 0 | EQ18: - | ER18: 0 | ES18: 0 | ET18: 0 | EU18: - | EV18: 0 | EW18: 0 | EX18: 0 | EY18: - | EZ18: 1.591532474e+11 | FA18: 1.538204909e+11 | FB18: 5332756508 | FC18: 3.466870036 | FD18: 0 | FE18: 0 | FF18: 4.031616237e+10 | FG18: 3.263526752e+10 | FH18: TRUE | FI18: TRUE | FJ18: 1.18837085e+11
A19: 38900000 | B19: E.S.P. Electrificadora Santander S.A. | C19: Antioquia Empresas que Cotizan | D19: 2.157172483e+12 | E19: 2.009885167e+12 | F19: 1.47287316e+11 | G19: 7.328145828 | H19: 1.922557902e+11 | I19: 1.808327271e+11 | J19: 1.142306311e+10 | K19: 6.316922433 | L19: 0 | M19: 0 | N19: 0 | O19: 0 | P19: 0 | Q19: 0 | R19: 0 | S19: 0 | T19: 0 | U19: 0 | V19: 0 | W19: 0 | X19: 449390213.9 | Y19: 271339021.9 | Z19: 3412930709 | AA19: 4.305610508e+10 | AB19: 0 | AC19: 0 | AD19: 0 | AE19: 0 | AF19: 0 | AG19: 0 | AH19: 0 | AI19: 0 | AJ19: 0 | AK19: 0 | AL19: 0 | AM19: 0 | AN19: 0 | AO19: 0 | AP19: 0 | AQ19: 0 | AR19: 0 | AS19: 0 | AT19: 1.584654745e+10 | AU19: 1.323756919e+10 | AV19: 4.65262592e+10 | AW19: 4.102743764e+10 | AX19: 7637760987 | AY19: 8230203888 | AZ19: 0 | BA19: 0 | BB19: 0 | BC19: 0 | BD19: 0 | BE19: 0 | BF19: 0 | BG19: 0 | BH19: 0 | BI19: 0 | BJ19: 0 | BK19: 0 | BL19: 0 | BM19: 0 | BN19: 0 | BO19: 0 | BP19: 0 | BQ19: 0 | BR19: 0 | BS19: 0 | BT19: 0 | BU19: 0 | BV19: 0 | BW19: 0 | BX19: 0 | BY19: 0 | BZ19: 0 | CA19: 0 | CB19: 0 | CC19: 0 | CD19: 7637760987 | CE19: 8230203888 | CF19: 2.358509417e+11 | CG19: 1.558350445e+11 | CH19: 1.021925181e+11 | CI19: 6.436456437e+10 | CJ19: 0 | CK19: 0 | CL19: 0 | CM19: - | CN19: 1.476371144e+12 | CO19: 1.315068005e+12 | CP19: 1.613031393e+11 | CQ19: 12.26576411 | CR19: 0 | CS19: 0 | CT19: 0 | CU19: - | CV19: 8.083860943e+11 | CW19: 6.690463979e+11 | CX19: 1.393396965e+11 | CY19: 20.82661187 | CZ19: 0 | DA19: 0 | DB19: 0 | DC19: 0 | DD19: 6.808013391e+11 | DE19: 6.948171623e+11 | DF19: -1.401582329e+10 | DG19: -2.017195897 | DH19: 1.371973463e+12 | DI19: 1.281616947e+12 | DJ19: 9.03565156e+10 | DK19: 7.050196692 | DL19: 0 | DM19: 0 | DN19: 0 | DO19: - | DP19: 28115232 | DQ19: 11714680 | DR19: 16400552 | DS19: 140 | DT19: 4.619812555e+11 | DU19: 4.371665092e+11 | DV19: 0 | DW19: 0 | DX19: 0 | DY19: - | DZ19: 134524460363 | EA19: 1.726456062e+11 | EB19: -3.812114579e+10 | EC19: -22.08057688 | ED19: 9.09992207e+11 | EE19: 8.444504378e+11 | EF19: 1.237449002e+12 | EG19: 1.108971341e+12 | EH19: 1.284776614e+11 | EI19: 11.58530042 | EJ19: 8.083860943e+11 | EK19: 6.690463979e+11 | EL19: 1.393396965e+11 | EM19: 20.82661187 | EN19: 0 | EO19: 0 | EP19: 0 | EQ19: - | ER19: 0 | ES19: 0 | ET19: 0 | EU19: - | EV19: 0 | EW19: 0 | EX19: 0 | EY19: - | EZ19: 1.922557902e+11 | FA19: 1.808327271e+11 | FB19: 1.142306311e+10 | FC19: 6.316922433 | FD19: 0 | FE19: 0 | FF19: 1.098302791e+11 | FG19: 7.259476826e+10 | FH19: TRUE | FI19: TRUE | FJ19: 8.242551119e+10
A20: 39363000 | B20: E.S.P. Empresa de Energía del Quindío S.A. | C20: Quindío Empresas que Cotizan | D20: 3.406983316e+11 | E20: 3.216946258e+11 | F20: 1.900370581e+10 | G20: 5.907374349 | H20: 4.859401373e+10 | I20: 3.928895907e+10 | J20: 9305054661 | K20: 23.68363754 | L20: 0 | M20: 0 | N20: 0 | O20: 0 | P20: 0 | Q20: 0 | R20: 0 | S20: 0 | T20: 0 | U20: 0 | V20: 489538 | W20: 0 | X20: 61904725.13 | Y20: 79096396.96 | Z20: 0 | AA20: 8500256363 | AB20: 0 | AC20: 0 | AD20: 0 | AE20: 0 | AF20: 0 | AG20: 0 | AH20: 0 | AI20: 0 | AJ20: 0 | AK20: 0 | AL20: 0 | AM20: 0 | AN20: 0 | AO20: 0 | AP20: 0 | AQ20: 0 | AR20: 0 | AS20: 0 | AT20: 4853881949 | AU20: 4168003854 | AV20: 810210853 | AW20: 616004269 | AX20: 2467025071 | AY20: 1471061380 | AZ20: 0 | BA20: 0 | BB20: 0 | BC20: 0 | BD20: 0 | BE20: 0 | BF20: 0 | BG20: 0 | BH20: 0 | BI20: 0 | BJ20: 0 | BK20: 0 | BL20: 0 | BM20: 0 | BN20: 0 | BO20: 0 | BP20: 0 | BQ20: 0 | BR20: 0 | BS20: 0 | BT20: 0 | BU20: 0 | BV20: 0 | BW20: 0 | BX20: 0 | BY20: 0 | BZ20: 0 | CA20: 0 | CB20: 0 | CC20: 0 | CD20: 2467025071 | CE20: 1471061380 | CF20: 4.742028917e+10 | CG20: 2.839290004e+10 | CH20: 2085737426 | CI20: 996240470 | CJ20: 0 | CK20: 0 | CL20: 0 | CM20: - | CN20: 1.748985441e+11 | CO20: 1.475592122e+11 | CP20: 2.733933187e+10 | CQ20: 18.52770251 | CR20: 0 | CS20: 0 | CT20: 0 | CU20: - | CV20: 7.868753548e+10 | CW20: 4.863879412e+10 | CX20: 3.004874136e+10 | CY20: 61.7793716 | CZ20: 0 | DA20: 0 | DB20: 0 | DC20: 0 | DD20: 1.657997875e+11 | DE20: 1.741354136e+11 | DF20: -8335626060 | DG20: -4.786864365 | DH20: 2.881795868e+11 | DI20: 2.61122799e+11 | DJ20: 2.705678778e+10 | DK20: 10.36171023 | DL20: 0 | DM20: 0 | DN20: 0 | DO20: - | DP20: 69714777 | DQ20: 69714777 | DR20: 0 | DS20: 0 | DT20: 1.037765303e+11 | DU20: 9.636653996e+10 | DV20: 0 | DW20: 0 | DX20: 0 | DY20: - | DZ20: 2.796060955e+10 | EA20: 3.529628985e+10 | EB20: -7335680295 | EC20: -20.78314839 | ED20: 1.844030565e+11 | EE20: 1.647562591e+11 | EF20: 2.602189773e+11 | EG20: 2.258265092e+11 | EH20: 3.439246807e+10 | EI20: 15.22959736 | EJ20: 7.868753548e+10 | EK20: 4.863879412e+10 | EL20: 3.004874136e+10 | EM20: 61.7793716 | EN20: 0 | EO20: 0 | EP20: 0 | EQ20: - | ER20: 0 | ES20: 0 | ET20: 0 | EU20: - | EV20: 0 | EW20: 0 | EX20: 0 | EY20: - | EZ20: 4.859401373e+10 | FA20: 3.928895907e+10 | FB20: 9305054661 | FC20: 23.68363754 | FD20: 0 | FE20: 0 | FF20: 4552762497 | FG20: 2467301850 | FH20: TRUE | FI20: TRUE | FJ20: 4.404125124e+10
A21: 45500000 | B21: Fiduciaria Central S.A. | C21: Antioquia Empresas que Cotizan | D21: 2.840212944e+10 | E21: 2.543633007e+10 | F21: 2965799363 | G21: 11.65969837 | H21: 4070240022 | I21: 2593498043 | J21: 1476741979 | K21: 56.94016169 | L21: 0 | M21: 0 | N21: 0 | O21: 0 | P21: 0 | Q21: 0 | R21: 0 | S21: 0 | T21: 0 | U21: 0 | V21: 0 | W21: 0 | X21: 4946900025 | Y21: 3704041991 | Z21: 0 | AA21: 0 | AB21: 0 | AC21: 0 | AD21: 0 | AE21: 0 | AF21: 0 | AG21: 0 | AH21: 0 | AI21: 0 | AJ21: 0 | AK21: 0 | AL21: 0 | AM21: 0 | AN21: 0 | AO21: 0 | AP21: 0 | AQ21: 0 | AR21: 0 | AS21: 0 | AT21: 855529658.2 | AU21: 325108109.5 | AV21: 0 | AW21: 0 | AX21: 1732189661 | AY21: 1435652057 | AZ21: 0 | BA21: 0 | BB21: 1719599694 | BC21: 1426344009 | BD21: 0 | BE21: 0 | BF21: 0 | BG21: 0 | BH21: 0 | BI21: 0 | BJ21: 0 | BK21: 0 | BL21: 0 | BM21: 0 | BN21: 0 | BO21: 0 | BP21: 0 | BQ21: 0 | BR21: 0 | BS21: 0 | BT21: 0 | BU21: 0 | BV21: 0 | BW21: 0 | BX21: 0 | BY21: 0 | BZ21: 0 | CA21: 0 | CB21: 0 | CC21: 0 | CD21: 12589966.95 | CE21: 9308048.22 | CF21: 0 | CG21: 0 | CH21: 0 | CI21: 0 | CJ21: 0 | CK21: 0 | CL21: 0 | CM21: - | CN21: 6075145904 | CO21: 4704929567 | CP21: 1370216337 | CQ21: 29.12299362 | CR21: 0 | CS21: 0 | CT21: 0 | CU21: - | CV21: 0 | CW21: 0 | CX21: 0 | CY21: - | CZ21: 0 | DA21: 0 | DB21: 0 | DC21: 0 | DD21: 2.232698353e+10 | DE21: 2.07314005e+10 | DF21: 1595583026 | DG21: 7.696455556 | DH21: 1.919969031e+10 | DI21: 1.838227793e+10 | DJ21: 817412384.4 | DK21: 4.446741518 | DL21: 0 | DM21: 0 | DN21: 0 | DO21: - | DP21: 0 | DQ21: 0 | DR21: 0 | DS21: - | DT21: 1.919969031e+10 | DU21: 1.838227793e+10 | DV21: 0 | DW21: 0 | DX21: 0 | DY21: - | DZ21: 1463508367 | EA21: 1475068028 | EB21: -11559661.19 | EC21: -0.7836697001 | ED21: 0 | EE21: 0 | EF21: 1.773618194e+10 | EG21: 1.69072099e+10 | EH21: 828972045.6 | EI21: 4.90306828 | EJ21: 0 | EK21: 0 | EL21: 0 | EM21: - | EN21: 0 | EO21: 0 | EP21: 0 | EQ21: - | ER21: 0 | ES21: 0 | ET21: 0 | EU21: - | EV21: 0 | EW21: 0 | EX21: 0 | EY21: - | EZ21: 4070240022 | FA21: 2593498043 | FB21: 1476741979 | FC21: 56.94016169 | FD21: 0 | FE21: 0 | FF21: 1732189661 | FG21: 1435652057 | FH21: TRUE | FI21: TRUE | FJ21: 2338050361
A22: 62200000 | B22: Turnariño Ltda. | C22: Nariño Empresas que No Cotizan | D22: 2.466301544e+10 | E22: 2.664893834e+10 | F22: -1985922899 | G22: -7.452165163 | H22: 1236151149 | I22: 3528731372 | J22: -2292580223 | K22: -64.96896424 | L22: 0 | M22: 0 | N22: 0 | O22: 0 | P22: 0 | Q22: 0 | R22: 0 | S22: 0 | T22: 0 | U22: 0 | V22: 0 | W22: 0 | X22: 1927375976 | Y22: 3946886769 | Z22: 0 | AA22: 0 | AB22: 0 | AC22: 0 | AD22: 0 | AE22: 0 | AF22: 0 | AG22: 0 | AH22: 0 | AI22: 0 | AJ22: 0 | AK22: 0 | AL22: 0 | AM22: 0 | AN22: 0 | AO22: 0 | AP22: 0 | AQ22: 0 | AR22: 0 | AS22: 0 | AT22: 4378350 | AU22: 4378350 | AV22: 66311246.04 | AW22: 66311246.04 | AX22: 761914423.4 | AY22: 488844993.5 | AZ22: 0 | BA22: 0 | BB22: 761914423.4 | BC22: 488844993.5 | BD22: 0 | BE22: 0 | BF22: 0 | BG22: 0 | BH22: 0 | BI22: 0 | BJ22: 0 | BK22: 0 | BL22: 0 | BM22: 0 | BN22: 0 | BO22: 0 | BP22: 0 | BQ22: 0 | BR22: 0 | BS22: 0 | BT22: 0 | BU22: 0 | BV22: 0 | BW22: 0 | BX22: 0 | BY22: 0 | BZ22: 0 | CA22: 0 | CB22: 0 | CC22: 0 | CD22: 0 | CE22: 0 | CF22: 0 | CG22: 0 | CH22: 0 | CI22: 0 | CJ22: 0 | CK22: 0 | CL22: 0 | CM22: - | CN22: 5450905989 | CO22: 6961191420 | CP22: -1510285431 | CQ22: -21.69578941 | CR22: 0 | CS22: 0 | CT22: 0 | CU22: - | CV22: 0 | CW22: 0 | CX22: 0 | CY22: - | CZ22: 0 | DA22: 0 | DB22: 0 | DC22: 0 | DD22: 1.921210946e+10 | DE22: 1.968774692e+10 | DF22: -475637468.5 | DG22: -2.415906047 | DH22: 2662451672 | DI22: 3528060134 | DJ22: -865608461.9 | DK22: -24.53496905 | DL22: 0 | DM22: 0 | DN22: 0 | DO22: - | DP22: 0 | DQ22: 0 | DR22: 0 | DS22: - | DT22: 2200625058 | DU22: 2908944086 | DV22: 0 | DW22: 0 | DX22: 0 | DY22: - | DZ22: -224916660.2 | EA22: 698972883 | EB22: -923889543.2 | EC22: -132.1781668 | ED22: 461826613.6 | EE22: 619116047.2 | EF22: 2887368332 | EG22: 2829087251 | EH22: 58281081.32 | EI22: 2.060066592 | EJ22: 0 | EK22: 0 | EL22: 0 | EM22: - | EN22: 0 | EO22: 0 | EP22: 0 | EQ22: - | ER22: 0 | ES22: 0 | ET22: 0 | EU22: - | EV22: 0 | EW22: 0 | EX22: 0 | EY22: - | EZ22: 1236151149 | FA22: 3528731372 | FB22: -2292580223 | FC22: -64.96896424 | FD22: 0 | FE22: 0 | FF22: 761914423.4 | FG22: 488844993.5 | FH22: TRUE | FI22: TRUE | FJ22: 474236725.2
A23: 64500000 | B23: Instituto Tecnológico de Soledad Atlántico | C23: Atlántico Entidades de gobierno | D23: 37952510266 | E23: 40601902580 | F23: -2649392314 | G23: -6.525291047 | H23: 3401655853 | I23: 9917118050 | J23: -6515462197 | K23: -65.69914933 | L23: 0 | M23: 0 | N23: 0 | O23: 0 | P23: 0 | Q23: 0 | R23: 0 | S23: 0 | T23: 0 | U23: 0 | V23: 0 | W23: 0 | X23: 1088765190 | Y23: 2073307731 | Z23: 0 | AA23: 0 | AB23: 0 | AC23: 0 | AD23: 0 | AE23: 0 | AF23: 0 | AG23: 0 | AH23: 0 | AI23: 0 | AJ23: 0 | AK23: 0 | AL23: 0 | AM23: 0 | AN23: 0 | AO23: 0 | AP23: 0 | AQ23: 0 | AR23: 1982159854 | AS23: 8200355982 | AT23: 330730809 | AU23: 397229526 | AV23: 16432233035 | AW23: 0 | AX23: 16432233035 | AY23: 753775189 | AZ23: 0 | BA23: 0 | BB23: 414665111 | BC23: 753775189 | BD23: 0 | BE23: 0 | BF23: 0 | BG23: 0 | BH23: 0 | BI23: 0 | BJ23: 0 | BK23: 0 | BL23: 0 | BM23: 0 | BN23: 0 | BO23: 0 | BP23: 0 | BQ23: 0 | BR23: 0 | BS23: 0 | BT23: 0 | BU23: 0 | BV23: 0 | BW23: 0 | BX23: 0 | BY23: 0 | BZ23: 0 | CA23: 0 | CB23: 0 | CC23: 0 | CD23: 16017567924 | CE23: 0 | CF23: 0 | CG23: 0 | CH23: 0 | CI23: 0 | CJ23: 0 | CK23: 0 | CL23: 0 | CM23: - | CN23: 2931003729 | CO23: 2298715662 | CP23: 632288067 | CQ23: 27.50614517 | CR23: 0 | CS23: 0 | CT23: 0 | CU23: - | CV23: 0 | CW23: 0 | CX23: 0 | CY23: - | CZ23: 0 | DA23: 0 | DB23: 0 | DC23: 0 | DD23: 35021506537 | DE23: 38303186918 | DF23: -3281680381 | DG23: -8.567643178 | DH23: 34805850679 | DI23: 30395661368 | DJ23: 4410189311 | DK23: 14.50927242 | DL23: 0 | DM23: 0 | DN23: 0 | DO23: - | DP23: 19571086643 | DQ23: 15543094122 | DR23: 4027992521 | DS23: 25.91499794 | DT23: 18670624714 | DU23: 14201126777 | DV23: 0 | DW23: 0 | DX23: 0 | DY23: - | DZ23: -2701626691 | EA23: 8130810757 | EB23: -10832437448 | EC23: -133.2270271 | ED23: 16135225965 | EE23: 16194534591 | EF23: 37507477370 | EG23: 22264850611 | EH23: 15242626759 | EI23: 68.46049419 | EJ23: 0 | EK23: 0 | EL23: 0 | EM23: - | EN23: 0 | EO23: 0 | EP23: 0 | EQ23: - | ER23: 0 | ES23: 0 | ET23: 0 | EU23: - | EV23: 1982159854 | EW23: 8200355982 | EX23: -6218196128 | EY23: -75.8283682 | EZ23: 1419495999 | FA23: 1716762068 | FB23: -297266069 | FC23: -17.31550775 | FD23: 0 | FE23: 0 | FF23: 16432233035 | FG23: 753775189 | FH23: TRUE | FI23: TRUE | FJ23: -13030577182
A24: 81400000 | B24: Federación Nacional de Departamentos | C24: Bogotá D.C. Entidades de gobierno | D24: 6.60144875e+11 | E24: 5.807796907e+11 | F24: 7.936518428e+10 | G24: 13.6652823 | H24: 4297033500 | I24: 4452030501 | J24: -154997001 | K24: -3.481490097 | L24: 0 | M24: 0 | N24: 0 | O24: 0 | P24: 0 | Q24: 0 | R24: 0 | S24: 0 | T24: 0 | U24: 0 | V24: 0 | W24: 0 | X24: 0 | Y24: 0 | Z24: 0 | AA24: 0 | AB24: 0 | AC24: 0 | AD24: 0 | AE24: 0 | AF24: 0 | AG24: 0 | AH24: 0 | AI24: 0 | AJ24: 0 | AK24: 0 | AL24: 0 | AM24: 0 | AN24: 0 | AO24: 0 | AP24: 0 | AQ24: 0 | AR24: 0 | AS24: 0 | AT24: 4297033500 | AU24: 4452030501 | AV24: 0 | AW24: 0 | AX24: 0 | AY24: 0 | AZ24: 0 | BA24: 0 | BB24: 0 | BC24: 0 | BD24: 0 | BE24: 0 | BF24: 0 | BG24: 0 | BH24: 0 | BI24: 0 | BJ24: 0 | BK24: 0 | BL24: 0 | BM24: 0 | BN24: 0 | BO24: 0 | BP24: 0 | BQ24: 0 | BR24: 0 | BS24: 0 | BT24: 0 | BU24: 0 | BV24: 0 | BW24: 0 | BX24: 0 | BY24: 0 | BZ24: 0 | CA24: 0 | CB24: 0 | CC24: 0 | CD24: 0 | CE24: 0 | CF24: 0 | CG24: 0 | CH24: 0 | CI24: 0 | CJ24: 0 | CK24: 0 | CL24: 0 | CM24: - | CN24: 6.370643908e+11 | CO24: 5.642135473e+11 | CP24: 7.285084355e+10 | CQ24: 12.91192739 | CR24: 0 | CS24: 0 | CT24: 0 | CU24: - | CV24: 33673373 | CW24: 19293879 | CX24: 14379494 | CY24: 74.52878708 | CZ24: 0 | DA24: 0 | DB24: 0 | DC24: 0 | DD24: 2.30804842e+10 | DE24: 1.656614347e+10 | DF24: 6514340728 | DG24: 39.32321811 | DH24: 4.070992797e+10 | DI24: 3.710981038e+10 | DJ24: 3600117589 | DK24: 9.701255683 | DL24: 0 | DM24: 0 | DN24: 0 | DO24: - | DP24: 50691661 | DQ24: 0 | DR24: 50691661 | DS24: - | DT24: 4.070992797e+10 | DU24: 3.710981038e+10 | DV24: 0 | DW24: 0 | DX24: 0 | DY24: - | DZ24: 6572611755 | EA24: 5654656568 | EB24: 917955187.1 | EC24: 16.23361518 | ED24: 0 | EE24: 0 | EF24: 3.413731622e+10 | EG24: 3.145515382e+10 | EH24: 2682162402 | EI24: 8.526940983 | EJ24: 33673373 | EK24: 19293879 | EL24: 14379494 | EM24: 74.52878708 | EN24: 0 | EO24: 0 | EP24: 0 | EQ24: - | ER24: 0 | ES24: 0 | ET24: 0 | EU24: - | EV24: 0 | EW24: 0 | EX24: 0 | EY24: - | EZ24: 4297033500 | FA24: 4452030501 | FB24: -154997001 | FC24: -3.481490097 | FD24: 0 | FE24: 0 | FF24: 0 | FG24: 0 | FH24: TRUE | FI24: TRUE
A25: 82900000 | B25: E.S.E. Hospital Local Nueva Granada | C25: Magdalena Empresas que No Cotizan | D25: 1848837307 | E25: 1559248796 | F25: 289588511 | G25: 18.57230942 | H25: 880201099 | I25: 645858476 | J25: 234342623 | K25: 36.28389681 | L25: 0 | M25: 0 | N25: 0 | O25: 0 | P25: 0 | Q25: 0 | R25: 0 | S25: 0 | T25: 0 | U25: 0 | V25: 0 | W25: 0 | X25: 0 | Y25: 0 | Z25: 0 | AA25: 0 | AB25: 880201099 | AC25: 645858476 | AD25: 0 | AE25: 0 | AF25: 0 | AG25: 0 | AH25: 0 | AI25: 0 | AJ25: 0 | AK25: 0 | AL25: 0 | AM25: 0 | AN25: 0 | AO25: 0 | AP25: 0 | AQ25: 0 | AR25: 0 | AS25: 0 | AT25: 0 | AU25: 0 | AV25: 0 | AW25: 0 | AX25: 0 | AY25: 0 | AZ25: 0 | BA25: 0 | BB25: 0 | BC25: 0 | BD25: 0 | BE25: 0 | BF25: 0 | BG25: 0 | BH25: 0 | BI25: 0 | BJ25: 0 | BK25: 0 | BL25: 0 | BM25: 0 | BN25: 0 | BO25: 0 | BP25: 0 | BQ25: 0 | BR25: 0 | BS25: 0 | BT25: 0 | BU25: 0 | BV25: 0 | BW25: 0 | BX25: 0 | BY25: 0 | BZ25: 0 | CA25: 0 | CB25: 0 | CC25: 0 | CD25: 0 | CE25: 0 | CF25: 0 | CG25: 0 | CH25: 0 | CI25: 0 | CJ25: 0 | CK25: 0 | CL25: 0 | CM25: - | CN25: 404778392 | CO25: 387079658 | CP25: 17698734 | CQ25: 4.572375126 | CR25: 0 | CS25: 0 | CT25: 0 | CU25: - | CV25: 0 | CW25: 0 | CX25: 0 | CY25: - | CZ25: 0 | DA25: 0 | DB25: 0 | DC25: 0 | DD25: 1444058915 | DE25: 1172169138 | DF25: 271889777 | DG25: 23.19543897 | DH25: 3509333887 | DI25: 3262196439 | DJ25: 247137448 | DK25: 7.575799086 | DL25: 0 | DM25: 0 | DN25: 0 | DO25: - | DP25: 116297000 | DQ25: 94558937 | DR25: 21738063 | DS25: 22.98890374 | DT25: 2069285479 | DU25: 2176094219 | DV25: 0 | DW25: 0 | DX25: 0 | DY25: - | DZ25: 210997911 | EA25: 100913144 | EB25: 110084767 | EC25: 109.0886307 | ED25: 1440048408 | EE25: 1086102220 | EF25: 3298335976 | EG25: 3161283295 | EH25: 137052681 | EI25: 4.335349547 | EJ25: 0 | EK25: 0 | EL25: 0 | EM25: - | EN25: 0 | EO25: 0 | EP25: 0 | EQ25: - | ER25: 0 | ES25: 0 | ET25: 0 | EU25: - | EV25: 0 | EW25: 0 | EX25: 0 | EY25: - | EZ25: 880201099 | FA25: 645858476 | FB25: 234342623 | FC25: 36.28389681 | FD25: 0 | FE25: 0 | FF25: 0 | FG25: 0 | FH25: TRUE | FI25: TRUE
A26: 83000000 | B26: E.S.E. Hospital Local San Juan de Puerto Rico - Tiquisio | C26: Bolívar Empresas que No Cotizan | D26: 2385310173 | E26: 1607415718 | F26: 777894455 | G26: 48.39410529 | H26: 892971522 | I26: 420273869 | J26: 472697653 | K26: 112.4737196 | L26: 0 | M26: 0 | N26: 0 | O26: 0 | P26: 0 | Q26: 0 | R26: 0 | S26: 0 | T26: 0 | U26: 0 | V26: 0 | W26: 0 | X26: 0 | Y26: 0 | Z26: 0 | AA26: 0 | AB26: 763254216 | AC26: 348505439 | AD26: 0 | AE26: 0 | AF26: 0 | AG26: 0 | AH26: 0 | AI26: 0 | AJ26: 0 | AK26: 0 | AL26: 0 | AM26: 0 | AN26: 0 | AO26: 0 | AP26: 0 | AQ26: 0 | AR26: 0 | AS26: 0 | AT26: 42832837 | AU26: 0 | AV26: 96538299 | AW26: 127937216 | AX26: 9653830 | AY26: 56168786 | AZ26: 0 | BA26: 0 | BB26: 0 | BC26: 0 | BD26: 0 | BE26: 0 | BF26: 0 | BG26: 0 | BH26: 0 | BI26: 0 | BJ26: 0 | BK26: 0 | BL26: 0 | BM26: 0 | BN26: 0 | BO26: 0 | BP26: 9653830 | BQ26: 56168786 | BR26: 0 | BS26: 0 | BT26: 0 | BU26: 0 | BV26: 0 | BW26: 0 | BX26: 0 | BY26: 0 | BZ26: 0 | CA26: 0 | CB26: 0 | CC26: 0 | CD26: 0 | CE26: 0 | CF26: 0 | CG26: 0 | CH26: 0 | CI26: 0 | CJ26: 0 | CK26: 0 | CL26: 0 | CM26: - | CN26: 965990688 | CO26: 407434801 | CP26: 558555887 | CQ26: 137.0908635 | CR26: 0 | CS26: 0 | CT26: 0 | CU26: - | CV26: 0 | CW26: 0 | CX26: 0 | CY26: - | CZ26: 0 | DA26: 0 | DB26: 0 | DC26: 0 | DD26: 1419319485 | DE26: 1199980917 | DF26: 219338568 | DG26: 18.27850467 | DH26: 818872670 | DI26: 2753650289 | DJ26: -1934777619 | DK26: -70.26228518 | DL26: 0 | DM26: 0 | DN26: 0 | DO26: - | DP26: 0 | DQ26: 147012987 | DR26: -147012987 | DS26: -100 | DT26: 186376719 | DU26: 1087793311 | DV26: 0 | DW26: 0 | DX26: 0 | DY26: - | DZ26: 1 | EA26: 161615074 | EB26: -161615073 | EC26: -99.99999938 | ED26: 632495951 | EE26: 1665856978 | EF26: 818872669 | EG26: 2592035215 | EH26: -1773162546 | EI26: -68.40811945 | EJ26: 0 | EK26: 0 | EL26: 0 | EM26: - | EN26: 0 | EO26: 0 | EP26: 0 | EQ26: - | ER26: 0 | ES26: 0 | ET26: 0 | EU26: - | EV26: 0 | EW26: 0 | EX26: 0 | EY26: - | EZ26: 892971522 | FA26: 420273869 | FB26: 472697653 | FC26: 112.4737196 | FD26: 0 | FE26: 0 | FF26: 9653830 | FG26: 56168786 | FH26: TRUE | FI26: TRUE
A27: 83200000 | B27: Terminal de Transportes del Socorro S.A. | C27: Santander Empresas que No Cotizan | D27: 1495948912 | E27: 1575944516 | F27: -79995603.15 | G27: -5.076041851 | H27: 30342843 | I27: 30266595 | J27: 76248 | K27: 0.2519213014 | L27: 0 | M27: 0 | N27: 0 | O27: 0 | P27: 0 | Q27: 0 | R27: 0 | S27: 0 | T27: 0 | U27: 0 | V27: 0 | W27: 0 | X27: 1395481 | Y27: 1612448 | Z27: 0 | AA27: 0 | AB27: 0 | AC27: 0 | AD27: 0 | AE27: 0 | AF27: 0 | AG27: 0 | AH27: 0 | AI27: 0 | AJ27: 0 | AK27: 0 | AL27: 0 | AM27: 0 | AN27: 0 | AO27: 0 | AP27: 0 | AQ27: 0 | AR27: 0 | AS27: 0 | AT27: 28947362 | AU27: 28654147 | AV27: 0 | AW27: 0 | AX27: 0 | AY27: 0 | AZ27: 0 | BA27: 0 | BB27: 0 | BC27: 0 | BD27: 0 | BE27: 0 | BF27: 0 | BG27: 0 | BH27: 0 | BI27: 0 | BJ27: 0 | BK27: 0 | BL27: 0 | BM27: 0 | BN27: 0 | BO27: 0 | BP27: 0 | BQ27: 0 | BR27: 0 | BS27: 0 | BT27: 0 | BU27: 0 | BV27: 0 | BW27: 0 | BX27: 0 | BY27: 0 | BZ27: 0 | CA27: 0 | CB27: 0 | CC27: 0 | CD27: 0 | CE27: 0 | CF27: 0 | CG27: 0 | CH27: 0 | CI27: 0 | CJ27: 0 | CK27: 0 | CL27: 0 | CM27: - | CN27: 120005673.1 | CO27: 78971030.36 | CP27: 41034642.7 | CQ27: 51.96164025 | CR27: 0 | CS27: 0 | CT27: 0 | CU27: - | CV27: 0 | CW27: 0 | CX27: 0 | CY27: - | CZ27: 0 | DA27: 0 | DB27: 0 | DC27: 0 | DD27: 1375943239 | DE27: 1496973485 | DF27: -121030245.9 | DG27: -8.084995964 | DH27: 234491101 | DI27: 634892167 | DJ27: -400401066 | DK27: -63.06599559 | DL27: 0 | DM27: 0 | DN27: 0 | DO27: - | DP27: 0 | DQ27: 0 | DR27: 0 | DS27: - | DT27: 147715484 | DU27: 634892167 | DV27: 0 | DW27: 0 | DX27: 0 | DY27: - | DZ27: -85599246.02 | EA27: 89504648.94 | EB27: -175103895 | EC27: -195.636648 | ED27: 86775617 | EE27: 0 | EF27: 320090347 | EG27: 545387518.1 | EH27: -225297171.1 | EI27: -41.30955763 | EJ27: 0 | EK27: 0 | EL27: 0 | EM27: - | EN27: 0 | EO27: 0 | EP27: 0 | EQ27: - | ER27: 0 | ES27: 0 | ET27: 0 | EU27: - | EV27: 0 | EW27: 0 | EX27: 0 | EY27: - | EZ27: 30342843 | FA27: 30266595 | FB27: 76248 | FC27: 0.2519213014 | FD27: 0 | FE27: 0 | FF27: 0 | FG27: 0 | FH27: TRUE | FI27: TRUE
A28: 83300000 | B28: Sociedad Terminal de Transporte Terrestre de Ipiales S.A. | C28: Nariño Empresas que No Cotizan | D28: 15319388504 | E28: 15750961904 | F28: -431573400 | G28: -2.739981232 | H28: 64670635 | I28: 27097512 | J28: 37573123 | K28: 138.6589403 | L28: 0 | M28: 0 | N28: 0 | O28: 0 | P28: 0 | Q28: 0 | R28: 0 | S28: 0 | T28: 0 | U28: 0 | V28: 0 | W28: 0 | X28: 0 | Y28: 0 | Z28: 0 | AA28: 0 | AB28: 0 | AC28: 0 | AD28: 0 | AE28: 0 | AF28: 0 | AG28: 0 | AH28: 0 | AI28: 0 | AJ28: 0 | AK28: 0 | AL28: 0 | AM28: 0 | AN28: 0 | AO28: 0 | AP28: 0 | AQ28: 0 | AR28: 0 | AS28: 0 | AT28: 64670635 | AU28: 27097512 | AV28: 0 | AW28: 0 | AX28: 0 | AY28: 0 | AZ28: 0 | BA28: 0 | BB28: 0 | BC28: 0 | BD28: 0 | BE28: 0 | BF28: 0 | BG28: 0 | BH28: 0 | BI28: 0 | BJ28: 0 | BK28: 0 | BL28: 0 | BM28: 0 | BN28: 0 | BO28: 0 | BP28: 0 | BQ28: 0 | BR28: 0 | BS28: 0 | BT28: 0 | BU28: 0 | BV28: 0 | BW28: 0 | BX28: 0 | BY28: 0 | BZ28: 0 | CA28: 0 | CB28: 0 | CC28: 0 | CD28: 0 | CE28: 0 | CF28: 0 | CG28: 0 | CH28: 0 | CI28: 0 | CJ28: 0 | CK28: 0 | CL28: 0 | CM28: - | CN28: 922268364 | CO28: 1075637381 | CP28: -153369017 | CQ28: -14.2584313 | CR28: 0 | CS28: 0 | CT28: 0 | CU28: - | CV28: 66666664 | CW28: 0 | CX28: 66666664 | CY28: - | CZ28: 0 | DA28: 0 | DB28: 0 | DC28: 0 | DD28: 14397120140 | DE28: 14675324523 | DF28: -278204383 | DG28: -1.895729001 | DH28: 1270386775 | DI28: 2506932532 | DJ28: -1236545757 | DK28: -49.32505128 | DL28: 0 | DM28: 0 | DN28: 0 | DO28: - | DP28: 0 | DQ28: 0 | DR28: 0 | DS28: - | DT28: 1270386775 | DU28: 2506932532 | DV28: 0 | DW28: 0 | DX28: 0 | DY28: - | DZ28: -523122402 | EA28: 70444576 | EB28: -593566978 | EC28: … | ED28: 0 | EE28: 0 | EF28: 1793509177 | EG28: 2436487956 | EH28: -642978779 | EI28: -26.38957346 | EJ28: 66666664 | EK28: 0 | EL28: 66666664 | EM28: - | EN28: 0 | EO28: 0 | EP28: 0 | EQ28: - | ER28: 0 | ES28: 0 | ET28: 0 | EU28: - | EV28: 0 | EW28: 0 | EX28: 0 | EY28: - | EZ28: 64670635 | FA28: 27097512 | FB28: 37573123 | FC28: 138.6589403 | FD28: 0 | FE28: 0 | FF28: 0 | FG28: 0 | FH28: TRUE | FI28: TRUE
A29: 83400000 | B29: E.S.E. Hospital San Miguel - Santander | C29: Santander Empresas que No Cotizan | D29: 768078402 | E29: 613638068 | F29: 154440334 | G29: 25.16798453 | H29: 110950387 | I29: 106612284 | J29: 4338103 | K29: 4.069046115 | L29: 0 | M29: 0 | N29: 0 | O29: 0 | P29: 0 | Q29: 0 | R29: 0 | S29: 0 | T29: 0 | U29: 0 | V29: 0 | W29: 0 | X29: 0 | Y29: 0 | Z29: 0 | AA29: 0 | AB29: 103887015 | AC29: 99517710 | AD29: 0 | AE29: 0 | AF29: 0 | AG29: 0 | AH29: 0 | AI29: 7069474 | AJ29: 0 | AK29: 0 | AL29: 0 | AM29: 0 | AN29: 0 | AO29: 0 | AP29: 0 | AQ29: 0 | AR29: 0 | AS29: 0 | AT29: 7252117 | AU29: 25100 | AV29: 0 | AW29: 0 | AX29: 188745 | AY29: 0 | AZ29: 0 | BA29: 0 | BB29: 0 | BC29: 0 | BD29: 0 | BE29: 0 | BF29: 0 | BG29: 0 | BH29: 0 | BI29: 0 | BJ29: 0 | BK29: 0 | BL29: 0 | BM29: 0 | BN29: 0 | BO29: 0 | BP29: 188745 | BQ29: 0 | BR29: 0 | BS29: 0 | BT29: 0 | BU29: 0 | BV29: 0 | BW29: 0 | BX29: 0 | BY29: 0 | BZ29: 0 | CA29: 0 | CB29: 0 | CC29: 0 | CD29: 0 | CE29: 0 | CF29: 0 | CG29: 0 | CH29: 0 | CI29: 0 | CJ29: 0 | CK29: 0 | CL29: 0 | CM29: - | CN29: 53247510 | CO29: 58706071 | CP29: -5458561 | CQ29: -9.298120121 | CR29: 0 | CS29: 0 | CT29: 0 | CU29: - | CV29: 0 | CW29: 0 | CX29: 0 | CY29: - | CZ29: 0 | DA29: 0 | DB29: 0 | DC29: 0 | DD29: 714830892 | DE29: 554931997 | DF29: 159898895 | DG29: 28.81414225 | DH29: 812034401 | DI29: 774194416 | DJ29: 37839985 | DK29: 4.887659252 | DL29: 0 | DM29: 0 | DN29: 0 | DO29: - | DP29: 235028041 | DQ29: 243291876 | DR29: -8263835 | DS29: -3.396675276 | DT29: 420171190 | DU29: 439905269 | DV29: 0 | DW29: 0 | DX29: 0 | DY29: - | DZ29: 160247894 | EA29: 51662783 | EB29: 108585111 | EC29: … | ED29: 391863211 | EE29: 334289147 | EF29: 651786507 | EG29: 722531633 | EH29: -70745126 | EI29: -9.791284252 | EJ29: 0 | EK29: 0 | EL29: 0 | EM29: - | EN29: 0 | EO29: 0 | EP29: 0 | EQ29: - | ER29: 0 | ES29: 0 | ET29: 0 | EU29: - | EV29: 0 | EW29: 7069474 | EX29: -7069474 | EY29: -100 | EZ29: 110950387 | FA29: 99542810 | FB29: 11407577 | FC29: 11.45997084 | FD29: 0 | FE29: 0 | FF29: 188745 | FG29: 0 | FH29: TRUE | FI29: TRUE
A30: 83500000 | B30: E.S.E. Hospital María Angelines - Puerto Leguízamo | C30: Putumayo Empresas que No Cotizan | D30: 1.596392751e+10 | E30: 1.382870766e+10 | F30: 2135219847 | G30: 15.44048728 | H30: 4076012887 | I30: 2731885423 | J30: 1344127464 | K30: 49.20145818 | L30: 0 | M30: 0 | N30: 0 | O30: 0 | P30: 0 | Q30: 0 | R30: 0 | S30: 0 | T30: 0 | U30: 0 | V30: 0 | W30: 0 | X30: 0 | Y30: 0 | Z30: 0 | AA30: 0 | AB30: 3574514334 | AC30: 2108828099 | AD30: 0 | AE30: 0 | AF30: 0 | AG30: 0 | AH30: 0 | AI30: 0 | AJ30: 0 | AK30: 0 | AL30: 0 | AM30: 0 | AN30: 0 | AO30: 0 | AP30: 0 | AQ30: 0 | AR30: 0 | AS30: 0 | AT30: 866171146.5 | AU30: 935950452.3 | AV30: 999422145.8 | AW30: 999422145.8 | AX30: 1364094740 | AY30: 1312315274 | AZ30: 0 | BA30: 0 | BB30: 0 | BC30: 0 | BD30: 0 | BE30: 0 | BF30: 0 | BG30: 0 | BH30: 0 | BI30: 0 | BJ30: 0 | BK30: 0 | BL30: 0 | BM30: 0 | BN30: 0 | BO30: 0 | BP30: 1364094740 | BQ30: 1312315274 | BR30: 0 | BS30: 0 | BT30: 0 | BU30: 0 | BV30: 0 | BW30: 0 | BX30: 0 | BY30: 0 | BZ30: 0 | CA30: 0 | CB30: 0 | CC30: 0 | CD30: 0 | CE30: 0 | CF30: 0 | CG30: 0 | CH30: 0 | CI30: 0 | CJ30: 0 | CK30: 0 | CL30: 0 | CM30: - | CN30: 2421289681 | CO30: 1007160734 | CP30: 1414128947 | CQ30: 140.4074742 | CR30: 0 | CS30: 0 | CT30: 0 | CU30: - | CV30: 0 | CW30: 0 | CX30: 0 | CY30: - | CZ30: 0 | DA30: 0 | DB30: 0 | DC30: 0 | DD30: 1.354263783e+10 | DE30: 1.282154693e+10 | DF30: 721090899.9 | DG30: 5.62405538 | DH30: 9774341990 | DI30: 8889879002 | DJ30: 884462988 | DK30: 9.949100407 | DL30: 0 | DM30: 0 | DN30: 0 | DO30: - | DP30: 1205021275 | DQ30: 267384347 | DR30: 937636928 | DS30: … | DT30: 3556689122 | DU30: 3854097341 | DV30: 0 | DW30: 0 | DX30: 0 | DY30: - | DZ30: 721090900 | EA30: 1191713936 | EB30: -470623036.1 | EC30: -39.49127571 | ED30: 6217652867 | EE30: 5035781660 | EF30: 9053251090 | EG30: 7698165066 | EH30: 1355086024 | EI30: 17.60271458 | EJ30: 0 | EK30: 0 | EL30: 0 | EM30: - | EN30: 0 | EO30: 0 | EP30: 0 | EQ30: - | ER30: 0 | ES30: 0 | ET30: 0 | EU30: - | EV30: 0 | EW30: 0 | EX30: 0 | EY30: - | EZ30: 4076012887 | FA30: 2731885423 | FB30: 1344127464 | FC30: 49.20145818 | FD30: 0 | FE30: 0 | FF30: 1364094740 | FG30: 1312315274 | FH30: TRUE | FI30: TRUE
A31: 84100000 | B31: Empresa Departamental para la Salud | C31: Caldas Empresas que No Cotizan | D31: 208631842 | E31: 194782908 | F31: 13848934 | G31: 7.109932869 | H31: 9019914 | I31: 13035659 | J31: -4015745 | K31: -30.80584572 | L31: 0 | M31: 0 | N31: 0 | O31: 0 | P31: 0 | Q31: 0 | R31: 0 | S31: 0 | T31: 0 | U31: 0 | V31: 0 | W31: 0 | X31: 9019914 | Y31: 13035659 | Z31: 0 | AA31: 0 | AB31: 0 | AC31: 0 | AD31: 0 | AE31: 0 | AF31: 0 | AG31: 0 | AH31: 0 | AI31: 0 | AJ31: 0 | AK31: 0 | AL31: 0 | AM31: 0 | AN31: 0 | AO31: 0 | AP31: 0 | AQ31: 0 | AR31: 0 | AS31: 0 | AT31: 0 | AU31: 0 | AV31: 0 | AW31: 0 | AX31: 0 | AY31: 0 | AZ31: 0 | BA31: 0 | BB31: 0 | BC31: 0 | BD31: 0 | BE31: 0 | BF31: 0 | BG31: 0 | BH31: 0 | BI31: 0 | BJ31: 0 | BK31: 0 | BL31: 0 | BM31: 0 | BN31: 0 | BO31: 0 | BP31: 0 | BQ31: 0 | BR31: 0 | BS31: 0 | BT31: 0 | BU31: 0 | BV31: 0 | BW31: 0 | BX31: 0 | BY31: 0 | BZ31: 0 | CA31: 0 | CB31: 0 | CC31: 0 | CD31: 0 | CE31: 0 | CF31: 0 | CG31: 0 | CH31: 0 | CI31: 0 | CJ31: 0 | CK31: 0 | CL31: 0 | CM31: - | CN31: 140268110 | CO31: 140265935 | CP31: 2175 | CQ31: 0.001550625959 | CR31: 0 | CS31: 0 | CT31: 0 | CU31: - | CV31: 0 | CW31: 0 | CX31: 0 | CY31: - | CZ31: 0 | DA31: 0 | DB31: 0 | DC31: 0 | DD31: 68363732 | DE31: 54516973 | DF31: 13846759 | DG31: 25.39898721 | DH31: 393942953 | DI31: 380659187 | DJ31: 13283766 | DK31: 3.489674347 | DL31: 0 | DM31: 0 | DN31: 0 | DO31: - | DP31: 0 | DQ31: 0 | DR31: 0 | DS31: - | DT31: 393942953 | DU31: 380659187 | DV31: 0 | DW31: 0 | DX31: 0 | DY31: - | DZ31: 13846759 | EA31: -9526060 | EB31: 23372819 | EC31: … | ED31: 0 | EE31: 0 | EF31: 380096194 | EG31: 390185247 | EH31: -10089053 | EI31: -2.585708475 | EJ31: 0 | EK31: 0 | EL31: 0 | EM31: - | EN31: 0 | EO31: 0 | EP31: 0 | EQ31: - | ER31: 0 | ES31: 0 | ET31: 0 | EU31: - | EV31: 0 | EW31: 0 | EX31: 0 | EY31: - | EZ31: 9019914 | FA31: 13035659 | FB31: -4015745 | FC31: -30.80584572 | FD31: 0 | FE31: 0 | FF31: 0 | FG31: 0 | FH31: TRUE | FI31: TRUE
A32: 84200000 | B32: E.S.E. Camu del Municipio de La Apartada | C32: Córdoba Empresas que No Cotizan | D32: 6792690168 | E32: 6885480786 | F32: -92790618 | G32: -1.347627288 | H32: 1227311708 | I32: 1181414539 | J32: 45897169 | K32: 3.884933483 | L32: 0 | M32: 0 | N32: 0 | O32: 0 | P32: 0 | Q32: 0 | R32: 0 | S32: 0 | T32: 0 | U32: 0 | V32: 0 | W32: 0 | X32: 0 | Y32: 0 | Z32: 0 | AA32: 0 | AB32: 1227311708 | AC32: 1181414539 | AD32: 0 | AE32: 0 | AF32: 0 | AG32: 0 | AH32: 0 | AI32: 0 | AJ32: 0 | AK32: 0 | AL32: 0 | AM32: 0 | AN32: 0 | AO32: 0 | AP32: 0 | AQ32: 0 | AR32: 0 | AS32: 0 | AT32: 0 | AU32: 0 | AV32: 0 | AW32: 0 | AX32: 0 | AY32: 0 | AZ32: 0 | BA32: 0 | BB32: 0 | BC32: 0 | BD32: 0 | BE32: 0 | BF32: 0 | BG32: 0 | BH32: 0 | BI32: 0 | BJ32: 0 | BK32: 0 | BL32: 0 | BM32: 0 | BN32: 0 | BO32: 0 | BP32: 0 | BQ32: 0 | BR32: 0 | BS32: 0 | BT32: 0 | BU32: 0 | BV32: 0 | BW32: 0 | BX32: 0 | BY32: 0 | BZ32: 0 | CA32: 0 | CB32: 0 | CC32: 0 | CD32: 0 | CE32: 0 | CF32: 0 | CG32: 0 | CH32: 0 | CI32: 0 | CJ32: 0 | CK32: 0 | CL32: 0 | CM32: - | CN32: 1189347853 | CO32: 1237414634 | CP32: -48066781 | CQ32: -3.884452283 | CR32: 0 | CS32: 0 | CT32: 0 | CU32: - | CV32: 0 | CW32: 0 | CX32: 0 | CY32: - | CZ32: 0 | DA32: 0 | DB32: 0 | DC32: 0 | DD32: 5603342315 | DE32: 5648066152 | DF32: -44723837 | DG32: -0.7918433637 | DH32: 2382977756 | DI32: 2761411278 | DJ32: -378433522 | DK32: -13.70435201 | DL32: 0 | DM32: 0 | DN32: 0 | DO32: - | DP32: 0 | DQ32: 0 | DR32: 0 | DS32: - | DT32: 1733590507 | DU32: 2538619511 | DV32: 0 | DW32: 0 | DX32: 0 | DY32: - | DZ32: -44723837 | EA32: -101836230 | EB32: 57112393 | EC32: -56.0825877 | ED32: 649387249 | EE32: 222791767 | EF32: 2427701593 | EG32: 2863247508 | EH32: -435545915 | EI32: -15.21160549 | EJ32: 0 | EK32: 0 | EL32: 0 | EM32: - | EN32: 0 | EO32: 0 | EP32: 0 | EQ32: - | ER32: 0 | ES32: 0 | ET32: 0 | EU32: - | EV32: 0 | EW32: 0 | EX32: 0 | EY32: - | EZ32: 1227311708 | FA32: 1181414539 | FB32: 45897169 | FC32: 3.884933483 | FD32: 0 | FE32: 0 | FF32: 0 | FG32: 0 | FH32: TRUE | FI32: TRUE
A33: 84300000 | B33: E.S.E. Centro Hospital Luis Antonio Montero Potosí - Nariño | C33: Nariño Empresas que No Cotizan | D33: 4082153881 | E33: 3726321531 | F33: 355832350 | G33: 9.549158521 | H33: 259278515 | I33: 265494581 | J33: -6216066 | K33: -2.341315584 | L33: 0 | M33: 0 | N33: 0 | O33: 0 | P33: 0 | Q33: 0 | R33: 0 | S33: 0 | T33: 0 | U33: 0 | V33: 0 | W33: 0 | X33: 0 | Y33: 0 | Z33: 0 | AA33: 0 | AB33: 415134954 | AC33: 411504703 | AD33: 0 | AE33: 0 | AF33: 0 | AG33: 0 | AH33: 0 | AI33: 0 | AJ33: 0 | AK33: 0 | AL33: 0 | AM33: 0 | AN33: 0 | AO33: 0 | AP33: 0 | AQ33: 0 | AR33: 0 | AS33: 0 | AT33: 3582553 | AU33: 804582 | AV33: 0 | AW33: 0 | AX33: 159438992 | AY33: 146814704 | AZ33: 0 | BA33: 0 | BB33: 0 | BC33: 0 | BD33: 0 | BE33: 0 | BF33: 0 | BG33: 0 | BH33: 0 | BI33: 0 | BJ33: 0 | BK33: 0 | BL33: 0 | BM33: 0 | BN33: 0 | BO33: 0 | BP33: 159438992 | BQ33: 146814704 | BR33: 0 | BS33: 0 | BT33: 0 | BU33: 0 | BV33: 0 | BW33: 0 | BX33: 0 | BY33: 0 | BZ33: 0 | CA33: 0 | CB33: 0 | CC33: 0 | CD33: 0 | CE33: 0 | CF33: 0 | CG33: 0 | CH33: 0 | CI33: 0 | CJ33: 0 | CK33: 0 | CL33: 0 | CM33: - | CN33: 187236628 | CO33: 32014689 | CP33: 155221939 | CQ33: … | CR33: 0 | CS33: 0 | CT33: 0 | CU33: - | CV33: 0 | CW33: 0 | CX33: 0 | CY33: - | CZ33: 0 | DA33: 0 | DB33: 0 | DC33: 0 | DD33: 3894917253 | DE33: 3694306842 | DF33: 200610411 | DG33: 5.430258492 | DH33: 3845891312 | DI33: 3765927995 | DJ33: 79963317 | DK33: 2.123336323 | DL33: 0 | DM33: 0 | DN33: 0 | DO33: - | DP33: 336202007 | DQ33: 57947961 | DR33: 278254046 | DS33: … | DT33: 1617997601 | DU33: 1819090783 | DV33: 0 | DW33: 0 | DX33: 0 | DY33: - | DZ33: 200610409 | EA33: 85084732 | EB33: 115525677 | EC33: 135.7772121 | ED33: 2227893711 | EE33: 1946837212 | EF33: 3645280903 | EG33: 3680843263 | EH33: -35562360 | EI33: -0.966147088 | EJ33: 0 | EK33: 0 | EL33: 0 | EM33: - | EN33: 0 | EO33: 0 | EP33: 0 | EQ33: - | ER33: 0 | ES33: 0 | ET33: 0 | EU33: - | EV33: 0 | EW33: 0 | EX33: 0 | EY33: - | EZ33: 259278515 | FA33: 265494581 | FB33: -6216066 | FC33: -2.341315584 | FD33: 0 | FE33: 0 | FF33: 159438992 | FG33: 146814704 | FH33: TRUE | FI33: TRUE
A34: 84800000 | B34: Instituto Departamental del Deporte y la Recreación de Arauca | C34: Arauca Entidades de gobierno | D34: 3895526055 | E34: 3460537554 | F34: 434988500.1 | G34: 12.56996906 | H34: 1874381351 | I34: 2823828.4 | J34: 1871557522 | K34: … | L34: 0 | M34: 0 | N34: 0 | O34: 0 | P34: 0 | Q34: 0 | R34: 0 | S34: 0 | T34: 0 | U34: 0 | V34: 0 | W34: 0 | X34: 0 | Y34: 0 | Z34: 0 | AA34: 0 | AB34: 0 | AC34: 0 | AD34: 0 | AE34: 0 | AF34: 0 | AG34: 0 | AH34: 0 | AI34: 0 | AJ34: 0 | AK34: 0 | AL34: 0 | AM34: 0 | AN34: 0 | AO34: 0 | AP34: 0 | AQ34: 0 | AR34: 1871700606 | AS34: 0 | AT34: 2680745 | AU34: 2823828.4 | AV34: 0 | AW34: 0 | AX34: 0 | AY34: 0 | AZ34: 0 | BA34: 0 | BB34: 0 | BC34: 0 | BD34: 0 | BE34: 0 | BF34: 0 | BG34: 0 | BH34: 0 | BI34: 0 | BJ34: 0 | BK34: 0 | BL34: 0 | BM34: 0 | BN34: 0 | BO34: 0 | BP34: 0 | BQ34: 0 | BR34: 0 | BS34: 0 | BT34: 0 | BU34: 0 | BV34: 0 | BW34: 0 | BX34: 0 | BY34: 0 | BZ34: 0 | CA34: 0 | CB34: 0 | CC34: 0 | CD34: 0 | CE34: 0 | CF34: 0 | CG34: 0 | CH34: 0 | CI34: 0 | CJ34: 0 | CK34: 0 | CL34: 0 | CM34: - | CN34: 3599961064 | CO34: 3053233190 | CP34: 546727873.5 | CQ34: 17.90652202 | CR34: 0 | CS34: 0 | CT34: 0 | CU34: - | CV34: 0 | CW34: 0 | CX34: 0 | CY34: - | CZ34: 0 | DA34: 0 | DB34: 0 | DC34: 0 | DD34: 295564991 | DE34: 407304364.4 | DF34: -111739373.4 | DG34: -27.43387579 | DH34: 996239702.5 | DI34: 788546921.7 | DJ34: 207692780.8 | DK34: 26.33867118 | DL34: 530892601.8 | DM34: 358761451.4 | DN34: 172131150.4 | DO34: 47.97927696 | DP34: 426700000 | DQ34: 120000000 | DR34: 306700000 | DS34: … | DT34: 996239702.5 | DU34: 788546921.7 | DV34: 0 | DW34: 0 | DX34: 0 | DY34: - | DZ34: -111739373.4 | EA34: -405695438.1 | EB34: 293956064.6 | EC34: -72.45732564 | ED34: 0 | EE34: 0 | EF34: 1107979076 | EG34: 1194242360 | EH34: -86263283.83 | EI34: -7.223264451 | EJ34: 0 | EK34: 0 | EL34: 0 | EM34: - | EN34: 0 | EO34: 0 | EP34: 0 | EQ34: - | ER34: 0 | ES34: 0 | ET34: 0 | EU34: - | EV34: 1871700606 | EW34: 0 | EX34: 1871700606 | EY34: - | EZ34: 2680745 | FA34: 2823828.4 | FB34: -143083.4 | FC34: -5.06700053 | FD34: 0 | FE34: 0 | FF34: 0 | FG34: 0 | FH34: TRUE | FI34: TRUE
A35: 84900000 | B35: Empresa de Desarrollo Urbano Piedemonte EICM. | C35: Meta Entidades de gobierno | D35: 2.91188471e+10 | E35: 3.139723249e+10 | F35: -2278385394 | G35: -7.25664402 | H35: 1.288960556e+10 | I35: 1.444087782e+10 | J35: -1551272259 | K35: -10.74222965 | L35: 0 | M35: 0 | N35: 0 | O35: 0 | P35: 0 | Q35: 0 | R35: 0 | S35: 0 | T35: 0 | U35: 0 | V35: 12829045022 | W35: 1.437377014e+10 | X35: 0 | Y35: 0 | Z35: 0 | AA35: 0 | AB35: 0 | AC35: 0 | AD35: 0 | AE35: 0 | AF35: 0 | AG35: 0 | AH35: 0 | AI35: 0 | AJ35: 0 | AK35: 0 | AL35: 0 | AM35: 0 | AN35: 0 | AO35: 0 | AP35: 0 | AQ35: 0 | AR35: 0 | AS35: 0 | AT35: 60560539.84 | AU35: 67107678.84 | AV35: 0 | AW35: 0 | AX35: 0 | AY35: 0 | AZ35: 0 | BA35: 0 | BB35: 0 | BC35: 0 | BD35: 0 | BE35: 0 | BF35: 0 | BG35: 0 | BH35: 0 | BI35: 0 | BJ35: 0 | BK35: 0 | BL35: 0 | BM35: 0 | BN35: 0 | BO35: 0 | BP35: 0 | BQ35: 0 | BR35: 0 | BS35: 0 | BT35: 0 | BU35: 0 | BV35: 0 | BW35: 0 | BX35: 0 | BY35: 0 | BZ35: 0 | CA35: 0 | CB35: 0 | CC35: 0 | CD35: 0 | CE35: 0 | CF35: 0 | CG35: 0 | CH35: 0 | CI35: 0 | CJ35: 0 | CK35: 0 | CL35: 0 | CM35: - | CN35: 911545501.7 | CO35: 1526765831 | CP35: -615220329.2 | CQ35: -40.29565744 | CR35: 0 | CS35: 0 | CT35: 0 | CU35: - | CV35: 0 | CW35: 0 | CX35: 0 | CY35: - | CZ35: 0 | DA35: 0 | DB35: 0 | DC35: 0 | DD35: 2.820730159e+10 | DE35: 2.987046666e+10 | DF35: -1663165065 | DG35: -5.567924611 | DH35: 2021662428 | DI35: 3668417723 | DJ35: -1646755295 | DK35: -44.89007031 | DL35: 0 | DM35: 0 | DN35: 0 | DO35: - | DP35: 0 | DQ35: 1170000 | DR35: -1170000 | DS35: -100 | DT35: 1962594028 | DU35: 3582417723 | DV35: 2790000 | DW35: 31348431.96 | DX35: -28558431.96 | DY35: -91.10003332 | DZ35: 8513829.05 | EA35: 171541028 | EB35: -163027198.9 | EC35: -95.03685553 | ED35: 59068400 | EE35: 86000000 | EF35: 2013148599 | EG35: 3496876695 | EH35: -1483728096 | EI35: -42.43009478 | EJ35: 0 | EK35: 0 | EL35: 0 | EM35: - | EN35: 0 | EO35: 0 | EP35: 0 | EQ35: - | ER35: 0 | ES35: 0 | ET35: 0 | EU35: - | EV35: 0 | EW35: 0 | EX35: 0 | EY35: - | EZ35: 1.288960556e+10 | FA35: 1.444087782e+10 | FB35: -1551272259 | FC35: -10.74222965 | FD35: 0 | FE35: 0 | FF35: 0 | FG35: 0 | FH35: TRUE | FI35: TRUE
A36: 85100000 | B36: E.S.E. Centro de Salud de Puerres | C36: Nariño Empresas que No Cotizan | D36: 3242853915 | E36: 3202108219 | F36: 40745696 | G36: 1.272464677 | H36: 345654848 | I36: 350939659 | J36: -5284811 | K36: -1.505903042 | L36: 0 | M36: 0 | N36: 0 | O36: 0 | P36: 0 | Q36: 0 | R36: 0 | S36: 0 | T36: 0 | U36: 0 | V36: 0 | W36: 0 | X36: 0 | Y36: 0 | Z36: 0 | AA36: 0 | AB36: 353297876 | AC36: 369298856 | AD36: 0 | AE36: 0 | AF36: 0 | AG36: 0 | AH36: 24442924 | AI36: 0 | AJ36: 0 | AK36: 0 | AL36: 0 | AM36: 0 | AN36: 0 | AO36: 0 | AP36: 0 | AQ36: 0 | AR36: 0 | AS36: 0 | AT36: 675403 | AU36: 2142562 | AV36: 0 | AW36: 0 | AX36: 32761355 | AY36: 20501759 | AZ36: 0 | BA36: 0 | BB36: 0 | BC36: 0 | BD36: 0 | BE36: 0 | BF36: 0 | BG36: 0 | BH36: 0 | BI36: 0 | BJ36: 0 | BK36: 0 | BL36: 0 | BM36: 0 | BN36: 0 | BO36: 0 | BP36: 32761355 | BQ36: 20501759 | BR36: 0 | BS36: 0 | BT36: 0 | BU36: 0 | BV36: 0 | BW36: 0 | BX36: 0 | BY36: 0 | BZ36: 0 | CA36: 0 | CB36: 0 | CC36: 0 | CD36: 0 | CE36: 0 | CF36: 0 | CG36: 0 | CH36: 0 | CI36: 0 | CJ36: 0 | CK36: 0 | CL36: 0 | CM36: - | CN36: 480397001 | CO36: 294133184 | CP36: 186263817 | CQ36: 63.32635253 | CR36: 0 | CS36: 0 | CT36: 0 | CU36: - | CV36: 0 | CW36: 0 | CX36: 0 | CY36: - | CZ36: 0 | DA36: 0 | DB36: 0 | DC36: 0 | DD36: 2762456914 | DE36: 2907975035 | DF36: -145518121 | DG36: -5.004104893 | DH36: 2179390949 | DI36: 2108086019 | DJ36: 71304930 | DK36: 3.382448788 | DL36: 0 | DM36: 0 | DN36: 0 | DO36: - | DP36: 203865544 | DQ36: 55333164 | DR36: 148532380 | DS36: … | DT36: 1079674531 | DU36: 818549664 | DV36: 0 | DW36: 0 | DX36: 0 | DY36: - | DZ36: 7059262 | EA36: 63042367 | EB36: -55983105 | EC36: -88.80235255 | ED36: 1099716418 | EE36: 1289536355 | EF36: 2172331687 | EG36: 2045043652 | EH36: 127288035 | EI36: 6.224220929 | EJ36: 0 | EK36: 0 | EL36: 0 | EM36: - | EN36: 0 | EO36: 0 | EP36: 0 | EQ36: - | ER36: 0 | ES36: 0 | ET36: 0 | EU36: - | EV36: 24442924 | EW36: 0 | EX36: 24442924 | EY36: - | EZ36: 321211924 | FA36: 350939659 | FB36: -29727735 | FC36: -8.470896417 | FD36: 0 | FE36: 0 | FF36: 32761355 | FG36: 20501759 | FH36: TRUE | FI36: TRUE
A37: 85600000 | B37: Instituto de Desarrollo Municipal de Dosquebradas | C37: Risaralda Entidades de gobierno | D37: 15145186716 | E37: 33276862908 | F37: -18131676192 | G37: -54.48733627 | H37: 1181602826 | I37: 1123129821 | J37: 58473005 | K37: 5.206255226 | L37: 0 | M37: 0 | N37: 26264893 | O37: 25589893 | P37: 0 | Q37: 0 | R37: 0 | S37: 0 | T37: 0 | U37: 0 | V37: 0 | W37: 0 | X37: 0 | Y37: 0 | Z37: 0 | AA37: 0 | AB37: 0 | AC37: 0 | AD37: 0 | AE37: 0 | AF37: 0 | AG37: 0 | AH37: 0 | AI37: 0 | AJ37: 0 | AK37: 0 | AL37: 0 | AM37: 0 | AN37: 0 | AO37: 0 | AP37: 0 | AQ37: 0 | AR37: 818547234 | AS37: 757372631 | AT37: 523417501 | AU37: 508408898 | AV37: 0 | AW37: 0 | AX37: 186626802 | AY37: 168241601 | AZ37: 13129757 | BA37: 13129757 | BB37: 0 | BC37: 0 | BD37: 0 | BE37: 0 | BF37: 0 | BG37: 0 | BH37: 0 | BI37: 0 | BJ37: 0 | BK37: 0 | BL37: 0 | BM37: 0 | BN37: 0 | BO37: 0 | BP37: 0 | BQ37: 0 | BR37: 0 | BS37: 0 | BT37: 0 | BU37: 0 | BV37: 0 | BW37: 0 | BX37: 0 | BY37: 0 | BZ37: 0 | CA37: 0 | CB37: 0 | CC37: 0 | CD37: 173497045 | CE37: 155111844 | CF37: 0 | CG37: 0 | CH37: 0 | CI37: 0 | CJ37: 0 | CK37: 0 | CL37: 0 | CM37: - | CN37: 4001586014 | CO37: 3781542297 | CP37: 220043717 | CQ37: 5.81888816 | CR37: 0 | CS37: 0 | CT37: 0 | CU37: - | CV37: 0 | CW37: 0 | CX37: 0 | CY37: - | CZ37: 0 | DA37: 0 | DB37: 0 | DC37: 0 | DD37: 11143600702 | DE37: 29495320611 | DF37: -18351719909 | DG37: -62.21908943 | DH37: 5458997135 | DI37: 35035599345 | DJ37: -29576602210 | DK37: -84.41871343 | DL37: 0 | DM37: 0 | DN37: 0 | DO37: - | DP37: 5402614167 | DQ37: 34797130373 | DR37: -29394516206 | DS37: -84.47396636 | DT37: 5458997135 | DU37: 35035599345 | DV37: 22402514669 | DW37: 10369266063 | DX37: 12033248606 | DY37: 116.0472548 | DZ37: -18351716542 | EA37: 19047946696 | EB37: -37399663238 | EC37: -196.3448546 | ED37: 0 | EE37: 0 | EF37: 23810713677 | EG37: 15987652649 | EH37: 7823061028 | EI37: 48.93189263 | EJ37: 0 | EK37: 0 | EL37: 0 | EM37: - | EN37: 0 | EO37: 0 | EP37: 0 | EQ37: - | ER37: 0 | ES37: 0 | ET37: 0 | EU37: - | EV37: 844812127 | EW37: 782962524 | EX37: 61849603 | EY37: 7.899433383 | EZ37: 336790699 | FA37: 340167297 | FB37: -3376598 | FC37: -0.9926286359 | FD37: 0 | FE37: 0 | FF37: 186626802 | FG37: 168241601 | FH37: TRUE | FI37: TRUE
A38: 85700000 | B38: Junta Municipal de Deportes del Municipio de Sesquilé | C38: Cundinamarca Entidades de gobierno | D38: 216857486 | E38: 39924615 | F38: 176932871 | G38: … | H38: 0 | I38: 0 | J38: 0 | K38: - | L38: 0 | M38: 0 | N38: 0 | O38: 0 | P38: 0 | Q38: 0 | R38: 0 | S38: 0 | T38: 0 | U38: 0 | V38: 0 | W38: 0 | X38: 0 | Y38: 0 | Z38: 0 | AA38: 0 | AB38: 0 | AC38: 0 | AD38: 0 | AE38: 0 | AF38: 0 | AG38: 0 | AH38: 0 | AI38: 0 | AJ38: 0 | AK38: 0 | AL38: 0 | AM38: 0 | AN38: 0 | AO38: 0 | AP38: 0 | AQ38: 0 | AR38: 0 | AS38: 0 | AT38: 0 | AU38: 0 | AV38: 0 | AW38: 0 | AX38: 0 | AY38: 0 | AZ38: 0 | BA38: 0 | BB38: 0 | BC38: 0 | BD38: 0 | BE38: 0 | BF38: 0 | BG38: 0 | BH38: 0 | BI38: 0 | BJ38: 0 | BK38: 0 | BL38: 0 | BM38: 0 | BN38: 0 | BO38: 0 | BP38: 0 | BQ38: 0 | BR38: 0 | BS38: 0 | BT38: 0 | BU38: 0 | BV38: 0 | BW38: 0 | BX38: 0 | BY38: 0 | BZ38: 0 | CA38: 0 | CB38: 0 | CC38: 0 | CD38: 0 | CE38: 0 | CF38: 0 | CG38: 0 | CH38: 0 | CI38: 0 | CJ38: 0 | CK38: 0 | CL38: 0 | CM38: - | CN38: 89059057 | CO38: 0 | CP38: 89059057 | CQ38: - | CR38: 0 | CS38: 0 | CT38: 0 | CU38: - | CV38: 0 | CW38: 0 | CX38: 0 | CY38: - | CZ38: 0 | DA38: 0 | DB38: 0 | DC38: 0 | DD38: 127798429 | DE38: 39924615 | DF38: 87873814 | DG38: … | DH38: 686897029 | DI38: 548512298 | DJ38: 138384731 | DK38: 25.2291027 | DL38: 0 | DM38: 0 | DN38: 0 | DO38: - | DP38: 671966043 | DQ38: 531330594 | DR38: 140635449 | DS38: 26.46853966 | DT38: 686897029 | DU38: 548512298 | DV38: 462766530 | DW38: 269182895 | DX38: 193583635 | DY38: 71.91528087 | DZ38: 87701158 | EA38: 7720908 | EB38: 79980250 | EC38: … | ED38: 0 | EE38: 0 | EF38: 599195871 | EG38: 540791390 | EH38: 58404481 | EI38: 10.7998171 | EJ38: 0 | EK38: 0 | EL38: 0 | EM38: - | EN38: 0 | EO38: 0 | EP38: 0 | EQ38: - | ER38: 0 | ES38: 0 | ET38: 0 | EU38: - | EV38: 0 | EW38: 0 | EX38: 0 | EY38: - | EZ38: 0 | FA38: 0 | FB38: 0 | FC38: - | FD38: 0 | FE38: 0 | FF38: 0 | FG38: 0 | FH38: TRUE | FI38: TRUE
A39: 85800000 | B39: E.S.E. Salud Yopal | C39: Casanare Empresas que No Cotizan | D39: 50272489090 | E39: 48330362600 | F39: 1942126490 | G39: 4.018439725 | H39: 3941107623 | I39: 3378594001 | J39: 562513622 | K39: 16.64934058 | L39: 0 | M39: 0 | N39: 0 | O39: 0 | P39: 0 | Q39: 0 | R39: 0 | S39: 0 | T39: 0 | U39: 0 | V39: 0 | W39: 0 | X39: 0 | Y39: 0 | Z39: 0 | AA39: 0 | AB39: 3933251851 | AC39: 3370710007 | AD39: 0 | AE39: 0 | AF39: 0 | AG39: 0 | AH39: 0 | AI39: 0 | AJ39: 0 | AK39: 0 | AL39: 0 | AM39: 0 | AN39: 0 | AO39: 0 | AP39: 0 | AQ39: 0 | AR39: 0 | AS39: 0 | AT39: 3731661 | AU39: 3759883 | AV39: 294374007 | AW39: 294374007 | AX39: 290249896 | AY39: 290249896 | AZ39: 0 | BA39: 0 | BB39: 0 | BC39: 0 | BD39: 0 | BE39: 0 | BF39: 0 | BG39: 0 | BH39: 0 | BI39: 0 | BJ39: 0 | BK39: 0 | BL39: 0 | BM39: 0 | BN39: 0 | BO39: 0 | BP39: 290249896 | BQ39: 290249896 | BR39: 0 | BS39: 0 | BT39: 0 | BU39: 0 | BV39: 0 | BW39: 0 | BX39: 0 | BY39: 0 | BZ39: 0 | CA39: 0 | CB39: 0 | CC39: 0 | CD39: 0 | CE39: 0 | CF39: 0 | CG39: 0 | CH39: 0 | CI39: 0 | CJ39: 0 | CK39: 0 | CL39: 0 | CM39: - | CN39: 1491556102 | CO39: 3477769890 | CP39: -1986213788 | CQ39: -57.1117081 | CR39: 0 | CS39: 0 | CT39: 0 | CU39: - | CV39: 0 | CW39: 0 | CX39: 0 | CY39: - | CZ39: 0 | DA39: 0 | DB39: 0 | DC39: 0 | DD39: 48780932988 | DE39: 44852592710 | DF39: 3928340278 | DG39: 8.758334894 | DH39: 20681984445 | DI39: 21841800468 | DJ39: -1159816023 | DK39: -5.310075168 | DL39: 0 | DM39: 0 | DN39: 0 | DO39: - | DP39: 1611162164 | DQ39: 0 | DR39: 1611162164 | DS39: - | DT39: 10947748631 | DU39: 13507699952 | DV39: 0 | DW39: 0 | DX39: 0 | DY39: - | DZ39: 3590234261 | EA39: -549365775 | EB39: 4139600036 | EC39: … | ED39: 9734235814 | EE39: 8334100516 | EF39: 17091750184 | EG39: 22391166243 | EH39: -5299416059 | EI39: -23.667441 | EJ39: 0 | EK39: 0 | EL39: 0 | EM39: - | EN39: 0 | EO39: 0 | EP39: 0 | EQ39: - | ER39: 0 | ES39: 0 | ET39: 0 | EU39: - | EV39: 0 | EW39: 0 | EX39: 0 | EY39: - | EZ39: 3941107623 | FA39: 3378594001 | FB39: 562513622 | FC39: 16.64934058 | FD39: 0 | FE39: 0 | FF39: 290249896 | FG39: 290249896 | FH39: TRUE | FI39: TRUE
A40: 86200000 | B40: E.S.E. Hospital Nuestra Señora del Pilar de Medina | C40: Cundinamarca Empresas que No Cotizan | D40: 11908388364 | E40: 11030651122 | F40: 877737242 | G40: 7.95725685 | H40: 2409916580 | I40: 2014938086 | J40: 394978494 | K40: 19.60251269 | L40: 0 | M40: 0 | N40: 0 | O40: 0 | P40: 0 | Q40: 0 | R40: 0 | S40: 0 | T40: 0 | U40: 0 | V40: 0 | W40: 0 | X40: 0 | Y40: 0 | Z40: 0 | AA40: 0 | AB40: 3117967367 | AC40: 2507947489 | AD40: 0 | AE40: 0 | AF40: 0 | AG40: 0 | AH40: 0 | AI40: 0 | AJ40: 0 | AK40: 0 | AL40: 0 | AM40: 0 | AN40: 0 | AO40: 0 | AP40: 0 | AQ40: 0 | AR40: 0 | AS40: 0 | AT40: 15434750 | AU40: 11539244 | AV40: 0 | AW40: 0 | AX40: 723485537 | AY40: 504548647 | AZ40: 0 | BA40: 0 | BB40: 0 | BC40: 0 | BD40: 0 | BE40: 0 | BF40: 0 | BG40: 0 | BH40: 0 | BI40: 0 | BJ40: 0 | BK40: 0 | BL40: 0 | BM40: 0 | BN40: 0 | BO40: 0 | BP40: 723485537 | BQ40: 504548647 | BR40: 0 | BS40: 0 | BT40: 0 | BU40: 0 | BV40: 0 | BW40: 0 | BX40: 0 | BY40: 0 | BZ40: 0 | CA40: 0 | CB40: 0 | CC40: 0 | CD40: 0 | CE40: 0 | CF40: 0 | CG40: 0 | CH40: 0 | CI40: 0 | CJ40: 0 | CK40: 0 | CL40: 0 | CM40: - | CN40: 588839254 | CO40: 523396702 | CP40: 65442552 | CQ40: 12.50343224 | CR40: 0 | CS40: 0 | CT40: 0 | CU40: - | CV40: 0 | CW40: 0 | CX40: 0 | CY40: - | CZ40: 0 | DA40: 0 | DB40: 0 | DC40: 0 | DD40: 11319549110 | DE40: 10507254420 | DF40: 812294690 | DG40: 7.730798718 | DH40: 7119705570 | DI40: 8749376455 | DJ40: -1629670885 | DK40: -18.62613746 | DL40: 0 | DM40: 0 | DN40: 0 | DO40: - | DP40: 2842722723 | DQ40: 2953329805 | DR40: -110607082 | DS40: -3.745165264 | DT40: 2555318478 | DU40: 4236200771 | DV40: 0 | DW40: 0 | DX40: 0 | DY40: - | DZ40: 812294690 | EA40: 1943067386 | EB40: -1130772696 | EC40: -58.19523832 | ED40: 4564387092 | EE40: 4513175684 | EF40: 6307410880 | EG40: 6806309069 | EH40: -498898189 | EI40: -7.329937326 | EJ40: 0 | EK40: 0 | EL40: 0 | EM40: - | EN40: 0 | EO40: 0 | EP40: 0 | EQ40: - | ER40: 0 | ES40: 0 | ET40: 0 | EU40: - | EV40: 0 | EW40: 0 | EX40: 0 | EY40: - | EZ40: 2409916580 | FA40: 2014938086 | FB40: 394978494 | FC40: 19.60251269 | FD40: 0 | FE40: 0 | FF40: 723485537 | FG40: 504548647 | FH40: TRUE | FI40: TRUE
A41: 86300000 | B41: E.S.E. Barrancabermeja | C41: Santander Empresas que No Cotizan | D41: 20736548604 | E41: 29197414282 | F41: -8460865678 | G41: -28.97813346 | H41: 4358829509 | I41: 4549980506 | J41: -191150997 | K41: -4.201138813 | L41: 0 | M41: 0 | N41: 0 | O41: 0 | P41: 0 | Q41: 0 | R41: 0 | S41: 0 | T41: 0 | U41: 0 | V41: 0 | W41: 0 | X41: 0 | Y41: 0 | Z41: 0 | AA41: 0 | AB41: 5165136117 | AC41: 4495176747 | AD41: 0 | AE41: 0 | AF41: 0 | AG41: 0 | AH41: 0 | AI41: 0 | AJ41: 0 | AK41: 0 | AL41: 0 | AM41: 0 | AN41: 0 | AO41: 0 | AP41: 0 | AQ41: 0 | AR41: 0 | AS41: 0 | AT41: 0 | AU41: 498337051 | AV41: 0 | AW41: 0 | AX41: 806306608 | AY41: 443533292 | AZ41: 0 | BA41: 0 | BB41: 0 | BC41: 0 | BD41: 0 | BE41: 0 | BF41: 0 | BG41: 0 | BH41: 0 | BI41: 0 | BJ41: 0 | BK41: 0 | BL41: 0 | BM41: 0 | BN41: 0 | BO41: 0 | BP41: 806306608 | BQ41: 443533292 | BR41: 0 | BS41: 0 | BT41: 0 | BU41: 0 | BV41: 0 | BW41: 0 | BX41: 0 | BY41: 0 | BZ41: 0 | CA41: 0 | CB41: 0 | CC41: 0 | CD41: 0 | CE41: 0 | CF41: 0 | CG41: 0 | CH41: 0 | CI41: 0 | CJ41: 0 | CK41: 0 | CL41: 0 | CM41: - | CN41: 8133132769 | CO41: 5427854980 | CP41: 2705277789 | CQ41: 49.84064237 | CR41: 0 | CS41: 0 | CT41: 0 | CU41: - | CV41: 0 | CW41: 0 | CX41: 0 | CY41: - | CZ41: 0 | DA41: 0 | DB41: 0 | DC41: 0 | DD41: 12603415835 | DE41: 23769559302 | DF41: -11166143467 | DG41: -46.97665331 | DH41: 14275112926 | DI41: 19857129003 | DJ41: -5582016077 | DK41: -28.11089194 | DL41: 0 | DM41: 0 | DN41: 0 | DO41: - | DP41: 378297000 | DQ41: 434514071 | DR41: -56217071 | DS41: -12.93791726 | DT41: 1494079148 | DU41: 5032964792 | DV41: 0 | DW41: 0 | DX41: 0 | DY41: - | DZ41: -3409549876 | EA41: 40415794 | EB41: -3449965670 | EC41: … | ED41: 12781033778 | EE41: 14824164211 | EF41: 17684662802 | EG41: 19816713209 | EH41: -2132050407 | EI41: -10.75884979 | EJ41: 0 | EK41: 0 | EL41: 0 | EM41: - | EN41: 0 | EO41: 0 | EP41: 0 | EQ41: - | ER41: 0 | ES41: 0 | ET41: 0 | EU41: - | EV41: 0 | EW41: 0 | EX41: 0 | EY41: - | EZ41: 4358829509 | FA41: 4549980506 | FB41: -191150997 | FC41: -4.201138813 | FD41: 0 | FE41: 0 | FF41: 806306608 | FG41: 443533292 | FH41: TRUE | FI41: TRUE
A42: 86400000 | B42: Instituto de Deportes y Recreación de Yarumal | C42: Antioquia Entidades de gobierno | D42: 268405498.1 | E42: 110066633.3 | F42: 158338864.8 | G42: 143.85728 | H42: 16425928 | I42: 12472742 | J42: 3953186 | K42: 31.69460252 | L42: 0 | M42: 0 | N42: 0 | O42: 0 | P42: 0 | Q42: 0 | R42: 0 | S42: 0 | T42: 0 | U42: 0 | V42: 0 | W42: 0 | X42: 0 | Y42: 0 | Z42: 0 | AA42: 0 | AB42: 0 | AC42: 0 | AD42: 0 | AE42: 0 | AF42: 0 | AG42: 0 | AH42: 0 | AI42: 0 | AJ42: 0 | AK42: 0 | AL42: 0 | AM42: 0 | AN42: 0 | AO42: 0 | AP42: 0 | AQ42: 0 | AR42: 16425928 | AS42: 0 | AT42: 0 | AU42: 12472742 | AV42: 0 | AW42: 0 | AX42: 0 | AY42: 0 | AZ42: 0 | BA42: 0 | BB42: 0 | BC42: 0 | BD42: 0 | BE42: 0 | BF42: 0 | BG42: 0 | BH42: 0 | BI42: 0 | BJ42: 0 | BK42: 0 | BL42: 0 | BM42: 0 | BN42: 0 | BO42: 0 | BP42: 0 | BQ42: 0 | BR42: 0 | BS42: 0 | BT42: 0 | BU42: 0 | BV42: 0 | BW42: 0 | BX42: 0 | BY42: 0 | BZ42: 0 | CA42: 0 | CB42: 0 | CC42: 0 | CD42: 0 | CE42: 0 | CF42: 0 | CG42: 0 | CH42: 0 | CI42: 0 | CJ42: 0 | CK42: 0 | CL42: 0 | CM42: - | CN42: 82028290 | CO42: 74670593 | CP42: 7357697 | CQ42: 9.853540335 | CR42: 0 | CS42: 0 | CT42: 0 | CU42: - | CV42: 0 | CW42: 0 | CX42: 0 | CY42: - | CZ42: 0 | DA42: 0 | DB42: 0 | DC42: 0 | DD42: 186377208.1 | DE42: 35396040.3 | DF42: 150981167.8 | DG42: … | DH42: 454461445.2 | DI42: 296501858.9 | DJ42: 157959586.3 | DK42: 53.27439999 | DL42: 0 | DM42: 0 | DN42: 0 | DO42: - | DP42: 432594052.2 | DQ42: 282969269 | DR42: 149624783.2 | DS42: 52.87669003 | DT42: 454461445.2 | DU42: 296501858.9 | DV42: 146845028 | DW42: 91219000 | DX42: 55626028 | DY42: 60.98074743 | DZ42: 150850187.8 | EA42: 28773248.93 | EB42: 122076938.9 | EC42: … | ED42: 0 | EE42: 0 | EF42: 303611257.4 | EG42: 267728610 | EH42: 35882647.44 | EI42: 13.40261971 | EJ42: 0 | EK42: 0 | EL42: 0 | EM42: - | EN42: 0 | EO42: 0 | EP42: 0 | EQ42: - | ER42: 0 | ES42: 0 | ET42: 0 | EU42: - | EV42: 16425928 | EW42: 0 | EX42: 16425928 | EY42: - | EZ42: 0 | FA42: 12472742 | FB42: -12472742 | FC42: -100 | FD42: 0 | FE42: 0 | FF42: 0 | FG42: 0 | FH42: TRUE | FI42: TRUE
A43: 86500000 | B43: E.S.P. Empresa de Servicios Públicos Domiciliarios de la Dorada | C43: Caldas Empresas que No Cotizan | D43: 4144382506 | E43: 4114967500 | F43: 29415006 | G43: 0.7148296068 | H43: 1493319093 | I43: 1115886844 | J43: 377432249 | K43: 33.82352351 | L43: 0 | M43: 0 | N43: 0 | O43: 0 | P43: 0 | Q43: 0 | R43: 0 | S43: 0 | T43: 0 | U43: 0 | V43: 0 | W43: 0 | X43: 0 | Y43: 0 | Z43: 1380259363 | AA43: 1576346115 | AB43: 0 | AC43: 0 | AD43: 0 | AE43: 0 | AF43: 0 | AG43: 0 | AH43: 0 | AI43: 0 | AJ43: 0 | AK43: 0 | AL43: 0 | AM43: 0 | AN43: 0 | AO43: 0 | AP43: 0 | AQ43: 0 | AR43: 0 | AS43: 0 | AT43: 0 | AU43: 0 | AV43: 602398001 | AW43: 28879000 | AX43: 489338271 | AY43: 489338271 | AZ43: 0 | BA43: 0 | BB43: 0 | BC43: 0 | BD43: 0 | BE43: 0 | BF43: 0 | BG43: 0 | BH43: 0 | BI43: 0 | BJ43: 489338271 | BK43: 489338271 | BL43: 0 | BM43: 0 | BN43: 0 | BO43: 0 | BP43: 0 | BQ43: 0 | BR43: 0 | BS43: 0 | BT43: 0 | BU43: 0 | BV43: 0 | BW43: 0 | BX43: 0 | BY43: 0 | BZ43: 0 | CA43: 0 | CB43: 0 | CC43: 0 | CD43: 0 | CE43: 0 | CF43: 0 | CG43: 0 | CH43: 0 | CI43: 0 | CJ43: 0 | CK43: 0 | CL43: 0 | CM43: - | CN43: 1474533690 | CO43: 1318434662 | CP43: 156099028 | CQ43: 11.83972422 | CR43: 0 | CS43: 0 | CT43: 0 | CU43: - | CV43: 0 | CW43: 0 | CX43: 0 | CY43: - | CZ43: 0 | DA43: 0 | DB43: 0 | DC43: 0 | DD43: 2669848816 | DE43: 2796532838 | DF43: -126684022 | DG43: -4.530038778 | DH43: 8308455280 | DI43: 8419159312 | DJ43: -110704032 | DK43: -1.314906013 | DL43: 0 | DM43: 0 | DN43: 0 | DO43: - | DP43: 0 | DQ43: 0 | DR43: 0 | DS43: - | DT43: 2613716116 | DU43: 3425901385 | DV43: 0 | DW43: 0 | DX43: 0 | DY43: - | DZ43: 227436022 | EA43: 782505846 | EB43: -555069824 | EC43: -70.93491082 | ED43: 5694739164 | EE43: 4993257927 | EF43: 8081019258 | EG43: 7636653466 | EH43: 444365792 | EI43: 5.818854999 | EJ43: 0 | EK43: 0 | EL43: 0 | EM43: - | EN43: 0 | EO43: 0 | EP43: 0 | EQ43: - | ER43: 0 | ES43: 0 | ET43: 0 | EU43: - | EV43: 0 | EW43: 0 | EX43: 0 | EY43: - | EZ43: 1493319093 | FA43: 1115886844 | FB43: 377432249 | FC43: 33.82352351 | FD43: 0 | FE43: 0 | FF43: 489338271 | FG43: 489338271 | FH43: TRUE | FI43: TRUE
A44: 86600000 | B44: E.S.E. Centro de Salud San Antonio - Socotá | C44: Boyacá Empresas que No Cotizan | D44: 2070951862 | E44: 2121859798 | F44: -50907936 | G44: -2.399212995 | H44: 545583298 | I44: 829727832 | J44: -284144534 | K44: -34.24551076 | L44: 0 | M44: 0 | N44: 0 | O44: 0 | P44: 0 | Q44: 0 | R44: 0 | S44: 0 | T44: 0 | U44: 0 | V44: 0 | W44: 0 | X44: 0 | Y44: 0 | Z44: 0 | AA44: 0 | AB44: 735806906 | AC44: 964952529 | AD44: 0 | AE44: 0 | AF44: 0 | AG44: 0 | AH44: 22430032 | AI44: 0 | AJ44: 0 | AK44: 0 | AL44: 0 | AM44: 0 | AN44: 0 | AO44: 0 | AP44: 0 | AQ44: 0 | AR44: 0 | AS44: 0 | AT44: 34602085 | AU44: 24422902 | AV44: 0 | AW44: 0 | AX44: 247255725 | AY44: 159647599 | AZ44: 0 | BA44: 0 | BB44: 0 | BC44: 0 | BD44: 0 | BE44: 0 | BF44: 0 | BG44: 0 | BH44: 0 | BI44: 0 | BJ44: 0 | BK44: 0 | BL44: 0 | BM44: 0 | BN44: 0 | BO44: 0 | BP44: 247255725 | BQ44: 159647599 | BR44: 0 | BS44: 0 | BT44: 0 | BU44: 0 | BV44: 0 | BW44: 0 | BX44: 0 | BY44: 0 | BZ44: 0 | CA44: 0 | CB44: 0 | CC44: 0 | CD44: 0 | CE44: 0 | CF44: 0 | CG44: 0 | CH44: 0 | CI44: 0 | CJ44: 0 | CK44: 0 | CL44: 0 | CM44: - | CN44: 92147371 | CO44: 611386128 | CP44: -519238757 | CQ44: -84.92812205 | CR44: 0 | CS44: 0 | CT44: 0 | CU44: - | CV44: 0 | CW44: 0 | CX44: 0 | CY44: - | CZ44: 0 | DA44: 0 | DB44: 0 | DC44: 0 | DD44: 1978804491 | DE44: 1510473670 | DF44: 468330821 | DG44: 31.00556006 | DH44: 2320922341 | DI44: 1910273966 | DJ44: 410648375 | DK44: 21.49683147 | DL44: 0 | DM44: 0 | DN44: 0 | DO44: - | DP44: 535340318 | DQ44: 299191270 | DR44: 236149048 | DS44: 78.92912383 | DT44: 1598020403 | DU44: 1221256227 | DV44: 0 | DW44: 0 | DX44: 0 | DY44: - | DZ44: 468330821 | EA44: 18546733 | EB44: 449784088 | EC44: … | ED44: 722901938 | EE44: 689017739 | EF44: 1852591520 | EG44: 1891727233 | EH44: -39135713 | EI44: -2.068782027 | EJ44: 0 | EK44: 0 | EL44: 0 | EM44: - | EN44: 0 | EO44: 0 | EP44: 0 | EQ44: - | ER44: 0 | ES44: 0 | ET44: 0 | EU44: - | EV44: 22430032 | EW44: 0 | EX44: 22430032 | EY44: - | EZ44: 523153266 | FA44: 829727832 | FB44: -306574566 | FC44: -36.9488107 | FD44: 0 | FE44: 0 | FF44: 247255725 | FG44: 159647599 | FH44: TRUE | FI44: TRUE
A45: 86800000 | B45: E.S.P. Empresa de Servicios Públicos Domiciliarios de Aguazul | C45: Casanare Empresas que No Cotizan | D45: 5851585955 | E45: 5517121215 | F45: 334464740 | G45: 6.062305448 | H45: 900312946 | I45: 931138462 | J45: -30825516 | K45: -3.310519032 | L45: 0 | M45: 0 | N45: 0 | O45: 0 | P45: 0 | Q45: 0 | R45: 0 | S45: 0 | T45: 0 | U45: 0 | V45: 0 | W45: 0 | X45: 14317621 | Y45: 13165680 | Z45: 783528938 | AA45: 825633750 | AB45: 0 | AC45: 0 | AD45: 0 | AE45: 0 | AF45: 0 | AG45: 0 | AH45: 0 | AI45: 0 | AJ45: 0 | AK45: 0 | AL45: 0 | AM45: 0 | AN45: 0 | AO45: 0 | AP45: 0 | AQ45: 0 | AR45: 0 | AS45: 0 | AT45: 218571457 | AU45: 208444102 | AV45: 0 | AW45: 0 | AX45: 116105070 | AY45: 116105070 | AZ45: 0 | BA45: 0 | BB45: 0 | BC45: 0 | BD45: 0 | BE45: 0 | BF45: 90200990 | BG45: 90200990 | BH45: 11046940 | BI45: 11046940 | BJ45: 14857140 | BK45: 14857140 | BL45: 0 | BM45: 0 | BN45: 0 | BO45: 0 | BP45: 0 | BQ45: 0 | BR45: 0 | BS45: 0 | BT45: 0 | BU45: 0 | BV45: 0 | BW45: 0 | BX45: 0 | BY45: 0 | BZ45: 0 | CA45: 0 | CB45: 0 | CC45: 0 | CD45: 0 | CE45: 0 | CF45: 0 | CG45: 0 | CH45: 0 | CI45: 0 | CJ45: 0 | CK45: 0 | CL45: 0 | CM45: - | CN45: 4230243040 | CO45: 4351503578 | CP45: -121260538 | CQ45: -2.786635374 | CR45: 0 | CS45: 0 | CT45: 0 | CU45: - | CV45: 0 | CW45: 0 | CX45: 0 | CY45: - | CZ45: 0 | DA45: 0 | DB45: 0 | DC45: 0 | DD45: 1621342915 | DE45: 1165617637 | DF45: 455725278 | DG45: 39.09732176 | DH45: 4802437872 | DI45: 5469863624 | DJ45: -667425752 | DK45: -12.20187189 | DL45: 0 | DM45: 0 | DN45: 0 | DO45: - | DP45: 0 | DQ45: 0 | DR45: 0 | DS45: - | DT45: 3037278985 | DU45: 3037518062 | DV45: 0 | DW45: 0 | DX45: 0 | DY45: - | DZ45: 455725278 | EA45: -476106747 | EB45: 931832025 | EC45: -195.7191388 | ED45: 1765158887 | EE45: 2432345562 | EF45: 4346712594 | EG45: 5945970371 | EH45: -1599257777 | EI45: -26.89649758 | EJ45: 0 | EK45: 0 | EL45: 0 | EM45: - | EN45: 0 | EO45: 0 | EP45: 0 | EQ45: - | ER45: 0 | ES45: 0 | ET45: 0 | EU45: - | EV45: 0 | EW45: 0 | EX45: 0 | EY45: - | EZ45: 900312946 | FA45: 931138462 | FB45: -30825516 | FC45: -3.310519032 | FD45: 0 | FE45: 0 | FF45: 116105070 | FG45: 116105070 | FH45: TRUE | FI45: TRUE
A46: 86900000 | B46: Centro de Salud Alcides Jiménez Puerto Caicedo | C46: Putumayo Empresas que No Cotizan | D46: 9370829600 | E46: 4787790429 | F46: 4583039171 | G46: 95.72347075 | H46: 2621381394 | I46: 2002711016 | J46: 618670378 | K46: 30.89164503 | L46: 0 | M46: 0 | N46: 0 | O46: 0 | P46: 0 | Q46: 0 | R46: 0 | S46: 0 | T46: 0 | U46: 0 | V46: 0 | W46: 0 | X46: 0 | Y46: 0 | Z46: 0 | AA46: 0 | AB46: 2724898957 | AC46: 1536740958 | AD46: 0 | AE46: 0 | AF46: 0 | AG46: 0 | AH46: 0 | AI46: 0 | AJ46: 0 | AK46: 0 | AL46: 0 | AM46: 0 | AN46: 0 | AO46: 0 | AP46: 0 | AQ46: 0 | AR46: 0 | AS46: 0 | AT46: 0 | AU46: 569309045 | AV46: 0 | AW46: 0 | AX46: 103517563 | AY46: 103338987 | AZ46: 0 | BA46: 0 | BB46: 0 | BC46: 0 | BD46: 0 | BE46: 0 | BF46: 0 | BG46: 0 | BH46: 0 | BI46: 0 | BJ46: 0 | BK46: 0 | BL46: 0 | BM46: 0 | BN46: 0 | BO46: 0 | BP46: 103517563 | BQ46: 103338987 | BR46: 0 | BS46: 0 | BT46: 0 | BU46: 0 | BV46: 0 | BW46: 0 | BX46: 0 | BY46: 0 | BZ46: 0 | CA46: 0 | CB46: 0 | CC46: 0 | CD46: 0 | CE46: 0 | CF46: 0 | CG46: 0 | CH46: 0 | CI46: 0 | CJ46: 0 | CK46: 0 | CL46: 0 | CM46: - | CN46: 2234301970 | CO46: 1254237197 | CP46: 980064773 | CQ46: 78.14030515 | CR46: 0 | CS46: 0 | CT46: 0 | CU46: - | CV46: 0 | CW46: 0 | CX46: 0 | CY46: - | CZ46: 0 | DA46: 0 | DB46: 0 | DC46: 0 | DD46: 7136527630 | DE46: 3533553232 | DF46: 3602974398 | DG46: 101.9646277 | DH46: 6716832738 | DI46: 5232195873 | DJ46: 1484636865 | DK46: 28.37502458 | DL46: 0 | DM46: 0 | DN46: 0 | DO46: - | DP46: 1646748122 | DQ46: 20240000 | DR46: 1626508122 | DS46: … | DT46: 3952473808 | DU46: 1897157060 | DV46: 0 | DW46: 0 | DX46: 0 | DY46: - | DZ46: 2086894552 | EA46: 287184738 | EB46: 1799709814 | EC46: … | ED46: 2764358930 | EE46: 3335038813 | EF46: 4629938186 | EG46: 4945011135 | EH46: -315072949 | EI46: -6.371531639 | EJ46: 0 | EK46: 0 | EL46: 0 | EM46: - | EN46: 0 | EO46: 0 | EP46: 0 | EQ46: - | ER46: 0 | ES46: 0 | ET46: 0 | EU46: - | EV46: 0 | EW46: 0 | EX46: 0 | EY46: - | EZ46: 2621381394 | FA46: 2002711016 | FB46: 618670378 | FC46: 30.89164503 | FD46: 0 | FE46: 0 | FF46: 103517563 | FG46: 103338987 | FH46: TRUE | FI46: TRUE
A47: 87000000 | B47: Instituto del Deporte, la Recreación y el Aprovechamiento del Tiempo Libre - Santo Domingo | C47: Antioquia Entidades de gobierno | D47: 481990401 | E47: 1069303566 | F47: -587313165 | G47: -54.92482992 | H47: 11548579 | I47: 59032053 | J47: -47483474 | K47: -80.43676543 | L47: 0 | M47: 0 | N47: 0 | O47: 0 | P47: 0 | Q47: 0 | R47: 0 | S47: 0 | T47: 0 | U47: 0 | V47: 0 | W47: 0 | X47: 0 | Y47: 0 | Z47: 0 | AA47: 0 | AB47: 0 | AC47: 0 | AD47: 0 | AE47: 0 | AF47: 0 | AG47: 0 | AH47: 0 | AI47: 0 | AJ47: 0 | AK47: 0 | AL47: 0 | AM47: 0 | AN47: 0 | AO47: 0 | AP47: 0 | AQ47: 0 | AR47: 11548579 | AS47: 59032053 | AT47: 0 | AU47: 0 | AV47: 0 | AW47: 0 | AX47: 0 | AY47: 0 | AZ47: 0 | BA47: 0 | BB47: 0 | BC47: 0 | BD47: 0 | BE47: 0 | BF47: 0 | BG47: 0 | BH47: 0 | BI47: 0 | BJ47: 0 | BK47: 0 | BL47: 0 | BM47: 0 | BN47: 0 | BO47: 0 | BP47: 0 | BQ47: 0 | BR47: 0 | BS47: 0 | BT47: 0 | BU47: 0 | BV47: 0 | BW47: 0 | BX47: 0 | BY47: 0 | BZ47: 0 | CA47: 0 | CB47: 0 | CC47: 0 | CD47: 0 | CE47: 0 | CF47: 0 | CG47: 0 | CH47: 0 | CI47: 0 | CJ47: 0 | CK47: 0 | CL47: 0 | CM47: - | CN47: 16870081 | CO47: 48315349 | CP47: -31445268 | CQ47: -65.08339203 | CR47: 0 | CS47: 0 | CT47: 0 | CU47: - | CV47: 0 | CW47: 0 | CX47: 0 | CY47: - | CZ47: 0 | DA47: 0 | DB47: 0 | DC47: 0 | DD47: 465120320 | DE47: 1020988217 | DF47: -555867897 | DG47: -54.44410501 | DH47: 265872243 | DI47: 291822124 | DJ47: -25949881 | DK47: -8.892362458 | DL47: 0 | DM47: 0 | DN47: 0 | DO47: - | DP47: 265872243 | DQ47: 290976801 | DR47: -25104558 | DS47: -8.627683689 | DT47: 265872243 | DU47: 291822124 | DV47: 0 | DW47: 171308133 | DX47: -171308133 | DY47: -100 | DZ47: 1127292 | EA47: -22008686 | EB47: 23135978 | EC47: -105.1220323 | ED47: 0 | EE47: 0 | EF47: 264744951 | EG47: 313830810 | EH47: -49085859 | EI47: -15.64086681 | EJ47: 0 | EK47: 0 | EL47: 0 | EM47: - | EN47: 0 | EO47: 0 | EP47: 0 | EQ47: - | ER47: 0 | ES47: 0 | ET47: 0 | EU47: - | EV47: 11548579 | EW47: 59032053 | EX47: -47483474 | EY47: -80.43676543 | EZ47: 0 | FA47: 0 | FB47: 0 | FC47: - | FD47: 0 | FE47: 0 | FF47: 0 | FG47: 0 | FH47: TRUE | FI47: TRUE
A48: 87200000 | B48: Empresa de Vivienda e Infraestructura de Antioquia | C48: Antioquia Entidades de gobierno | D48: 258863874473 | E48: 248990512644 | F48: 9873361829 | G48: 3.965356641 | H48: 17920562834 | I48: 21683668281 | J48: -3763105447 | K48: -17.35456104 | L48: 0 | M48: 0 | N48: 0 | O48: 0 | P48: 0 | Q48: 0 | R48: 0 | S48: 0 | T48: 0 | U48: 0 | V48: 0 | W48: 0 | X48: 9690489522 | Y48: 13732779393 | Z48: 0 | AA48: 0 | AB48: 0 | AC48: 0 | AD48: 0 | AE48: 0 | AF48: 0 | AG48: 0 | AH48: 0 | AI48: 0 | AJ48: 0 | AK48: 0 | AL48: 0 | AM48: 0 | AN48: 0 | AO48: 0 | AP48: 0 | AQ48: 0 | AR48: 2083329333 | AS48: 0 | AT48: 6146743979 | AU48: 7950888888 | AV48: 0 | AW48: 0 | AX48: 0 | AY48: 0 | AZ48: 0 | BA48: 0 | BB48: 0 | BC48: 0 | BD48: 0 | BE48: 0 | BF48: 0 | BG48: 0 | BH48: 0 | BI48: 0 | BJ48: 0 | BK48: 0 | BL48: 0 | BM48: 0 | BN48: 0 | BO48: 0 | BP48: 0 | BQ48: 0 | BR48: 0 | BS48: 0 | BT48: 0 | BU48: 0 | BV48: 0 | BW48: 0 | BX48: 0 | BY48: 0 | BZ48: 0 | CA48: 0 | CB48: 0 | CC48: 0 | CD48: 0 | CE48: 0 | CF48: 0 | CG48: 0 | CH48: 0 | CI48: 0 | CJ48: 0 | CK48: 0 | CL48: 0 | CM48: - | CN48: 234050635945 | CO48: 219567404892 | CP48: 14483231053 | CQ48: 6.596257336 | CR48: 0 | CS48: 0 | CT48: 0 | CU48: - | CV48: 0 | CW48: 0 | CX48: 0 | CY48: - | CZ48: 0 | DA48: 0 | DB48: 0 | DC48: 0 | DD48: 24813238528 | DE48: 29423107752 | DF48: -4609869224 | DG48: -15.66751297 | DH48: 85611980568 | DI48: 140890756995 | DJ48: -55278776427 | DK48: -39.23520436 | DL48: 0 | DM48: 0 | DN48: 0 | DO48: - | DP48: 13673126119 | DQ48: 19061470146 | DR48: -5388344027 | DS48: -28.26824996 | DT48: 24865879446 | DU48: 36851137224 | DV48: 3196639082 | DW48: 5701822665 | DX48: -2505183583 | DY48: -43.93653977 | DZ48: -3446323258 | EA48: -9835231044 | EB48: 6388907786 | EC48: -64.95940723 | ED48: 60746101122 | EE48: 104039619771 | EF48: 89058303826 | EG48: 150725988039 | EH48: -61667684213 | EI48: -40.91377009 | EJ48: 0 | EK48: 0 | EL48: 0 | EM48: - | EN48: 0 | EO48: 0 | EP48: 0 | EQ48: - | ER48: 0 | ES48: 0 | ET48: 0 | EU48: - | EV48: 2083329333 | EW48: 0 | EX48: 2083329333 | EY48: - | EZ48: 15837233501 | FA48: 21683668281 | FB48: -5846434780 | FC48: -26.96238803 | FD48: 0 | FE48: 0 | FF48: 0 | FG48: 0 | FH48: TRUE | FI48: TRUE
A49: 87700000 | B49: E.S.E. Hospital San José de Marsella | C49: Risaralda Empresas que No Cotizan | D49: 1.214359537e+10 | E49: 1.182789855e+10 | F49: 315696814.2 | G49: 2.669086252 | H49: 1181005816 | I49: 1054911303 | J49: 126094513.3 | K49: 11.9530915 | L49: 0 | M49: 0 | N49: 0 | O49: 0 | P49: 0 | Q49: 0 | R49: 0 | S49: 0 | T49: 0 | U49: 0 | V49: 0 | W49: 0 | X49: 0 | Y49: 0 | Z49: 0 | AA49: 0 | AB49: 1288214968 | AC49: 1344270709 | AD49: 0 | AE49: 0 | AF49: 0 | AG49: 0 | AH49: 0 | AI49: 0 | AJ49: 0 | AK49: 0 | AL49: 0 | AM49: 0 | AN49: 0 | AO49: 0 | AP49: 0 | AQ49: 0 | AR49: 0 | AS49: 0 | AT49: 0 | AU49: 0 | AV49: 232360213.5 | AW49: 2359002 | AX49: 339569365.1 | AY49: 291718408 | AZ49: 0 | BA49: 0 | BB49: 0 | BC49: 0 | BD49: 0 | BE49: 0 | BF49: 0 | BG49: 0 | BH49: 0 | BI49: 0 | BJ49: 0 | BK49: 0 | BL49: 0 | BM49: 0 | BN49: 0 | BO49: 0 | BP49: 339569365.1 | BQ49: 291718408 | BR49: 0 | BS49: 0 | BT49: 0 | BU49: 0 | BV49: 0 | BW49: 0 | BX49: 0 | BY49: 0 | BZ49: 0 | CA49: 0 | CB49: 0 | CC49: 0 | CD49: 0 | CE49: 0 | CF49: 0 | CG49: 0 | CH49: 0 | CI49: 0 | CJ49: 0 | CK49: 0 | CL49: 0 | CM49: - | CN49: 355708954.7 | CO49: 340632827.7 | CP49: 15076127 | CQ49: 4.425917226 | CR49: 0 | CS49: 0 | CT49: 0 | CU49: - | CV49: 0 | CW49: 0 | CX49: 0 | CY49: - | CZ49: 0 | DA49: 0 | DB49: 0 | DC49: 0 | DD49: 1.178788641e+10 | DE49: 1.148726573e+10 | DF49: 300620687.2 | DG49: 2.6169908 | DH49: 4235296576 | DI49: 5206860103 | DJ49: -971563526.5 | DK49: -18.65929768 | DL49: 0 | DM49: 0 | DN49: 0 | DO49: - | DP49: 229420011 | DQ49: 384886766 | DR49: -155466755 | DS49: -40.39285544 | DT49: 1790218649 | DU49: 2827076884 | DV49: 0 | DW49: 0 | DX49: 0 | DY49: - | DZ49: 300620687.2 | EA49: 678126733 | EB49: -377506045.8 | EC49: -55.66895205 | ED49: 2445077927 | EE49: 2379783218 | EF49: 3934675889 | EG49: 4528733370 | EH49: -594057480.7 | EI49: -13.11751945 | EJ49: 0 | EK49: 0 | EL49: 0 | EM49: - | EN49: 0 | EO49: 0 | EP49: 0 | EQ49: - | ER49: 0 | ES49: 0 | ET49: 0 | EU49: - | EV49: 0 | EW49: 0 | EX49: 0 | EY49: - | EZ49: 1181005816 | FA49: 1054911303 | FB49: 126094513.3 | FC49: 11.9530915 | FD49: 0 | FE49: 0 | FF49: 339569365.1 | FG49: 291718408 | FH49: TRUE | FI49: TRUE
A50: 87800000 | B50: Instituto Municipal de Deporte y Recreación de Ginebra | C50: Valle del Cauca Entidades de gobierno | D50: 196499252.8 | E50: 58912899.92 | F50: 137586352.9 | G50: … | H50: 0 | I50: 0 | J50: 0 | K50: - | L50: 0 | M50: 0 | N50: 0 | O50: 0 | P50: 0 | Q50: 0 | R50: 0 | S50: 0 | T50: 0 | U50: 0 | V50: 0 | W50: 0 | X50: 0 | Y50: 0 | Z50: 0 | AA50: 0 | AB50: 0 | AC50: 0 | AD50: 0 | AE50: 0 | AF50: 0 | AG50: 0 | AH50: 0 | AI50: 0 | AJ50: 0 | AK50: 0 | AL50: 0 | AM50: 0 | AN50: 0 | AO50: 0 | AP50: 0 | AQ50: 0 | AR50: 0 | AS50: 0 | AT50: 0 | AU50: 0 | AV50: 0 | AW50: 0 | AX50: 0 | AY50: 0 | AZ50: 0 | BA50: 0 | BB50: 0 | BC50: 0 | BD50: 0 | BE50: 0 | BF50: 0 | BG50: 0 | BH50: 0 | BI50: 0 | BJ50: 0 | BK50: 0 | BL50: 0 | BM50: 0 | BN50: 0 | BO50: 0 | BP50: 0 | BQ50: 0 | BR50: 0 | BS50: 0 | BT50: 0 | BU50: 0 | BV50: 0 | BW50: 0 | BX50: 0 | BY50: 0 | BZ50: 0 | CA50: 0 | CB50: 0 | CC50: 0 | CD50: 0 | CE50: 0 | CF50: 0 | CG50: 0 | CH50: 0 | CI50: 0 | CJ50: 0 | CK50: 0 | CL50: 0 | CM50: - | CN50: 0 | CO50: 0 | CP50: 0 | CQ50: - | CR50: 0 | CS50: 0 | CT50: 0 | CU50: - | CV50: 0 | CW50: 0 | CX50: 0 | CY50: - | CZ50: 0 | DA50: 0 | DB50: 0 | DC50: 0 | DD50: 196499252.8 | DE50: 58912899.92 | DF50: 137586352.9 | DG50: … | DH50: 449024173 | DI50: 458668055.8 | DJ50: -9643882.82 | DK50: -2.102584363 | DL50: 0 | DM50: 0 | DN50: 0 | DO50: - | DP50: 448423671 | DQ50: 455408055.8 | DR50: -6984384.82 | DS50: -1.53365421 | DT50: 449024173 | DU50: 458668055.8 | DV50: 203211428 | DW50: 309385066.4 | DX50: -106173638.4 | DY50: -34.31763518 | DZ50: 137586352.9 | EA50: 40424547 | EB50: 97161805.9 | EC50: … | ED50: 0 | EE50: 0 | EF50: 311437820.1 | EG50: 418243508.8 | EH50: -106805688.7 | EI50: -25.53672358 | EJ50: 0 | EK50: 0 | EL50: 0 | EM50: - | EN50: 0 | EO50: 0 | EP50: 0 | EQ50: - | ER50: 0 | ES50: 0 | ET50: 0 | EU50: - | EV50: 0 | EW50: 0 | EX50: 0 | EY50: - | EZ50: 0 | FA50: 0 | FB50: 0 | FC50: - | FD50: 0 | FE50: 0 | FF50: 0 | FG50: 0 | FH50: TRUE | FI50: TRUE
A51: 87900000 | B51: E.S.P. Empresa Municipal de Natagaima | C51: Tolima Empresas que No Cotizan | D51: 2440244044 | E51: 1265585661 | F51: 1174658383 | G51: 92.81539916 | H51: 569648490 | I51: 517212685 | J51: 52435805 | K51: 10.13815139 | L51: 0 | M51: 0 | N51: 0 | O51: 0 | P51: 0 | Q51: 0 | R51: 0 | S51: 0 | T51: 0 | U51: 0 | V51: 0 | W51: 0 | X51: 0 | Y51: 0 | Z51: 605418972 | AA51: 475828932 | AB51: 0 | AC51: 0 | AD51: 0 | AE51: 0 | AF51: 0 | AG51: 0 | AH51: 12026752 | AI51: 12000000 | AJ51: 0 | AK51: 0 | AL51: 0 | AM51: 0 | AN51: 0 | AO51: 0 | AP51: 0 | AQ51: 0 | AR51: 0 | AS51: 0 | AT51: 70321747 | AU51: 61712930 | AV51: 0 | AW51: 0 | AX51: 118118981 | AY51: 32329177 | AZ51: 0 | BA51: 0 | BB51: 0 | BC51: 0 | BD51: 0 | BE51: 0 | BF51: 63981411 | BG51: 17994670 | BH51: 25813200 | BI51: 6403898 | BJ51: 28324370 | BK51: 7930609 | BL51: 0 | BM51: 0 | BN51: 0 | BO51: 0 | BP51: 0 | BQ51: 0 | BR51: 0 | BS51: 0 | BT51: 0 | BU51: 0 | BV51: 0 | BW51: 0 | BX51: 0 | BY51: 0 | BZ51: 0 | CA51: 0 | CB51: 0 | CC51: 0 | CD51: 0 | CE51: 0 | CF51: 0 | CG51: 0 | CH51: 0 | CI51: 0 | CJ51: 0 | CK51: 0 | CL51: 0 | CM51: - | CN51: 836312286 | CO51: 967106816 | CP51: -130794530 | CQ51: -13.52431064 | CR51: 0 | CS51: 0 | CT51: 0 | CU51: - | CV51: 0 | CW51: 0 | CX51: 0 | CY51: - | CZ51: 0 | DA51: 0 | DB51: 0 | DC51: 0 | DD51: 1603931758 | DE51: 298478845 | DF51: 1305452913 | DG51: … | DH51: 2172768376 | DI51: 1628018530 | DJ51: 544749846 | DK51: 33.4609119 | DL51: 0 | DM51: 0 | DN51: 0 | DO51: - | DP51: 548501250 | DQ51: 241698029 | DR51: 306803221 | DS51: 126.9365837 | DT51: 1068862200 | DU51: 1141113091 | DV51: 0 | DW51: 0 | DX51: 0 | DY51: - | DZ51: 75345433 | EA51: 96839723 | EB51: -21494290 | EC51: -22.19573676 | ED51: 1103906176 | EE51: 486905439 | EF51: 2097422943 | EG51: 1531178807 | EH51: 566244136 | EI51: 36.98092825 | EJ51: 0 | EK51: 0 | EL51: 0 | EM51: - | EN51: 0 | EO51: 0 | EP51: 0 | EQ51: - | ER51: 0 | ES51: 0 | ET51: 0 | EU51: - | EV51: 12026752 | EW51: 12000000 | EX51: 26752 | EY51: 0.2229333333 | EZ51: 557621738 | FA51: 505212685 | FB51: 52409053 | FC51: 10.37366134 | FD51: 0 | FE51: 0 | FF51: 118118981 | FG51: 32329177 | FH51: TRUE | FI51: TRUE
A52: 88500000 | B52: Empresa Municipal de Vías - Belén de Umbría | C52: Risaralda Empresas que No Cotizan | D52: 1614988443 | E52: 3070782592 | F52: -1455794149 | G52: -47.40791982 | H52: 531625238.5 | I52: 1616083526 | J52: -1084458287 | K52: -67.10409889 | L52: 0 | M52: 0 | N52: 0 | O52: 0 | P52: 0 | Q52: 0 | R52: 0 | S52: 0 | T52: 0 | U52: 0 | V52: 0 | W52: 0 | X52: 461363010.5 | Y52: 1545821298 | Z52: 0 | AA52: 0 | AB52: 0 | AC52: 0 | AD52: 0 | AE52: 0 | AF52: 0 | AG52: 0 | AH52: 0 | AI52: 0 | AJ52: 0 | AK52: 0 | AL52: 0 | AM52: 0 | AN52: 0 | AO52: 0 | AP52: 0 | AQ52: 0 | AR52: 0 | AS52: 0 | AT52: 70262228 | AU52: 70262228 | AV52: 33485693 | AW52: 33485693 | AX52: 33485693 | AY52: 33485693 | AZ52: 0 | BA52: 0 | BB52: 31378727 | BC52: 31378727 | BD52: 0 | BE52: 0 | BF52: 0 | BG52: 0 | BH52: 0 | BI52: 0 | BJ52: 0 | BK52: 0 | BL52: 0 | BM52: 0 | BN52: 0 | BO52: 0 | BP52: 0 | BQ52: 0 | BR52: 0 | BS52: 0 | BT52: 0 | BU52: 0 | BV52: 0 | BW52: 0 | BX52: 0 | BY52: 0 | BZ52: 0 | CA52: 0 | CB52: 0 | CC52: 0 | CD52: 2106966 | CE52: 2106966 | CF52: 0 | CG52: 0 | CH52: 0 | CI52: 0 | CJ52: 0 | CK52: 0 | CL52: 0 | CM52: - | CN52: 1313614507 | CO52: 2380492327 | CP52: -1066877820 | CQ52: -44.81752821 | CR52: 0 | CS52: 0 | CT52: 0 | CU52: - | CV52: 0 | CW52: 0 | CX52: 0 | CY52: - | CZ52: 0 | DA52: 0 | DB52: 0 | DC52: 0 | DD52: 301373935.8 | DE52: 690290264.5 | DF52: -388916328.8 | DG52: -56.34098418 | DH52: 849139521.6 | DI52: 1520445318 | DJ52: -671305796.8 | DK52: -44.15191975 | DL52: 0 | DM52: 0 | DN52: 0 | DO52: - | DP52: 0 | DQ52: 215101984.4 | DR52: -215101984.4 | DS52: -100 | DT52: 664340601.6 | DU52: 1308656375 | DV52: 0 | DW52: 0 | DX52: 0 | DY52: - | DZ52: -366130745.8 | EA52: -328982983 | EB52: -37147762.75 | EC52: 11.29169734 | ED52: 184798920 | EE52: 211788943 | EF52: 1215270267 | EG52: 1849428301 | EH52: -634158034.1 | EI52: -34.28940898 | EJ52: 0 | EK52: 0 | EL52: 0 | EM52: - | EN52: 0 | EO52: 0 | EP52: 0 | EQ52: - | ER52: 0 | ES52: 0 | ET52: 0 | EU52: - | EV52: 0 | EW52: 0 | EX52: 0 | EY52: - | EZ52: 531625238.5 | FA52: 1616083526 | FB52: -1084458287 | FC52: -67.10409889 | FD52: 0 | FE52: 0 | FF52: 33485693 | FG52: 33485693 | FH52: TRUE | FI52: TRUE
A53: 88700000 | B53: E.S.P. Aguas y Aseo de El Pital S.A. | C53: Huila Empresas que No Cotizan | D53: 2464832683 | E53: 2001267640 | F53: 463565043 | G53: 23.16357062 | H53: 868365577 | I53: 575231692 | J53: 293133885 | K53: 50.95927242 | L53: 0 | M53: 0 | N53: 0 | O53: 0 | P53: 0 | Q53: 0 | R53: 0 | S53: 0 | T53: 0 | U53: 0 | V53: 0 | W53: 0 | X53: 200673561 | Y53: 29512166 | Z53: 656381179 | AA53: 611489526 | AB53: 0 | AC53: 0 | AD53: 0 | AE53: 0 | AF53: 0 | AG53: 0 | AH53: 0 | AI53: 0 | AJ53: 0 | AK53: 0 | AL53: 0 | AM53: 0 | AN53: 0 | AO53: 0 | AP53: 0 | AQ53: 0 | AR53: 0 | AS53: 0 | AT53: 11310837 | AU53: 3498000 | AV53: 0 | AW53: 0 | AX53: 0 | AY53: 0 | AZ53: 0 | BA53: 0 | BB53: 0 | BC53: 0 | BD53: 0 | BE53: 0 | BF53: 0 | BG53: 0 | BH53: 0 | BI53: 0 | BJ53: 0 | BK53: 0 | BL53: 0 | BM53: 0 | BN53: 0 | BO53: 0 | BP53: 0 | BQ53: 0 | BR53: 0 | BS53: 0 | BT53: 0 | BU53: 0 | BV53: 0 | BW53: 0 | BX53: 0 | BY53: 0 | BZ53: 0 | CA53: 0 | CB53: 0 | CC53: 0 | CD53: 0 | CE53: 0 | CF53: 0 | CG53: 0 | CH53: 0 | CI53: 69268000 | CJ53: 0 | CK53: 0 | CL53: 0 | CM53: - | CN53: 1131265858 | CO53: 773752795 | CP53: 357513063 | CQ53: 46.20507549 | CR53: 0 | CS53: 0 | CT53: 0 | CU53: - | CV53: 268713879 | CW53: 222066733 | CX53: 46647146 | CY53: 21.00591357 | CZ53: 0 | DA53: 0 | DB53: 0 | DC53: 0 | DD53: 1333566825 | DE53: 1227514845 | DF53: 106051980 | DG53: 8.639568021 | DH53: 1975468762 | DI53: 1862113906 | DJ53: 113354856 | DK53: 6.087428682 | DL53: 0 | DM53: 0 | DN53: 0 | DO53: - | DP53: 0 | DQ53: 0 | DR53: 0 | DS53: - | DT53: 864809587 | DU53: 687187015 | DV53: 0 | DW53: 0 | DX53: 0 | DY53: - | DZ53: 106051980 | EA53: 91362793 | EB53: 14689187 | EC53: 16.07786553 | ED53: 1110659175 | EE53: 1174926891 | EF53: 1869416782 | EG53: 1770751113 | EH53: 98665669 | EI53: 5.571967075 | EJ53: 268713879 | EK53: 222066733 | EL53: 46647146 | EM53: 21.00591357 | EN53: 0 | EO53: 0 | EP53: 0 | EQ53: - | ER53: 0 | ES53: 0 | ET53: 0 | EU53: - | EV53: 0 | EW53: 0 | EX53: 0 | EY53: - | EZ53: 868365577 | FA53: 575231692 | FB53: 293133885 | FC53: 50.95927242 | FD53: 0 | FE53: 0 | FF53: 0 | FG53: 69268000 | FH53: TRUE | FI53: TRUE
A54: 88800000 | B54: Instituto de Tránsito y Transporte de Los Patios | C54: Norte de Santander Entidades de gobierno | D54: 2922462280 | E54: 1749147230 | F54: 1173315051 | G54: 67.07926187 | H54: 1071440529 | I54: 985715379.6 | J54: 85725149 | K54: 8.696744596 | L54: 0 | M54: 0 | N54: 967715379.6 | O54: 967715379.6 | P54: 0 | Q54: 0 | R54: 0 | S54: 0 | T54: 0 | U54: 0 | V54: 0 | W54: 0 | X54: 0 | Y54: 0 | Z54: 0 | AA54: 0 | AB54: 0 | AC54: 0 | AD54: 0 | AE54: 0 | AF54: 0 | AG54: 0 | AH54: 0 | AI54: 0 | AJ54: 0 | AK54: 0 | AL54: 0 | AM54: 0 | AN54: 0 | AO54: 0 | AP54: 0 | AQ54: 0 | AR54: 0 | AS54: 0 | AT54: 103725149 | AU54: 18000000 | AV54: 0 | AW54: 0 | AX54: 0 | AY54: 0 | AZ54: 0 | BA54: 0 | BB54: 0 | BC54: 0 | BD54: 0 | BE54: 0 | BF54: 0 | BG54: 0 | BH54: 0 | BI54: 0 | BJ54: 0 | BK54: 0 | BL54: 0 | BM54: 0 | BN54: 0 | BO54: 0 | BP54: 0 | BQ54: 0 | BR54: 0 | BS54: 0 | BT54: 0 | BU54: 0 | BV54: 0 | BW54: 0 | BX54: 0 | BY54: 0 | BZ54: 0 | CA54: 0 | CB54: 0 | CC54: 0 | CD54: 0 | CE54: 0 | CF54: 0 | CG54: 0 | CH54: 0 | CI54: 0 | CJ54: 0 | CK54: 0 | CL54: 0 | CM54: - | CN54: 1642102246 | CO54: 1291816064 | CP54: 350286182.6 | CQ54: 27.11579399 | CR54: 0 | CS54: 0 | CT54: 0 | CU54: - | CV54: 0 | CW54: 0 | CX54: 0 | CY54: - | CZ54: 0 | DA54: 0 | DB54: 0 | DC54: 0 | DD54: 1280360034 | DE54: 457331165.9 | DF54: 823028868.2 | DG54: 179.9634334 | DH54: 3365515039 | DI54: 2793441498 | DJ54: 572073541 | DK54: 20.4791667 | DL54: 0 | DM54: 0 | DN54: 0 | DO54: - | DP54: 237600000 | DQ54: 0 | DR54: 237600000 | DS54: - | DT54: 3365515039 | DU54: 2793441498 | DV54: 0 | DW54: 0 | DX54: 0 | DY54: - | DZ54: 823028868.2 | EA54: -305371426.4 | EB54: 1128400295 | EC54: … | ED54: 0 | EE54: 0 | EF54: 2542486171 | EG54: 3098812925 | EH54: -556326753.6 | EI54: -17.95289897 | EJ54: 0 | EK54: 0 | EL54: 0 | EM54: - | EN54: 0 | EO54: 0 | EP54: 0 | EQ54: - | ER54: 0 | ES54: 0 | ET54: 0 | EU54: - | EV54: 967715379.6 | EW54: 967715379.6 | EX54: 0 | EY54: 0 | EZ54: 103725149 | FA54: 18000000 | FB54: 85725149 | FC54: … | FD54: 0 | FE54: 0 | FF54: 0 | FG54: 0 | FH54: TRUE | FI54: TRUE
A55: 88900000 | B55: E.S.E. Centro de Salud con Camas de la Cabecera Municipal de El Peñón | C55: Bolívar Empresas que No Cotizan | D55: 1772917533 | E55: 1605517333 | F55: 167400200 | G55: 10.42655825 | H55: 776164523 | I55: 625534359 | J55: 150630164 | K55: 24.08023825 | L55: 0 | M55: 0 | N55: 0 | O55: 0 | P55: 0 | Q55: 0 | R55: 0 | S55: 0 | T55: 0 | U55: 0 | V55: 0 | W55: 0 | X55: 0 | Y55: 0 | Z55: 0 | AA55: 0 | AB55: 776164523 | AC55: 442041370 | AD55: 0 | AE55: 0 | AF55: 0 | AG55: 0 | AH55: 0 | AI55: 186000000 | AJ55: 0 | AK55: 0 | AL55: 0 | AM55: 0 | AN55: 0 | AO55: 0 | AP55: 0 | AQ55: 0 | AR55: 0 | AS55: 0 | AT55: 0 | AU55: 0 | AV55: 0 | AW55: 0 | AX55: 0 | AY55: 2507011 | AZ55: 0 | BA55: 0 | BB55: 0 | BC55: 0 | BD55: 0 | BE55: 0 | BF55: 0 | BG55: 0 | BH55: 0 | BI55: 0 | BJ55: 0 | BK55: 0 | BL55: 0 | BM55: 0 | BN55: 0 | BO55: 0 | BP55: 0 | BQ55: 2507011 | BR55: 0 | BS55: 0 | BT55: 0 | BU55: 0 | BV55: 0 | BW55: 0 | BX55: 0 | BY55: 0 | BZ55: 0 | CA55: 0 | CB55: 0 | CC55: 0 | CD55: 0 | CE55: 0 | CF55: 0 | CG55: 0 | CH55: 0 | CI55: 0 | CJ55: 0 | CK55: 0 | CL55: 0 | CM55: - | CN55: 853378731 | CO55: 803105870 | CP55: 50272861 | CQ55: 6.25980495 | CR55: 0 | CS55: 0 | CT55: 0 | CU55: - | CV55: 0 | CW55: 0 | CX55: 0 | CY55: - | CZ55: 0 | DA55: 0 | DB55: 0 | DC55: 0 | DD55: 919538802 | DE55: 802411463 | DF55: 117127339 | DG55: 14.59691747 | DH55: 1262136308 | DI55: 1124147536 | DJ55: 137988772 | DK55: 12.27496993 | DL55: 0 | DM55: 0 | DN55: 0 | DO55: - | DP55: 334197263 | DQ55: 235163885 | DR55: 99033378 | DS55: 42.11249444 | DT55: 583462408 | DU55: 609380599 | DV55: 0 | DW55: 0 | DX55: 0 | DY55: - | DZ55: 6224908 | EA55: 46979467 | EB55: -40754559 | EC55: -86.74972622 | ED55: 678673900 | EE55: 514766937 | EF55: 1255911400 | EG55: 1077168069 | EH55: 178743331 | EI55: 16.59382005 | EJ55: 0 | EK55: 0 | EL55: 0 | EM55: - | EN55: 0 | EO55: 0 | EP55: 0 | EQ55: - | ER55: 0 | ES55: 0 | ET55: 0 | EU55: - | EV55: 0 | EW55: 186000000 | EX55: -186000000 | EY55: -100 | EZ55: 776164523 | FA55: 439534359 | FB55: 336630164 | FC55: 76.58790652 | FD55: 0 | FE55: 0 | FF55: 0 | FG55: 2507011 | FH55: TRUE | FI55: TRUE
A56: 89000000 | B56: Asociación de Municipios del Alto Ariari | C56: Meta Entidades de gobierno | D56: 1416831892 | E56: 3004767440 | F56: -1587935548 | G56: -52.84720298 | H56: 1066442236 | I56: 1660697041 | J56: -594254805 | K56: -35.7834566 | L56: 0 | M56: 0 | N56: 546433018 | O56: 348073292 | P56: 0 | Q56: 0 | R56: 0 | S56: 0 | T56: 0 | U56: 0 | V56: 0 | W56: 0 | X56: 0 | Y56: 0 | Z56: 0 | AA56: 0 | AB56: 0 | AC56: 0 | AD56: 0 | AE56: 0 | AF56: 0 | AG56: 0 | AH56: 0 | AI56: 0 | AJ56: 0 | AK56: 0 | AL56: 0 | AM56: 0 | AN56: 0 | AO56: 0 | AP56: 0 | AQ56: 0 | AR56: 0 | AS56: 0 | AT56: 520009218 | AU56: 1312623749 | AV56: 0 | AW56: 0 | AX56: 0 | AY56: 0 | AZ56: 0 | BA56: 0 | BB56: 0 | BC56: 0 | BD56: 0 | BE56: 0 | BF56: 0 | BG56: 0 | BH56: 0 | BI56: 0 | BJ56: 0 | BK56: 0 | BL56: 0 | BM56: 0 | BN56: 0 | BO56: 0 | BP56: 0 | BQ56: 0 | BR56: 0 | BS56: 0 | BT56: 0 | BU56: 0 | BV56: 0 | BW56: 0 | BX56: 0 | BY56: 0 | BZ56: 0 | CA56: 0 | CB56: 0 | CC56: 0 | CD56: 0 | CE56: 0 | CF56: 0 | CG56: 0 | CH56: 0 | CI56: 0 | CJ56: 0 | CK56: 0 | CL56: 0 | CM56: - | CN56: 983189038 | CO56: 2780342567 | CP56: -1797153529 | CQ56: -64.63784536 | CR56: 0 | CS56: 0 | CT56: 0 | CU56: - | CV56: 0 | CW56: 0 | CX56: 0 | CY56: - | CZ56: 0 | DA56: 0 | DB56: 0 | DC56: 0 | DD56: 433642854 | DE56: 224424873 | DF56: 209217981 | DG56: 93.22406122 | DH56: 748334997 | DI56: 776327880 | DJ56: -27992883 | DK56: -3.605806737 | DL56: 0 | DM56: 0 | DN56: 0 | DO56: - | DP56: 0 | DQ56: 0 | DR56: 0 | DS56: - | DT56: 748334997 | DU56: 776327880 | DV56: 0 | DW56: 0 | DX56: 0 | DY56: - | DZ56: 209217981 | EA56: 48791816 | EB56: 160426165 | EC56: … | ED56: 0 | EE56: 0 | EF56: 539117016 | EG56: 727536064 | EH56: -188419048 | EI56: -25.89824166 | EJ56: 0 | EK56: 0 | EL56: 0 | EM56: - | EN56: 0 | EO56: 0 | EP56: 0 | EQ56: - | ER56: 0 | ES56: 0 | ET56: 0 | EU56: - | EV56: 546433018 | EW56: 348073292 | EX56: 198359726 | EY56: 56.98791908 | EZ56: 520009218 | FA56: 1312623749 | FB56: -792614531 | FC56: -60.38398525 | FD56: 0 | FE56: 0 | FF56: 0 | FG56: 0 | FH56: TRUE | FI56: TRUE
A57: 89100000 | B57: E.S.P. Aguas del Puerto S.A. - Puerto Berrío | C57: Antioquia Empresas que No Cotizan | D57: 9789821380 | E57: 9438377325 | F57: 351444055 | G57: 3.723564368 | H57: 960761330 | I57: 1051308210 | J57: -90546880 | K57: -8.612781593 | L57: 0 | M57: 0 | N57: 0 | O57: 0 | P57: 0 | Q57: 0 | R57: 0 | S57: 0 | T57: 0 | U57: 0 | V57: 0 | W57: 0 | X57: 0 | Y57: 0 | Z57: 631177861 | AA57: 670508714 | AB57: 0 | AC57: 0 | AD57: 0 | AE57: 0 | AF57: 0 | AG57: 0 | AH57: 0 | AI57: 0 | AJ57: 0 | AK57: 0 | AL57: 0 | AM57: 0 | AN57: 0 | AO57: 0 | AP57: 0 | AQ57: 0 | AR57: 0 | AS57: 0 | AT57: 0 | AU57: 196590044 | AV57: 878751813 | AW57: 707377796 | AX57: 549168344 | AY57: 523168344 | AZ57: 0 | BA57: 0 | BB57: 0 | BC57: 0 | BD57: 0 | BE57: 0 | BF57: 171730919 | BG57: 163564319 | BH57: 62849681 | BI57: 59773881 | BJ57: 314587744 | BK57: 299830144 | BL57: 0 | BM57: 0 | BN57: 0 | BO57: 0 | BP57: 0 | BQ57: 0 | BR57: 0 | BS57: 0 | BT57: 0 | BU57: 0 | BV57: 0 | BW57: 0 | BX57: 0 | BY57: 0 | BZ57: 0 | CA57: 0 | CB57: 0 | CC57: 0 | CD57: 0 | CE57: 0 | CF57: 0 | CG57: 0 | CH57: 0 | CI57: 0 | CJ57: 0 | CK57: 0 | CL57: 0 | CM57: - | CN57: 1730374562 | CO57: 1583694772 | CP57: 146679790 | CQ57: 9.261872464 | CR57: 0 | CS57: 0 | CT57: 0 | CU57: - | CV57: 0 | CW57: 0 | CX57: 0 | CY57: - | CZ57: 0 | DA57: 0 | DB57: 0 | DC57: 0 | DD57: 8059446818 | DE57: 7854682553 | DF57: 204764265 | DG57: 2.606906945 | DH57: 7518896560 | DI57: 7965093101 | DJ57: -446196541 | DK57: -5.601899882 | DL57: 0 | DM57: 0 | DN57: 0 | DO57: - | DP57: 0 | DQ57: 0 | DR57: 0 | DS57: - | DT57: 1721458669 | DU57: 1913975790 | DV57: 0 | DW57: 0 | DX57: 0 | DY57: - | DZ57: 204764265 | EA57: 68155313 | EB57: 136608952 | EC57: … | ED57: 5797437891 | EE57: 6051117311 | EF57: 7314132295 | EG57: 7896937788 | EH57: -582805493 | EI57: -7.380145427 | EJ57: 0 | EK57: 0 | EL57: 0 | EM57: - | EN57: 0 | EO57: 0 | EP57: 0 | EQ57: - | ER57: 0 | ES57: 0 | ET57: 0 | EU57: - | EV57: 0 | EW57: 0 | EX57: 0 | EY57: - | EZ57: 960761330 | FA57: 1051308210 | FB57: -90546880 | FC57: -8.612781593 | FD57: 0 | FE57: 0 | FF57: 549168344 | FG57: 523168344 | FH57: TRUE | FI57: TRUE
A58: 89200000 | B58: E.S.P. Empresa de Servicios Públicos Domiciliarios del Municipio de Pacho | C58: Cundinamarca Empresas que No Cotizan | D58: 5978991652 | E58: 5911950425 | F58: 67041227 | G58: 1.133995081 | H58: 909610355 | I58: 788249406 | J58: 121360949 | K58: 15.39626266 | L58: 0 | M58: 0 | N58: 9912860 | O58: 14283503 | P58: 0 | Q58: 0 | R58: 0 | S58: 0 | T58: 0 | U58: 0 | V58: 10484404 | W58: 9946013 | X58: 0 | Y58: 0 | Z58: 427987614 | AA58: 332197435 | AB58: 390252 | AC58: 0 | AD58: 0 | AE58: 0 | AF58: 0 | AG58: 0 | AH58: 396436469 | AI58: 396436469 | AJ58: 0 | AK58: 0 | AL58: 0 | AM58: 0 | AN58: 0 | AO58: 0 | AP58: 0 | AQ58: 0 | AR58: 0 | AS58: 0 | AT58: 104661925 | AU58: 76072885 | AV58: 423730 | AW58: 0 | AX58: 40686899 | AY58: 40686899 | AZ58: 0 | BA58: 0 | BB58: 0 | BC58: 0 | BD58: 0 | BE58: 0 | BF58: 40686899 | BG58: 40686899 | BH58: 0 | BI58: 0 | BJ58: 0 | BK58: 0 | BL58: 0 | BM58: 0 | BN58: 0 | BO58: 0 | BP58: 0 | BQ58: 0 | BR58: 0 | BS58: 0 | BT58: 0 | BU58: 0 | BV58: 0 | BW58: 0 | BX58: 0 | BY58: 0 | BZ58: 0 | CA58: 0 | CB58: 0 | CC58: 0 | CD58: 0 | CE58: 0 | CF58: 0 | CG58: 0 | CH58: 0 | CI58: 0 | CJ58: 0 | CK58: 0 | CL58: 0 | CM58: - | CN58: 609859302 | CO58: 646480962 | CP58: -36621660 | CQ58: -5.664770063 | CR58: 0 | CS58: 0 | CT58: 0 | CU58: - | CV58: 0 | CW58: 0 | CX58: 0 | CY58: - | CZ58: 0 | DA58: 0 | DB58: 0 | DC58: 0 | DD58: 5369132350 | DE58: 5265469463 | DF58: 103662887 | DG58: 1.968730191 | DH58: 2040735458 | DI58: 2113554895 | DJ58: -72819437 | DK58: -3.445353474 | DL58: 0 | DM58: 0 | DN58: 0 | DO58: - | DP58: 0 | DQ58: 0 | DR58: 0 | DS58: - | DT58: 789993398 | DU58: 804520348 | DV58: 0 | DW58: 0 | DX58: 0 | DY58: - | DZ58: 103662888 | EA58: -71266866 | EB58: 174929754 | EC58: … | ED58: 1250742060 | EE58: 1309034547 | EF58: 1937072570 | EG58: 2184821761 | EH58: -247749191 | EI58: -11.33956076 | EJ58: 0 | EK58: 0 | EL58: 0 | EM58: - | EN58: 0 | EO58: 0 | EP58: 0 | EQ58: - | ER58: 0 | ES58: 0 | ET58: 0 | EU58: - | EV58: 406349329 | EW58: 410719972 | EX58: -4370643 | EY58: -1.064141824 | EZ58: 503261026 | FA58: 377529434 | FB58: 125731592 | FC58: 33.30378526 | FD58: 0 | FE58: 0 | FF58: 40686899 | FG58: 40686899 | FH58: TRUE | FI58: TRUE
A59: 89300000 | B59: E.S.E. Centro de Salud Samuel Villanueva Valest - El Banco | C59: Magdalena Empresas que No Cotizan | D59: 7901858594 | E59: 7791845106 | F59: 110013488 | G59: 1.411905479 | H59: 1971684094 | I59: 1649875965 | J59: 321808129 | K59: 19.50498921 | L59: 0 | M59: 0 | N59: 0 | O59: 0 | P59: 0 | Q59: 0 | R59: 0 | S59: 0 | T59: 0 | U59: 0 | V59: 0 | W59: 0 | X59: 0 | Y59: 0 | Z59: 0 | AA59: 0 | AB59: 1927684094 | AC59: 1605875965 | AD59: 0 | AE59: 0 | AF59: 0 | AG59: 0 | AH59: 44000000 | AI59: 44000000 | AJ59: 0 | AK59: 0 | AL59: 0 | AM59: 0 | AN59: 0 | AO59: 0 | AP59: 0 | AQ59: 0 | AR59: 0 | AS59: 0 | AT59: 0 | AU59: 0 | AV59: 0 | AW59: 0 | AX59: 0 | AY59: 0 | AZ59: 0 | BA59: 0 | BB59: 0 | BC59: 0 | BD59: 0 | BE59: 0 | BF59: 0 | BG59: 0 | BH59: 0 | BI59: 0 | BJ59: 0 | BK59: 0 | BL59: 0 | BM59: 0 | BN59: 0 | BO59: 0 | BP59: 0 | BQ59: 0 | BR59: 0 | BS59: 0 | BT59: 0 | BU59: 0 | BV59: 0 | BW59: 0 | BX59: 0 | BY59: 0 | BZ59: 0 | CA59: 0 | CB59: 0 | CC59: 0 | CD59: 0 | CE59: 0 | CF59: 0 | CG59: 0 | CH59: 0 | CI59: 0 | CJ59: 0 | CK59: 0 | CL59: 0 | CM59: - | CN59: 1050073572 | CO59: 1307808789 | CP59: -257735217 | CQ59: -19.70740824 | CR59: 0 | CS59: 0 | CT59: 0 | CU59: - | CV59: 0 | CW59: 0 | CX59: 0 | CY59: - | CZ59: 0 | DA59: 0 | DB59: 0 | DC59: 0 | DD59: 6851785022 | DE59: 6484036317 | DF59: 367748705 | DG59: 5.671601561 | DH59: 9923936729 | DI59: 9727690691 | DJ59: 196246038 | DK59: 2.01739595 | DL59: 0 | DM59: 0 | DN59: 0 | DO59: - | DP59: 244666115 | DQ59: 0 | DR59: 244666115 | DS59: - | DT59: 5348820825 | DU59: 5256162967 | DV59: 0 | DW59: 0 | DX59: 0 | DY59: - | DZ59: 81141494 | EA59: 345125 | EB59: 80796369 | EC59: … | ED59: 4575115904 | EE59: 4471527724 | EF59: 9842795235 | EG59: 9727345566 | EH59: 115449669 | EI59: 1.186856869 | EJ59: 0 | EK59: 0 | EL59: 0 | EM59: - | EN59: 0 | EO59: 0 | EP59: 0 | EQ59: - | ER59: 0 | ES59: 0 | ET59: 0 | EU59: - | EV59: 44000000 | EW59: 44000000 | EX59: 0 | EY59: 0 | EZ59: 1927684094 | FA59: 1605875965 | FB59: 321808129 | FC59: 20.03941375 | FD59: 0 | FE59: 0 | FF59: 0 | FG59: 0 | FH59: TRUE | FI59: TRUE
A60: 89400000 | B60: E.S.P. Retirar - El Retiro | C60: Antioquia Empresas que No Cotizan | D60: 4693788933 | E60: 4383275735 | F60: 310513197.7 | G60: 7.084044366 | H60: 1020601105 | I60: 906997752 | J60: 113603353.1 | K60: 12.52520779 | L60: 0 | M60: 0 | N60: 0 | O60: 0 | P60: 0 | Q60: 0 | R60: 0 | S60: 0 | T60: 0 | U60: 0 | V60: 0 | W60: 0 | X60: 16007568 | Y60: 170197050 | Z60: 869513122.1 | AA60: 721249888 | AB60: 0 | AC60: 0 | AD60: 0 | AE60: 0 | AF60: 0 | AG60: 0 | AH60: 0 | AI60: 0 | AJ60: 0 | AK60: 0 | AL60: 0 | AM60: 0 | AN60: 0 | AO60: 0 | AP60: 0 | AQ60: 0 | AR60: 0 | AS60: 0 | AT60: 141131318 | AU60: 21601717 | AV60: 0 | AW60: 0 | AX60: 6050903 | AY60: 6050903 | AZ60: 0 | BA60: 0 | BB60: 6050903 | BC60: 6050903 | BD60: 0 | BE60: 0 | BF60: 0 | BG60: 0 | BH60: 0 | BI60: 0 | BJ60: 0 | BK60: 0 | BL60: 0 | BM60: 0 | BN60: 0 | BO60: 0 | BP60: 0 | BQ60: 0 | BR60: 0 | BS60: 0 | BT60: 0 | BU60: 0 | BV60: 0 | BW60: 0 | BX60: 0 | BY60: 0 | BZ60: 0 | CA60: 0 | CB60: 0 | CC60: 0 | CD60: 0 | CE60: 0 | CF60: 0 | CG60: 0 | CH60: 0 | CI60: 0 | CJ60: 0 | CK60: 0 | CL60: 0 | CM60: - | CN60: 2068035375 | CO60: 1656469923 | CP60: 411565451.7 | CQ60: 24.84593568 | CR60: 0 | CS60: 0 | CT60: 0 | CU60: - | CV60: 687070594 | CW60: 617769939 | CX60: 69300655 | CY60: 11.21787426 | CZ60: 0 | DA60: 0 | DB60: 0 | DC60: 0 | DD60: 2625753558 | DE60: 2726805812 | DF60: -101052253.9 | DG60: -3.705883767 | DH60: 5440528805 | DI60: 4634615738 | DJ60: 805913067.3 | DK60: 17.38899432 | DL60: 0 | DM60: 0 | DN60: 0 | DO60: - | DP60: 0 | DQ60: 0 | DR60: 0 | DS60: - | DT60: 1383866643 | DU60: 1136751236 | DV60: 0 | DW60: 0 | DX60: 0 | DY60: - | DZ60: 95525626.48 | EA60: 85981522 | EB60: 9544104.48 | EC60: 11.1001809 | ED60: 4056662162 | EE60: 3497864502 | EF60: 5345003179 | EG60: 4548634216 | EH60: 796368962.8 | EI60: 17.50786994 | EJ60: 687070594 | EK60: 617769939 | EL60: 69300655 | EM60: 11.21787426 | EN60: 0 | EO60: 0 | EP60: 0 | EQ60: - | ER60: 0 | ES60: 0 | ET60: 0 | EU60: - | EV60: 0 | EW60: 0 | EX60: 0 | EY60: - | EZ60: 1020601105 | FA60: 906997752 | FB60: 113603353.1 | FC60: 12.52520779 | FD60: 0 | FE60: 0 | FF60: 6050903 | FG60: 6050903 | FH60: TRUE | FI60: TRUE
A61: 89600000 | B61: E.S.P. Empresa de Energía Eléctrica del Departamento del Vichada S.A. | C61: Vichada Empresas que No Cotizan | D61: 14010006048 | E61: 15017087236 | F61: -1007081188 | G61: -6.706235185 | H61: 3463006084 | I61: 1957517335 | J61: 1505488749 | K61: 76.90806728 | L61: 0 | M61: 0 | N61: 0 | O61: 0 | P61: 0 | Q61: 0 | R61: 0 | S61: 0 | T61: 0 | U61: 0 | V61: 40734596 | W61: 48328540 | X61: 311525601 | Y61: 409719312 | Z61: 2905553887 | AA61: 1499469483 | AB61: 0 | AC61: 0 | AD61: 0 | AE61: 0 | AF61: 0 | AG61: 0 | AH61: 0 | AI61: 0 | AJ61: 0 | AK61: 0 | AL61: 0 | AM61: 0 | AN61: 0 | AO61: 0 | AP61: 0 | AQ61: 0 | AR61: 0 | AS61: 0 | AT61: 205192000 | AU61: 0 | AV61: 0 | AW61: 0 | AX61: 0 | AY61: 0 | AZ61: 0 | BA61: 0 | BB61: 0 | BC61: 0 | BD61: 0 | BE61: 0 | BF61: 0 | BG61: 0 | BH61: 0 | BI61: 0 | BJ61: 0 | BK61: 0 | BL61: 0 | BM61: 0 | BN61: 0 | BO61: 0 | BP61: 0 | BQ61: 0 | BR61: 0 | BS61: 0 | BT61: 0 | BU61: 0 | BV61: 0 | BW61: 0 | BX61: 0 | BY61: 0 | BZ61: 0 | CA61: 0 | CB61: 0 | CC61: 0 | CD61: 0 | CE61: 0 | CF61: 0 | CG61: 0 | CH61: 0 | CI61: 0 | CJ61: 0 | CK61: 0 | CL61: 0 | CM61: - | CN61: 9459646817 | CO61: 9448386408 | CP61: 11260409 | CQ61: 0.1191781169 | CR61: 0 | CS61: 0 | CT61: 0 | CU61: - | CV61: 0 | CW61: 0 | CX61: 0 | CY61: - | CZ61: 0 | DA61: 0 | DB61: 0 | DC61: 0 | DD61: 4550359231 | DE61: 5568700828 | DF61: -1018341597 | DG61: -18.28687926 | DH61: 19439044721 | DI61: 22973125643 | DJ61: -3534080922 | DK61: -15.38354413 | DL61: 0 | DM61: 0 | DN61: 0 | DO61: - | DP61: 0 | DQ61: 766760282 | DR61: -766760282 | DS61: -100 | DT61: 1089333560 | DU61: 1692938480 | DV61: 0 | DW61: 0 | DX61: 0 | DY61: - | DZ61: -1018341596 | EA61: -860864396 | EB61: -157477200 | EC61: 18.2929159 | ED61: 18349711161 | EE61: 21280187163 | EF61: 20457386317 | EG61: 23833990039 | EH61: -3376603722 | EI61: -14.1671777 | EJ61: 0 | EK61: 0 | EL61: 0 | EM61: - | EN61: 0 | EO61: 0 | EP61: 0 | EQ61: - | ER61: 0 | ES61: 0 | ET61: 0 | EU61: - | EV61: 0 | EW61: 0 | EX61: 0 | EY61: - | EZ61: 3463006084 | FA61: 1957517335 | FB61: 1505488749 | FC61: 76.90806728 | FD61: 0 | FE61: 0 | FF61: 0 | FG61: 0 | FH61: TRUE | FI61: TRUE
A62: 89700000 | B62: Instituto Departamental de Juventud y Deporte de Boyacá | C62: Boyacá Entidades de gobierno | D62: 1.492853562e+11 | E62: 1.37067443e+11 | F62: 1.221791321e+10 | G62: 8.9137967 | H62: 7322282939 | I62: 115360141 | J62: 7206922798 | K62: … | L62: 0 | M62: 0 | N62: 0 | O62: 0 | P62: 0 | Q62: 0 | R62: 0 | S62: 0 | T62: 0 | U62: 0 | V62: 0 | W62: 0 | X62: 0 | Y62: 0 | Z62: 0 | AA62: 0 | AB62: 0 | AC62: 0 | AD62: 0 | AE62: 0 | AF62: 0 | AG62: 0 | AH62: 0 | AI62: 0 | AJ62: 0 | AK62: 0 | AL62: 0 | AM62: 0 | AN62: 0 | AO62: 0 | AP62: 0 | AQ62: 0 | AR62: 7322270861 | AS62: 115360141 | AT62: 12078 | AU62: 0 | AV62: 15000000 | AW62: 15000000 | AX62: 15000000 | AY62: 15000000 | AZ62: 0 | BA62: 0 | BB62: 0 | BC62: 0 | BD62: 0 | BE62: 0 | BF62: 0 | BG62: 0 | BH62: 0 | BI62: 0 | BJ62: 0 | BK62: 0 | BL62: 0 | BM62: 0 | BN62: 0 | BO62: 0 | BP62: 0 | BQ62: 0 | BR62: 0 | BS62: 0 | BT62: 0 | BU62: 0 | BV62: 0 | BW62: 0 | BX62: 0 | BY62: 0 | BZ62: 0 | CA62: 0 | CB62: 0 | CC62: 0 | CD62: 15000000 | CE62: 15000000 | CF62: 0 | CG62: 0 | CH62: 0 | CI62: 0 | CJ62: 0 | CK62: 0 | CL62: 0 | CM62: - | CN62: 2022522903 | CO62: 1514129894 | CP62: 508393008.6 | CQ62: 33.57657823 | CR62: 0 | CS62: 0 | CT62: 0 | CU62: - | CV62: 0 | CW62: 0 | CX62: 0 | CY62: - | CZ62: 0 | DA62: 0 | DB62: 0 | DC62: 0 | DD62: 1.472628333e+11 | DE62: 1.355533131e+11 | DF62: 1.170952021e+10 | DG62: 8.638313542 | DH62: 2.068135175e+10 | DI62: 30591759920 | DJ62: -9910408171 | DK62: -32.39567843 | DL62: 0 | DM62: 0 | DN62: 0 | DO62: - | DP62: 1.753927882e+10 | DQ62: 1.577449797e+10 | DR62: 1764780844 | DS62: 11.18755631 | DT62: 2.068135175e+10 | DU62: 30591759920 | DV62: 5458917854 | DW62: 2.590994684e+10 | DX62: -2.045102898e+10 | DY62: -78.93118852 | DZ62: 1.130244232e+10 | EA62: 321105153.4 | EB62: 1.098133716e+10 | EC62: … | ED62: 0 | EE62: 0 | EF62: 9378909432 | EG62: 3.027065477e+10 | EH62: -2.089174533e+10 | EI62: -69.01649632 | EJ62: 0 | EK62: 0 | EL62: 0 | EM62: - | EN62: 0 | EO62: 0 | EP62: 0 | EQ62: - | ER62: 0 | ES62: 0 | ET62: 0 | EU62: - | EV62: 7322270861 | EW62: 115360141 | EX62: 7206910720 | EY62: … | EZ62: 12078 | FA62: 0 | FB62: 12078 | FC62: - | FD62: 0 | FE62: 0 | FF62: 15000000 | FG62: 15000000 | FH62: TRUE | FI62: TRUE
A63: 89800000 | B63: E.S.E. Centro de Salud - Ventaquemada | C63: Boyacá Empresas que No Cotizan | D63: 4672613566 | E63: 3752829214 | F63: 919784352 | G63: 24.50909166 | H63: 535347025 | I63: 819133127 | J63: -283786102 | K63: -34.64468627 | L63: 0 | M63: 0 | N63: 0 | O63: 0 | P63: 0 | Q63: 0 | R63: 0 | S63: 0 | T63: 0 | U63: 0 | V63: 0 | W63: 0 | X63: 0 | Y63: 0 | Z63: 0 | AA63: 0 | AB63: 713667660 | AC63: 819133127 | AD63: 0 | AE63: 0 | AF63: 0 | AG63: 0 | AH63: 0 | AI63: 0 | AJ63: 0 | AK63: 0 | AL63: 0 | AM63: 0 | AN63: 0 | AO63: 0 | AP63: 0 | AQ63: 0 | AR63: 0 | AS63: 0 | AT63: 746 | AU63: 0 | AV63: 0 | AW63: 0 | AX63: 178321381 | AY63: 0 | AZ63: 0 | BA63: 0 | BB63: 0 | BC63: 0 | BD63: 0 | BE63: 0 | BF63: 0 | BG63: 0 | BH63: 0 | BI63: 0 | BJ63: 0 | BK63: 0 | BL63: 0 | BM63: 0 | BN63: 0 | BO63: 0 | BP63: 178321381 | BQ63: 0 | BR63: 0 | BS63: 0 | BT63: 0 | BU63: 0 | BV63: 0 | BW63: 0 | BX63: 0 | BY63: 0 | BZ63: 0 | CA63: 0 | CB63: 0 | CC63: 0 | CD63: 0 | CE63: 0 | CF63: 0 | CG63: 0 | CH63: 0 | CI63: 0 | CJ63: 0 | CK63: 0 | CL63: 0 | CM63: - | CN63: 23305484 | CO63: 49857935 | CP63: -26552451 | CQ63: -53.25621889 | CR63: 0 | CS63: 0 | CT63: 0 | CU63: - | CV63: 0 | CW63: 0 | CX63: 0 | CY63: - | CZ63: 0 | DA63: 0 | DB63: 0 | DC63: 0 | DD63: 4649308082 | DE63: 3702971279 | DF63: 946336803 | DG63: 25.55614753 | DH63: 2450241221 | DI63: 2203785902 | DJ63: 246455319 | DK63: 11.18326961 | DL63: 0 | DM63: 0 | DN63: 0 | DO63: - | DP63: 2141421 | DQ63: 17039454 | DR63: -14898033 | DS63: -87.43257266 | DT63: 1187497077 | DU63: 1081151864 | DV63: 0 | DW63: 0 | DX63: 0 | DY63: - | DZ63: 618116606 | EA63: 463513818 | EB63: 154602788 | EC63: 33.35451544 | ED63: 1262744144 | EE63: 1122634038 | EF63: 1832124615 | EG63: 1740272084 | EH63: 91852531 | EI63: 5.278055762 | EJ63: 0 | EK63: 0 | EL63: 0 | EM63: - | EN63: 0 | EO63: 0 | EP63: 0 | EQ63: - | ER63: 0 | ES63: 0 | ET63: 0 | EU63: - | EV63: 0 | EW63: 0 | EX63: 0 | EY63: - | EZ63: 535347025 | FA63: 819133127 | FB63: -283786102 | FC63: -34.64468627 | FD63: 0 | FE63: 0 | FF63: 178321381 | FG63: 0 | FH63: TRUE | FI63: TRUE
A64: 89970221 | B64: Coveñas | C64: Sucre Entidades de gobierno | D64: 2.812129724e+11 | E64: 2.011487173e+11 | F64: 8.006425514e+10 | G64: 39.80351266 | H64: 1.074119253e+11 | I64: 6.019713317e+10 | J64: 4.721479209e+10 | K64: 78.43362234 | L64: 31579372525 | M64: 1.519612245e+10 | N64: 2.228374783e+10 | O64: 651646.64 | P64: 0 | Q64: 0 | R64: 0 | S64: 0 | T64: 0 | U64: 0 | V64: 0 | W64: 0 | X64: 0 | Y64: 0 | Z64: 0 | AA64: 0 | AB64: 0 | AC64: 0 | AD64: 0 | AE64: 0 | AF64: 0 | AG64: 0 | AH64: 0 | AI64: 0 | AJ64: 0 | AK64: 0 | AL64: 0 | AM64: 0 | AN64: 0 | AO64: 0 | AP64: 0 | AQ64: 0 | AR64: 3.593641222e+10 | AS64: 2.822871737e+10 | AT64: 1.761239268e+10 | AU64: 1.67716417e+10 | AV64: 0 | AW64: 0 | AX64: 0 | AY64: 0 | AZ64: 0 | BA64: 0 | BB64: 0 | BC64: 0 | BD64: 0 | BE64: 0 | BF64: 0 | BG64: 0 | BH64: 0 | BI64: 0 | BJ64: 0 | BK64: 0 | BL64: 0 | BM64: 0 | BN64: 0 | BO64: 0 | BP64: 0 | BQ64: 0 | BR64: 0 | BS64: 0 | BT64: 0 | BU64: 0 | BV64: 0 | BW64: 0 | BX64: 0 | BY64: 0 | BZ64: 0 | CA64: 0 | CB64: 0 | CC64: 0 | CD64: 0 | CE64: 0 | CF64: 0 | CG64: 0 | CH64: 0 | CI64: 0 | CJ64: 131899765.6 | CK64: 131899765.6 | CL64: 0 | CM64: 0 | CN64: 2.163636133e+10 | CO64: 2.285829161e+10 | CP64: -1221930278 | CQ64: -5.345676304 | CR64: 0 | CS64: 0 | CT64: 0 | CU64: - | CV64: 5254170178 | CW64: 6604744925 | CX64: -1350574747 | CY64: -20.4485527 | CZ64: 0 | DA64: 0 | DB64: 0 | DC64: 0 | DD64: 2.595766111e+11 | DE64: 1.782904257e+11 | DF64: 8.128618542e+10 | DG64: 45.59200816 | DH64: 1.163128067e+11 | DI64: 6.944551537e+10 | DJ64: 4.686729133e+10 | DK64: 67.48785876 | DL64: 4.246785486e+10 | DM64: 2.280872122e+10 | DN64: 1.965913365e+10 | DO64: 86.19130139 | DP64: 3.853884142e+10 | DQ64: 2.973753697e+10 | DR64: 8801304450 | DS64: 29.59661541 | DT64: 1.163128067e+11 | DU64: 6.944551537e+10 | DV64: 2.019685261e+10 | DW64: 1.493827601e+10 | DX64: 5258576595 | DY64: 35.20203128 | DZ64: 8.623243319e+10 | EA64: 3.778620502e+10 | EB64: 4.844622816e+10 | EC64: 128.2114151 | ED64: 0 | EE64: 0 | EF64: 3.008037351e+10 | EG64: 3.165931034e+10 | EH64: -1578936833 | EI64: -4.987274883 | EJ64: 5254170178 | EK64: 6604744925 | EL64: -1350574747 | EM64: -20.4485527 | EN64: 0 | EO64: 0 | EP64: 0 | EQ64: - | ER64: 131899765.6 | ES64: 131899765.6 | ET64: 0 | EU64: 0 | EV64: 8.979953258e+10 | EW64: 4.342549147e+10 | EX64: 4.637404111e+10 | EY64: 106.7899051 | EZ64: 1.761239268e+10 | FA64: 1.67716417e+10 | FB64: 840750979.6 | FC64: 5.012931916 | FD64: 0 | FE64: 0 | FF64: 0 | FG64: 0 | FH64: TRUE | FI64: TRUE
A65: 90000000 | B65: Corporación Prodesarrollo y Seguridad del Municipio de Girardot | C65: Cundinamarca Entidades de gobierno | D65: 2526969109 | E65: 2652069235 | F65: -125100126.4 | G65: -4.717076187 | H65: 930993061 | I65: 535844829 | J65: 395148232 | K65: 73.74303355 | L65: 0 | M65: 0 | N65: 39216997 | O65: 29901197 | P65: 0 | Q65: 0 | R65: 0 | S65: 0 | T65: 0 | U65: 0 | V65: 0 | W65: 0 | X65: 0 | Y65: 0 | Z65: 0 | AA65: 0 | AB65: 0 | AC65: 0 | AD65: 0 | AE65: 0 | AF65: 0 | AG65: 0 | AH65: 0 | AI65: 0 | AJ65: 0 | AK65: 0 | AL65: 0 | AM65: 0 | AN65: 0 | AO65: 0 | AP65: 0 | AQ65: 0 | AR65: 891776064 | AS65: 505943632 | AT65: 0 | AU65: 0 | AV65: 18839827 | AW65: 18839827 | AX65: 18839827 | AY65: 18839827 | AZ65: 0 | BA65: 0 | BB65: 0 | BC65: 0 | BD65: 0 | BE65: 0 | BF65: 0 | BG65: 0 | BH65: 0 | BI65: 0 | BJ65: 0 | BK65: 0 | BL65: 0 | BM65: 0 | BN65: 0 | BO65: 0 | BP65: 0 | BQ65: 0 | BR65: 0 | BS65: 0 | BT65: 0 | BU65: 0 | BV65: 0 | BW65: 0 | BX65: 0 | BY65: 0 | BZ65: 0 | CA65: 0 | CB65: 0 | CC65: 0 | CD65: 18839827 | CE65: 18839827 | CF65: 0 | CG65: 0 | CH65: 0 | CI65: 0 | CJ65: 0 | CK65: 0 | CL65: 0 | CM65: - | CN65: 417271644 | CO65: 841083253.6 | CP65: -423811609.6 | CQ65: -50.3887823 | CR65: 0 | CS65: 0 | CT65: 0 | CU65: - | CV65: 0 | CW65: 0 | CX65: 0 | CY65: - | CZ65: 0 | DA65: 0 | DB65: 0 | DC65: 0 | DD65: 2109697465 | DE65: 1810985982 | DF65: 298711483.2 | DG65: 16.49441167 | DH65: 2271296702 | DI65: 2233136967 | DJ65: 38159734.8 | DK65: 1.708795088 | DL65: 0 | DM65: 0 | DN65: 0 | DO65: - | DP65: 1884701325 | DQ65: 1706687101 | DR65: 178014224 | DS65: 10.43039605 | DT65: 2271296702 | DU65: 2233136967 | DV65: 0 | DW65: 0 | DX65: 0 | DY65: - | DZ65: 434408863 | EA65: 245946110.8 | EB65: 188462752.2 | EC65: 76.62766108 | ED65: 0 | EE65: 0 | EF65: 1836887839 | EG65: 1987190856 | EH65: -150303017.4 | EI65: -7.563592441 | EJ65: 0 | EK65: 0 | EL65: 0 | EM65: - | EN65: 0 | EO65: 0 | EP65: 0 | EQ65: - | ER65: 0 | ES65: 0 | ET65: 0 | EU65: - | EV65: 930993061 | EW65: 535844829 | EX65: 395148232 | EY65: 73.74303355 | EZ65: 0 | FA65: 0 | FB65: 0 | FC65: - | FD65: 0 | FE65: 0 | FF65: 18839827 | FG65: 18839827 | FH65: TRUE | FI65: TRUE
A66: 90300000 | B66: E.S.P. Empresas Públicas Municipales de Yolombó | C66: Antioquia Empresas que No Cotizan | D66: 776337051 | E66: 901877816 | F66: -125540765 | G66: -13.91993047 | H66: 62094761.81 | I66: 99762741 | J66: -37667979.19 | K66: -37.7575624 | L66: 0 | M66: 0 | N66: 0 | O66: 0 | P66: 0 | Q66: 0 | R66: 0 | S66: 0 | T66: 0 | U66: 0 | V66: 0 | W66: 0 | X66: 0 | Y66: 0 | Z66: 63386389 | AA66: 100802930 | AB66: 0 | AC66: 0 | AD66: 0 | AE66: 0 | AF66: 0 | AG66: 0 | AH66: 0 | AI66: 0 | AJ66: 0 | AK66: 0 | AL66: 0 | AM66: 0 | AN66: 0 | AO66: 0 | AP66: 0 | AQ66: 0 | AR66: 0 | AS66: 0 | AT66: 0 | AU66: 0 | AV66: 39608308 | AW66: 39651811 | AX66: 40899935.19 | AY66: 40692000 | AZ66: 0 | BA66: 0 | BB66: 0 | BC66: 0 | BD66: 0 | BE66: 0 | BF66: 16535828 | BG66: 13610000 | BH66: 5622782 | BI66: 7127000 | BJ66: 5095325.19 | BK66: 6309000 | BL66: 0 | BM66: 0 | BN66: 0 | BO66: 0 | BP66: 0 | BQ66: 0 | BR66: 0 | BS66: 0 | BT66: 0 | BU66: 0 | BV66: 0 | BW66: 0 | BX66: 0 | BY66: 0 | BZ66: 0 | CA66: 0 | CB66: 0 | CC66: 0 | CD66: 13646000 | CE66: 13646000 | CF66: 0 | CG66: 0 | CH66: 0 | CI66: 0 | CJ66: 0 | CK66: 0 | CL66: 0 | CM66: - | CN66: 178393686 | CO66: 206811375 | CP66: -28417689 | CQ66: -13.7408733 | CR66: 0 | CS66: 0 | CT66: 0 | CU66: - | CV66: 96851682 | CW66: 0 | CX66: 96851682 | CY66: - | CZ66: 0 | DA66: 0 | DB66: 0 | DC66: 0 | DD66: 597943365 | DE66: 695066441 | DF66: -97123075.95 | DG66: -13.97320748 | DH66: 1508717688 | DI66: 1196036185 | DJ66: 312681503 | DK66: 26.14314742 | DL66: 0 | DM66: 0 | DN66: 0 | DO66: - | DP66: 0 | DQ66: 322887127 | DR66: -322887127 | DS66: -100 | DT66: 1508717688 | DU66: 287463869 | DV66: 0 | DW66: 0 | DX66: 0 | DY66: - | DZ66: 958665186.2 | EA66: -49870551 | EB66: 1008535737 | EC66: … | ED66: 0 | EE66: 908572316 | EF66: 550052501.8 | EG66: 1245906736 | EH66: -695854234.2 | EI66: -55.8512298 | EJ66: 96851682 | EK66: 0 | EL66: 96851682 | EM66: - | EN66: 0 | EO66: 0 | EP66: 0 | EQ66: - | ER66: 0 | ES66: 0 | ET66: 0 | EU66: - | EV66: 0 | EW66: 0 | EX66: 0 | EY66: - | EZ66: 62094761.81 | FA66: 99762741 | FB66: -37667979.19 | FC66: -37.7575624 | FD66: 0 | FE66: 0 | FF66: 40899935.19 | FG66: 40692000 | FH66: TRUE | FI66: TRUE
A67: 90400000 | B67: Instituto para el Deporte, la Educación Física y la Recreación de El Peñol | C67: Antioquia Entidades de gobierno | D67: 3415596881 | E67: 3359312330 | F67: 56284551 | G67: 1.675478356 | H67: 88904444 | I67: 4484847 | J67: 84419597 | K67: … | L67: 0 | M67: 0 | N67: 0 | O67: 0 | P67: 0 | Q67: 0 | R67: 0 | S67: 0 | T67: 0 | U67: 0 | V67: 0 | W67: 0 | X67: 0 | Y67: 0 | Z67: 0 | AA67: 0 | AB67: 0 | AC67: 0 | AD67: 0 | AE67: 0 | AF67: 0 | AG67: 0 | AH67: 0 | AI67: 0 | AJ67: 0 | AK67: 0 | AL67: 0 | AM67: 0 | AN67: 0 | AO67: 0 | AP67: 0 | AQ67: 0 | AR67: 87029444 | AS67: 4484847 | AT67: 1875000 | AU67: 0 | AV67: 10500000 | AW67: 10500000 | AX67: 10500000 | AY67: 10500000 | AZ67: 0 | BA67: 0 | BB67: 10500000 | BC67: 10500000 | BD67: 0 | BE67: 0 | BF67: 0 | BG67: 0 | BH67: 0 | BI67: 0 | BJ67: 0 | BK67: 0 | BL67: 0 | BM67: 0 | BN67: 0 | BO67: 0 | BP67: 0 | BQ67: 0 | BR67: 0 | BS67: 0 | BT67: 0 | BU67: 0 | BV67: 0 | BW67: 0 | BX67: 0 | BY67: 0 | BZ67: 0 | CA67: 0 | CB67: 0 | CC67: 0 | CD67: 0 | CE67: 0 | CF67: 0 | CG67: 0 | CH67: 0 | CI67: 0 | CJ67: 0 | CK67: 0 | CL67: 0 | CM67: - | CN67: 88072428 | CO67: 0 | CP67: 88072428 | CQ67: - | CR67: 0 | CS67: 0 | CT67: 0 | CU67: - | CV67: 0 | CW67: 0 | CX67: 0 | CY67: - | CZ67: 0 | DA67: 0 | DB67: 0 | DC67: 0 | DD67: 3327524453 | DE67: 3359312330 | DF67: -31787877 | DG67: -0.9462614332 | DH67: 563590467 | DI67: 495582113 | DJ67: 68008354 | DK67: 13.72292345 | DL67: 0 | DM67: 0 | DN67: 0 | DO67: - | DP67: 512084580 | DQ67: 297789907 | DR67: 214294673 | DS67: 71.96169782 | DT67: 563590467 | DU67: 495582113 | DV67: 421935789 | DW67: 371410673 | DX67: 50525116 | DY67: 13.60357138 | DZ67: -31787877 | EA67: -31316090 | EB67: -471787 | EC67: 1.506532265 | ED67: 0 | EE67: 0 | EF67: 595378344 | EG67: 526898203 | EH67: 68480141 | EI67: 12.99684467 | EJ67: 0 | EK67: 0 | EL67: 0 | EM67: - | EN67: 0 | EO67: 0 | EP67: 0 | EQ67: - | ER67: 0 | ES67: 0 | ET67: 0 | EU67: - | EV67: 87029444 | EW67: 4484847 | EX67: 82544597 | EY67: … | EZ67: 1875000 | FA67: 0 | FB67: 1875000 | FC67: - | FD67: 0 | FE67: 0 | FF67: 10500000 | FG67: 10500000 | FH67: TRUE | FI67: TRUE
A68: 90500000 | B68: E.S.E. Hospital Fronterizo - La Dorada | C68: Putumayo Empresas que No Cotizan | D68: 5452859493 | E68: 4602756715 | F68: 850102777.9 | G68: 18.4694267 | H68: 641285860.3 | I68: 240058560 | J68: 401227300.3 | K68: 167.1372603 | L68: 0 | M68: 0 | N68: 0 | O68: 0 | P68: 0 | Q68: 0 | R68: 0 | S68: 0 | T68: 0 | U68: 0 | V68: 0 | W68: 0 | X68: 0 | Y68: 0 | Z68: 0 | AA68: 0 | AB68: 925537470.1 | AC68: 873538311 | AD68: 0 | AE68: 0 | AF68: 0 | AG68: 0 | AH68: 0 | AI68: 0 | AJ68: 0 | AK68: 0 | AL68: 0 | AM68: 0 | AN68: 0 | AO68: 0 | AP68: 0 | AQ68: 0 | AR68: 0 | AS68: 0 | AT68: 0 | AU68: 0 | AV68: 0 | AW68: 0 | AX68: 284251609.9 | AY68: 633479751 | AZ68: 0 | BA68: 0 | BB68: 0 | BC68: 0 | BD68: 0 | BE68: 0 | BF68: 0 | BG68: 0 | BH68: 0 | BI68: 0 | BJ68: 0 | BK68: 0 | BL68: 0 | BM68: 0 | BN68: 0 | BO68: 0 | BP68: 284251609.9 | BQ68: 633479751 | BR68: 0 | BS68: 0 | BT68: 0 | BU68: 0 | BV68: 0 | BW68: 0 | BX68: 0 | BY68: 0 | BZ68: 0 | CA68: 0 | CB68: 0 | CC68: 0 | CD68: 0 | CE68: 0 | CF68: 0 | CG68: 0 | CH68: 0 | CI68: 0 | CJ68: 0 | CK68: 0 | CL68: 0 | CM68: - | CN68: 388396429.3 | CO68: 10165511 | CP68: 378230918.3 | CQ68: … | CR68: 0 | CS68: 0 | CT68: 0 | CU68: - | CV68: 0 | CW68: 0 | CX68: 0 | CY68: - | CZ68: 0 | DA68: 0 | DB68: 0 | DC68: 0 | DD68: 5064463064 | DE68: 4592591204 | DF68: 471871859.6 | DG68: 10.27463231 | DH68: 5390778246 | DI68: 4547862821 | DJ68: 842915424.6 | DK68: 18.53431948 | DL68: 0 | DM68: 0 | DN68: 0 | DO68: - | DP68: 432278759.6 | DQ68: 0 | DR68: 432278759.6 | DS68: - | DT68: 3068276423 | DU68: 1541383390 | DV68: 0 | DW68: 0 | DX68: 0 | DY68: - | DZ68: 920078461 | EA68: -264417959 | EB68: 1184496420 | EC68: … | ED68: 2322501822 | EE68: 3006479431 | EF68: 4470699785 | EG68: 4812280780 | EH68: -341580995.4 | EI68: -7.098110252 | EJ68: 0 | EK68: 0 | EL68: 0 | EM68: - | EN68: 0 | EO68: 0 | EP68: 0 | EQ68: - | ER68: 0 | ES68: 0 | ET68: 0 | EU68: - | EV68: 0 | EW68: 0 | EX68: 0 | EY68: - | EZ68: 641285860.3 | FA68: 240058560 | FB68: 401227300.3 | FC68: 167.1372603 | FD68: 0 | FE68: 0 | FF68: 284251609.9 | FG68: 633479751 | FH68: TRUE | FI68: TRUE
A69: 90600000 | B69: E.S.E. Hospital San Francisco Javier del Municipio de Acevedo | C69: Huila Empresas que No Cotizan | D69: 4373701838 | E69: 4419178364 | F69: -45476525.78 | G69: -1.029071969 | H69: 1210392341 | I69: 1308928347 | J69: -98536006.4 | K69: -7.527990865 | L69: 0 | M69: 0 | N69: 0 | O69: 0 | P69: 0 | Q69: 0 | R69: 0 | S69: 0 | T69: 0 | U69: 0 | V69: 0 | W69: 0 | X69: 0 | Y69: 0 | Z69: 0 | AA69: 0 | AB69: 2511961581 | AC69: 2152815970 | AD69: 0 | AE69: 0 | AF69: 0 | AG69: 0 | AH69: 0 | AI69: 0 | AJ69: 0 | AK69: 0 | AL69: 0 | AM69: 0 | AN69: 0 | AO69: 0 | AP69: 0 | AQ69: 0 | AR69: 0 | AS69: 0 | AT69: 939440.92 | AU69: 925588 | AV69: 0 | AW69: 0 | AX69: 1302508682 | AY69: 844813211 | AZ69: 0 | BA69: 0 | BB69: 0 | BC69: 0 | BD69: 0 | BE69: 0 | BF69: 0 | BG69: 0 | BH69: 0 | BI69: 0 | BJ69: 0 | BK69: 0 | BL69: 0 | BM69: 0 | BN69: 0 | BO69: 0 | BP69: 0 | BQ69: 0 | BR69: 0 | BS69: 0 | BT69: 0 | BU69: 0 | BV69: 0 | BW69: 0 | BX69: 0 | BY69: 0 | BZ69: 0 | CA69: 0 | CB69: 0 | CC69: 0 | CD69: 1302508682 | CE69: 844813211 | CF69: 0 | CG69: 0 | CH69: 0 | CI69: 0 | CJ69: 0 | CK69: 0 | CL69: 0 | CM69: - | CN69: 1038829693 | CO69: 1363853571 | CP69: -325023877.9 | CQ69: -23.8312884 | CR69: 0 | CS69: 0 | CT69: 0 | CU69: - | CV69: 0 | CW69: 0 | CX69: 0 | CY69: - | CZ69: 0 | DA69: 0 | DB69: 0 | DC69: 0 | DD69: 3334872145 | DE69: 3055324793 | DF69: 279547352.1 | DG69: 9.149513426 | DH69: 7738964801 | DI69: 8146575598 | DJ69: -407610797 | DK69: -5.003461787 | DL69: 0 | DM69: 0 | DN69: 0 | DO69: - | DP69: 882229168 | DQ69: 187606106 | DR69: 694623062 | DS69: … | DT69: 3270534840 | DU69: 3987286400 | DV69: 0 | DW69: 0 | DX69: 0 | DY69: - | DZ69: 279547352.1 | EA69: -51787159.4 | EB69: 331334511.5 | EC69: … | ED69: 4468429960 | EE69: 4159289198 | EF69: 7459417448 | EG69: 8198362757 | EH69: -738945308.5 | EI69: -9.013327788 | EJ69: 0 | EK69: 0 | EL69: 0 | EM69: - | EN69: 0 | EO69: 0 | EP69: 0 | EQ69: - | ER69: 0 | ES69: 0 | ET69: 0 | EU69: - | EV69: 0 | EW69: 0 | EX69: 0 | EY69: - | EZ69: 1210392341 | FA69: 1308928347 | FB69: -98536006.4 | FC69: -7.527990865 | FD69: 0 | FE69: 0 | FF69: 1302508682 | FG69: 844813211 | FH69: TRUE | FI69: TRUE
A70: 90700000 | B70: Empresa Constructora de Vivienda de Tunja | C70: Boyacá Entidades de gobierno | D70: 1.612689586e+10 | E70: 15822797294 | F70: 304098565.7 | G70: 1.921901419 | H70: 91796542.9 | I70: 104677317 | J70: -12880774.1 | K70: -12.30521996 | L70: 0 | M70: 0 | N70: 0 | O70: 0 | P70: 0 | Q70: 0 | R70: 0 | S70: 0 | T70: 0 | U70: 0 | V70: 0 | W70: 0 | X70: 0 | Y70: 0 | Z70: 0 | AA70: 0 | AB70: 0 | AC70: 0 | AD70: 0 | AE70: 0 | AF70: 0 | AG70: 0 | AH70: 0 | AI70: 0 | AJ70: 0 | AK70: 0 | AL70: 0 | AM70: 0 | AN70: 0 | AO70: 0 | AP70: 0 | AQ70: 0 | AR70: 91592542.9 | AS70: 104677317 | AT70: 204000 | AU70: 0 | AV70: 0 | AW70: 0 | AX70: 0 | AY70: 0 | AZ70: 0 | BA70: 0 | BB70: 0 | BC70: 0 | BD70: 0 | BE70: 0 | BF70: 0 | BG70: 0 | BH70: 0 | BI70: 0 | BJ70: 0 | BK70: 0 | BL70: 0 | BM70: 0 | BN70: 0 | BO70: 0 | BP70: 0 | BQ70: 0 | BR70: 0 | BS70: 0 | BT70: 0 | BU70: 0 | BV70: 0 | BW70: 0 | BX70: 0 | BY70: 0 | BZ70: 0 | CA70: 0 | CB70: 0 | CC70: 0 | CD70: 0 | CE70: 0 | CF70: 0 | CG70: 0 | CH70: 0 | CI70: 0 | CJ70: 0 | CK70: 0 | CL70: 0 | CM70: - | CN70: 1689175308 | CO70: 1705458775 | CP70: -16283466.79 | CQ70: -0.9547851305 | CR70: 0 | CS70: 0 | CT70: 0 | CU70: - | CV70: 0 | CW70: 0 | CX70: 0 | CY70: - | CZ70: 0 | DA70: 0 | DB70: 0 | DC70: 0 | DD70: 1.443772055e+10 | DE70: 14117338519 | DF70: 320382032.5 | DG70: 2.269422328 | DH70: 2296453987 | DI70: 3200886970 | DJ70: -904432983.1 | DK70: -28.25569886 | DL70: 0 | DM70: 0 | DN70: 0 | DO70: - | DP70: 1287966592 | DQ70: 1925135790 | DR70: -637169198.1 | DS70: -33.0973639 | DT70: 2296453987 | DU70: 3200886970 | DV70: 903533611.6 | DW70: 1927568899 | DX70: -1024035287 | DY70: -53.12574237 | DZ70: 320382032.5 | EA70: 205518277 | EB70: 114863755.5 | EC70: 55.88980073 | ED70: 0 | EE70: 0 | EF70: 1976071954 | EG70: 2995368693 | EH70: -1019296739 | EI70: -34.02909101 | EJ70: 0 | EK70: 0 | EL70: 0 | EM70: - | EN70: 0 | EO70: 0 | EP70: 0 | EQ70: - | ER70: 0 | ES70: 0 | ET70: 0 | EU70: - | EV70: 91592542.9 | EW70: 104677317 | EX70: -13084774.1 | EY70: -12.50010458 | EZ70: 204000 | FA70: 0 | FB70: 204000 | FC70: - | FD70: 0 | FE70: 0 | FF70: 0 | FG70: 0 | FH70: TRUE | FI70: TRUE
A71: 90900000 | B71: E.S.E. Centro de Salud Rafael Salgado | C71: Boyacá Empresas que No Cotizan | D71: 1581464176 | E71: 1298628220 | F71: 282835956 | G71: 21.77959416 | H71: 939976032 | I71: 826583717 | J71: 113392315 | K71: 13.71818881 | L71: 0 | M71: 0 | N71: 0 | O71: 0 | P71: 0 | Q71: 0 | R71: 0 | S71: 0 | T71: 0 | U71: 0 | V71: 0 | W71: 0 | X71: 0 | Y71: 0 | Z71: 0 | AA71: 0 | AB71: 981518426 | AC71: 891904222 | AD71: 0 | AE71: 0 | AF71: 0 | AG71: 0 | AH71: 24180096 | AI71: 0 | AJ71: 0 | AK71: 0 | AL71: 0 | AM71: 0 | AN71: 0 | AO71: 0 | AP71: 0 | AQ71: 0 | AR71: 0 | AS71: 0 | AT71: 0 | AU71: 0 | AV71: 0 | AW71: 0 | AX71: 65722490 | AY71: 65320505 | AZ71: 0 | BA71: 0 | BB71: 0 | BC71: 0 | BD71: 0 | BE71: 0 | BF71: 0 | BG71: 0 | BH71: 0 | BI71: 0 | BJ71: 0 | BK71: 0 | BL71: 0 | BM71: 0 | BN71: 0 | BO71: 0 | BP71: 65722490 | BQ71: 65320505 | BR71: 0 | BS71: 0 | BT71: 0 | BU71: 0 | BV71: 0 | BW71: 0 | BX71: 0 | BY71: 0 | BZ71: 0 | CA71: 0 | CB71: 0 | CC71: 0 | CD71: 0 | CE71: 0 | CF71: 0 | CG71: 0 | CH71: 0 | CI71: 0 | CJ71: 0 | CK71: 0 | CL71: 0 | CM71: - | CN71: 522626654 | CO71: 647272616 | CP71: -124645962 | CQ71: -19.25710418 | CR71: 0 | CS71: 0 | CT71: 0 | CU71: - | CV71: 0 | CW71: 0 | CX71: 0 | CY71: - | CZ71: 0 | DA71: 0 | DB71: 0 | DC71: 0 | DD71: 1058837522 | DE71: 651355604 | DF71: 407481918 | DG71: 62.55905614 | DH71: 1495358234 | DI71: 1259603640 | DJ71: 235754594 | DK71: 18.71656976 | DL71: 0 | DM71: 0 | DN71: 0 | DO71: - | DP71: 312091896 | DQ71: 0 | DR71: 312091896 | DS71: - | DT71: 807657587 | DU71: 598126679 | DV71: 0 | DW71: 0 | DX71: 0 | DY71: - | DZ71: 407059803 | EA71: -203086064 | EB71: 610145867 | EC71: … | ED71: 687700647 | EE71: 661476961 | EF71: 1088298431 | EG71: 1462689704 | EH71: -374391273 | EI71: -25.59608316 | EJ71: 0 | EK71: 0 | EL71: 0 | EM71: - | EN71: 0 | EO71: 0 | EP71: 0 | EQ71: - | ER71: 0 | ES71: 0 | ET71: 0 | EU71: - | EV71: 24180096 | EW71: 0 | EX71: 24180096 | EY71: - | EZ71: 915795936 | FA71: 826583717 | FB71: 89212219 | FC71: 10.79288367 | FD71: 0 | FE71: 0 | FF71: 65722490 | FG71: 65320505 | FH71: TRUE | FI71: TRUE
A72: 91000000 | B72: E.S.E. Hospital San Nicolás de Tolentino | C72: Bolívar Empresas que No Cotizan | D72: 3659173778 | E72: 2206380416 | F72: 1452793362 | G72: 65.84509867 | H72: 2310585763 | I72: 969939409 | J72: 1340646354 | K72: 138.2195982 | L72: 0 | M72: 0 | N72: 0 | O72: 0 | P72: 0 | Q72: 0 | R72: 0 | S72: 0 | T72: 0 | U72: 0 | V72: 0 | W72: 0 | X72: 0 | Y72: 0 | Z72: 0 | AA72: 0 | AB72: 2310585763 | AC72: 981268725 | AD72: 0 | AE72: 0 | AF72: 0 | AG72: 0 | AH72: 0 | AI72: 20717952 | AJ72: 0 | AK72: 0 | AL72: 0 | AM72: 0 | AN72: 0 | AO72: 0 | AP72: 0 | AQ72: 0 | AR72: 0 | AS72: 0 | AT72: 0 | AU72: 0 | AV72: 0 | AW72: 0 | AX72: 0 | AY72: 0 | AZ72: 0 | BA72: 0 | BB72: 0 | BC72: 0 | BD72: 0 | BE72: 0 | BF72: 0 | BG72: 0 | BH72: 0 | BI72: 0 | BJ72: 0 | BK72: 0 | BL72: 0 | BM72: 0 | BN72: 0 | BO72: 0 | BP72: 0 | BQ72: 0 | BR72: 0 | BS72: 0 | BT72: 0 | BU72: 0 | BV72: 0 | BW72: 0 | BX72: 0 | BY72: 0 | BZ72: 0 | CA72: 0 | CB72: 0 | CC72: 0 | CD72: 0 | CE72: 0 | CF72: 0 | CG72: 0 | CH72: 0 | CI72: 32047268 | CJ72: 0 | CK72: 0 | CL72: 0 | CM72: - | CN72: 1386507302 | CO72: 1546315631 | CP72: -159808329 | CQ72: -10.33478067 | CR72: 0 | CS72: 0 | CT72: 0 | CU72: - | CV72: 0 | CW72: 0 | CX72: 0 | CY72: - | CZ72: 0 | DA72: 0 | DB72: 0 | DC72: 0 | DD72: 2272666476 | DE72: 660064785 | DF72: 1612601691 | DG72: … | DH72: 4077813050 | DI72: 3801747463 | DJ72: 276065587 | DK72: 7.261544584 | DL72: 0 | DM72: 0 | DN72: 0 | DO72: - | DP72: 569139842 | DQ72: 248615420 | DR72: 320524422 | DS72: 128.92379 | DT72: 2438855430 | DU72: 2883494994 | DV72: 0 | DW72: 0 | DX72: 0 | DY72: - | DZ72: 657471 | EA72: 1 | EB72: 657470 | EC72: … | ED72: 1638957620 | EE72: 918252469 | EF72: 4077155579 | EG72: 3801747462 | EH72: 275408117 | EI72: 7.244250697 | EJ72: 0 | EK72: 0 | EL72: 0 | EM72: - | EN72: 0 | EO72: 0 | EP72: 0 | EQ72: - | ER72: 0 | ES72: 0 | ET72: 0 | EU72: - | EV72: 0 | EW72: 20717952 | EX72: -20717952 | EY72: -100 | EZ72: 2310585763 | FA72: 949221457 | FB72: 1361364306 | FC72: 143.4190405 | FD72: 0 | FE72: 0 | FF72: 0 | FG72: 32047268 | FH72: TRUE | FI72: TRUE
A73: 91100000 | B73: E.S.E. Puesto de Salud de Ciénega | C73: Boyacá Empresas que No Cotizan | D73: 395084957.7 | E73: 309828915.6 | F73: 85256042.11 | G73: 27.51713537 | H73: 143923370.7 | I73: 77322940 | J73: 66600430.69 | K73: 86.13282254 | L73: 0 | M73: 0 | N73: 0 | O73: 0 | P73: 0 | Q73: 0 | R73: 0 | S73: 0 | T73: 0 | U73: 0 | V73: 0 | W73: 0 | X73: 0 | Y73: 0 | Z73: 0 | AA73: 0 | AB73: 188299269.7 | AC73: 103778348.3 | AD73: 0 | AE73: 0 | AF73: 0 | AG73: 0 | AH73: 11148403.3 | AI73: 0 | AJ73: 0 | AK73: 0 | AL73: 0 | AM73: 0 | AN73: 0 | AO73: 0 | AP73: 0 | AQ73: 0 | AR73: 0 | AS73: 0 | AT73: 140000 | AU73: 0 | AV73: 0 | AW73: 0 | AX73: 55664302.26 | AY73: 26455408.26 | AZ73: 0 | BA73: 0 | BB73: 0 | BC73: 0 | BD73: 0 | BE73: 0 | BF73: 0 | BG73: 0 | BH73: 0 | BI73: 0 | BJ73: 0 | BK73: 0 | BL73: 0 | BM73: 0 | BN73: 0 | BO73: 0 | BP73: 55664302.26 | BQ73: 26455408.26 | BR73: 0 | BS73: 0 | BT73: 0 | BU73: 0 | BV73: 0 | BW73: 0 | BX73: 0 | BY73: 0 | BZ73: 0 | CA73: 0 | CB73: 0 | CC73: 0 | CD73: 0 | CE73: 0 | CF73: 0 | CG73: 0 | CH73: 0 | CI73: 0 | CJ73: 0 | CK73: 0 | CL73: 0 | CM73: - | CN73: 43282428 | CO73: 13941501 | CP73: 29340927 | CQ73: … | CR73: 0 | CS73: 0 | CT73: 0 | CU73: - | CV73: 0 | CW73: 0 | CX73: 0 | CY73: - | CZ73: 0 | DA73: 0 | DB73: 0 | DC73: 0 | DD73: 351802529.7 | DE73: 295887414.6 | DF73: 55915115.11 | DG73: 18.89742935 | DH73: 828094937.5 | DI73: 616123833.8 | DJ73: 211971103.8 | DK73: 34.40397728 | DL73: 0 | DM73: 0 | DN73: 0 | DO73: - | DP73: 114984033 | DQ73: 0 | DR73: 114984033 | DS73: - | DT73: 464771064.1 | DU73: 295405907.1 | DV73: 0 | DW73: 0 | DX73: 0 | DY73: - | DZ73: 55915115.11 | EA73: -96622333.24 | EB73: 152537448.3 | EC73: -157.8697629 | ED73: 363323873.4 | EE73: 320717926.7 | EF73: 772179822.4 | EG73: 712746167 | EH73: 59433655.4 | EI73: 8.338684675 | EJ73: 0 | EK73: 0 | EL73: 0 | EM73: - | EN73: 0 | EO73: 0 | EP73: 0 | EQ73: - | ER73: 0 | ES73: 0 | ET73: 0 | EU73: - | EV73: 11148403.3 | EW73: 0 | EX73: 11148403.3 | EY73: - | EZ73: 132774967.4 | FA73: 77322940 | FB73: 55452027.39 | FC73: 71.71484606 | FD73: 0 | FE73: 0 | FF73: 55664302.26 | FG73: 26455408.26 | FH73: TRUE | FI73: TRUE
A74: 91500000 | B74: E.S.P. Aguas y Aseo de El Peñol | C74: Antioquia Empresas que No Cotizan | D74: 7754525700 | E74: 7509905672 | F74: 244620028.8 | G74: 3.257298287 | H74: 771068160.5 | I74: 417075217.5 | J74: 353992943 | K74: 84.87508443 | L74: 0 | M74: 0 | N74: 0 | O74: 0 | P74: 0 | Q74: 0 | R74: 0 | S74: 0 | T74: 0 | U74: 0 | V74: 0 | W74: 0 | X74: 680348562.1 | Y74: 6348219.67 | Z74: 90719598.38 | AA74: 363347668.8 | AB74: 0 | AC74: 0 | AD74: 0 | AE74: 0 | AF74: 0 | AG74: 0 | AH74: 0 | AI74: 0 | AJ74: 0 | AK74: 0 | AL74: 0 | AM74: 0 | AN74: 0 | AO74: 0 | AP74: 0 | AQ74: 0 | AR74: 0 | AS74: 0 | AT74: 0 | AU74: 0 | AV74: 24523255 | AW74: 50449319 | AX74: 24523255 | AY74: 3069990 | AZ74: 0 | BA74: 0 | BB74: 24523255 | BC74: 0 | BD74: 0 | BE74: 0 | BF74: 0 | BG74: 2908799 | BH74: 0 | BI74: 66378 | BJ74: 0 | BK74: 94813 | BL74: 0 | BM74: 0 | BN74: 0 | BO74: 0 | BP74: 0 | BQ74: 0 | BR74: 0 | BS74: 0 | BT74: 0 | BU74: 0 | BV74: 0 | BW74: 0 | BX74: 0 | BY74: 0 | BZ74: 0 | CA74: 0 | CB74: 0 | CC74: 0 | CD74: 0 | CE74: 0 | CF74: 0 | CG74: 0 | CH74: 0 | CI74: 0 | CJ74: 0 | CK74: 0 | CL74: 0 | CM74: - | CN74: 612201843.2 | CO74: 416649928.2 | CP74: 195551915 | CQ74: 46.93434506 | CR74: 0 | CS74: 0 | CT74: 0 | CU74: - | CV74: 0 | CW74: 0 | CX74: 0 | CY74: - | CZ74: 0 | DA74: 0 | DB74: 0 | DC74: 0 | DD74: 7142323857 | DE74: 7093255743 | DF74: 49068113.79 | DG74: 0.6917572912 | DH74: 3446677902 | DI74: 2737621907 | DJ74: 709055995.2 | DK74: 25.90043547 | DL74: 0 | DM74: 0 | DN74: 0 | DO74: - | DP74: 0 | DQ74: 0 | DR74: 0 | DS74: - | DT74: 1042986994 | DU74: 987823997.6 | DV74: 0 | DW74: 0 | DX74: 0 | DY74: - | DZ74: 214571113.5 | EA74: 476619619.6 | EB74: -262048506.1 | EC74: -54.98063767 | ED74: 2403690908 | EE74: 1749797909 | EF74: 3232106788 | EG74: 2261002287 | EH74: 971104501.4 | EI74: 42.95017776 | EJ74: 0 | EK74: 0 | EL74: 0 | EM74: - | EN74: 0 | EO74: 0 | EP74: 0 | EQ74: - | ER74: 0 | ES74: 0 | ET74: 0 | EU74: - | EV74: 0 | EW74: 0 | EX74: 0 | EY74: - | EZ74: 771068160.5 | FA74: 417075217.5 | FB74: 353992943 | FC74: 84.87508443 | FD74: 0 | FE74: 0 | FF74: 24523255 | FG74: 3069990 | FH74: TRUE | FI74: TRUE
A75: 91700000 | B75: E.S.E. Hospital Local San José de Achí | C75: Bolívar Empresas que No Cotizan | D75: 2606790638 | E75: 2729063450 | F75: -122272812 | G75: -4.48039462 | H75: 614809243 | I75: 618161918 | J75: -3352675 | K75: -0.5423619447 | L75: 0 | M75: 0 | N75: 0 | O75: 0 | P75: 0 | Q75: 0 | R75: 0 | S75: 0 | T75: 0 | U75: 0 | V75: 0 | W75: 0 | X75: 0 | Y75: 0 | Z75: 0 | AA75: 0 | AB75: 438914029 | AC75: 372266704 | AD75: 0 | AE75: 0 | AF75: 0 | AG75: 0 | AH75: 0 | AI75: 0 | AJ75: 0 | AK75: 0 | AL75: 0 | AM75: 0 | AN75: 0 | AO75: 0 | AP75: 0 | AQ75: 0 | AR75: 0 | AS75: 0 | AT75: 0 | AU75: 0 | AV75: 193895214 | AW75: 263895214 | AX75: 18000000 | AY75: 0 | AZ75: 0 | BA75: 0 | BB75: 0 | BC75: 0 | BD75: 0 | BE75: 0 | BF75: 0 | BG75: 0 | BH75: 0 | BI75: 0 | BJ75: 0 | BK75: 0 | BL75: 0 | BM75: 0 | BN75: 0 | BO75: 0 | BP75: 18000000 | BQ75: 0 | BR75: 0 | BS75: 0 | BT75: 0 | BU75: 0 | BV75: 0 | BW75: 0 | BX75: 0 | BY75: 0 | BZ75: 0 | CA75: 0 | CB75: 0 | CC75: 0 | CD75: 0 | CE75: 0 | CF75: 0 | CG75: 0 | CH75: 0 | CI75: 18000000 | CJ75: 0 | CK75: 0 | CL75: 0 | CM75: - | CN75: 439784970 | CO75: 297270377 | CP75: 142514593 | CQ75: 47.9410678 | CR75: 0 | CS75: 0 | CT75: 0 | CU75: - | CV75: 0 | CW75: 0 | CX75: 0 | CY75: - | CZ75: 0 | DA75: 0 | DB75: 0 | DC75: 0 | DD75: 2167005668 | DE75: 2431793073 | DF75: -264787405 | DG75: -10.88856646 | DH75: 3782718120 | DI75: 3409232114 | DJ75: 373486006 | DK75: 10.95513575 | DL75: 0 | DM75: 0 | DN75: 0 | DO75: - | DP75: 0 | DQ75: 184544305 | DR75: -184544305 | DS75: -100 | DT75: 1986692384 | DU75: 1744243771 | DV75: 0 | DW75: 0 | DX75: 0 | DY75: - | DZ75: 182215256 | EA75: 134139315 | EB75: 48075941 | EC75: 35.84030603 | ED75: 1796025736 | EE75: 1664988343 | EF75: 3600502864 | EG75: 3275092799 | EH75: 325410065 | EI75: 9.935903651 | EJ75: 0 | EK75: 0 | EL75: 0 | EM75: - | EN75: 0 | EO75: 0 | EP75: 0 | EQ75: - | ER75: 0 | ES75: 0 | ET75: 0 | EU75: - | EV75: 0 | EW75: 0 | EX75: 0 | EY75: - | EZ75: 614809243 | FA75: 618161918 | FB75: -3352675 | FC75: -0.5423619447 | FD75: 0 | FE75: 0 | FF75: 18000000 | FG75: 18000000 | FH75: TRUE | FI75: TRUE
A76: 91800000 | B76: Instituto Municipal del Deporte, la Recreación, el Aprovechamiento del Tiempo Libre, la Educación Extraescolar y Educación Física de Sibaté | C76: Cundinamarca Entidades de gobierno | D76: 163409841 | E76: 107063645 | F76: 56346196 | G76: 52.62869203 | H76: 2843933 | I76: 0 | J76: 2843933 | K76: - | L76: 0 | M76: 0 | N76: 0 | O76: 0 | P76: 0 | Q76: 0 | R76: 0 | S76: 0 | T76: 0 | U76: 0 | V76: 0 | W76: 0 | X76: 0 | Y76: 0 | Z76: 0 | AA76: 0 | AB76: 0 | AC76: 0 | AD76: 0 | AE76: 0 | AF76: 2843933 | AG76: 0 | AH76: 0 | AI76: 0 | AJ76: 0 | AK76: 0 | AL76: 0 | AM76: 0 | AN76: 0 | AO76: 0 | AP76: 0 | AQ76: 0 | AR76: 0 | AS76: 0 | AT76: 0 | AU76: 0 | AV76: 0 | AW76: 0 | AX76: 0 | AY76: 0 | AZ76: 0 | BA76: 0 | BB76: 0 | BC76: 0 | BD76: 0 | BE76: 0 | BF76: 0 | BG76: 0 | BH76: 0 | BI76: 0 | BJ76: 0 | BK76: 0 | BL76: 0 | BM76: 0 | BN76: 0 | BO76: 0 | BP76: 0 | BQ76: 0 | BR76: 0 | BS76: 0 | BT76: 0 | BU76: 0 | BV76: 0 | BW76: 0 | BX76: 0 | BY76: 0 | BZ76: 0 | CA76: 0 | CB76: 0 | CC76: 0 | CD76: 0 | CE76: 0 | CF76: 0 | CG76: 0 | CH76: 0 | CI76: 0 | CJ76: 0 | CK76: 0 | CL76: 0 | CM76: - | CN76: 48260965 | CO76: 3397731 | CP76: 44863234 | CQ76: … | CR76: 0 | CS76: 0 | CT76: 0 | CU76: - | CV76: 0 | CW76: 0 | CX76: 0 | CY76: - | CZ76: 0 | DA76: 0 | DB76: 0 | DC76: 0 | DD76: 115148876 | DE76: 103665914 | DF76: 11482962 | DG76: 11.07689264 | DH76: 1045717095 | DI76: 1126745796 | DJ76: -81028701 | DK76: -7.191391464 | DL76: 0 | DM76: 0 | DN76: 0 | DO76: - | DP76: 1041032156 | DQ76: 1078395582 | DR76: -37363426 | DS76: -3.464723579 | DT76: 1045717095 | DU76: 1126745796 | DV76: 0 | DW76: 0 | DX76: 0 | DY76: - | DZ76: 11482962 | EA76: -101963164 | EB76: 113446126 | EC76: -111.261873 | ED76: 0 | EE76: 0 | EF76: 1034234133 | EG76: 1228708960 | EH76: -194474827 | EI76: -15.82757458 | EJ76: 0 | EK76: 0 | EL76: 0 | EM76: - | EN76: 0 | EO76: 0 | EP76: 0 | EQ76: - | ER76: 0 | ES76: 0 | ET76: 0 | EU76: - | EV76: 2843933 | EW76: 0 | EX76: 2843933 | EY76: - | EZ76: 0 | FA76: 0 | FB76: 0 | FC76: - | FD76: 0 | FE76: 0 | FF76: 0 | FG76: 0 | FH76: TRUE | FI76: TRUE
A77: 91900000 | B77: E.S.E. Santiago de Tunja | C77: Boyacá Empresas que No Cotizan | D77: 3.423636181e+10 | E77: 3.126330296e+10 | F77: 2973058850 | G77: 9.509740076 | H77: 3656422950 | I77: 2374968490 | J77: 1281454460 | K77: 53.95669313 | L77: 0 | M77: 0 | N77: 0 | O77: 0 | P77: 0 | Q77: 0 | R77: 0 | S77: 0 | T77: 0 | U77: 0 | V77: 0 | W77: 0 | X77: 0 | Y77: 0 | Z77: 0 | AA77: 0 | AB77: 3989287414 | AC77: 2455251056 | AD77: 0 | AE77: 0 | AF77: 0 | AG77: 0 | AH77: 0 | AI77: 0 | AJ77: 0 | AK77: 0 | AL77: 0 | AM77: 0 | AN77: 0 | AO77: 0 | AP77: 0 | AQ77: 0 | AR77: 0 | AS77: 0 | AT77: 23267309.73 | AU77: 23267309.73 | AV77: 0 | AW77: 0 | AX77: 356131774.1 | AY77: 103549875.8 | AZ77: 0 | BA77: 0 | BB77: 0 | BC77: 0 | BD77: 0 | BE77: 0 | BF77: 0 | BG77: 0 | BH77: 0 | BI77: 0 | BJ77: 0 | BK77: 0 | BL77: 0 | BM77: 0 | BN77: 0 | BO77: 0 | BP77: 356131774.1 | BQ77: 103549875.8 | BR77: 0 | BS77: 0 | BT77: 0 | BU77: 0 | BV77: 0 | BW77: 0 | BX77: 0 | BY77: 0 | BZ77: 0 | CA77: 0 | CB77: 0 | CC77: 0 | CD77: 0 | CE77: 0 | CF77: 0 | CG77: 0 | CH77: 0 | CI77: 0 | CJ77: 0 | CK77: 0 | CL77: 0 | CM77: - | CN77: 1843221848 | CO77: 4259839609 | CP77: -2416617761 | CQ77: -56.73025239 | CR77: 0 | CS77: 0 | CT77: 0 | CU77: - | CV77: 0 | CW77: 0 | CX77: 0 | CY77: - | CZ77: 0 | DA77: 0 | DB77: 0 | DC77: 0 | DD77: 3.239313996e+10 | DE77: 2.700346335e+10 | DF77: 5389676612 | DG77: 19.95920502 | DH77: 2.115685971e+10 | DI77: 2.32968267e+10 | DJ77: -2139966996 | DK77: -9.185658732 | DL77: 0 | DM77: 0 | DN77: 0 | DO77: - | DP77: 9315485226 | DQ77: 1.302448821e+10 | DR77: -3709002982 | DS77: -28.47714953 | DT77: 9291847929 | DU77: 1.528087272e+10 | DV77: 0 | DW77: 0 | DX77: 0 | DY77: - | DZ77: 5293905536 | EA77: 1.303806056e+10 | EB77: -7744155025 | EC77: -59.39652596 | ED77: 1.186501178e+10 | EE77: 8015953979 | EF77: 1.586295417e+10 | EG77: 1.025876614e+10 | EH77: 5604188029 | EI77: 54.62828523 | EJ77: 0 | EK77: 0 | EL77: 0 | EM77: - | EN77: 0 | EO77: 0 | EP77: 0 | EQ77: - | ER77: 0 | ES77: 0 | ET77: 0 | EU77: - | EV77: 0 | EW77: 0 | EX77: 0 | EY77: - | EZ77: 3656422950 | FA77: 2374968490 | FB77: 1281454460 | FC77: 53.95669313 | FD77: 0 | FE77: 0 | FF77: 356131774.1 | FG77: 103549875.8 | FH77: TRUE | FI77: TRUE
A78: 92000000 | B78: E.S.E. Inés Ochoa Pérez - Tibasosa | C78: Boyacá Empresas que No Cotizan | D78: 1154156864 | E78: 864315587 | F78: 289841277.3 | G78: 33.53419534 | H78: 92716703.61 | I78: 36426991 | J78: 56289712.61 | K78: 154.5274838 | L78: 0 | M78: 0 | N78: 0 | O78: 0 | P78: 0 | Q78: 0 | R78: 0 | S78: 0 | T78: 0 | U78: 0 | V78: 0 | W78: 0 | X78: 0 | Y78: 0 | Z78: 0 | AA78: 0 | AB78: 73352764.73 | AC78: 23477087 | AD78: 0 | AE78: 0 | AF78: 0 | AG78: 0 | AH78: 21215694.8 | AI78: 0 | AJ78: 0 | AK78: 0 | AL78: 0 | AM78: 0 | AN78: 0 | AO78: 0 | AP78: 0 | AQ78: 0 | AR78: 0 | AS78: 0 | AT78: 0 | AU78: 14801660 | AV78: 0 | AW78: 0 | AX78: 1851755.92 | AY78: 1851756 | AZ78: 0 | BA78: 0 | BB78: 1851755.92 | BC78: 1851756 | BD78: 0 | BE78: 0 | BF78: 0 | BG78: 0 | BH78: 0 | BI78: 0 | BJ78: 0 | BK78: 0 | BL78: 0 | BM78: 0 | BN78: 0 | BO78: 0 | BP78: 0 | BQ78: 0 | BR78: 0 | BS78: 0 | BT78: 0 | BU78: 0 | BV78: 0 | BW78: 0 | BX78: 0 | BY78: 0 | BZ78: 0 | CA78: 0 | CB78: 0 | CC78: 0 | CD78: 0 | CE78: 0 | CF78: 0 | CG78: 0 | CH78: 0 | CI78: 0 | CJ78: 0 | CK78: 0 | CL78: 0 | CM78: - | CN78: 74922261 | CO78: 697034 | CP78: 74225227 | CQ78: … | CR78: 0 | CS78: 0 | CT78: 0 | CU78: - | CV78: 0 | CW78: 0 | CX78: 0 | CY78: - | CZ78: 0 | DA78: 0 | DB78: 0 | DC78: 0 | DD78: 1079234603 | DE78: 863618553 | DF78: 215616050.3 | DG78: 24.96658387 | DH78: 1364165988 | DI78: 1249021889 | DJ78: 115144099.5 | DK78: 9.21874152 | DL78: 0 | DM78: 0 | DN78: 0 | DO78: - | DP78: 231738949 | DQ78: 168350000 | DR78: 63388949 | DS78: 37.65307336 | DT78: 793151171.2 | DU78: 679853399 | DV78: 0 | DW78: 0 | DX78: 0 | DY78: - | DZ78: 234989862.2 | EA78: 220137716 | EB78: 14852146.18 | EC78: 6.746752192 | ED78: 571014817.3 | EE78: 569168490 | EF78: 1129176126 | EG78: 1028884173 | EH78: 100291953.3 | EI78: 9.74764273 | EJ78: 0 | EK78: 0 | EL78: 0 | EM78: - | EN78: 0 | EO78: 0 | EP78: 0 | EQ78: - | ER78: 0 | ES78: 0 | ET78: 0 | EU78: - | EV78: 21215694.8 | EW78: 0 | EX78: 21215694.8 | EY78: - | EZ78: 71501008.81 | FA78: 36426991 | FB78: 35074017.81 | FC78: 96.28579481 | FD78: 0 | FE78: 0 | FF78: 1851755.92 | FG78: 1851756 | FH78: TRUE | FI78: TRUE
A79: 92100000 | B79: E.S.E. Hospital Sagrado Corazón de Jesús de la Hormiga | C79: Putumayo Empresas que No Cotizan | D79: 2.007181403e+10 | E79: 1.793975831e+10 | F79: 2132055722 | G79: 11.88452868 | H79: 4422022995 | I79: 3076872775 | J79: 1345150220 | K79: 43.71809685 | L79: 0 | M79: 0 | N79: 0 | O79: 0 | P79: 0 | Q79: 0 | R79: 0 | S79: 0 | T79: 0 | U79: 0 | V79: 0 | W79: 0 | X79: 0 | Y79: 0 | Z79: 0 | AA79: 0 | AB79: 5338768135 | AC79: 3734276397 | AD79: 0 | AE79: 0 | AF79: 0 | AG79: 0 | AH79: 0 | AI79: 0 | AJ79: 0 | AK79: 0 | AL79: 0 | AM79: 0 | AN79: 0 | AO79: 0 | AP79: 0 | AQ79: 0 | AR79: 0 | AS79: 0 | AT79: 274897243 | AU79: 194585880 | AV79: 144756207.2 | AW79: 0 | AX79: 1336398591 | AY79: 851989502 | AZ79: 0 | BA79: 0 | BB79: 0 | BC79: 0 | BD79: 0 | BE79: 0 | BF79: 0 | BG79: 0 | BH79: 0 | BI79: 0 | BJ79: 0 | BK79: 0 | BL79: 0 | BM79: 0 | BN79: 0 | BO79: 0 | BP79: 1336398591 | BQ79: 851989502 | BR79: 0 | BS79: 0 | BT79: 0 | BU79: 0 | BV79: 0 | BW79: 0 | BX79: 0 | BY79: 0 | BZ79: 0 | CA79: 0 | CB79: 0 | CC79: 0 | CD79: 0 | CE79: 0 | CF79: 0 | CG79: 0 | CH79: 0 | CI79: 0 | CJ79: 0 | CK79: 0 | CL79: 0 | CM79: - | CN79: 2378379706 | CO79: 2397317881 | CP79: -18938175.48 | CQ79: -0.7899734795 | CR79: 0 | CS79: 0 | CT79: 0 | CU79: - | CV79: 0 | CW79: 0 | CX79: 0 | CY79: - | CZ79: 0 | DA79: 0 | DB79: 0 | DC79: 0 | DD79: 1.769343433e+10 | DE79: 1.554244043e+10 | DF79: 2150993898 | DG79: 13.83948619 | DH79: 1.460315119e+10 | DI79: 15173248525 | DJ79: -570097330.7 | DK79: -3.757252969 | DL79: 0 | DM79: 0 | DN79: 0 | DO79: - | DP79: 1447761350 | DQ79: 865465750 | DR79: 582295600.1 | DS79: 67.28118358 | DT79: 6598745839 | DU79: 7167470296 | DV79: 0 | DW79: 0 | DX79: 0 | DY79: - | DZ79: 2128421669 | EA79: 1156084632 | EB79: 972337037.5 | EC79: 84.106043 | ED79: 8004405355 | EE79: 8005778229 | EF79: 1.247472953e+10 | EG79: 1.401716389e+10 | EH79: -1542434368 | EI79: -11.00389765 | EJ79: 0 | EK79: 0 | EL79: 0 | EM79: - | EN79: 0 | EO79: 0 | EP79: 0 | EQ79: - | ER79: 0 | ES79: 0 | ET79: 0 | EU79: - | EV79: 0 | EW79: 0 | EX79: 0 | EY79: - | EZ79: 4422022995 | FA79: 3076872775 | FB79: 1345150220 | FC79: 43.71809685 | FD79: 0 | FE79: 0 | FF79: 1336398591 | FG79: 851989502 | FH79: TRUE | FI79: TRUE
A80: 92200000 | B80: E.S.E. Centro de Salud San Blas | C80: Boyacá Empresas que No Cotizan | D80: 1021857886 | E80: 974624672.4 | F80: 47233213.53 | G80: 4.846297746 | H80: 103426900.7 | I80: 63607768.6 | J80: 39819132.1 | K80: 62.60105169 | L80: 0 | M80: 0 | N80: 0 | O80: 0 | P80: 0 | Q80: 0 | R80: 0 | S80: 0 | T80: 0 | U80: 0 | V80: 0 | W80: 0 | X80: 0 | Y80: 0 | Z80: 0 | AA80: 0 | AB80: 158992437.6 | AC80: 97147471.6 | AD80: 0 | AE80: 0 | AF80: 0 | AG80: 0 | AH80: 10171330.1 | AI80: 0 | AJ80: 0 | AK80: 0 | AL80: 0 | AM80: 0 | AN80: 0 | AO80: 0 | AP80: 0 | AQ80: 0 | AR80: 0 | AS80: 0 | AT80: 0 | AU80: 0 | AV80: 0 | AW80: 0 | AX80: 65736867 | AY80: 33539703 | AZ80: 0 | BA80: 0 | BB80: 0 | BC80: 0 | BD80: 0 | BE80: 0 | BF80: 0 | BG80: 0 | BH80: 0 | BI80: 0 | BJ80: 0 | BK80: 0 | BL80: 0 | BM80: 0 | BN80: 0 | BO80: 0 | BP80: 65736867 | BQ80: 33539703 | BR80: 0 | BS80: 0 | BT80: 0 | BU80: 0 | BV80: 0 | BW80: 0 | BX80: 0 | BY80: 0 | BZ80: 0 | CA80: 0 | CB80: 0 | CC80: 0 | CD80: 0 | CE80: 0 | CF80: 0 | CG80: 0 | CH80: 0 | CI80: 0 | CJ80: 0 | CK80: 0 | CL80: 0 | CM80: - | CN80: 27865804 | CO80: 13260626 | CP80: 14605178 | CQ80: 110.1394308 | CR80: 0 | CS80: 0 | CT80: 0 | CU80: - | CV80: 0 | CW80: 0 | CX80: 0 | CY80: - | CZ80: 0 | DA80: 0 | DB80: 0 | DC80: 0 | DD80: 993992081.9 | DE80: 961364046.4 | DF80: 32628035.53 | DG80: 3.393931326 | DH80: 661235576 | DI80: 489176716 | DJ80: 172058860 | DK80: 35.17314998 | DL80: 0 | DM80: 0 | DN80: 0 | DO80: - | DP80: 132606013 | DQ80: 0 | DR80: 132606013 | DS80: - | DT80: 309485950.8 | DU80: 242141816.9 | DV80: 0 | DW80: 0 | DX80: 0 | DY80: - | DZ80: 32628035.19 | EA80: 14781704.65 | EB80: 17846330.54 | EC80: 120.7325607 | ED80: 351749625.2 | EE80: 247034899.1 | EF80: =(DT80-DZ80)+ED80 -> 628607540.8 | EG80: =(DU80-EA80)+EE80 -> 474395011.4 | EH80: 154212529.5 | EI80: 32.5071988 | EJ80: =CR80+CV80 -> 0 | EK80: =CS80+CW80 -> 0 | EL80: 0 | EM80: - | EN80: =CZ80+DB80 -> 0 | EO80: =DA80+DC80 -> 0 | EP80: 0 | EQ80: - | ER80: =CJ80-EN80 -> 0 | ES80: =CK80-EO80 -> 0 | ET80: 0 | EU80: - | EV80: 10171330.1 | EW80: 0 | EX80: 10171330.1 | EY80: - | EZ80: 93255570.6 | FA80: 63607768.6 | FB80: 29647802 | FC80: 46.61034753 | FD80: =BR80+BT80+BV80+BX80+BZ80+CB80 -> 0 | FE80: =BS80+BU80+BW80+BY80+CA80+CC80 -> 0 | FF80: =AZ80+BB80+BD80+BF80+BH80+BJ80+BL80+BN80+BP80+CD80+CH80 -> 65736867 | FG80: =BA80+BC80+BE80+BG80+BI80+BK80+BM80+BO80+BQ80+CE80+CI80 -> 33539703 | FH80: TRUE | FI80: TRUE
A81: 92400000 | B81: E.S.E. Hospital José Antonio Socarras Sánchez | C81: Cesar Empresas que No Cotizan | D81: 2633200026 | E81: 2406229432 | F81: =IFERROR(D81-E81,"-") -> 226970594 | G81: =IFERROR(IF(OR((F81/E81)*100>=200,(F81/E81)*100<=-200),"…",(F81/E81)*100),"-") -> 9.432624794 | H81: 1045375545 | I81: 845709339 | J81: =IFERROR(H81-I81,"-") -> 199666206 | K81: =IFERROR(IF(OR((J81/I81)*100>=200,(J81/I81)*100<=-200),"…",(J81/I81)*100),"-") -> 23.60931786 | L81: 0 | M81: 0 | N81: 0 | O81: 0 | P81: 0 | Q81: 0 | R81: 0 | S81: 0 | T81: 0 | U81: 0 | V81: 0 | W81: 0 | X81: 0 | Y81: 0 | Z81: 0 | AA81: 0 | AB81: 1000522615 | AC81: 970349763 | AD81: 0 | AE81: 0 | AF81: 0 | AG81: 0 | AH81: 0 | AI81: 0 | AJ81: 0 | AK81: 0 | AL81: 0 | AM81: 0 | AN81: 0 | AO81: 0 | AP81: 0 | AQ81: 0 | AR81: 0 | AS81: 0 | AT81: 0 | AU81: 0 | AV81: 63999415 | AW81: 31999555 | AX81: 19146485 | AY81: 156639979 | AZ81: 0 | BA81: 0 | BB81: 0 | BC81: 0 | BD81: 0 | BE81: 0 | BF81: 0 | BG81: 0 | BH81: 0 | BI81: 0 | BJ81: 0 | BK81: 0 | BL81: 0 | BM81: 0 | BN81: 0 | BO81: 0 | BP81: 19146485 | BQ81: 156639979 | BR81: 0 | BS81: 0 | BT81: 0 | BU81: 0 | BV81: 0 | BW81: 0 | BX81: 0 | BY81: 0 | BZ81: 0 | CA81: 0 | CB81: 0 | CC81: 0 | CD81: 0 | CE81: 0 | CF81: 0 | CG81: 0 | CH81: 0 | CI81: 0 | CJ81: 0 | CK81: 0 | CL81: =IFERROR(CJ81-CK81,"-") -> 0 | CM81: =IFERROR(IF(OR((CL81/CK81)*100>=200,(CL81/CK81)*100<=-200),"…",(CL81/CK81)*100),"-") -> - | CN81: 353717936 | CO81: 483018644 | CP81: =IFERROR(CN81-CO81,"-") -> -129300708 | CQ81: =IFERROR(IF(OR((CP81/CO81)*100>=200,(CP81/CO81)*100<=-200),"…",(CP81/CO81)*100),"-") -> -26.76929961 | CR81: 0 | CS81: 0 | CT81: =IFERROR(CR81-CS81,"-") -> 0 | CU81: =IFERROR(IF(OR((CT81/CS81)*100>=200,(CT81/CS81)*100<=-200),"…",(CT81/CS81)*100),"-") -> - | CV81: 0 | CW81: 0 | CX81: =IFERROR(CV81-CW81,"-") -> 0 | CY81: =IFERROR(IF(OR((CX81/CW81)*100>=200,(CX81/CW81)*100<=-200),"…",(CX81/CW81)*100),"-") -> - | CZ81: 0 | DA81: 0 | DB81: 0 | DC81: 0 | DD81: 2279482090 | DE81: 1923210788 | DF81: =IFERROR(DD81-DE81,"-") -> 356271302 | DG81: =IFERROR(IF(OR((DF81/DE81)*100>=200,(DF81/DE81)*100<=-200),"…",(DF81/DE81)*100),"-") -> 18.5248182 | DH81: 2549528932 | DI81: 2558705750 | DJ81: =IFERROR(DH81-DI81,"-") -> -9176818 | DK81: =IFERROR(IF(OR((DJ81/DI81)*100>=200,(DJ81/DI81)*100<=-200),"…",(DJ81/DI81)*100),"-") -> -0.3586507749 | DL81: 0 | DM81: 0 | DN81: =IFERROR(DL81-DM81,"-") -> 0 | DO81: =IFERROR(IF(OR((DN81/DM81)*100>=200,(DN81/DM81)*100<=-200),"…",(DN81/DM81)*100),"-") -> - | DP81: 123677000 | DQ81: 95880000 | DR81: =IFERROR(DP81-DQ81,"-") -> 27797000 | DS81: =IFERROR(IF(OR((DR81/DQ81)*100>=200,(DR81/DQ81)*100<=-200),"…",(DR81/DQ81)*100),"-") -> 28.99144764 | DT81: 1304254316 | DU81: 1205599072 | DV81: 0 | DW81: 0 | DX81: =IFERROR(DV81-DW81,"-") -> 0 | DY81: =IFERROR(IF(OR((DX81/DW81)*100>=200,(DX81/DW81)*100<=-200),"…",(DX81/DW81)*100),"-") -> - | DZ81: 176932280 | EA81: 168955361 | EB81: =IFERROR(DZ81-EA81,"-") -> 7976919 | EC81: =IFERROR(IF(OR((EB81/EA81)*100>=200,(EB81/EA81)*100<=-200),"…",(EB81/EA81)*100),"-") -> 4.721317485 | ED81: 1245274616 | EE81: 1353106678 | EF81: 2372596652 | EG81: 2389750389 | EH81: =IFERROR(EF81-EG81,"-") -> -17153737 | EI81: =IFERROR(IF(OR((EH81/EG81)*100>=200,(EH81/EG81)*100<=-200),"…",(EH81/EG81)*100),"-") -> -0.7178045489 | EJ81: 0 | EK81: 0 | EL81: =IFERROR(EJ81-EK81,"-") -> 0 | EM81: =IFERROR(IF(OR((EL81/EK81)*100>=200,(EL81/EK81)*100<=-200),"…",(EL81/EK81)*100),"-") -> - | EN81: 0 | EO81: 0 | EP81: =IFERROR(EN81-EO81,"-") -> 0 | EQ81: =IFERROR(IF(OR((EP81/EO81)*100>=200,(EP81/EO81)*100<=-200),"…",(EP81/EO81)*100),"-") -> - | ER81: 0 | ES81: 0 | ET81: =IFERROR(ER81-ES81,"-") -> 0 | EU81: =IFERROR(IF(OR((ET81/ES81)*100>=200,(ET81/ES81)*100<=-200),"…",(ET81/ES81)*100),"-") -> - | EV81: =L81+N81+P81+AD81+AF81+AH81+AJ81+AR81+T81+AL81+R81-FD81 -> 0 | EW81: =M81+O81+Q81+AE81+AG81+AI81+AK81+AS81+U81+AM81+S81-FE81 -> 0 | EX81: =IFERROR(EV81-EW81,"-") -> 0 | EY81: =IFERROR(IF(OR((EX81/EW81)*100>=200,(EX81/EW81)*100<=-200),"…",(EX81/EW81)*100),"-") -> - | EZ81: =V81+X81+Z81+AB81+AP81+AT81+AV81+AN81+CF81-FF81 -> 1045375545 | FA81: =W81+Y81+AA81+AC81+AQ81+AU81+AW81+AO81+CG81-FG81 -> 845709339 | FB81: =IFERROR(EZ81-FA81,"-") -> 199666206 | FC81: =IFERROR(IF(OR((FB81/FA81)*100>=200,(FB81/FA81)*100<=-200),"…",(FB81/FA81)*100),"-") -> 23.60931786 | FD81: 0 | FE81: 0 | FF81: 19146485 | FG81: 156639979 | FH81: =SUM(EV81,EZ81)=H81 -> TRUE | FI81: =SUM(EW81,FA81)=I81 -> TRUE
A82: 92500000 | B82: Instituto Colombiano de Ballet Clásico | C82: Valle del Cauca Entidades de gobierno | D82: 2266905845 | E82: 971529340.5 | F82: 1295376505 | G82: 133.3337503 | H82: 562500000 | I82: 40111602 | J82: 522388398 | K82: … | L82: 0 | M82: 0 | N82: 0 | O82: 0 | P82: 0 | Q82: 0 | R82: 0 | S82: 0 | T82: 0 | U82: 0 | V82: 0 | W82: 0 | X82: 0 | Y82: 36469001 | Z82: 0 | AA82: 0 | AB82: 0 | AC82: 0 | AD82: 0 | AE82: 0 | AF82: 0 | AG82: 0 | AH82: 0 | AI82: 0 | AJ82: 0 | AK82: 0 | AL82: 0 | AM82: 0 | AN82: 0 | AO82: 0 | AP82: 0 | AQ82: 0 | AR82: 562500000 | AS82: 0 | AT82: 0 | AU82: 3642601 | AV82: 0 | AW82: 0 | AX82: 0 | AY82: 0 | AZ82: 0 | BA82: 0 | BB82: 0 | BC82: 0 | BD82: 0 | BE82: 0 | BF82: 0 | BG82: 0 | BH82: 0 | BI82: 0 | BJ82: 0 | BK82: 0 | BL82: 0 | BM82: 0 | BN82: 0 | BO82: 0 | BP82: 0 | BQ82: 0 | BR82: 0 | BS82: 0 | BT82: 0 | BU82: 0 | BV82: 0 | BW82: 0 | BX82: 0 | BY82: 0 | BZ82: 0 | CA82: 0 | CB82: 0 | CC82: 0 | CD82: 0 | CE82: 0 | CF82: 0 | CG82: 0 | CH82: 0 | CI82: 0 | CJ82: 0 | CK82: 0 | CL82: 0 | CM82: - | CN82: 107039110 | CO82: 128047799 | CP82: -21008689 | CQ82: -16.40691145 | CR82: 0 | CS82: 0 | CT82: 0 | CU82: - | CV82: 0 | CW82: 0 | CX82: 0 | CY82: - | CZ82: 0 | DA82: 0 | DB82: 0 | DC82: 0 | DD82: 2159866735 | DE82: 843481541.5 | DF82: 1316385194 | DG82: 156.0656789 | DH82: 5772251834 | DI82: 6180146086 | DJ82: -407894252.1 | DK82: -6.6000746 | DL82: 0 | DM82: 0 | DN82: 0 | DO82: - | DP82: 5560906512 | DQ82: 5220266704 | DR82: 340639808 | DS82: 6.525333423 | DT82: 5767096329 | DU82: 6167423459 | DV82: 44661052 | DW82: 46283097 | DX82: -1622045 | DY82: -3.504616383 | DZ82: 1316385194 | EA82: 436503514.3 | EB82: 879881679.6 | EC82: … | ED82: 5155505 | EE82: 12722626.62 | EF82: 4455866640 | EG82: 5743642572 | EH82: -1287775932 | EI82: -22.42089259 | EJ82: 0 | EK82: 0 | EL82: 0 | EM82: - | EN82: 0 | EO82: 0 | EP82: 0 | EQ82: - | ER82: 0 | ES82: 0 | ET82: 0 | EU82: - | EV82: 562500000 | EW82: 0 | EX82: 562500000 | EY82: - | EZ82: 0 | FA82: 40111602 | FB82: -40111602 | FC82: -100 | FD82: 0 | FE82: 0 | FF82: 0 | FG82: 0 | FH82: TRUE | FI82: TRUE
A83: 92600000 | B83: E.S.E. Centro de Salud de Sáchica | C83: Boyacá Empresas que No Cotizan | D83: 1912513681 | E83: 1676347560 | F83: 236166121 | G83: 14.08813582 | H83: 301108283.5 | I83: 221722025.9 | J83: 79386257.6 | K83: 35.80440747 | L83: 0 | M83: 0 | N83: 0 | O83: 0 | P83: 0 | Q83: 0 | R83: 0 | S83: 0 | T83: 0 | U83: 0 | V83: 0 | W83: 0 | X83: 0 | Y83: 0 | Z83: 0 | AA83: 0 | AB83: 333266210.5 | AC83: 260239310.9 | AD83: 0 | AE83: 0 | AF83: 0 | AG83: 0 | AH83: 10882297 | AI83: 0 | AJ83: 0 | AK83: 0 | AL83: 0 | AM83: 0 | AN83: 0 | AO83: 0 | AP83: 0 | AQ83: 0 | AR83: 0 | AS83: 0 | AT83: 0 | AU83: 18000 | AV83: 0 | AW83: 0 | AX83: 43040224 | AY83: 38535285 | AZ83: 0 | BA83: 0 | BB83: 0 | BC83: 0 | BD83: 0 | BE83: 0 | BF83: 0 | BG83: 0 | BH83: 0 | BI83: 0 | BJ83: 0 | BK83: 0 | BL83: 0 | BM83: 0 | BN83: 0 | BO83: 0 | BP83: 43040224 | BQ83: 38535285 | BR83: 0 | BS83: 0 | BT83: 0 | BU83: 0 | BV83: 0 | BW83: 0 | BX83: 0 | BY83: 0 | BZ83: 0 | CA83: 0 | CB83: 0 | CC83: 0 | CD83: 0 | CE83: 0 | CF83: 0 | CG83: 0 | CH83: 0 | CI83: 0 | CJ83: 0 | CK83: 0 | CL83: 0 | CM83: - | CN83: 33011471 | CO83: 37382740 | CP83: -4371269 | CQ83: -11.69328144 | CR83: 0 | CS83: 0 | CT83: 0 | CU83: - | CV83: 0 | CW83: 0 | CX83: 0 | CY83: - | CZ83: 0 | DA83: 0 | DB83: 0 | DC83: 0 | DD83: 1879502210 | DE83: 1638964820 | DF83: 240537390 | DG83: 14.67617774 | DH83: 960215331.5 | DI83: 728482787.9 | DJ83: 231732543.6 | DK83: 31.81029771 | DL83: 0 | DM83: 0 | DN83: 0 | DO83: - | DP83: 113322970 | DQ83: 0 | DR83: 113322970 | DS83: - | DT83: 539569973.5 | DU83: 338354026.9 | DV83: 0 | DW83: 0 | DX83: 0 | DY83: - | DZ83: 240537390 | EA83: 71646945.8 | EB83: 168890444.2 | EC83: … | ED83: 420645358 | EE83: 390128761 | EF83: 719677941.5 | EG83: 656835842.1 | EH83: 62842099.36 | EI83: 9.567398021 | EJ83: 0 | EK83: 0 | EL83: 0 | EM83: - | EN83: 0 | EO83: 0 | EP83: 0 | EQ83: - | ER83: 0 | ES83: 0 | ET83: 0 | EU83: - | EV83: 10882297 | EW83: 0 | EX83: 10882297 | EY83: - | EZ83: 290225986.5 | FA83: 221722025.9 | FB83: 68503960.6 | FC83: 30.8963263 | FD83: 0 | FE83: 0 | FF83: 43040224 | FG83: 38535285 | FH83: TRUE | FI83: TRUE
A84: 92800000 | B84: Gestora Urbana de Ibagué | C84: Tolima Entidades de gobierno | D84: 47918963427 | E84: 4.687652571e+10 | F84: 1042437722 | G84: 2.223794759 | H84: 2673313098 | I84: 1638907298 | J84: 1034405800 | K84: 63.11557711 | L84: 0 | M84: 0 | N84: 687375230 | O84: 348151773 | P84: 0 | Q84: 0 | R84: 0 | S84: 0 | T84: 0 | U84: 0 | V84: 58200947 | W84: 103915175.5 | X84: 6762042 | Y84: 0 | Z84: 0 | AA84: 0 | AB84: 0 | AC84: 0 | AD84: 0 | AE84: 0 | AF84: 0 | AG84: 0 | AH84: 0 | AI84: 0 | AJ84: 0 | AK84: 0 | AL84: 0 | AM84: 0 | AN84: 0 | AO84: 0 | AP84: 0 | AQ84: 0 | AR84: 0 | AS84: 0 | AT84: 2071450107 | AU84: 1337315578 | AV84: 0 | AW84: 0 | AX84: 150475228 | AY84: 150475228 | AZ84: 0 | BA84: 0 | BB84: 0 | BC84: 0 | BD84: 0 | BE84: 0 | BF84: 0 | BG84: 0 | BH84: 0 | BI84: 0 | BJ84: 0 | BK84: 0 | BL84: 0 | BM84: 0 | BN84: 0 | BO84: 0 | BP84: 0 | BQ84: 0 | BR84: 0 | BS84: 0 | BT84: 0 | BU84: 0 | BV84: 0 | BW84: 0 | BX84: 150475228 | BY84: 150475228 | BZ84: 0 | CA84: 0 | CB84: 0 | CC84: 0 | CD84: 0 | CE84: 0 | CF84: 0 | CG84: 0 | CH84: 0 | CI84: 0 | CJ84: 0 | CK84: 0 | CL84: 0 | CM84: - | CN84: 5018342595 | CO84: 6848843142 | CP84: -1830500547 | CQ84: -26.72714952 | CR84: 0 | CS84: 0 | CT84: 0 | CU84: - | CV84: 0 | CW84: 0 | CX84: 0 | CY84: - | CZ84: 0 | DA84: 0 | DB84: 0 | DC84: 0 | DD84: 42900620832 | DE84: 4.002768256e+10 | DF84: 2872938269 | DG84: 7.177378467 | DH84: 4210546629 | DI84: 3629553520 | DJ84: 580993109 | DK84: 16.00728866 | DL84: 0 | DM84: 0 | DN84: 0 | DO84: - | DP84: 0 | DQ84: 0 | DR84: 0 | DS84: - | DT84: 4210546629 | DU84: 3629553520 | DV84: 0 | DW84: 193265915 | DX84: -193265915 | DY84: -100 | DZ84: 890187184 | EA84: 479956534.8 | EB84: 410230649.2 | EC84: 85.47245832 | ED84: 0 | EE84: 0 | EF84: 3320359445 | EG84: 3149596985 | EH84: 170762459.8 | EI84: 5.421724132 | EJ84: 0 | EK84: 0 | EL84: 0 | EM84: - | EN84: 0 | EO84: 0 | EP84: 0 | EQ84: - | ER84: 0 | ES84: 0 | ET84: 0 | EU84: - | EV84: 536900002 | EW84: 197676545 | EX84: 339223457 | EY84: 171.6053146 | EZ84: 2136413096 | FA84: 1441230753 | FB84: 695182342.6 | FC84: 48.23532533 | FD84: 150475228 | FE84: 150475228 | FF84: 0 | FG84: 0 | FH84: TRUE | FI84: TRUE
A85: 92900000 | B85: Centro de Salud Santo Domingo Savio | C85: Santander Empresas que No Cotizan | D85: 3774937625 | E85: 3539698581 | F85: 235239044 | G85: 6.645736596 | H85: 783214923 | I85: 643091643 | J85: 140123280 | K85: 21.78900652 | L85: 0 | M85: 0 | N85: 0 | O85: 0 | P85: 0 | Q85: 0 | R85: 0 | S85: 0 | T85: 0 | U85: 0 | V85: 0 | W85: 0 | X85: 0 | Y85: 0 | Z85: 0 | AA85: 0 | AB85: 1003893878 | AC85: 885520749 | AD85: 0 | AE85: 0 | AF85: 0 | AG85: 0 | AH85: 55249255 | AI85: 0 | AJ85: 0 | AK85: 0 | AL85: 0 | AM85: 0 | AN85: 0 | AO85: 0 | AP85: 0 | AQ85: 0 | AR85: 0 | AS85: 0 | AT85: 1436520 | AU85: 0 | AV85: 0 | AW85: 0 | AX85: 277364730 | AY85: 242429106 | AZ85: 0 | BA85: 0 | BB85: 0 | BC85: 0 | BD85: 0 | BE85: 0 | BF85: 0 | BG85: 0 | BH85: 0 | BI85: 0 | BJ85: 0 | BK85: 0 | BL85: 0 | BM85: 0 | BN85: 0 | BO85: 0 | BP85: 277364730 | BQ85: 242429106 | BR85: 0 | BS85: 0 | BT85: 0 | BU85: 0 | BV85: 0 | BW85: 0 | BX85: 0 | BY85: 0 | BZ85: 0 | CA85: 0 | CB85: 0 | CC85: 0 | CD85: 0 | CE85: 0 | CF85: 0 | CG85: 0 | CH85: 0 | CI85: 0 | CJ85: 0 | CK85: 0 | CL85: 0 | CM85: - | CN85: 24969182 | CO85: 145907824 | CP85: -120938642 | CQ85: -82.88701639 | CR85: 0 | CS85: 0 | CT85: 0 | CU85: - | CV85: 0 | CW85: 0 | CX85: 0 | CY85: - | CZ85: 0 | DA85: 0 | DB85: 0 | DC85: 0 | DD85: 3749968443 | DE85: 3393790757 | DF85: 356177686 | DG85: 10.49498073 | DH85: 3116063143 | DI85: 2661509752 | DJ85: 454553391 | DK85: 17.07877984 | DL85: 0 | DM85: 0 | DN85: 0 | DO85: - | DP85: 404480019 | DQ85: 172700447 | DR85: 231779572 | DS85: 134.2090168 | DT85: 1444122004 | DU85: 1103401169 | DV85: 0 | DW85: 0 | DX85: 0 | DY85: - | DZ85: 343603450 | EA85: 136329706 | EB85: 207273744 | EC85: 152.0385762 | ED85: 1671941139 | EE85: 1558108583 | EF85: 2772459693 | EG85: 2525180046 | EH85: 247279647 | EI85: 9.792555085 | EJ85: 0 | EK85: 0 | EL85: 0 | EM85: - | EN85: 0 | EO85: 0 | EP85: 0 | EQ85: - | ER85: 0 | ES85: 0 | ET85: 0 | EU85: - | EV85: 55249255 | EW85: 0 | EX85: 55249255 | EY85: - | EZ85: 727965668 | FA85: 643091643 | FB85: 84874025 | FC85: 13.19781184 | FD85: 0 | FE85: 0 | FF85: 277364730 | FG85: 242429106 | FH85: TRUE | FI85: TRUE
A86: 93100000 | B86: E.S.E. Centro de Salud - Cómbita | C86: Boyacá Empresas que No Cotizan | D86: 1893388319 | E86: 1757018544 | F86: 136369775.4 | G86: 7.76143063 | H86: 115192389 | I86: 75313303.53 | J86: 39879085.5 | K86: 52.95091787 | L86: 0 | M86: 0 | N86: 0 | O86: 0 | P86: 0 | Q86: 0 | R86: 0 | S86: 0 | T86: 0 | U86: 0 | V86: 0 | W86: 0 | X86: 0 | Y86: 0 | Z86: 0 | AA86: 0 | AB86: 148218264 | AC86: 108316448.5 | AD86: 0 | AE86: 0 | AF86: 0 | AG86: 0 | AH86: 0 | AI86: 0 | AJ86: 0 | AK86: 0 | AL86: 0 | AM86: 0 | AN86: 0 | AO86: 0 | AP86: 0 | AQ86: 0 | AR86: 0 | AS86: 0 | AT86: 3151882 | AU86: 3174612 | AV86: 0 | AW86: 0 | AX86: 36177757 | AY86: 36177757 | AZ86: 0 | BA86: 0 | BB86: 0 | BC86: 0 | BD86: 0 | BE86: 0 | BF86: 0 | BG86: 0 | BH86: 0 | BI86: 0 | BJ86: 0 | BK86: 0 | BL86: 0 | BM86: 0 | BN86: 0 | BO86: 0 | BP86: 36177757 | BQ86: 36177757 | BR86: 0 | BS86: 0 | BT86: 0 | BU86: 0 | BV86: 0 | BW86: 0 | BX86: 0 | BY86: 0 | BZ86: 0 | CA86: 0 | CB86: 0 | CC86: 0 | CD86: 0 | CE86: 0 | CF86: 0 | CG86: 0 | CH86: 0 | CI86: 0 | CJ86: 0 | CK86: 0 | CL86: 0 | CM86: - | CN86: 3089006.94 | CO86: 10127957 | CP86: -7038950.06 | CQ86: -69.50019693 | CR86: 0 | CS86: 0 | CT86: 0 | CU86: - | CV86: 0 | CW86: 0 | CX86: 0 | CY86: - | CZ86: 0 | DA86: 0 | DB86: 0 | DC86: 0 | DD86: 1890299312 | DE86: 1746890587 | DF86: 143408725.5 | DG86: 8.209370786 | DH86: 1411220606 | DI86: 1529089163 | DJ86: -117868557.3 | DK86: -7.708416236 | DL86: 0 | DM86: 0 | DN86: 0 | DO86: - | DP86: 26032800 | DQ86: 168000000 | DR86: -141967200 | DS86: -84.50428571 | DT86: 702181749.6 | DU86: 658565182.9 | DV86: 0 | DW86: 0 | DX86: 0 | DY86: - | DZ86: 143408725.5 | EA86: 92513856.86 | EB86: 50894868.63 | EC86: 55.0132384 | ED86: 709038856 | EE86: 870523980 | EF86: 1267811880 | EG86: 1436575306 | EH86: -168763425.9 | EI86: -11.74762125 | EJ86: 0 | EK86: 0 | EL86: 0 | EM86: - | EN86: 0 | EO86: 0 | EP86: 0 | EQ86: - | ER86: 0 | ES86: 0 | ET86: 0 | EU86: - | EV86: 0 | EW86: 0 | EX86: 0 | EY86: - | EZ86: 115192389 | FA86: 75313303.53 | FB86: 39879085.5 | FC86: 52.95091787 | FD86: 0 | FE86: 0 | FF86: 36177757 | FG86: 36177757 | FH86: TRUE | FI86: TRUE
A87: 93200000 | B87: E.S.E. Salud del Tundama | C87: Boyacá Empresas que No Cotizan | D87: 1.348334178e+10 | E87: 1.272046943e+10 | F87: 762872345.8 | G87: 5.997202775 | H87: 1158423993 | I87: 1605324873 | J87: -446900879.4 | K87: -27.83865665 | L87: 0 | M87: 0 | N87: 0 | O87: 0 | P87: 0 | Q87: 0 | R87: 0 | S87: 0 | T87: 0 | U87: 0 | V87: 0 | W87: 0 | X87: 0 | Y87: 0 | Z87: 0 | AA87: 0 | AB87: 1336136840 | AC87: 1783037719 | AD87: 0 | AE87: 0 | AF87: 0 | AG87: 0 | AH87: 0 | AI87: 0 | AJ87: 0 | AK87: 0 | AL87: 0 | AM87: 0 | AN87: 0 | AO87: 0 | AP87: 0 | AQ87: 0 | AR87: 0 | AS87: 0 | AT87: 0 | AU87: 0 | AV87: 0 | AW87: 0 | AX87: 177712846.4 | AY87: 177712846.4 | AZ87: 0 | BA87: 0 | BB87: 0 | BC87: 0 | BD87: 0 | BE87: 0 | BF87: 0 | BG87: 0 | BH87: 0 | BI87: 0 | BJ87: 0 | BK87: 0 | BL87: 0 | BM87: 0 | BN87: 0 | BO87: 0 | BP87: 177712846.4 | BQ87: 177712846.4 | BR87: 0 | BS87: 0 | BT87: 0 | BU87: 0 | BV87: 0 | BW87: 0 | BX87: 0 | BY87: 0 | BZ87: 0 | CA87: 0 | CB87: 0 | CC87: 0 | CD87: 0 | CE87: 0 | CF87: 0 | CG87: 0 | CH87: 0 | CI87: 0 | CJ87: 0 | CK87: 0 | CL87: 0 | CM87: - | CN87: 875440954.2 | CO87: 497677052 | CP87: 377763902.2 | CQ87: 75.90542916 | CR87: 0 | CS87: 0 | CT87: 0 | CU87: - | CV87: 0 | CW87: 0 | CX87: 0 | CY87: - | CZ87: 0 | DA87: 0 | DB87: 0 | DC87: 0 | DD87: 1.260790082e+10 | DE87: 1.222279238e+10 | DF87: 385108443.6 | DG87: 3.150740286 | DH87: 9204056088 | DI87: 8746277986 | DJ87: 457778102.2 | DK87: 5.233976132 | DL87: 0 | DM87: 0 | DN87: 0 | DO87: - | DP87: 118484000 | DQ87: 0 | DR87: 118484000 | DS87: - | DT87: 4064125621 | DU87: 4070238364 | DV87: 0 | DW87: 0 | DX87: 0 | DY87: - | DZ87: 102193307.7 | EA87: 94257377.95 | EB87: 7935929.76 | EC87: 8.419425548 | ED87: 5139930467 | EE87: 4676039622 | EF87: 9101862780 | EG87: 8652020608 | EH87: 449842172.4 | EI87: 5.199273012 | EJ87: 0 | EK87: 0 | EL87: 0 | EM87: - | EN87: 0 | EO87: 0 | EP87: 0 | EQ87: - | ER87: 0 | ES87: 0 | ET87: 0 | EU87: - | EV87: 0 | EW87: 0 | EX87: 0 | EY87: - | EZ87: 1158423993 | FA87: 1605324873 | FB87: -446900879.4 | FC87: -27.83865665 | FD87: 0 | FE87: 0 | FF87: 177712846.4 | FG87: 177712846.4 | FH87: TRUE | FI87: TRUE
A88: 93400000 | B88: E.S.P. Empresa de Acueducto, Alcantarillado y Aseo de Chimichagua | C88: Cesar Empresas que No Cotizan | D88: 5216888717 | E88: 5277068519 | F88: -60179802 | G88: -1.140402134 | H88: 2767359912 | I88: 2767668547 | J88: -308635 | K88: -0.01115144371 | L88: 0 | M88: 0 | N88: 0 | O88: 0 | P88: 0 | Q88: 0 | R88: 0 | S88: 0 | T88: 0 | U88: 0 | V88: 0 | W88: 0 | X88: 0 | Y88: 0 | Z88: 2767359912 | AA88: 2767668547 | AB88: 0 | AC88: 0 | AD88: 0 | AE88: 0 | AF88: 0 | AG88: 0 | AH88: 0 | AI88: 0 | AJ88: 0 | AK88: 0 | AL88: 0 | AM88: 0 | AN88: 0 | AO88: 0 | AP88: 0 | AQ88: 0 | AR88: 0 | AS88: 0 | AT88: 0 | AU88: 0 | AV88: 395659195 | AW88: 395659195 | AX88: 395659195 | AY88: 395659195 | AZ88: 0 | BA88: 0 | BB88: 0 | BC88: 0 | BD88: 0 | BE88: 0 | BF88: 221082510 | BG88: 221082510 | BH88: 133479740 | BI88: 133479740 | BJ88: 41096945 | BK88: 41096945 | BL88: 0 | BM88: 0 | BN88: 0 | BO88: 0 | BP88: 0 | BQ88: 0 | BR88: 0 | BS88: 0 | BT88: 0 | BU88: 0 | BV88: 0 | BW88: 0 | BX88: 0 | BY88: 0 | BZ88: 0 | CA88: 0 | CB88: 0 | CC88: 0 | CD88: 0 | CE88: 0 | CF88: 0 | CG88: 0 | CH88: 0 | CI88: 0 | CJ88: 0 | CK88: 0 | CL88: 0 | CM88: - | CN88: 1208262163 | CO88: 837165548 | CP88: 371096615 | CQ88: 44.32774568 | CR88: 0 | CS88: 0 | CT88: 0 | CU88: - | CV88: 0 | CW88: 0 | CX88: 0 | CY88: - | CZ88: 0 | DA88: 0 | DB88: 0 | DC88: 0 | DD88: 4008626554 | DE88: 4439902971 | DF88: -431276417 | DG88: -9.713645091 | DH88: 699095720 | DI88: 720012636 | DJ88: -20916916 | DK88: -2.905076238 | DL88: 0 | DM88: 0 | DN88: 0 | DO88: - | DP88: 0 | DQ88: 635030659 | DR88: -635030659 | DS88: -100 | DT88: 12275841 | DU88: 449389633 | DV88: 0 | DW88: 0 | DX88: 0 | DY88: - | DZ88: -417152448 | EA88: 54912209 | EB88: -472064657 | EC88: … | ED88: 686819879 | EE88: 270623003 | EF88: 1116248168 | EG88: 665100427 | EH88: 451147741 | EI88: 67.83152178 | EJ88: 0 | EK88: 0 | EL88: 0 | EM88: - | EN88: 0 | EO88: 0 | EP88: 0 | EQ88: - | ER88: 0 | ES88: 0 | ET88: 0 | EU88: - | EV88: 0 | EW88: 0 | EX88: 0 | EY88: - | EZ88: 2767359912 | FA88: 2767668547 | FB88: -308635 | FC88: -0.01115144371 | FD88: 0 | FE88: 0 | FF88: 395659195 | FG88: 395659195 | FH88: TRUE | FI88: TRUE
A89: 93500000 | B89: Empresa Social del Estado Centro de Salud Santa Rita de Casia | C89: Boyacá Empresas que No Cotizan | D89: 495253724.4 | E89: 576961387 | F89: -81707662.59 | G89: -14.16172112 | H89: 174047941.3 | I89: 114377158 | J89: 59670783.3 | K89: 52.17019232 | L89: 0 | M89: 0 | N89: 0 | O89: 0 | P89: 0 | Q89: 0 | R89: 0 | S89: 0 | T89: 0 | U89: 0 | V89: 0 | W89: 0 | X89: 0 | Y89: 0 | Z89: 0 | AA89: 0 | AB89: 158819665 | AC89: 114377158 | AD89: 0 | AE89: 0 | AF89: 0 | AG89: 0 | AH89: 14410684.3 | AI89: 0 | AJ89: 0 | AK89: 0 | AL89: 0 | AM89: 0 | AN89: 0 | AO89: 0 | AP89: 0 | AQ89: 0 | AR89: 0 | AS89: 0 | AT89: 817592 | AU89: 0 | AV89: 0 | AW89: 0 | AX89: 0 | AY89: 0 | AZ89: 0 | BA89: 0 | BB89: 0 | BC89: 0 | BD89: 0 | BE89: 0 | BF89: 0 | BG89: 0 | BH89: 0 | BI89: 0 | BJ89: 0 | BK89: 0 | BL89: 0 | BM89: 0 | BN89: 0 | BO89: 0 | BP89: 0 | BQ89: 0 | BR89: 0 | BS89: 0 | BT89: 0 | BU89: 0 | BV89: 0 | BW89: 0 | BX89: 0 | BY89: 0 | BZ89: 0 | CA89: 0 | CB89: 0 | CC89: 0 | CD89: 0 | CE89: 0 | CF89: 0 | CG89: 0 | CH89: 0 | CI89: 0 | CJ89: 0 | CK89: 0 | CL89: 0 | CM89: - | CN89: 14013769 | CO89: 256593454 | CP89: -242579685 | CQ89: -94.53853215 | CR89: 0 | CS89: 0 | CT89: 0 | CU89: - | CV89: 0 | CW89: 0 | CX89: 0 | CY89: - | CZ89: 0 | DA89: 0 | DB89: 0 | DC89: 0 | DD89: 481239955.4 | DE89: 320367933 | DF89: 160872022.4 | DG89: 50.21477053 | DH89: 761283585.8 | DI89: 627719552 | DJ89: 133564033.8 | DK89: 21.27766029 | DL89: 0 | DM89: 0 | DN89: 0 | DO89: - | DP89: 149106843 | DQ89: 0 | DR89: 149106843 | DS89: - | DT89: 498720677.8 | DU89: 334679297 | DV89: 0 | DW89: 0 | DX89: 0 | DY89: - | DZ89: 160700739 | EA89: 123596957 | EB89: 37103782 | EC89: 30.01998018 | ED89: 262562908 | EE89: 293040255 | EF89: 600582846.8 | EG89: 504122595 | EH89: 96460251.82 | EI89: 19.13428455 | EJ89: 0 | EK89: 0 | EL89: 0 | EM89: - | EN89: 0 | EO89: 0 | EP89: 0 | EQ89: - | ER89: 0 | ES89: 0 | ET89: 0 | EU89: - | EV89: 14410684.3 | EW89: 0 | EX89: 14410684.3 | EY89: - | EZ89: 159637257 | FA89: 114377158 | FB89: 45260099 | FC89: 39.57092464 | FD89: 0 | FE89: 0 | FF89: 0 | FG89: 0 | FH89: TRUE | FI89: TRUE
A90: 93600000 | B90: E.S.E. Prestadora de Servicios de Salud Gustavo Romero Hernández | C90: Boyacá Empresas que No Cotizan | D90: 2353002722 | E90: 2113453568 | F90: 239549154 | G90: 11.33448861 | H90: 314872496 | I90: 411650376 | J90: -96777880 | K90: -23.5097271 | L90: 0 | M90: 0 | N90: 0 | O90: 0 | P90: 0 | Q90: 0 | R90: 0 | S90: 0 | T90: 0 | U90: 0 | V90: 0 | W90: 0 | X90: 0 | Y90: 0 | Z90: 0 | AA90: 0 | AB90: 324866624 | AC90: 441203840 | AD90: 0 | AE90: 0 | AF90: 0 | AG90: 0 | AH90: 19519746 | AI90: 0 | AJ90: 0 | AK90: 0 | AL90: 0 | AM90: 0 | AN90: 0 | AO90: 0 | AP90: 0 | AQ90: 0 | AR90: 0 | AS90: 0 | AT90: 39590 | AU90: 0 | AV90: 0 | AW90: 0 | AX90: 29553464 | AY90: 29553464 | AZ90: 0 | BA90: 0 | BB90: 0 | BC90: 0 | BD90: 0 | BE90: 0 | BF90: 0 | BG90: 0 | BH90: 0 | BI90: 0 | BJ90: 0 | BK90: 0 | BL90: 0 | BM90: 0 | BN90: 0 | BO90: 0 | BP90: 29553464 | BQ90: 29553464 | BR90: 0 | BS90: 0 | BT90: 0 | BU90: 0 | BV90: 0 | BW90: 0 | BX90: 0 | BY90: 0 | BZ90: 0 | CA90: 0 | CB90: 0 | CC90: 0 | CD90: 0 | CE90: 0 | CF90: 0 | CG90: 0 | CH90: 0 | CI90: 0 | CJ90: 0 | CK90: 0 | CL90: 0 | CM90: - | CN90: 51048052 | CO90: 65513937 | CP90: -14465885 | CQ90: -22.08062233 | CR90: 0 | CS90: 0 | CT90: 0 | CU90: - | CV90: 0 | CW90: 0 | CX90: 0 | CY90: - | CZ90: 0 | DA90: 0 | DB90: 0 | DC90: 0 | DD90: 2301954670 | DE90: 2047939631 | DF90: 254015039 | DG90: 12.40344369 | DH90: 1770651280 | DI90: 1473420637 | DJ90: 297230643 | DK90: 20.17283018 | DL90: 0 | DM90: 0 | DN90: 0 | DO90: - | DP90: 233156476 | DQ90: 0 | DR90: 233156476 | DS90: - | DT90: 689441870 | DU90: 365930493 | DV90: 0 | DW90: 0 | DX90: 0 | DY90: - | DZ90: 224290546 | EA90: -45422492 | EB90: 269713038 | EC90: … | ED90: 1081209410 | EE90: 1107490144 | EF90: 1546360734 | EG90: 1518843129 | EH90: 27517605 | EI90: 1.81174767 | EJ90: 0 | EK90: 0 | EL90: 0 | EM90: - | EN90: 0 | EO90: 0 | EP90: 0 | EQ90: - | ER90: 0 | ES90: 0 | ET90: 0 | EU90: - | EV90: 19519746 | EW90: 0 | EX90: 19519746 | EY90: - | EZ90: 295352750 | FA90: 411650376 | FB90: -116297626 | FC90: -28.25155345 | FD90: 0 | FE90: 0 | FF90: 29553464 | FG90: 29553464 | FH90: TRUE | FI90: TRUE
A91: 93700000 | B91: E.S.E. Centro de Salud de Motavita | C91: Boyacá Empresas que No Cotizan | D91: 981951656.6 | E91: 941997875.9 | F91: 39953780.66 | G91: 4.241387553 | H91: 239673556.3 | I91: 282160387.1 | J91: -42486830.8 | K91: -15.05768802 | L91: 0 | M91: 0 | N91: 0 | O91: 0 | P91: 0 | Q91: 0 | R91: 0 | S91: 0 | T91: 0 | U91: 0 | V91: 0 | W91: 0 | X91: 0 | Y91: 0 | Z91: 0 | AA91: 0 | AB91: 273179454.6 | AC91: 276181548.1 | AD91: 0 | AE91: 0 | AF91: 0 | AG91: 0 | AH91: 15163499.7 | AI91: 0 | AJ91: 0 | AK91: 0 | AL91: 0 | AM91: 0 | AN91: 0 | AO91: 0 | AP91: 0 | AQ91: 0 | AR91: 0 | AS91: 0 | AT91: 0 | AU91: 5978839 | AV91: 0 | AW91: 0 | AX91: 48669398 | AY91: 0 | AZ91: 0 | BA91: 0 | BB91: 0 | BC91: 0 | BD91: 0 | BE91: 0 | BF91: 0 | BG91: 0 | BH91: 0 | BI91: 0 | BJ91: 0 | BK91: 0 | BL91: 0 | BM91: 0 | BN91: 0 | BO91: 0 | BP91: 48669398 | BQ91: 0 | BR91: 0 | BS91: 0 | BT91: 0 | BU91: 0 | BV91: 0 | BW91: 0 | BX91: 0 | BY91: 0 | BZ91: 0 | CA91: 0 | CB91: 0 | CC91: 0 | CD91: 0 | CE91: 0 | CF91: 0 | CG91: 0 | CH91: 0 | CI91: 0 | CJ91: 0 | CK91: 0 | CL91: 0 | CM91: - | CN91: 40667078 | CO91: 20398769 | CP91: 20268309 | CQ91: 99.3604516 | CR91: 0 | CS91: 0 | CT91: 0 | CU91: - | CV91: 0 | CW91: 0 | CX91: 0 | CY91: - | CZ91: 0 | DA91: 0 | DB91: 0 | DC91: 0 | DD91: 941284578.6 | DE91: 921599106.9 | DF91: 19685471.66 | DG91: 2.13601245 | DH91: 964800629.1 | DI91: 780416763.5 | DJ91: 184383865.6 | DK91: 23.62633329 | DL91: 0 | DM91: 0 | DN91: 0 | DO91: - | DP91: 156634997 | DQ91: 4000000 | DR91: 152634997 | DS91: … | DT91: 427652217.1 | DU91: 418640299.7 | DV91: 0 | DW91: 0 | DX91: 0 | DY91: - | DZ91: 19685471.66 | EA91: 116293454.8 | EB91: -96607983.17 | EC91: -83.07258849 | ED91: 537148412 | EE91: 361776463.9 | EF91: 945115157.5 | EG91: 664123308.7 | EH91: 280991848.8 | EI91: 42.31019226 | EJ91: 0 | EK91: 0 | EL91: 0 | EM91: - | EN91: 0 | EO91: 0 | EP91: 0 | EQ91: - | ER91: 0 | ES91: 0 | ET91: 0 | EU91: - | EV91: 15163499.7 | EW91: 0 | EX91: 15163499.7 | EY91: - | EZ91: 224510056.6 | FA91: 282160387.1 | FB91: -57650330.5 | FC91: -20.43175907 | FD91: 0 | FE91: 0 | FF91: 48669398 | FG91: 0 | FH91: TRUE | FI91: TRUE
A92: 93900000 | B92: E.S.E. Hospital San José de Guaduas | C92: Cundinamarca Empresas que No Cotizan | D92: 1.016280308e+10 | E92: 9039150256 | F92: 1123652826 | G92: 12.43095638 | H92: 3974197708 | I92: 3334268903 | J92: 639928804.9 | K92: 19.19247738 | L92: 0 | M92: 0 | N92: 0 | O92: 0 | P92: 0 | Q92: 0 | R92: 0 | S92: 0 | T92: 0 | U92: 0 | V92: 0 | W92: 0 | X92: 0 | Y92: 0 | Z92: 0 | AA92: 0 | AB92: 6564919653 | AC92: 5598912948 | AD92: 0 | AE92: 0 | AF92: 0 | AG92: 0 | AH92: 0 | AI92: 0 | AJ92: 0 | AK92: 0 | AL92: 0 | AM92: 0 | AN92: 0 | AO92: 0 | AP92: 0 | AQ92: 0 | AR92: 0 | AS92: 0 | AT92: 406412.97 | AU92: 5529656.88 | AV92: 1393713931 | AW92: 1292896347 | AX92: 3984842289 | AY92: 3563070049 | AZ92: 0 | BA92: 0 | BB92: 0 | BC92: 0 | BD92: 0 | BE92: 0 | BF92: 0 | BG92: 0 | BH92: 0 | BI92: 0 | BJ92: 0 | BK92: 0 | BL92: 0 | BM92: 0 | BN92: 0 | BO92: 0 | BP92: 3984842289 | BQ92: 3563070049 | BR92: 0 | BS92: 0 | BT92: 0 | BU92: 0 | BV92: 0 | BW92: 0 | BX92: 0 | BY92: 0 | BZ92: 0 | CA92: 0 | CB92: 0 | CC92: 0 | CD92: 0 | CE92: 0 | CF92: 0 | CG92: 0 | CH92: 0 | CI92: 0 | CJ92: 0 | CK92: 0 | CL92: 0 | CM92: - | CN92: 1102792675 | CO92: 1052186572 | CP92: 50606102.88 | CQ92: 4.80961307 | CR92: 0 | CS92: 0 | CT92: 0 | CU92: - | CV92: 0 | CW92: 0 | CX92: 0 | CY92: - | CZ92: 0 | DA92: 0 | DB92: 0 | DC92: 0 | DD92: 9060010406 | DE92: 7986963684 | DF92: 1073046723 | DG92: 13.43497686 | DH92: 1.017955614e+10 | DI92: 1.062736453e+10 | DJ92: -447808386.7 | DK92: -4.21372943 | DL92: 0 | DM92: 0 | DN92: 0 | DO92: - | DP92: 2008370488 | DQ92: 1553383033 | DR92: 454987454.7 | DS92: 29.29010071 | DT92: 5000263007 | DU92: 5478797383 | DV92: 0 | DW92: 0 | DX92: 0 | DY92: - | DZ92: 1073046629 | EA92: 1103426250 | EB92: -30379620.58 | EC92: -2.753208072 | ED92: 5179293134 | EE92: 5148567145 | EF92: 9106509513 | EG92: 9523938279 | EH92: -417428766.1 | EI92: -4.38294279 | EJ92: 0 | EK92: 0 | EL92: 0 | EM92: - | EN92: 0 | EO92: 0 | EP92: 0 | EQ92: - | ER92: 0 | ES92: 0 | ET92: 0 | EU92: - | EV92: 0 | EW92: 0 | EX92: 0 | EY92: - | EZ92: 3974197708 | FA92: 3334268903 | FB92: 639928804.9 | FC92: 19.19247738 | FD92: 0 | FE92: 0 | FF92: 3984842289 | FG92: 3563070049 | FH92: TRUE | FI92: TRUE
A93: 94000000 | B93: Instituto Municipal de Deporte y Recreación - El Retiro | C93: Antioquia Entidades de gobierno | D93: 666232072.5 | E93: 213024465 | F93: 453207607.5 | G93: … | H93: 0 | I93: 55361542 | J93: -55361542 | K93: -100 | L93: 0 | M93: 0 | N93: 0 | O93: 0 | P93: 0 | Q93: 0 | R93: 0 | S93: 0 | T93: 0 | U93: 0 | V93: 0 | W93: 0 | X93: 0 | Y93: 0 | Z93: 0 | AA93: 0 | AB93: 0 | AC93: 0 | AD93: 0 | AE93: 0 | AF93: 0 | AG93: 0 | AH93: 0 | AI93: 0 | AJ93: 0 | AK93: 0 | AL93: 0 | AM93: 0 | AN93: 0 | AO93: 0 | AP93: 0 | AQ93: 0 | AR93: 0 | AS93: 0 | AT93: 0 | AU93: 55361542 | AV93: 0 | AW93: 0 | AX93: 0 | AY93: 0 | AZ93: 0 | BA93: 0 | BB93: 0 | BC93: 0 | BD93: 0 | BE93: 0 | BF93: 0 | BG93: 0 | BH93: 0 | BI93: 0 | BJ93: 0 | BK93: 0 | BL93: 0 | BM93: 0 | BN93: 0 | BO93: 0 | BP93: 0 | BQ93: 0 | BR93: 0 | BS93: 0 | BT93: 0 | BU93: 0 | BV93: 0 | BW93: 0 | BX93: 0 | BY93: 0 | BZ93: 0 | CA93: 0 | CB93: 0 | CC93: 0 | CD93: 0 | CE93: 0 | CF93: 0 | CG93: 0 | CH93: 0 | CI93: 0 | CJ93: 0 | CK93: 0 | CL93: 0 | CM93: - | CN93: 305875519.5 | CO93: 27437902 | CP93: 278437617.5 | CQ93: … | CR93: 0 | CS93: 0 | CT93: 0 | CU93: - | CV93: 0 | CW93: 0 | CX93: 0 | CY93: - | CZ93: 0 | DA93: 0 | DB93: 0 | DC93: 0 | DD93: 360356553 | DE93: 185586563 | DF93: 174769990 | DG93: 94.17168312 | DH93: 1893179513 | DI93: 1518817379 | DJ93: 374362134.2 | DK93: 24.64826512 | DL93: 0 | DM93: 0 | DN93: 0 | DO93: - | DP93: 1830847614 | DQ93: 1212439084 | DR93: 618408530 | DS93: 51.00532787 | DT93: 1893179513 | DU93: 1518817379 | DV93: 457530772.9 | DW93: 1337883519 | DX93: -880352746.1 | DY93: -65.80189782 | DZ93: 156096044 | EA93: -100291342 | EB93: 256387386 | EC93: … | ED93: 0 | EE93: 0 | EF93: 1737083469 | EG93: 1619108721 | EH93: 117974748.2 | EI93: 7.286400638 | EJ93: 0 | EK93: 0 | EL93: 0 | EM93: - | EN93: 0 | EO93: 0 | EP93: 0 | EQ93: - | ER93: 0 | ES93: 0 | ET93: 0 | EU93: - | EV93: 0 | EW93: 0 | EX93: 0 | EY93: - | EZ93: 0 | FA93: 55361542 | FB93: -55361542 | FC93: -100 | FD93: 0 | FE93: 0 | FF93: 0 | FG93: 0 | FH93: TRUE | FI93: TRUE
A94: 94200000 | B94: U.A.E. Unidad de Licores del Meta | C94: Meta Empresas que No Cotizan | D94: 2377327857 | E94: 1835812530 | F94: 541515327 | G94: 29.49731076 | H94: 124880600 | I94: 49708708 | J94: 75171892 | K94: 151.2247955 | L94: 0 | M94: 0 | N94: 0 | O94: 0 | P94: 0 | Q94: 0 | R94: 0 | S94: 0 | T94: 0 | U94: 0 | V94: 41530082 | W94: 0 | X94: 0 | Y94: 0 | Z94: 0 | AA94: 0 | AB94: 0 | AC94: 0 | AD94: 0 | AE94: 0 | AF94: 0 | AG94: 0 | AH94: 0 | AI94: 0 | AJ94: 0 | AK94: 0 | AL94: 0 | AM94: 0 | AN94: 0 | AO94: 0 | AP94: 0 | AQ94: 0 | AR94: 0 | AS94: 0 | AT94: 83350518 | AU94: 41668708 | AV94: 0 | AW94: 8040000 | AX94: 0 | AY94: 0 | AZ94: 0 | BA94: 0 | BB94: 0 | BC94: 0 | BD94: 0 | BE94: 0 | BF94: 0 | BG94: 0 | BH94: 0 | BI94: 0 | BJ94: 0 | BK94: 0 | BL94: 0 | BM94: 0 | BN94: 0 | BO94: 0 | BP94: 0 | BQ94: 0 | BR94: 0 | BS94: 0 | BT94: 0 | BU94: 0 | BV94: 0 | BW94: 0 | BX94: 0 | BY94: 0 | BZ94: 0 | CA94: 0 | CB94: 0 | CC94: 0 | CD94: 0 | CE94: 0 | CF94: 0 | CG94: 0 | CH94: 0 | CI94: 0 | CJ94: 0 | CK94: 0 | CL94: 0 | CM94: - | CN94: 1373434826 | CO94: 598661655 | CP94: 774773171 | CQ94: 129.4175374 | CR94: 0 | CS94: 0 | CT94: 0 | CU94: - | CV94: 0 | CW94: 0 | CX94: 0 | CY94: - | CZ94: 0 | DA94: 0 | DB94: 0 | DC94: 0 | DD94: 1003893031 | DE94: 1237150875 | DF94: -233257844 | DG94: -18.85443794 | DH94: 3137278874 | DI94: 3988269623 | DJ94: -850990749 | DK94: -21.33734249 | DL94: 0 | DM94: 0 | DN94: 0 | DO94: - | DP94: 0 | DQ94: 436896447 | DR94: -436896447 | DS94: -100 | DT94: 2162425137 | DU94: 2939278593 | DV94: 0 | DW94: 0 | DX94: 0 | DY94: - | DZ94: 22110536 | EA94: 355749918 | EB94: -333639382 | EC94: -93.78480925 | ED94: 974853737 | EE94: 1048991030 | EF94: 3115168338 | EG94: 3632519705 | EH94: -517351367 | EI94: -14.24221777 | EJ94: 0 | EK94: 0 | EL94: 0 | EM94: - | EN94: 0 | EO94: 0 | EP94: 0 | EQ94: - | ER94: 0 | ES94: 0 | ET94: 0 | EU94: - | EV94: 0 | EW94: 0 | EX94: 0 | EY94: - | EZ94: 124880600 | FA94: 49708708 | FB94: 75171892 | FC94: 151.2247955 | FD94: 0 | FE94: 0 | FF94: 0 | FG94: 0 | FH94: TRUE | FI94: TRUE
A95: 94300000 | B95: Instituto Municipal de Deporte, Recreación y Educación Física - Trujillo | C95: Valle del Cauca Entidades de gobierno | D95: 2500000 | E95: 17531975.18 | F95: -15031975.18 | G95: -85.7403403 | H95: 0 | I95: 0 | J95: 0 | K95: - | L95: 0 | M95: 0 | N95: 0 | O95: 0 | P95: 0 | Q95: 0 | R95: 0 | S95: 0 | T95: 0 | U95: 0 | V95: 0 | W95: 0 | X95: 0 | Y95: 0 | Z95: 0 | AA95: 0 | AB95: 0 | AC95: 0 | AD95: 0 | AE95: 0 | AF95: 0 | AG95: 0 | AH95: 0 | AI95: 0 | AJ95: 0 | AK95: 0 | AL95: 0 | AM95: 0 | AN95: 0 | AO95: 0 | AP95: 0 | AQ95: 0 | AR95: 0 | AS95: 0 | AT95: 0 | AU95: 0 | AV95: 0 | AW95: 0 | AX95: 0 | AY95: 0 | AZ95: 0 | BA95: 0 | BB95: 0 | BC95: 0 | BD95: 0 | BE95: 0 | BF95: 0 | BG95: 0 | BH95: 0 | BI95: 0 | BJ95: 0 | BK95: 0 | BL95: 0 | BM95: 0 | BN95: 0 | BO95: 0 | BP95: 0 | BQ95: 0 | BR95: 0 | BS95: 0 | BT95: 0 | BU95: 0 | BV95: 0 | BW95: 0 | BX95: 0 | BY95: 0 | BZ95: 0 | CA95: 0 | CB95: 0 | CC95: 0 | CD95: 0 | CE95: 0 | CF95: 0 | CG95: 0 | CH95: 0 | CI95: 0 | CJ95: 0 | CK95: 0 | CL95: 0 | CM95: - | CN95: 0 | CO95: 401 | CP95: -401 | CQ95: -100 | CR95: 0 | CS95: 0 | CT95: 0 | CU95: - | CV95: 0 | CW95: 0 | CX95: 0 | CY95: - | CZ95: 0 | DA95: 0 | DB95: 0 | DC95: 0 | DD95: 2500000 | DE95: 17531574.18 | DF95: -15031574.18 | DG95: -85.74001413 | DH95: 93499801 | DI95: 72845567.41 | DJ95: 20654233.59 | DK95: 28.35345282 | DL95: 0 | DM95: 0 | DN95: 0 | DO95: - | DP95: 93499801 | DQ95: 72845567.41 | DR95: 20654233.59 | DS95: 28.35345282 | DT95: 93499801 | DU95: 72845567.41 | DV95: 47747552 | DW95: 40849917 | DX95: 6897635 | DY95: 16.88530971 | DZ95: 1 | EA95: 1560140.41 | EB95: -1560139.41 | EC95: -99.9999359 | ED95: 0 | EE95: 0 | EF95: 93499800 | EG95: 71285427 | EH95: 22214373 | EI95: 31.16257268 | EJ95: 0 | EK95: 0 | EL95: 0 | EM95: - | EN95: 0 | EO95: 0 | EP95: 0 | EQ95: - | ER95: 0 | ES95: 0 | ET95: 0 | EU95: - | EV95: 0 | EW95: 0 | EX95: 0 | EY95: - | EZ95: 0 | FA95: 0 | FB95: 0 | FC95: - | FD95: 0 | FE95: 0 | FF95: 0 | FG95: 0 | FH95: TRUE | FI95: TRUE
A96: 94600000 | B96: Catedral de Sal de Zipaquirá S.A. S.E.M. | C96: Cundinamarca Empresas que No Cotizan | D96: 6055878141 | E96: 6529827762 | F96: -473949620.8 | G96: -7.258225455 | H96: 233455961.5 | I96: 310946971.8 | J96: -77491010.29 | K96: -24.92097281 | L96: 0 | M96: 0 | N96: 0 | O96: 0 | P96: 0 | Q96: 0 | R96: 0 | S96: 0 | T96: 0 | U96: 0 | V96: 0 | W96: 0 | X96: 94781581.53 | Y96: 128037745.8 | Z96: 0 | AA96: 0 | AB96: 0 | AC96: 0 | AD96: 0 | AE96: 0 | AF96: 0 | AG96: 0 | AH96: 0 | AI96: 0 | AJ96: 0 | AK96: 0 | AL96: 0 | AM96: 0 | AN96: 0 | AO96: 0 | AP96: 0 | AQ96: 0 | AR96: 0 | AS96: 0 | AT96: 138674380 | AU96: 182909226 | AV96: 0 | AW96: 0 | AX96: 0 | AY96: 0 | AZ96: 0 | BA96: 0 | BB96: 0 | BC96: 0 | BD96: 0 | BE96: 0 | BF96: 0 | BG96: 0 | BH96: 0 | BI96: 0 | BJ96: 0 | BK96: 0 | BL96: 0 | BM96: 0 | BN96: 0 | BO96: 0 | BP96: 0 | BQ96: 0 | BR96: 0 | BS96: 0 | BT96: 0 | BU96: 0 | BV96: 0 | BW96: 0 | BX96: 0 | BY96: 0 | BZ96: 0 | CA96: 0 | CB96: 0 | CC96: 0 | CD96: 0 | CE96: 0 | CF96: 0 | CG96: 0 | CH96: 0 | CI96: 0 | CJ96: 0 | CK96: 0 | CL96: 0 | CM96: - | CN96: 2159598196 | CO96: 2689080674 | CP96: -529482478.4 | CQ96: -19.69009273 | CR96: 0 | CS96: 0 | CT96: 0 | CU96: - | CV96: 776000000 | CW96: 0 | CX96: 776000000 | CY96: - | CZ96: 0 | DA96: 0 | DB96: 0 | DC96: 0 | DD96: 3896279945 | DE96: 3840747088 | DF96: 55532857.63 | DG96: 1.445886864 | DH96: 547425126.3 | DI96: 1211395452 | DJ96: -663970325.2 | DK96: -54.81036967 | DL96: 0 | DM96: 0 | DN96: 0 | DO96: - | DP96: 0 | DQ96: 0 | DR96: 0 | DS96: - | DT96: 547425126.3 | DU96: 1211395452 | DV96: 0 | DW96: 0 | DX96: 0 | DY96: - | DZ96: 47714568.57 | EA96: 310704923.1 | EB96: -262990354.6 | EC96: -84.64312439 | ED96: 0 | EE96: 0 | EF96: 499710557.8 | EG96: 900690528.4 | EH96: -400979970.6 | EI96: -44.51917256 | EJ96: 776000000 | EK96: 0 | EL96: 776000000 | EM96: - | EN96: 0 | EO96: 0 | EP96: 0 | EQ96: - | ER96: 0 | ES96: 0 | ET96: 0 | EU96: - | EV96: 0 | EW96: 0 | EX96: 0 | EY96: - | EZ96: 233455961.5 | FA96: 310946971.8 | FB96: -77491010.29 | FC96: -24.92097281 | FD96: 0 | FE96: 0 | FF96: 0 | FG96: 0 | FH96: TRUE | FI96: TRUE
A97: 94900000 | B97: Instituto de Vivienda Municipal de Aguazul | C97: Casanare Entidades de gobierno | D97: 1.839245219e+10 | E97: 1.98159439e+10 | F97: -1423491710 | G97: -7.183567522 | H97: 0 | I97: 430324735 | J97: -430324735 | K97: -100 | L97: 0 | M97: 0 | N97: 0 | O97: 0 | P97: 0 | Q97: 0 | R97: 0 | S97: 0 | T97: 0 | U97: 0 | V97: 0 | W97: 0 | X97: 0 | Y97: 0 | Z97: 0 | AA97: 0 | AB97: 0 | AC97: 0 | AD97: 0 | AE97: 0 | AF97: 0 | AG97: 0 | AH97: 0 | AI97: 0 | AJ97: 0 | AK97: 0 | AL97: 0 | AM97: 0 | AN97: 0 | AO97: 0 | AP97: 0 | AQ97: 0 | AR97: 0 | AS97: 0 | AT97: 0 | AU97: 430324735 | AV97: 0 | AW97: 0 | AX97: 0 | AY97: 0 | AZ97: 0 | BA97: 0 | BB97: 0 | BC97: 0 | BD97: 0 | BE97: 0 | BF97: 0 | BG97: 0 | BH97: 0 | BI97: 0 | BJ97: 0 | BK97: 0 | BL97: 0 | BM97: 0 | BN97: 0 | BO97: 0 | BP97: 0 | BQ97: 0 | BR97: 0 | BS97: 0 | BT97: 0 | BU97: 0 | BV97: 0 | BW97: 0 | BX97: 0 | BY97: 0 | BZ97: 0 | CA97: 0 | CB97: 0 | CC97: 0 | CD97: 0 | CE97: 0 | CF97: 0 | CG97: 0 | CH97: 0 | CI97: 0 | CJ97: 0 | CK97: 0 | CL97: 0 | CM97: - | CN97: 1.068156679e+10 | CO97: 1.108667467e+10 | CP97: -405107879.9 | CQ97: -3.654007102 | CR97: 0 | CS97: 0 | CT97: 0 | CU97: - | CV97: 0 | CW97: 0 | CX97: 0 | CY97: - | CZ97: 0 | DA97: 0 | DB97: 0 | DC97: 0 | DD97: 7710885396 | DE97: 8729269226 | DF97: -1018383830 | DG97: -11.66631254 | DH97: 454530908 | DI97: 429854466.7 | DJ97: 24676441.32 | DK97: 5.740650204 | DL97: 0 | DM97: 0 | DN97: 0 | DO97: - | DP97: 320000000 | DQ97: 300000000 | DR97: 20000000 | DS97: 6.666666667 | DT97: 454530908 | DU97: 429854466.7 | DV97: 0 | DW97: 0 | DX97: 0 | DY97: - | DZ97: -1018383830 | EA97: -518554303 | EB97: -499829527 | EC97: 96.38904241 | ED97: 0 | EE97: 0 | EF97: 1472914738 | EG97: 948408769.7 | EH97: 524505968.3 | EI97: 55.30378726 | EJ97: 0 | EK97: 0 | EL97: 0 | EM97: - | EN97: 0 | EO97: 0 | EP97: 0 | EQ97: - | ER97: 0 | ES97: 0 | ET97: 0 | EU97: - | EV97: 0 | EW97: 0 | EX97: 0 | EY97: - | EZ97: 0 | FA97: 430324735 | FB97: -430324735 | FC97: -100 | FD97: 0 | FE97: 0 | FF97: 0 | FG97: 0 | FH97: TRUE | FI97: TRUE
A98: 95200000 | B98: Asociación de Municipios de la Subregión de la Ciénaga Grande Santa Marta | C98: Magdalena Entidades de gobierno | D98: 18478160236 | E98: 35973894559 | F98: -17495734323 | G98: -48.63452939 | H98: 15563985619 | I98: 32583783667 | J98: -17019798048 | K98: -52.23395239 | L98: 0 | M98: 0 | N98: 129659219 | O98: 144736160 | P98: 0 | Q98: 0 | R98: 0 | S98: 0 | T98: 0 | U98: 0 | V98: 0 | W98: 0 | X98: 1519760139 | Y98: 415419911 | Z98: 0 | AA98: 0 | AB98: 0 | AC98: 0 | AD98: 0 | AE98: 0 | AF98: 0 | AG98: 0 | AH98: 0 | AI98: 0 | AJ98: 0 | AK98: 0 | AL98: 0 | AM98: 0 | AN98: 0 | AO98: 0 | AP98: 0 | AQ98: 0 | AR98: 0 | AS98: 0 | AT98: 13914566261 | AU98: 32023627596 | AV98: 0 | AW98: 0 | AX98: 0 | AY98: 0 | AZ98: 0 | BA98: 0 | BB98: 0 | BC98: 0 | BD98: 0 | BE98: 0 | BF98: 0 | BG98: 0 | BH98: 0 | BI98: 0 | BJ98: 0 | BK98: 0 | BL98: 0 | BM98: 0 | BN98: 0 | BO98: 0 | BP98: 0 | BQ98: 0 | BR98: 0 | BS98: 0 | BT98: 0 | BU98: 0 | BV98: 0 | BW98: 0 | BX98: 0 | BY98: 0 | BZ98: 0 | CA98: 0 | CB98: 0 | CC98: 0 | CD98: 0 | CE98: 0 | CF98: 0 | CG98: 0 | CH98: 0 | CI98: 0 | CJ98: 0 | CK98: 0 | CL98: 0 | CM98: - | CN98: 7504591355 | CO98: 28935222597 | CP98: -21430631242 | CQ98: -74.06416581 | CR98: 0 | CS98: 0 | CT98: 0 | CU98: - | CV98: 345322046 | CW98: 180679889 | CX98: 164642157 | CY98: 91.12367619 | CZ98: 0 | DA98: 0 | DB98: 0 | DC98: 0 | DD98: 10973568881 | DE98: 7038671962 | DF98: 3934896919 | DG98: 55.90396797 | DH98: 3981830740 | DI98: 39977024054 | DJ98: -35995193314 | DK98: -90.03970197 | DL98: 0 | DM98: 0 | DN98: 0 | DO98: - | DP98: 3510000 | DQ98: 0 | DR98: 3510000 | DS98: - | DT98: 1330208704 | DU98: 1795872834 | DV98: 173183876 | DW98: 28200000 | DX98: 144983876 | DY98: … | DZ98: 510900501 | EA98: 1017033004 | EB98: -506132503 | EC98: -49.76559276 | ED98: 2651622036 | EE98: 38181151220 | EF98: 3470930239 | EG98: 38959991050 | EH98: -35489060811 | EI98: -91.09103943 | EJ98: 345322046 | EK98: 180679889 | EL98: 164642157 | EM98: 91.12367619 | EN98: 0 | EO98: 0 | EP98: 0 | EQ98: - | ER98: 0 | ES98: 0 | ET98: 0 | EU98: - | EV98: 129659219 | EW98: 144736160 | EX98: -15076941 | EY98: -10.41684469 | EZ98: 15434326400 | FA98: 32439047507 | FB98: -17004721107 | FC98: -52.42053147 | FD98: 0 | FE98: 0 | FF98: 0 | FG98: 0 | FH98: TRUE | FI98: TRUE
A99: 95300000 | B99: E.S.E Centro de Salud - Betéitiva | C99: Boyacá Empresas que No Cotizan | D99: 336156115 | E99: 277064924 | F99: 59091191 | G99: 21.32756112 | H99: 38224709 | I99: 111427241 | J99: -73202532 | K99: -65.69536439 | L99: 0 | M99: 0 | N99: 0 | O99: 0 | P99: 0 | Q99: 0 | R99: 0 | S99: 0 | T99: 0 | U99: 0 | V99: 0 | W99: 0 | X99: 0 | Y99: 0 | Z99: 0 | AA99: 0 | AB99: 103307949 | AC99: 109577241 | AD99: 0 | AE99: 0 | AF99: 0 | AG99: 0 | AH99: 0 | AI99: 0 | AJ99: 0 | AK99: 0 | AL99: 0 | AM99: 0 | AN99: 0 | AO99: 0 | AP99: 0 | AQ99: 0 | AR99: 0 | AS99: 0 | AT99: 2320000 | AU99: 1850000 | AV99: 0 | AW99: 0 | AX99: 67403240 | AY99: 0 | AZ99: 0 | BA99: 0 | BB99: 0 | BC99: 0 | BD99: 0 | BE99: 0 | BF99: 0 | BG99: 0 | BH99: 0 | BI99: 0 | BJ99: 0 | BK99: 0 | BL99: 0 | BM99: 0 | BN99: 0 | BO99: 0 | BP99: 67403240 | BQ99: 0 | BR99: 0 | BS99: 0 | BT99: 0 | BU99: 0 | BV99: 0 | BW99: 0 | BX99: 0 | BY99: 0 | BZ99: 0 | CA99: 0 | CB99: 0 | CC99: 0 | CD99: 0 | CE99: 0 | CF99: 0 | CG99: 0 | CH99: 0 | CI99: 0 | CJ99: 0 | CK99: 0 | CL99: 0 | CM99: - | CN99: 20582206 | CO99: 67965862 | CP99: -47383656 | CQ99: -69.71684697 | CR99: 0 | CS99: 0 | CT99: 0 | CU99: - | CV99: 0 | CW99: 0 | CX99: 0 | CY99: - | CZ99: 0 | DA99: 0 | DB99: 0 | DC99: 0 | DD99: 315573909 | DE99: 209099062 | DF99: 106474847 | DG99: 50.9207674 | DH99: 613153622 | DI99: 369185052 | DJ99: 243968570 | DK99: 66.08300327 | DL99: 0 | DM99: 0 | DN99: 0 | DO99: - | DP99: 0 | DQ99: 0 | DR99: 0 | DS99: - | DT99: 307687957 | DU99: 153322673 | DV99: 0 | DW99: 0 | DX99: 0 | DY99: - | DZ99: -32409348 | EA99: -36721233 | EB99: 4311885 | EC99: -11.74221192 | ED99: 305465665 | EE99: 215862379 | EF99: 645562970 | EG99: 405906285 | EH99: 239656685 | EI99: 59.04236861 | EJ99: 0 | EK99: 0 | EL99: 0 | EM99: - | EN99: 0 | EO99: 0 | EP99: 0 | EQ99: - | ER99: 0 | ES99: 0 | ET99: 0 | EU99: - | EV99: 0 | EW99: 0 | EX99: 0 | EY99: - | EZ99: 38224709 | FA99: 111427241 | FB99: -73202532 | FC99: -65.69536439 | FD99: 0 | FE99: 0 | FF99: 67403240 | FG99: 0 | FH99: TRUE | FI99: TRUE
A100: 95600000 | B100: E.S.E. Hospital San Antonio de Chía | C100: Cundinamarca Empresas que No Cotizan | D100: 22713587154 | E100: 22079089715 | F100: 634497439 | G100: 2.873748181 | H100: 6066803442 | I100: 4401843995 | J100: 1664959447 | K100: 37.82413572 | L100: 0 | M100: 0 | N100: 0 | O100: 0 | P100: 0 | Q100: 0 | R100: 0 | S100: 0 | T100: 0 | U100: 0 | V100: 0 | W100: 0 | X100: 0 | Y100: 0 | Z100: 0 | AA100: 0 | AB100: 6223931022 | AC100: 5265208014 | AD100: 0 | AE100: 0 | AF100: 0 | AG100: 0 | AH100: 0 | AI100: 0 | AJ100: 0 | AK100: 0 | AL100: 0 | AM100: 0 | AN100: 0 | AO100: 0 | AP100: 0 | AQ100: 0 | AR100: 0 | AS100: 0 | AT100: 49498228 | AU100: 46761228 | AV100: 1162229260 | AW100: 67671734 | AX100: 1368855068 | AY100: 977796981 | AZ100: 0 | BA100: 0 | BB100: 0 | BC100: 0 | BD100: 0 | BE100: 0 | BF100: 0 | BG100: 0 | BH100: 0 | BI100: 0 | BJ100: 0 | BK100: 0 | BL100: 0 | BM100: 0 | BN100: 0 | BO100: 0 | BP100: 1368855068 | BQ100: 977796981 | BR100: 0 | BS100: 0 | BT100: 0 | BU100: 0 | BV100: 0 | BW100: 0 | BX100: 0 | BY100: 0 | BZ100: 0 | CA100: 0 | CB100: 0 | CC100: 0 | CD100: 0 | CE100: 0 | CF100: 0 | CG100: 0 | CH100: 0 | CI100: 0 | CJ100: 0 | CK100: 0 | CL100: 0 | CM100: - | CN100: 1983097264 | CO100: 286805093 | CP100: 1696292171 | CQ100: … | CR100: 0 | CS100: 0 | CT100: 0 | CU100: - | CV100: 0 | CW100: 0 | CX100: 0 | CY100: - | CZ100: 0 | DA100: 0 | DB100: 0 | DC100: 0 | DD100: 20730489890 | DE100: 21792284622 | DF100: -1061794732 | DG100: -4.872342439 | DH100: 11513089733 | DI100: 14260313360 | DJ100: -2747223627 | DK100: -19.26481949 | DL100: 0 | DM100: 0 | DN100: 0 | DO100: - | DP100: 2365792171 | DQ100: 2442737737 | DR100: -76945566 | DS100: -3.149972461 | DT100: 1968033102 | DU100: 4851890096 | DV100: 0 | DW100: 0 | DX100: 0 | DY100: - | DZ100: -1061794732 | EA100: 1824156596 | EB100: -2885951328 | EC100: -158.2074332 | ED100: 9545056631 | EE100: 9408423264 | EF100: 12574884465 | EG100: 12436156764 | EH100: 138727701 | EI100: 1.115519076 | EJ100: 0 | EK100: 0 | EL100: 0 | EM100: - | EN100: 0 | EO100: 0 | EP100: 0 | EQ100: - | ER100: 0 | ES100: 0 | ET100: 0 | EU100: - | EV100: 0 | EW100: 0 | EX100: 0 | EY100: - | EZ100: 6066803442 | FA100: 4401843995 | FB100: 1664959447 | FC100: 37.82413572 | FD100: 0 | FE100: 0 | FF100: 1368855068 | FG100: 977796981 | FH100: TRUE | FI100: TRUE
A101: 95700000 | B101: E.S.E. Centro de Salud Nuestra Señora de La Paz | C101: Boyacá Empresas que No Cotizan | D101: 1408704478 | E101: 1438040096 | F101: -29335618 | G101: -2.039972187 | H101: 784988145 | I101: 675420280 | J101: 109567865 | K101: 16.22217577 | L101: 0 | M101: 0 | N101: 0 | O101: 0 | P101: 0 | Q101: 0 | R101: 0 | S101: 0 | T101: 0 | U101: 0 | V101: 0 | W101: 0 | X101: 0 | Y101: 0 | Z101: 0 | AA101: 0 | AB101: 784988145 | AC101: 675420280 | AD101: 0 | AE101: 0 | AF101: 0 | AG101: 0 | AH101: 0 | AI101: 0 | AJ101: 0 | AK101: 0 | AL101: 0 | AM101: 0 | AN101: 0 | AO101: 0 | AP101: 0 | AQ101: 0 | AR101: 0 | AS101: 0 | AT101: 0 | AU101: 0 | AV101: 0 | AW101: 0 | AX101: 0 | AY101: 189630528 | AZ101: 0 | BA101: 0 | BB101: 0 | BC101: 0 | BD101: 0 | BE101: 0 | BF101: 0 | BG101: 0 | BH101: 0 | BI101: 0 | BJ101: 0 | BK101: 0 | BL101: 0 | BM101: 0 | BN101: 0 | BO101: 0 | BP101: 0 | BQ101: 189630528 | BR101: 0 | BS101: 0 | BT101: 0 | BU101: 0 | BV101: 0 | BW101: 0 | BX101: 0 | BY101: 0 | BZ101: 0 | CA101: 0 | CB101: 0 | CC101: 0 | CD101: 0 | CE101: 0 | CF101: 0 | CG101: 189630528 | CH101: 0 | CI101: 0 | CJ101: 0 | CK101: 0 | CL101: 0 | CM101: - | CN101: 1114911640 | CO101: 1201838341 | CP101: -86926701 | CQ101: -7.232811438 | CR101: 0 | CS101: 0 | CT101: 0 | CU101: - | CV101: 0 | CW101: 0 | CX101: 0 | CY101: - | CZ101: 0 | DA101: 0 | DB101: 0 | DC101: 0 | DD101: 293792838 | DE101: 236201755 | DF101: 57591083 | DG101: 24.38215711 | DH101: 1497550234 | DI101: 1806745349 | DJ101: -309195115 | DK101: -17.11337545 | DL101: 0 | DM101: 0 | DN101: 0 | DO101: - | DP101: 0 | DQ101: 733169157 | DR101: -733169157 | DS101: -100 | DT101: 643474601 | DU101: 770402928 | DV101: 0 | DW101: 0 | DX101: 0 | DY101: - | DZ101: -2202264 | EA101: -117981114 | EB101: 115778850 | EC101: -98.13337582 | ED101: 854075633 | EE101: 1036342421 | EF101: 1499752498 | EG101: 1924726463 | EH101: -424973965 | EI101: -22.07970707 | EJ101: 0 | EK101: 0 | EL101: 0 | EM101: - | EN101: 0 | EO101: 0 | EP101: 0 | EQ101: - | ER101: 0 | ES101: 0 | ET101: 0 | EU101: - | EV101: 0 | EW101: 0 | EX101: 0 | EY101: - | EZ101: 784988145 | FA101: 675420280 | FB101: 109567865 | FC101: 16.22217577 | FD101: 0 | FE101: 0 | FF101: 0 | FG101: 189630528 | FH101: TRUE | FI101: TRUE
A102: 95800000 | B102: E.S.E. Centro de Salud de San José de Pare | C102: Boyacá Empresas que No Cotizan | D102: 1120165324 | E102: 1106232116 | F102: 13933208.47 | G102: 1.259519433 | H102: 327061544.3 | I102: 255880092.6 | J102: 71181451.7 | K102: 27.81828433 | L102: 0 | M102: 0 | N102: 0 | O102: 0 | P102: 0 | Q102: 0 | R102: 0 | S102: 0 | T102: 0 | U102: 0 | V102: 0 | W102: 0 | X102: 0 | Y102: 0 | Z102: 0 | AA102: 0 | AB102: 410672661.2 | AC102: 296125557.4 | AD102: 0 | AE102: 0 | AF102: 0 | AG102: 0 | AH102: 0 | AI102: 0 | AJ102: 0 | AK102: 0 | AL102: 0 | AM102: 0 | AN102: 0 | AO102: 0 | AP102: 0 | AQ102: 0 | AR102: 0 | AS102: 0 | AT102: 0 | AU102: 0 | AV102: 0 | AW102: 0 | AX102: 83611116.87 | AY102: 40245464.76 | AZ102: 0 | BA102: 0 | BB102: 0 | BC102: 0 | BD102: 0 | BE102: 0 | BF102: 0 | BG102: 0 | BH102: 0 | BI102: 0 | BJ102: 0 | BK102: 0 | BL102: 0 | BM102: 0 | BN102: 0 | BO102: 0 | BP102: 83611116.87 | BQ102: 40245464.76 | BR102: 0 | BS102: 0 | BT102: 0 | BU102: 0 | BV102: 0 | BW102: 0 | BX102: 0 | BY102: 0 | BZ102: 0 | CA102: 0 | CB102: 0 | CC102: 0 | CD102: 0 | CE102: 0 | CF102: 0 | CG102: 0 | CH102: 0 | CI102: 0 | CJ102: 0 | CK102: 0 | CL102: 0 | CM102: - | CN102: 103837147.1 | CO102: 36560339.89 | CP102: 67276807.25 | CQ102: 184.0158145 | CR102: 0 | CS102: 0 | CT102: 0 | CU102: - | CV102: 0 | CW102: 0 | CX102: 0 | CY102: - | CZ102: 0 | DA102: 0 | DB102: 0 | DC102: 0 | DD102: 1016328177 | DE102: 1069671776 | DF102: -53343598.78 | DG102: -4.986912807 | DH102: 1080794034 | DI102: 1030984022 | DJ102: 49810011.67 | DK102: 4.831307819 | DL102: 0 | DM102: 0 | DN102: 0 | DO102: - | DP102: 0 | DQ102: 240035778.2 | DR102: -240035778.2 | DS102: -100 | DT102: 477422243.6 | DU102: 503421956.1 | DV102: 0 | DW102: 0 | DX102: 0 | DY102: - | DZ102: -53343598.78 | EA102: 110916651 | EB102: -164260249.8 | EC102: -148.0934092 | ED102: 603371790.2 | EE102: 527562066 | EF102: 1134137633 | EG102: 920067371.1 | EH102: 214070261.4 | EI102: 23.26680286 | EJ102: 0 | EK102: 0 | EL102: 0 | EM102: - | EN102: 0 | EO102: 0 | EP102: 0 | EQ102: - | ER102: 0 | ES102: 0 | ET102: 0 | EU102: - | EV102: 0 | EW102: 0 | EX102: 0 | EY102: - | EZ102: 327061544.3 | FA102: 255880092.6 | FB102: 71181451.7 | FC102: 27.81828433 | FD102: 0 | FE102: 0 | FF102: 83611116.87 | FG102: 40245464.76 | FH102: TRUE | FI102: TRUE
A103: 96000000 | B103: Instituto Municipal para la Cultura y el Turismo - Moniquirá | C103: Boyacá Entidades de gobierno | D103: 161047051.5 | E103: 45325484.31 | F103: 115721567.2 | G103: … | H103: 0 | I103: 10500000 | J103: -10500000 | K103: -100 | L103: 0 | M103: 0 | N103: 0 | O103: 0 | P103: 0 | Q103: 0 | R103: 0 | S103: 0 | T103: 0 | U103: 0 | V103: 0 | W103: 0 | X103: 0 | Y103: 0 | Z103: 0 | AA103: 0 | AB103: 0 | AC103: 0 | AD103: 0 | AE103: 0 | AF103: 0 | AG103: 0 | AH103: 0 | AI103: 0 | AJ103: 0 | AK103: 0 | AL103: 0 | AM103: 0 | AN103: 0 | AO103: 0 | AP103: 0 | AQ103: 0 | AR103: 0 | AS103: 10500000 | AT103: 0 | AU103: 0 | AV103: 0 | AW103: 0 | AX103: 0 | AY103: 0 | AZ103: 0 | BA103: 0 | BB103: 0 | BC103: 0 | BD103: 0 | BE103: 0 | BF103: 0 | BG103: 0 | BH103: 0 | BI103: 0 | BJ103: 0 | BK103: 0 | BL103: 0 | BM103: 0 | BN103: 0 | BO103: 0 | BP103: 0 | BQ103: 0 | BR103: 0 | BS103: 0 | BT103: 0 | BU103: 0 | BV103: 0 | BW103: 0 | BX103: 0 | BY103: 0 | BZ103: 0 | CA103: 0 | CB103: 0 | CC103: 0 | CD103: 0 | CE103: 0 | CF103: 0 | CG103: 0 | CH103: 0 | CI103: 0 | CJ103: 0 | CK103: 0 | CL103: 0 | CM103: - | CN103: 11430524 | CO103: 10719876 | CP103: 710648 | CQ103: 6.629255786 | CR103: 0 | CS103: 0 | CT103: 0 | CU103: - | CV103: 0 | CW103: 0 | CX103: 0 | CY103: - | CZ103: 0 | DA103: 0 | DB103: 0 | DC103: 0 | DD103: 149616527.5 | DE103: 34605608.31 | DF103: 115010919.2 | DG103: … | DH103: 852269036.8 | DI103: 1255870451 | DJ103: -403601414.5 | DK103: -32.13718533 | DL103: 0 | DM103: 0 | DN103: 0 | DO103: - | DP103: 835818999.9 | DQ103: 1237018600 | DR103: -401199599.7 | DS103: -32.43278636 | DT103: 852269036.8 | DU103: 1255870451 | DV103: 611036214.6 | DW103: 1232177440 | DX103: -621141224.9 | DY103: -50.41004688 | DZ103: 112458210.2 | EA103: -87400439.72 | EB103: 199858649.9 | EC103: … | ED103: 0 | EE103: 0 | EF103: 739810826.6 | EG103: 1343270891 | EH103: -603460064.4 | EI103: -44.92467368 | EJ103: 0 | EK103: 0 | EL103: 0 | EM103: - | EN103: 0 | EO103: 0 | EP103: 0 | EQ103: - | ER103: 0 | ES103: 0 | ET103: 0 | EU103: - | EV103: 0 | EW103: 10500000 | EX103: -10500000 | EY103: -100 | EZ103: 0 | FA103: 0 | FB103: 0 | FC103: - | FD103: 0 | FE103: 0 | FF103: 0 | FG103: 0 | FH103: TRUE | FI103: TRUE
